Workbook

Sheet Courbe des taux
B2: LIBOR CURVE | D2: 2012-10-07 | H2: ZC CURVE STRIPPING
B4: Currency | C4: EUR | D4: Shift (BP) | E4: 10 | H4: J+2 | I4: =D2+2 -> 2012-10-09
B7: maturity | C7: type | D7: market rate | E7: value
B8: JJ | C8: DEPOSIT | D8: 0.00093 | E8: =MAX(D8+$E$4/10000,0) -> 0.00193 | H8: Maturity (date) | I8: Mat (days) | J8: interp rate | K8: DF | L8: ZC rate
B9: 3M | C9: DEPOSIT | D9: 0.00214 | E9: 0.00314 | H9: =I4 -> 2012-10-09 | I9: =H9-$D$2 -> 2 | J9: =E8 -> 0.00193 | K9: =1/(1+D8*2/360) -> 0.9999948334 | L9: =(1/K9)^(365/(H9-$D$2))-1 -> 0.0009433589142
B10: 6M | C10: DEPOSIT | D10: 0.00423 | E10: 0.00523 | H10: =DATE(YEAR(H9),MONTH(H9)+3,DAY(H9)) -> 2013-01-09 | I10: =H10-$D$2 -> 94 | J10: 0.00314 | K10: =K9/(1+J10*(H10-I4)/360) -> 0.9991930365 | L10: 0.003139605489
B11: 1Y | C11: SWAP | D11: 0.005 | E11: 0.006 | H11: =DATE(YEAR(H9),MONTH(H9)+6,DAY(H9)) -> 2013-04-09 | I11: 184 | J11: 0.00523 | K11: =K9/(1+J11*(H11-I4)/360) -> 0.997357764 | L11: 0.005262125341
B12: 2Y | C12: SWAP | D12: 0.0051 | E12: 0.0061 | H12: =DATE(YEAR(H9),MONTH(H9)+12,DAY(H9)) -> 2013-10-09 | I12: 367 | J12: 0.006 | K12: =$K$9/(1+J12) -> 0.9940306495 | L12: 0.005972374263
B13: 3Y | C13: SWAP | D13: 0.0062 | E13: 0.0072 | H13: =DATE(YEAR(H12),MONTH(H12)+12,DAY(H12)) -> 2014-10-09 | I13: 732 | J13: 0.0061 | K13: =($K$9-J13*SUM($K$12:K12))/(1+J13) -> 0.9879050257 | L13: 0.006086178879
B14: 5Y | C14: SWAP | D14: 0.0098 | E14: 0.0108 | H14: 2015-10-09 | I14: 1097 | J14: 0.0072 | K14: =($K$9-J14*SUM($K$12:K13))/(1+J14) -> 0.9786784119 | L14: 0.007196734163
B15: 7Y | C15: SWAP | D15: 0.0136 | E15: 0.0146 | H15: 2016-10-09 | I15: 1463 | J15: =(J14+J16)/2 -> 0.009 | K15: =($K$9-J15*SUM($K$12:K14))/(1+J15) -> 0.9646673009 | L15: 0.009014951987
B16: 10Y | C16: SWAP | D16: 0.0178 | E16: 0.0188 | H16: 2017-10-09 | I16: 1828 | J16: =E14 -> 0.0108 | K16: =($K$9-J16*SUM($K$12:K15))/(1+J16) -> 0.9473701963 | L16: 0.01085380351
B17: 12Y | C17: SWAP | D17: 0.0198 | E17: 0.0208 | H17: 2018-10-09 | I17: 2193 | J17: =(J16+J18)/2 -> 0.0127 | K17: =($K$9-J17*SUM($K$12:K16))/(1+J17) -> 0.9263475444 | L17: 0.01281493946
B18: 15Y | C18: SWAP | D18: 0.0217 | E18: 0.0227 | H18: 2019-10-09 | I18: 2558 | J18: =E15 -> 0.0146 | K18: =($K$9-J18*SUM($K$12:K17))/(1+J18) -> 0.9021579402 | L18: 0.01480059088
B19: 20Y | C19: SWAP | D19: 0.0226 | E19: 0.0236 | H19: 2020-10-09 | I19: 2924 | J19: =(2/3)*J18+(1/3)*J21 -> 0.016 | K19: =($K$9-J19*SUM($K$12:K18))/(1+J19) -> 0.8787168506 | L19: 0.01627040575
B20: 25Y | C20: SWAP | D20: 0.0229 | E20: 0.0239 | H20: 2021-10-09 | I20: 3289 | J20: =(2/3)*J21+(1/3)*J18 -> 0.0174 | K20: =($K$9-J20*SUM($K$12:K19))/(1+J20) -> 0.8532583322 | L20: 0.01776709292
B21: 30Y | C21: SWAP | D21: 0.0231 | E21: 0.0241 | H21: 2022-10-09 | I21: 3654 | J21: =E16 -> 0.0188 | K21: =($K$9-J21*SUM($K$12:K20))/(1+J21) -> 0.8259245652 | L21: 0.01928790114
H22: 2023-10-09 | I22: 4019 | J22: =(J21+J23)/2 -> 0.0198 | K22: =($K$9-J22*SUM($K$12:K21))/(1+J22) -> 0.8008094807 | L22: 0.02037860428
H23: 2024-10-09 | I23: 4385 | J23: =E17 -> 0.0208 | K23: =($K$9-J23*SUM($K$12:K22))/(1+J23) -> 0.7746371614 | L23: 0.02148329348
H24: 2025-10-09 | I24: 4750 | J24: =(2/3)*J23+(1/3)*J26 -> 0.02143333333 | K24: =($K$9-J24*SUM($K$12:K23))/(1+J24) -> 0.7516646306 | L24: 0.0221780905
H25: 2026-10-09 | I25: 5115 | J25: =(2/3)*J26+(1/3)*J23 -> 0.02206666667 | K25: =($K$9-J25*SUM($K$12:K24))/(1+J25) -> 0.7282565301 | L25: 0.02288595108
H26: 2027-10-09 | I26: 5480 | J26: =E18 -> 0.0227 | K26: =($K$9-J26*SUM($K$12:K25))/(1+J26) -> 0.7044660159 | L26: 0.02360738204
H27: 2028-10-09 | I27: 5846 | J27: =(4/5)*J26+(1/5)*J31 -> 0.02288 | K27: =($K$9-J27*SUM($K$12:K26))/(1+J27) -> 0.6864173858 | L27: 0.02377082852
H28: 2029-10-09 | I28: 6211 | J28: =(3/5)*J26+(2/5)*J31 -> 0.02306 | K28: =($K$9-J28*SUM($K$12:K27))/(1+J28) -> 0.6685340355 | L28: 0.02394567098
H29: 2030-10-09 | I29: 6576 | J29: =(2/5)*J26+(3/5)*J31 -> 0.02324 | K29: =($K$9-J29*SUM($K$12:K28))/(1+J29) -> 0.6508216488 | L29: 0.02412688502
H30: 2031-10-09 | I30: 6941 | J30: =(1/5)*J26+(4/5)*J31 -> 0.02342 | K30: =($K$9-J30*SUM($K$12:K29))/(1+J30) -> 0.6332856592 | L30: 0.0243139728
H31: 2032-10-09 | I31: 7307 | J31: =E19 -> 0.0236 | K31: =($K$9-J31*SUM($K$12:K30))/(1+J31) -> 0.6159312508 | L31: 0.02450317056
H32: 2033-10-09 | I32: 7672 | J32: =(4/5)*J31+(1/5)*J36 -> 0.02366 | K32: =($K$9-J32*SUM($K$12:K31))/(1+J32) -> 0.6007412793 | L32: 0.02454037112
H33: 2034-10-09 | I33: 8037 | J33: =(3/5)*J31+(2/5)*J36 -> 0.02372 | K33: =($K$9-J33*SUM($K$12:K32))/(1+J33) -> 0.5858328469 | L33: 0.02458158587
H34: 2035-10-09 | I34: 8402 | J34: =(2/5)*J31+(3/5)*J36 -> 0.02378 | K34: =($K$9-J34*SUM($K$12:K33))/(1+J34) -> 0.5712020352 | L34: 0.0246264177
H35: 2036-10-09 | I35: 8768 | J35: =(1/5)*J31+(4/5)*J36 -> 0.02384 | K35: =($K$9-J35*SUM($K$12:K34))/(1+J35) -> 0.5568449521 | L35: 0.02467169177
H36: 2037-10-09 | I36: 9133 | J36: =E20 -> 0.0239 | K36: =($K$9-J36*SUM($K$12:K35))/(1+J36) -> 0.5427577322 | L36: 0.02472294413
H37: 2038-10-09 | I37: 9498 | J37: =(4/5)*J36+(1/5)*J41 -> 0.02394 | K37: =($K$9-J37*SUM($K$12:K36))/(1+J37) -> 0.5293205479 | L37: 0.0247484062
H38: 2039-10-09 | I38: 9863 | J38: =(3/5)*J36+(2/5)*J41 -> 0.02398 | K38: =($K$9-J38*SUM($K$12:K37))/(1+J38) -> 0.5161566874 | L38: 0.02477634424
H39: 2040-10-09 | I39: 10229 | J39: =(2/5)*J36+(3/5)*J41 -> 0.02402 | K39: =($K$9-J39*SUM($K$12:K38))/(1+J39) -> 0.5032612819 | L39: 0.02480411551
H40: 2041-10-09 | I40: 10594 | J40: =(1/5)*J36+(4/5)*J41 -> 0.02406 | K40: =($K$9-J40*SUM($K$12:K39))/(1+J40) -> 0.4906295354 | L40: 0.0248365522
H41: 2042-10-09 | I41: 10959 | J41: =E21 -> 0.0241 | K41: =($K$9-J41*SUM($K$12:K40))/(1+J41) -> 0.4782567232 | L41: 0.02487097702

Sheet CMS
AU1: Precomp ajust single vol | XEX1: A | XEY1: 12 | XEZ1: 1 | XFB1: ACT/360
B2: As of date | C2: ='Courbe des taux'!D2 -> 2012-10-07 | E2: SABR smile parameters | I2: Caplet replic. params | O2: Floorlet replic. params | U2: Caplet integral params | AB2: Floorlet integral params | AU2: f'/f | AV2: =1/C20+(-C9*(1+C20/C22)^(C22*C7-1)-(C7-C9)/(1+C20/C22))/((1+C20/C22)^(C22*C7)-1) -> 5.104213035 | XEX2: S | XEY2: 6 | XEZ2: 2 | XFB2: ACT/365
E3: Alpha | F3: 0.2603476367 | I3: step | J3: 0.005 | O3: step | P3: 0.001 | U3: step | V3: 0.005 | AB3: step | AC3: 0.001 | AU3: sigma' | AV3: =AV2*C20*F9 -> 0.03802673574 | XEX3: Q | XEY3: 3 | XEZ3: 4 | XFB3: 30/360
E4: Nu | F4: 0.2108596852 | I4: nstdev | J4: 5 | O4: strike min | P4: 0 | U4: nstdev | V4: 5 | AB4: strike min | AC4: 0 | XEX4: M | XEY4: 1 | XEZ4: 12
B5: CMS caplet / floorlet | E5: Rho | F5: -0.4927241673 | I5: strike max | J5: =C20*EXP(J4*F9*SQRT(C6)) -> 1.531528126 | U5: strike max | V5: =C20*EXP(V4*F9*SQRT(C6)) -> 1.531528126
B6: Maturity | C6: 10 | E6: Beta | F6: 1
B7: CMS tenor | C7: 10 | U7: f'(K) | V7: =(W14-W12)/(U14-U12) -> 0.1172500655
B8: Strike | C8: 0.03 | E8: CMS single vol | F8: 0
B9: Pay delay | C9: 0 | E9: ATM vol | F9: =_xll.qlSabrVolatility(C20,$C$20,(C14-C2)/365,$F$3,$F$6,$F$4,$F$5) -> 0.2488694299 | I9: CMS caplet replication | O9: CMS floorlet replication | U9: CMS caplet integration | AB9: CMS caplet integration
E10: CMS caplet | F10: =DF(C17-$C$2,Maturities,ZcRates)*BScall(($C$14-$C$2)/365,C8,$F$12,J12) -> 0.009202930049
B11: Underlying | E11: CMS floorlet | F11: =DF(C17-$C$2,Maturities,ZcRates)*BSput(($C$14-$C$2)/365,C8,$F$12,J12) -> 0.006800513956 | I11: strike | J11: vol | K11: cs swaption | L11: DF(Ki) / LVLc (Ki) | M11: weight | O11: strike | P11: vol | Q11: cs swaption | R11: DF(Ki) / LVLc (Ki) | S11: weight | U11: fwd | V11: vol | W11: f(s) | X11: f''(s) | Y11: integrand | Z11: trapeze | AB11: fwd | AC11: vol | AD11: f(s) | AE11: f''(s) | AF11: integrand | AG11: trapeze
B12: Swap Fixed freq | C12: A | E12: CMS rate | F12: =C20*EXP(F9*AV3*(C14-C2)/365) -> 0.0329087597 | I12: =C8 -> 0.03 | J12: =IF(I12="","",_xll.qlSabrVolatility(I12,$C$20,($C$14-$C$2)/365,$F$3,$F$6,$F$4,$F$5)) -> 0.2487628809 | K12: =IF(I12="","",$C$23*BScall(($C$14-$C$2)/365,I12,$C$20,J12)) -> 0.06440181577 | L12: --- | M12: =L13 -> 0.1202413679 | O12: =C8 -> 0.03 | P12: =IF(O12="","",_xll.qlSabrVolatility(O12,$C$20,($C$14-$C$2)/365,$F$3,$F$6,$F$4,$F$5)) -> 0.2487628809 | Q12: =IF(O12="","",$C$23*BSput(($C$14-$C$2)/365,O12,$C$20,P12)) -> 0.06485532567 | R12: --- | S12: =R13 -> 0.1166330158 | U12: =C8-V3 -> 0.025 | V12: =IF(U12="","",_xll.qlSabrVolatility(U12,$C$20,($C$14-$C$2)/365,$F$3,$F$6,$F$4,$F$5)) -> 0.2583237945 | W12: =IF(U12="","",(U12-$C$8)*(1+U12/$C$22)^(-$C$9*$C$22)*U12/(1-(1+U12/$C$22)^-($C$22*$C$7))) -> -0.0005712938159 | X12: --- | Y12: --- | AB12: =C8+AC3 -> 0.031 | AC12: =IF(AB12="","",_xll.qlSabrVolatility(AB12,$C$20,($C$14-$C$2)/365,$F$3,$F$6,$F$4,$F$5)) -> 0.2471560675 | AD12: =IF(AB12="","",(AB12-$C$8)*(1+AB12/$C$22)^(-$C$9*$C$22)*AB12/(1-(1+AB12/$C$22)^-($C$22*$C$7))) -> 0.0001178295621 | AE12: --- | AF12: ---
B13: Swap Fixed Conv | C13: 30/360 | I13: =IF(I12>=$J$5,"",I12+$J$3) -> 0.035 | J13: =IF(I13="","",_xll.qlSabrVolatility(I13,$C$20,($C$14-$C$2)/365,$F$3,$F$6,$F$4,$F$5)) -> 0.2415681903 | K13: =IF(I13="","",$C$23*BScall(($C$14-$C$2)/365,I13,$C$20,J13)) -> 0.05159537759 | L13: =IF(I13="","",(1+I13/$C$22)^(-$C$9*$C$22)*I13/(1-(1+I13/$C$22)^-($C$22*$C$7))) -> 0.1202413679 | M13: =IF(I14="","",(L14*(I14-$I$12)-I14*SUM($M$12:M12)+SUMPRODUCT($M$12:M12,$I$12:I12))/(I14-I13)) -> 0.006099152925 | O13: =IF(OR(O12<$P$4+$P$3,O12=""),"",O12-$P$3) -> 0.029 | P13: =IF(O13="","",_xll.qlSabrVolatility(O13,$C$20,($C$14-$C$2)/365,$F$3,$F$6,$F$4,$F$5)) -> 0.2504634071 | Q13: =IF(O13="","",$C$23*BSput(($C$14-$C$2)/365,O13,$C$20,P13)) -> 0.06071397595 | R13: =IF(O13="","",(1+O13/$C$22)^(-$C$9*$C$22)*O13/(1-(1+O13/$C$22)^-($C$22*$C$7))) -> 0.1166330158 | S13: =IF(O14="","",(R14*(O14-$O$12)-O14*SUM($S$12:S12)+SUMPRODUCT($S$12:S12,$O$12:O12))/(O14-O13)) -> -0.001191845736 | U13: =IF(U12>=$V$5,"",U12+$V$3) -> 0.03 | V13: =IF(U13="","",_xll.qlSabrVolatility(U13,$C$20,($C$14-$C$2)/365,$F$3,$F$6,$F$4,$F$5)) -> 0.2487628809 | W13: =IF(U13="","",(U13-$C$8)*(1+U13/$C$22)^(-$C$9*$C$22)*U13/(1-(1+U13/$C$22)^-($C$22*$C$7))) -> 0 | X13: =IF(U14="","",(W14+W12-2*W13)/($V$3^2)) -> 1.196520938 | Y13: =IF(X13="","",BScall(($C$14-$C$2)/365,U13,$C$20,V13)*X13) -> 0.01093392371 | Z13: =IF(Y14="","",0.5*(U14-U13)*(Y13+Y14)) -> 4.96606564e-05 | AB13: =IF(OR(AB12<$AC$4+$AC$3,AB12=""),"",AB12-$AC$3) -> 0.03 | AC13: =IF(AB13="","",_xll.qlSabrVolatility(AB13,$C$20,($C$14-$C$2)/365,$F$3,$F$6,$F$4,$F$5)) -> 0.2487628809 | AD13: =IF(AB13="","",(AB13-$C$8)*(1+AB13/$C$22)^(-$C$9*$C$22)*AB13/(1-(1+AB13/$C$22)^-($C$22*$C$7))) -> 0 | AE13: =IF(AB14="","",(AD14+AD12-2*AD13)/($AC$3^2)) -> 1.196546321 | AF13: =IF(AE13="","",BSput(($C$14-$C$2)/365,AB13,$C$20,AC13)*AE13) -> 0.01101115268 | AG13: =IF(AF14="","",0.5*(AB14-AB13)*(AF13+AF14)) -> -1.063934566e-05
B14: Swap Fix date | C14: =C15-2 -> 2022-10-07 | E14: CMS replic. with CS swaptions | I14: 0.04 | J14: =IF(I14="","",_xll.qlSabrVolatility(I14,$C$20,($C$14-$C$2)/365,$F$3,$F$6,$F$4,$F$5)) -> 0.2361715883 | K14: =IF(I14="","",$C$23*BScall(($C$14-$C$2)/365,I14,$C$20,J14)) -> 0.04135562304 | L14: 0.1232909443 | M14: =IF(I15="","",(L15*(I15-$I$12)-I15*SUM($M$12:M13)+SUMPRODUCT($M$12:M13,$I$12:I13))/(I15-I14)) -> 0.006214055773 | O14: =IF(OR(O13<$P$4+$P$3,O13=""),"",O13-$P$3) -> 0.028 | P14: =IF(O14="","",_xll.qlSabrVolatility(O14,$C$20,($C$14-$C$2)/365,$F$3,$F$6,$F$4,$F$5)) -> 0.2522632822 | Q14: =IF(O14="","",$C$23*BSput(($C$14-$C$2)/365,O14,$C$20,P14)) -> 0.05669497511 | R14: =IF(O14="","",(1+O14/$C$22)^(-$C$9*$C$22)*O14/(1-(1+O14/$C$22)^-($C$22*$C$7))) -> 0.116037093 | S14: =IF(O15="","",(R15*(O15-$O$12)-O15*SUM($S$12:S13)+SUMPRODUCT($S$12:S13,$O$12:O13))/(O15-O14)) -> -0.001187132558 | U14: 0.035 | V14: =IF(U14="","",_xll.qlSabrVolatility(U14,$C$20,($C$14-$C$2)/365,$F$3,$F$6,$F$4,$F$5)) -> 0.2415681903 | W14: 0.0006012068393 | X14: =IF(U15="","",(W15+W13-2*W14)/($V$3^2)) -> 1.219830585 | Y14: =IF(X14="","",BScall(($C$14-$C$2)/365,U14,$C$20,V14)*X14) -> 0.008930338849 | Z14: =IF(Y15="","",0.5*(U15-U14)*(Y14+Y15)) -> 4.055797439e-05 | AB14: =IF(OR(AB13<$AC$4+$AC$3,AB13=""),"",AB13-$AC$3) -> 0.029 | AC14: =IF(AB14="","",_xll.qlSabrVolatility(AB14,$C$20,($C$14-$C$2)/365,$F$3,$F$6,$F$4,$F$5)) -> 0.2504634071 | AD14: -0.0001166330158 | AE14: =IF(AB15="","",(AD15+AD13-2*AD14)/($AC$3^2)) -> 1.191845736 | AF14: =IF(AE14="","",BSput(($C$14-$C$2)/365,AB14,$C$20,AC14)*AE14) -> 0.01026753863 | AG14: =IF(AF15="","",0.5*(AB15-AB14)*(AF14+AF15)) -> -9.908747742e-06
B15: Swap Start date | C15: =DATE(YEAR(C2)+C6,MONTH(C2),DAY(C2)+2) -> 2022-10-09 | E15: CMS caplet | F15: =SUMPRODUCT(K12:K1011,M12:M1011) -> 0.01014908827 | I15: 0.045 | J15: =IF(I15="","",_xll.qlSabrVolatility(I15,$C$20,($C$14-$C$2)/365,$F$3,$F$6,$F$4,$F$5)) -> 0.2321721508 | K15: =IF(I15="","",$C$23*BScall(($C$14-$C$2)/365,I15,$C$20,J15)) -> 0.03325420549 | L15: 0.1263788217 | M15: =IF(I16="","",(L16*(I16-$I$12)-I16*SUM($M$12:M14)+SUMPRODUCT($M$12:M14,$I$12:I14))/(I16-I15)) -> 0.00632725807 | O15: 0.027 | P15: =IF(O15="","",_xll.qlSabrVolatility(O15,$C$20,($C$14-$C$2)/365,$F$3,$F$6,$F$4,$F$5)) -> 0.2541686711 | Q15: =IF(O15="","",$C$23*BSput(($C$14-$C$2)/365,O15,$C$20,P15)) -> 0.05280124499 | R15: 0.1154427411 | S15: =IF(O16="","",(R16*(O16-$O$12)-O16*SUM($S$12:S14)+SUMPRODUCT($S$12:S14,$O$12:O14))/(O16-O15)) -> -0.001182406888 | U15: 0.04 | V15: =IF(U15="","",_xll.qlSabrVolatility(U15,$C$20,($C$14-$C$2)/365,$F$3,$F$6,$F$4,$F$5)) -> 0.2361715883 | W15: 0.001232909443 | X15: 1.242811155 | Y15: =IF(X15="","",BScall(($C$14-$C$2)/365,U15,$C$20,V15)*X15) -> 0.007292850906 | Z15: 3.315971916e-05 | AB15: 0.028 | AC15: =IF(AB15="","",_xll.qlSabrVolatility(AB15,$C$20,($C$14-$C$2)/365,$F$3,$F$6,$F$4,$F$5)) -> 0.2522632822 | AD15: -0.0002320741859 | AE15: 1.187132558 | AF15: =IF(AE15="","",BSput(($C$14-$C$2)/365,AB15,$C$20,AC15)*AE15) -> 0.009549956851 | AG15: -9.204315613e-06
B16: Swap End date | C16: =DATE(YEAR(C15)+C7,MONTH(C15),DAY(C15)) -> 2032-10-09 | E16: CMS floorlet | F16: =SUMPRODUCT(Q12:Q211,S12:S211) -> 0.006837912147 | I16: 0.05 | J16: =IF(I16="","",_xll.qlSabrVolatility(I16,$C$20,($C$14-$C$2)/365,$F$3,$F$6,$F$4,$F$5)) -> 0.2292692148 | K16: =IF(I16="","",$C$23*BScall(($C$14-$C$2)/365,I16,$C$20,J16)) -> 0.02688541332 | L16: 0.129504575 | M16: =IF(I17="","",(L17*(I17-$I$12)-I17*SUM($M$12:M15)+SUMPRODUCT($M$12:M15,$I$12:I15))/(I17-I16)) -> 0.006438709019 | O16: 0.026 | P16: =IF(O16="","",_xll.qlSabrVolatility(O16,$C$20,($C$14-$C$2)/365,$F$3,$F$6,$F$4,$F$5)) -> 0.256186348 | Q16: =IF(O16="","",$C$23*BSput(($C$14-$C$2)/365,O16,$C$20,P16)) -> 0.04903556019 | R16: 0.1148499635 | S16: =IF(O17="","",(R17*(O17-$O$12)-O17*SUM($S$12:S15)+SUMPRODUCT($S$12:S15,$O$12:O15))/(O17-O16)) -> -0.001177668829 | U16: 0.045 | V16: =IF(U16="","",_xll.qlSabrVolatility(U16,$C$20,($C$14-$C$2)/365,$F$3,$F$6,$F$4,$F$5)) -> 0.2321721508 | W16: 0.001895682326 | X16: 1.265451614 | Y16: =IF(X16="","",BScall(($C$14-$C$2)/365,U16,$C$20,V16)*X16) -> 0.005971036758 | Z16: 2.72088581e-05 | AB16: 0.027 | AC16: =IF(AB16="","",_xll.qlSabrVolatility(AB16,$C$20,($C$14-$C$2)/365,$F$3,$F$6,$F$4,$F$5)) -> 0.2541686711 | AD16: -0.0003463282234 | AE16: 1.182406888 | AF16: =IF(AE16="","",BSput(($C$14-$C$2)/365,AB16,$C$20,AC16)*AE16) -> 0.008858674375 | AG16: -8.526299322e-06
B17: CMS Pay date | C17: =DATE(YEAR(C15)+C9,MONTH(C15),DAY(C15)) -> 2022-10-09 | E17: CMS rate | F17: =(F15-F16)/DF(C17-$C$2,Maturities,ZcRates)+C8 -> 0.03400905393 | I17: 0.055 | J17: =IF(I17="","",_xll.qlSabrVolatility(I17,$C$20,($C$14-$C$2)/365,$F$3,$F$6,$F$4,$F$5)) -> 0.2272295692 | K17: =IF(I17="","",$C$23*BScall(($C$14-$C$2)/365,I17,$C$20,J17)) -> 0.02189129328 | L17: 0.1326677687 | M17: =IF(I18="","",(L18*(I18-$I$12)-I18*SUM($M$12:M16)+SUMPRODUCT($M$12:M16,$I$12:I16))/(I18-I17)) -> 0.00654836215 | O17: 0.025 | P17: =IF(O17="","",_xll.qlSabrVolatility(O17,$C$20,($C$14-$C$2)/365,$F$3,$F$6,$F$4,$F$5)) -> 0.2583237945 | Q17: =IF(O17="","",$C$23*BSput(($C$14-$C$2)/365,O17,$C$20,P17)) -> 0.04540053067 | R17: 0.1142587632 | S17: =IF(O18="","",(R18*(O18-$O$12)-O18*SUM($S$12:S16)+SUMPRODUCT($S$12:S16,$O$12:O16))/(O18-O17)) -> -0.001172918484 | U17: 0.05 | V17: =IF(U17="","",_xll.qlSabrVolatility(U17,$C$20,($C$14-$C$2)/365,$F$3,$F$6,$F$4,$F$5)) -> 0.2292692148 | W17: 0.002590091499 | X17: 1.287741804 | Y17: =IF(X17="","",BScall(($C$14-$C$2)/365,U17,$C$20,V17)*X17) -> 0.004912506482 | Z17: 2.245151876e-05 | AB17: 0.026 | AC17: =IF(AB17="","",_xll.qlSabrVolatility(AB17,$C$20,($C$14-$C$2)/365,$F$3,$F$6,$F$4,$F$5)) -> 0.256186348 | AD17: -0.0004593998541 | AE17: 1.177668829 | AF17: =IF(AE17="","",BSput(($C$14-$C$2)/365,AB17,$C$20,AC17)*AE17) -> 0.008193924268 | AG17: -7.874913721e-06
I18: 0.06 | J18: =IF(I18="","",_xll.qlSabrVolatility(I18,$C$20,($C$14-$C$2)/365,$F$3,$F$6,$F$4,$F$5)) -> 0.2258695332 | K18: =IF(I18="","",$C$23*BScall(($C$14-$C$2)/365,I18,$C$20,J18)) -> 0.01797204103 | L18: 0.1358679582 | M18: =IF(I19="","",(L19*(I19-$I$12)-I19*SUM($M$12:M17)+SUMPRODUCT($M$12:M17,$I$12:I17))/(I19-I18)) -> 0.006656175262 | O18: 0.024 | P18: =IF(O18="","",_xll.qlSabrVolatility(O18,$C$20,($C$14-$C$2)/365,$F$3,$F$6,$F$4,$F$5)) -> 0.260589317 | Q18: =IF(O18="","",$C$23*BSput(($C$14-$C$2)/365,O18,$C$20,P18)) -> 0.0418985849 | R18: 0.1136691432 | S18: =IF(O19="","",(R19*(O19-$O$12)-O19*SUM($S$12:S17)+SUMPRODUCT($S$12:S17,$O$12:O17))/(O19-O18)) -> -0.001168155958 | U18: 0.055 | V18: =IF(U18="","",_xll.qlSabrVolatility(U18,$C$20,($C$14-$C$2)/365,$F$3,$F$6,$F$4,$F$5)) -> 0.2272295692 | W18: 0.003316694218 | X18: 1.30967243 | Y18: =IF(X18="","",BScall(($C$14-$C$2)/365,U18,$C$20,V18)*X18) -> 0.004068101022 | Z18: 1.865716612e-05 | AB18: 0.025 | AC18: =IF(AB18="","",_xll.qlSabrVolatility(AB18,$C$20,($C$14-$C$2)/365,$F$3,$F$6,$F$4,$F$5)) -> 0.2583237945 | AD18: -0.0005712938159 | AE18: 1.172918484 | AF18: =IF(AE18="","",BSput(($C$14-$C$2)/365,AB18,$C$20,AC18)*AE18) -> 0.007555903175 | AG18: -7.250336116e-06
B19: Level & swaprate | E19: CMS numerical integral | I19: 0.065 | J19: =IF(I19="","",_xll.qlSabrVolatility(I19,$C$20,($C$14-$C$2)/365,$F$3,$F$6,$F$4,$F$5)) -> 0.2250437506 | K19: =IF(I19="","",$C$23*BScall(($C$14-$C$2)/365,I19,$C$20,J19)) -> 0.01488578532 | L19: 0.1391046901 | M19: =IF(I20="","",(L20*(I20-$I$12)-I20*SUM($M$12:M18)+SUMPRODUCT($M$12:M18,$I$12:I18))/(I20-I19)) -> 0.006762110362 | O19: 0.023 | P19: =IF(O19="","",_xll.qlSabrVolatility(O19,$C$20,($C$14-$C$2)/365,$F$3,$F$6,$F$4,$F$5)) -> 0.2629921893 | Q19: =IF(O19="","",$C$23*BSput(($C$14-$C$2)/365,O19,$C$20,P19)) -> 0.03853195384 | R19: 0.1130811067 | S19: =IF(O20="","",(R20*(O20-$O$12)-O20*SUM($S$12:S18)+SUMPRODUCT($S$12:S18,$O$12:O18))/(O20-O19)) -> -0.001163381359 | U19: 0.06 | V19: =IF(U19="","",_xll.qlSabrVolatility(U19,$C$20,($C$14-$C$2)/365,$F$3,$F$6,$F$4,$F$5)) -> 0.2258695332 | W19: 0.004076038747 | X19: 1.331235052 | Y19: =IF(X19="","",BScall(($C$14-$C$2)/365,U19,$C$20,V19)*X19) -> 0.003394765425 | Z19: 1.56282852e-05 | AB19: 0.024 | AC19: =IF(AB19="","",_xll.qlSabrVolatility(AB19,$C$20,($C$14-$C$2)/365,$F$3,$F$6,$F$4,$F$5)) -> 0.260589317 | AD19: -0.0006820148592 | AE19: 1.168155958 | AF19: =IF(AE19="","",BSput(($C$14-$C$2)/365,AB19,$C$20,AC19)*AE19) -> 0.006944769057 | AG19: -6.652704093e-06
B20: Fwd swap rate | C20: =(DF(C15-$C$2,Maturities,ZcRates)-DF(C16-$C$2,Maturities,ZcRates))/SUMPRODUCT(E28:E147,F28:F147) -> 0.02993565062 | E20: CMS caplet | F20: =C23*(BScall((C14-C2)/365,C8,C20,V13)*V7+SUM(Z13:Z1011)) -> 0.01014893797 | I20: 0.07 | J20: =IF(I20="","",_xll.qlSabrVolatility(I20,$C$20,($C$14-$C$2)/365,$F$3,$F$6,$F$4,$F$5)) -> 0.2246372199 | K20: =IF(I20="","",$C$23*BScall(($C$14-$C$2)/365,I20,$C$20,J20)) -> 0.01244239277 | L20: 0.1423775027 | M20: =IF(I21="","",(L21*(I21-$I$12)-I21*SUM($M$12:M19)+SUMPRODUCT($M$12:M19,$I$12:I19))/(I21-I20)) -> 0.006866133587 | O20: 0.022 | P20: =IF(O20="","",_xll.qlSabrVolatility(O20,$C$20,($C$14-$C$2)/365,$F$3,$F$6,$F$4,$F$5)) -> 0.2655428279 | Q20: =IF(O20="","",$C$23*BSput(($C$14-$C$2)/365,O20,$C$20,P20)) -> 0.03530265583 | R20: 0.1124946566 | S20: =IF(O21="","",(R21*(O21-$O$12)-O21*SUM($S$12:S19)+SUMPRODUCT($S$12:S19,$O$12:O19))/(O21-O20)) -> -0.001158594793 | U20: 0.065 | V20: =IF(U20="","",_xll.qlSabrVolatility(U20,$C$20,($C$14-$C$2)/365,$F$3,$F$6,$F$4,$F$5)) -> 0.2250437506 | W20: 0.004868664152 | X20: 1.352422072 | Y20: =IF(X20="","",BScall(($C$14-$C$2)/365,U20,$C$20,V20)*X20) -> 0.002856548656 | Z20: 1.320236467e-05 | AB20: 0.023 | AC20: =IF(AB20="","",_xll.qlSabrVolatility(AB20,$C$20,($C$14-$C$2)/365,$F$3,$F$6,$F$4,$F$5)) -> 0.2629921893 | AD20: -0.0007915677466 | AE20: 1.163381359 | AF20: =IF(AE20="","",BSput(($C$14-$C$2)/365,AB20,$C$20,AC20)*AE20) -> 0.006360639129 | AG20: -6.082113575e-06
B21: Swap Level (phys) | C21: =SUMPRODUCT(E28:E147,F28:F147) -> 7.014823799 | E21: CMS floorlet | F21: =C23*(BSput((C14-C2)/365,C8,C20,AC13)*V7+SUM(AG13:AG1011)) -> 0.006839370399 | I21: 0.075 | J21: =IF(I21="","",_xll.qlSabrVolatility(I21,$C$20,($C$14-$C$2)/365,$F$3,$F$6,$F$4,$F$5)) -> 0.2245591231 | K21: =IF(I21="","",$C$23*BScall(($C$14-$C$2)/365,I21,$C$20,J21)) -> 0.01049491161 | L21: 0.1456859274 | M21: =IF(I22="","",(L22*(I22-$I$12)-I22*SUM($M$12:M20)+SUMPRODUCT($M$12:M20,$I$12:I20))/(I22-I21)) -> 0.006968215119 | O21: 0.021 | P21: =IF(O21="","",_xll.qlSabrVolatility(O21,$C$20,($C$14-$C$2)/365,$F$3,$F$6,$F$4,$F$5)) -> 0.2682530069 | Q21: =IF(O21="","",$C$23*BSput(($C$14-$C$2)/365,O21,$C$20,P21)) -> 0.03221248269 | R21: 0.111909796 | S21: =IF(O22="","",(R22*(O22-$O$12)-O22*SUM($S$12:S20)+SUMPRODUCT($S$12:S20,$O$12:O20))/(O22-O21)) -> -0.001153796371 | U21: 0.07 | V21: =IF(U21="","",_xll.qlSabrVolatility(U21,$C$20,($C$14-$C$2)/365,$F$3,$F$6,$F$4,$F$5)) -> 0.2246372199 | W21: 0.005695100109 | X21: 1.373226717 | Y21: =IF(X21="","",BScall(($C$14-$C$2)/365,U21,$C$20,V21)*X21) -> 0.002424397211 | Z21: 1.124932747e-05 | AB21: 0.022 | AC21: =IF(AB21="","",_xll.qlSabrVolatility(AB21,$C$20,($C$14-$C$2)/365,$F$3,$F$6,$F$4,$F$5)) -> 0.2655428279 | AD21: -0.0008999572526 | AE21: 1.158594793 | AF21: =IF(AE21="","",BSput(($C$14-$C$2)/365,AB21,$C$20,AC21)*AE21) -> 0.005803588021 | AG21: -5.538617117e-06
B22: Swap Freq | C22: =VLOOKUP($C$12,$XEX$1:$XEZ$4,3,FALSE) -> 1 | E22: CMS rate | F22: =(F20-F21)/DF(C17-$C$2,Maturities,ZcRates)+C8 -> 0.03400710635 | I22: 0.08 | J22: =IF(I22="","",_xll.qlSabrVolatility(I22,$C$20,($C$14-$C$2)/365,$F$3,$F$6,$F$4,$F$5)) -> 0.2247378653 | K22: =IF(I22="","",$C$23*BScall(($C$14-$C$2)/365,I22,$C$20,J22)) -> 0.008930893935 | L22: 0.1490294887 | M22: =IF(I23="","",(L23*(I23-$I$12)-I23*SUM($M$12:M21)+SUMPRODUCT($M$12:M21,$I$12:I21))/(I23-I22)) -> 0.007068329092 | O22: 0.02 | P22: =IF(O22="","",_xll.qlSabrVolatility(O22,$C$20,($C$14-$C$2)/365,$F$3,$F$6,$F$4,$F$5)) -> 0.2711361262 | Q22: =IF(O22="","",$C$23*BSput(($C$14-$C$2)/365,O22,$C$20,P22)) -> 0.02926298719 | R22: 0.1113265279 | S22: =IF(O23="","",(R23*(O23-$O$12)-O23*SUM($S$12:S21)+SUMPRODUCT($S$12:S21,$O$12:O21))/(O23-O22)) -> -0.001148986203 | U22: 0.075 | V22: =IF(U22="","",_xll.qlSabrVolatility(U22,$C$20,($C$14-$C$2)/365,$F$3,$F$6,$F$4,$F$5)) -> 0.2245591231 | W22: 0.006555866734 | X22: 1.393643024 | Y22: =IF(X22="","",BScall(($C$14-$C$2)/365,U22,$C$20,V22)*X22) -> 0.002075333779 | Z22: 9.666903987e-06 | AB22: 0.021 | AC22: =IF(AB22="","",_xll.qlSabrVolatility(AB22,$C$20,($C$14-$C$2)/365,$F$3,$F$6,$F$4,$F$5)) -> 0.2682530069 | AD22: -0.001007188164 | AE22: 1.153796371 | AF22: =IF(AE22="","",BSput(($C$14-$C$2)/365,AB22,$C$20,AC22)*AE22) -> 0.005273646212 | AG22: -5.022222474e-06
B23: Level cash * DF | C23: =DF(C15-$C$2,Maturities,ZcRates)*(1-(1+C20/C22)^-(C22*C7))/C20 -> 7.047618315 | I23: 0.085 | J23: =IF(I23="","",_xll.qlSabrVolatility(I23,$C$20,($C$14-$C$2)/365,$F$3,$F$6,$F$4,$F$5)) -> 0.22511706 | K23: =IF(I23="","",$C$23*BScall(($C$14-$C$2)/365,I23,$C$20,J23)) -> 0.007664701842 | L23: 0.1524077051 | M23: =IF(I24="","",(L24*(I24-$I$12)-I24*SUM($M$12:M22)+SUMPRODUCT($M$12:M22,$I$12:I22))/(I24-I23)) -> 0.007166453483 | O23: 0.019 | P23: =IF(O23="","",_xll.qlSabrVolatility(O23,$C$20,($C$14-$C$2)/365,$F$3,$F$6,$F$4,$F$5)) -> 0.2742075472 | Q23: =IF(O23="","",$C$23*BSput(($C$14-$C$2)/365,O23,$C$20,P23)) -> 0.02645547203 | R23: 0.1107448552 | S23: =IF(O24="","",(R24*(O24-$O$12)-O24*SUM($S$12:S22)+SUMPRODUCT($S$12:S22,$O$12:O22))/(O24-O23)) -> -0.001144164401 | U23: 0.08 | V23: =IF(U23="","",_xll.qlSabrVolatility(U23,$C$20,($C$14-$C$2)/365,$F$3,$F$6,$F$4,$F$5)) -> 0.2247378653 | W23: 0.007451474435 | X23: 1.413665818 | Y23: =IF(X23="","",BScall(($C$14-$C$2)/365,U23,$C$20,V23)*X23) -> 0.001791427816 | Z23: 8.375540598e-06 | AB23: 0.02 | AC23: =IF(AB23="","",_xll.qlSabrVolatility(AB23,$C$20,($C$14-$C$2)/365,$F$3,$F$6,$F$4,$F$5)) -> 0.2711361262 | AD23: -0.001113265279 | AE23: 1.148986203 | AF23: =IF(AE23="","",BSput(($C$14-$C$2)/365,AB23,$C$20,AC23)*AE23) -> 0.004770798735 | AG23: -4.532891468e-06
I24: 0.09 | J24: =IF(I24="","",_xll.qlSabrVolatility(I24,$C$20,($C$14-$C$2)/365,$F$3,$F$6,$F$4,$F$5)) -> 0.2256522977 | K24: =IF(I24="","",$C$23*BScall(($C$14-$C$2)/365,I24,$C$20,J24)) -> 0.00663117208 | L24: 0.1558200899 | M24: =IF(I25="","",(L25*(I25-$I$12)-I25*SUM($M$12:M23)+SUMPRODUCT($M$12:M23,$I$12:I23))/(I25-I24)) -> 0.007262570009 | O24: 0.018 | P24: =IF(O24="","",_xll.qlSabrVolatility(O24,$C$20,($C$14-$C$2)/365,$F$3,$F$6,$F$4,$F$5)) -> 0.2774850194 | Q24: =IF(O24="","",$C$23*BSput(($C$14-$C$2)/365,O24,$C$20,P24)) -> 0.0237909806 | R24: 0.110164781 | S24: =IF(O25="","",(R25*(O25-$O$12)-O25*SUM($S$12:S23)+SUMPRODUCT($S$12:S23,$O$12:O23))/(O25-O24)) -> -0.00113933108 | U24: 0.085 | V24: =IF(U24="","",_xll.qlSabrVolatility(U24,$C$20,($C$14-$C$2)/365,$F$3,$F$6,$F$4,$F$5)) -> 0.22511706 | W24: 0.008382423781 | X24: 1.433290697 | Y24: =IF(X24="","",BScall(($C$14-$C$2)/365,U24,$C$20,V24)*X24) -> 0.001558788423 | Z24: 7.31368216e-06 | AB24: 0.019 | AC24: =IF(AB24="","",_xll.qlSabrVolatility(AB24,$C$20,($C$14-$C$2)/365,$F$3,$F$6,$F$4,$F$5)) -> 0.2742075472 | AD24: -0.001218193407 | AE24: 1.144164401 | AF24: =IF(AE24="","",BSput(($C$14-$C$2)/365,AB24,$C$20,AC24)*AE24) -> 0.004294984202 | AG24: -4.070539179e-06
B25: Underlying swap schedule | I25: 0.095 | J25: =IF(I25="","",_xll.qlSabrVolatility(I25,$C$20,($C$14-$C$2)/365,$F$3,$F$6,$F$4,$F$5)) -> 0.2263085722 | K25: =IF(I25="","",$C$23*BScall(($C$14-$C$2)/365,I25,$C$20,J25)) -> 0.005780625061 | L25: 0.1592661517 | M25: =IF(I26="","",(L26*(I26-$I$12)-I26*SUM($M$12:M24)+SUMPRODUCT($M$12:M24,$I$12:I24))/(I26-I25)) -> 0.007356664007 | O25: 0.017 | P25: =IF(O25="","",_xll.qlSabrVolatility(O25,$C$20,($C$14-$C$2)/365,$F$3,$F$6,$F$4,$F$5)) -> 0.2809892266 | Q25: =IF(O25="","",$C$23*BSput(($C$14-$C$2)/365,O25,$C$20,P25)) -> 0.02127028961 | R25: 0.1095863081 | S25: =IF(O26="","",(R26*(O26-$O$12)-O26*SUM($S$12:S24)+SUMPRODUCT($S$12:S24,$O$12:O24))/(O26-O25)) -> -0.001134486353 | U25: 0.09 | V25: =IF(U25="","",_xll.qlSabrVolatility(U25,$C$20,($C$14-$C$2)/365,$F$3,$F$6,$F$4,$F$5)) -> 0.2256522977 | W25: 0.009349205395 | X25: 1.452514002 | Y25: =IF(X25="","",BScall(($C$14-$C$2)/365,U25,$C$20,V25)*X25) -> 0.001366684441 | Z25: 6.433766966e-06 | AB25: 0.018 | AC25: =IF(AB25="","",_xll.qlSabrVolatility(AB25,$C$20,($C$14-$C$2)/365,$F$3,$F$6,$F$4,$F$5)) -> 0.2774850194 | AD25: -0.001321977372 | AE25: 1.13933108 | AF25: =IF(AE25="","",BSput(($C$14-$C$2)/365,AB25,$C$20,AC25)*AE25) -> 0.003846094157 | AG25: -3.635033469e-06
I26: 0.1 | J26: =IF(I26="","",_xll.qlSabrVolatility(I26,$C$20,($C$14-$C$2)/365,$F$3,$F$6,$F$4,$F$5)) -> 0.2270582469 | K26: =IF(I26="","",$C$23*BScall(($C$14-$C$2)/365,I26,$C$20,J26)) -> 0.005075037521 | L26: 0.1627453949 | M26: =IF(I27="","",(L27*(I27-$I$12)-I27*SUM($M$12:M25)+SUMPRODUCT($M$12:M25,$I$12:I25))/(I27-I26)) -> 0.007448724312 | O26: 0.016 | P26: =IF(O26="","",_xll.qlSabrVolatility(O26,$C$20,($C$14-$C$2)/365,$F$3,$F$6,$F$4,$F$5)) -> 0.2847444989 | Q26: =IF(O26="","",$C$23*BSput(($C$14-$C$2)/365,O26,$C$20,P26)) -> 0.01889390374 | R26: 0.1090094394 | S26: =IF(O27="","",(R27*(O27-$O$12)-O27*SUM($S$12:S25)+SUMPRODUCT($S$12:S25,$O$12:O25))/(O27-O26)) -> -0.001129630338 | U26: 0.095 | V26: =IF(U26="","",_xll.qlSabrVolatility(U26,$C$20,($C$14-$C$2)/365,$F$3,$F$6,$F$4,$F$5)) -> 0.2263085722 | W26: 0.01035229986 | X26: 1.471332801 | Y26: =IF(X26="","",BScall(($C$14-$C$2)/365,U26,$C$20,V26)*X26) -> 0.001206822345 | Z26: 5.698994192e-06 | AB26: 0.017 | AC26: =IF(AB26="","",_xll.qlSabrVolatility(AB26,$C$20,($C$14-$C$2)/365,$F$3,$F$6,$F$4,$F$5)) -> 0.2809892266 | AD26: -0.001424622005 | AE26: 1.134486353 | AF26: =IF(AE26="","",BSput(($C$14-$C$2)/365,AB26,$C$20,AC26)*AE26) -> 0.003423972782 | AG26: -3.226194874e-06
B27: fixing | C27: start | D27: end | E27: per. intérêt | F27: Disc. Fact | I27: 0.105 | J27: =IF(I27="","",_xll.qlSabrVolatility(I27,$C$20,($C$14-$C$2)/365,$F$3,$F$6,$F$4,$F$5)) -> 0.2278794608 | K27: =IF(I27="","",$C$23*BScall(($C$14-$C$2)/365,I27,$C$20,J27)) -> 0.004485154276 | L27: 0.1662573206 | M27: =IF(I28="","",(L28*(I28-$I$12)-I28*SUM($M$12:M26)+SUMPRODUCT($M$12:M26,$I$12:I26))/(I28-I27)) -> 0.007538743127 | O27: 0.015 | P27: =IF(O27="","",_xll.qlSabrVolatility(O27,$C$20,($C$14-$C$2)/365,$F$3,$F$6,$F$4,$F$5)) -> 0.2887797504 | Q27: =IF(O27="","",$C$23*BSput(($C$14-$C$2)/365,O27,$C$20,P27)) -> 0.01666205267 | R27: 0.1084341779 | S27: =IF(O28="","",(R28*(O28-$O$12)-O28*SUM($S$12:S26)+SUMPRODUCT($S$12:S26,$O$12:O26))/(O28-O27)) -> -0.001124763152 | U27: 0.1 | V27: =IF(U27="","",_xll.qlSabrVolatility(U27,$C$20,($C$14-$C$2)/365,$F$3,$F$6,$F$4,$F$5)) -> 0.2270582469 | W27: 0.01139217764 | X27: 1.489744862 | Y27: =IF(X27="","",BScall(($C$14-$C$2)/365,U27,$C$20,V27)*X27) -> 0.001072775331 | Z27: 5.080793123e-06 | AB27: 0.016 | AC27: =IF(AB27="","",_xll.qlSabrVolatility(AB27,$C$20,($C$14-$C$2)/365,$F$3,$F$6,$F$4,$F$5)) -> 0.2847444989 | AD27: -0.001526132152 | AE27: 1.129630338 | AF27: =IF(AE27="","",BSput(($C$14-$C$2)/365,AB27,$C$20,AC27)*AE27) -> 0.003028416965 | AG27: -2.843796866e-06
B28: =IF(C28="","",C14) -> 2022-10-07 | C28: =C15 -> 2022-10-09 | D28: =IF(C28="","",DATE(YEAR(C28),MONTH(C28)+VLOOKUP($C$12,$XEX$1:$XEY$4,2,FALSE),DAY(C28))) -> 2023-10-09 | E28: =IF(B28="","",IF($C$13="30/360",DAYS360(C28,D28)/360,IF($C$13="ACT/360",(D28-C28)/360,IF($C$13="ACT/365",(D28-C28)/365)))) -> 1 | F28: =IF(B28="","",DF(D28-$C$2,Maturities,ZcRates)) -> 0.8008094807 | I28: 0.11 | J28: =IF(I28="","",_xll.qlSabrVolatility(I28,$C$20,($C$14-$C$2)/365,$F$3,$F$6,$F$4,$F$5)) -> 0.2287548833 | K28: =IF(I28="","",$C$23*BScall(($C$14-$C$2)/365,I28,$C$20,J28)) -> 0.003988327725 | L28: 0.1698014271 | M28: =IF(I29="","",(L29*(I29-$I$12)-I29*SUM($M$12:M27)+SUMPRODUCT($M$12:M27,$I$12:I27))/(I29-I28)) -> 0.007626715901 | O28: 0.014 | P28: =IF(O28="","",_xll.qlSabrVolatility(O28,$C$20,($C$14-$C$2)/365,$F$3,$F$6,$F$4,$F$5)) -> 0.2931297385 | Q28: =IF(O28="","",$C$23*BSput(($C$14-$C$2)/365,O28,$C$20,P28)) -> 0.01457469043 | R28: 0.1078605263 | S28: =IF(O29="","",(R29*(O29-$O$12)-O29*SUM($S$12:S27)+SUMPRODUCT($S$12:S27,$O$12:O27))/(O29-O28)) -> -0.001119884915 | U28: 0.105 | V28: =IF(U28="","",_xll.qlSabrVolatility(U28,$C$20,($C$14-$C$2)/365,$F$3,$F$6,$F$4,$F$5)) -> 0.2278794608 | W28: 0.01246929905 | X28: 1.507748625 | Y28: =IF(X28="","",BScall(($C$14-$C$2)/365,U28,$C$20,V28)*X28) -> 0.000959541918 | Z28: 4.556877628e-06 | AB28: 0.015 | AC28: =IF(AB28="","",_xll.qlSabrVolatility(AB28,$C$20,($C$14-$C$2)/365,$F$3,$F$6,$F$4,$F$5)) -> 0.2887797504 | AD28: -0.001626512668 | AE28: 1.124763152 | AF28: =IF(AE28="","",BSput(($C$14-$C$2)/365,AB28,$C$20,AC28)*AE28) -> 0.002659176766 | AG28: -2.487566527e-06
B29: =IF(C29="","",C29-2) -> 2023-10-07 | C29: =IF(OR(D28=$C$16,D28=""),"",D28) -> 2023-10-09 | D29: 2024-10-09 | E29: 1 | F29: 0.7746371614 | I29: 0.115 | J29: =IF(I29="","",_xll.qlSabrVolatility(I29,$C$20,($C$14-$C$2)/365,$F$3,$F$6,$F$4,$F$5)) -> 0.229670745 | K29: =IF(I29="","",$C$23*BScall(($C$14-$C$2)/365,I29,$C$20,J29)) -> 0.003566907948 | L29: 0.1733772102 | M29: =IF(I30="","",(L30*(I30-$I$12)-I30*SUM($M$12:M28)+SUMPRODUCT($M$12:M28,$I$12:I28))/(I30-I29)) -> 0.007712641184 | O29: 0.013 | P29: =IF(O29="","",_xll.qlSabrVolatility(O29,$C$20,($C$14-$C$2)/365,$F$3,$F$6,$F$4,$F$5)) -> 0.2978367843 | Q29: =IF(O29="","",$C$23*BSput(($C$14-$C$2)/365,O29,$C$20,P29)) -> 0.0126314976 | R29: 0.1072884876 | S29: =IF(O30="","",(R30*(O30-$O$12)-O30*SUM($S$12:S28)+SUMPRODUCT($S$12:S28,$O$12:O28))/(O30-O29)) -> -0.001114995746 | U29: 0.11 | V29: =IF(U29="","",_xll.qlSabrVolatility(U29,$C$20,($C$14-$C$2)/365,$F$3,$F$6,$F$4,$F$5)) -> 0.2287548833 | W29: 0.01358411417 | X29: 1.52534318 | Y29: =IF(X29="","",BScall(($C$14-$C$2)/365,U29,$C$20,V29)*X29) -> 0.000863209133 | Z29: 4.109765954e-06 | AB29: 0.014 | AC29: =IF(AB29="","",_xll.qlSabrVolatility(AB29,$C$20,($C$14-$C$2)/365,$F$3,$F$6,$F$4,$F$5)) -> 0.2931297385 | AD29: -0.001725768421 | AE29: 1.119884915 | AF29: =IF(AE29="","",BSput(($C$14-$C$2)/365,AB29,$C$20,AC29)*AE29) -> 0.002315956288 | AG29: -2.157185639e-06
B30: 2024-10-07 | C30: 2024-10-09 | D30: 2025-10-09 | E30: 1 | F30: 0.7516646306 | I30: 0.12 | J30: =IF(I30="","",_xll.qlSabrVolatility(I30,$C$20,($C$14-$C$2)/365,$F$3,$F$6,$F$4,$F$5)) -> 0.2306160824 | K30: =IF(I30="","",$C$23*BScall(($C$14-$C$2)/365,I30,$C$20,J30)) -> 0.00320704363 | L30: 0.1769841642 | M30: =IF(I31="","",(L31*(I31-$I$12)-I31*SUM($M$12:M29)+SUMPRODUCT($M$12:M29,$I$12:I29))/(I31-I30)) -> 0.007796520497 | O30: 0.012 | P30: =IF(O30="","",_xll.qlSabrVolatility(O30,$C$20,($C$14-$C$2)/365,$F$3,$F$6,$F$4,$F$5)) -> 0.302953176 | Q30: =IF(O30="","",$C$23*BSput(($C$14-$C$2)/365,O30,$C$20,P30)) -> 0.0108318865 | R30: 0.1067180646 | S30: =IF(O31="","",(R31*(O31-$O$12)-O31*SUM($S$12:S29)+SUMPRODUCT($S$12:S29,$O$12:O29))/(O31-O30)) -> -0.001110095769 | U30: 0.115 | V30: =IF(U30="","",_xll.qlSabrVolatility(U30,$C$20,($C$14-$C$2)/365,$F$3,$F$6,$F$4,$F$5)) -> 0.229670745 | W30: 0.01473706287 | X30: 1.542528237 | Y30: =IF(X30="","",BScall(($C$14-$C$2)/365,U30,$C$20,V30)*X30) -> 0.0007806972487 | Z30: 3.72566023e-06 | AB30: 0.013 | AC30: =IF(AB30="","",_xll.qlSabrVolatility(AB30,$C$20,($C$14-$C$2)/365,$F$3,$F$6,$F$4,$F$5)) -> 0.2978367843 | AD30: -0.00182390429 | AE30: 1.114995746 | AF30: =IF(AE30="","",BSput(($C$14-$C$2)/365,AB30,$C$20,AC30)*AE30) -> 0.001998414991 | AG30: -1.852292242e-06
B31: 2025-10-07 | C31: 2025-10-09 | D31: 2026-10-09 | E31: 1 | F31: 0.7282565301 | I31: 0.125 | J31: =IF(I31="","",_xll.qlSabrVolatility(I31,$C$20,($C$14-$C$2)/365,$F$3,$F$6,$F$4,$F$5)) -> 0.2315821503 | K31: =IF(I31="","",$C$23*BScall(($C$14-$C$2)/365,I31,$C$20,J31)) -> 0.002897787234 | L31: 0.1806217819 | M31: =IF(I32="","",(L32*(I32-$I$12)-I32*SUM($M$12:M30)+SUMPRODUCT($M$12:M30,$I$12:I30))/(I32-I31)) -> 0.007878358195 | O31: 0.011 | P31: =IF(O31="","",_xll.qlSabrVolatility(O31,$C$20,($C$14-$C$2)/365,$F$3,$F$6,$F$4,$F$5)) -> 0.3085446075 | Q31: =IF(O31="","",$C$23*BSput(($C$14-$C$2)/365,O31,$C$20,P31)) -> 0.009175010126 | R31: 0.10614926 | S31: =IF(O32="","",(R32*(O32-$O$12)-O32*SUM($S$12:S30)+SUMPRODUCT($S$12:S30,$O$12:O30))/(O32-O31)) -> -0.001105185106 | U31: 0.12 | V31: =IF(U31="","",_xll.qlSabrVolatility(U31,$C$20,($C$14-$C$2)/365,$F$3,$F$6,$F$4,$F$5)) -> 0.2306160824 | W31: 0.01592857477 | X31: 1.559304099 | Y31: =IF(X31="","",BScall(($C$14-$C$2)/365,U31,$C$20,V31)*X31) -> 0.0007095668432 | Z31: 3.393599444e-06 | AB31: 0.012 | AC31: =IF(AB31="","",_xll.qlSabrVolatility(AB31,$C$20,($C$14-$C$2)/365,$F$3,$F$6,$F$4,$F$5)) -> 0.302953176 | AD31: -0.001920925162 | AE31: 1.110095769 | AF31: =IF(AE31="","",BSput(($C$14-$C$2)/365,AB31,$C$20,AC31)*AE31) -> 0.001706169494 | AG31: -1.572482712e-06
B32: 2026-10-07 | C32: 2026-10-09 | D32: 2027-10-09 | E32: 1 | F32: 0.7044660159 | I32: 0.13 | J32: =IF(I32="","",_xll.qlSabrVolatility(I32,$C$20,($C$14-$C$2)/365,$F$3,$F$6,$F$4,$F$5)) -> 0.2325619624 | K32: =IF(I32="","",$C$23*BScall(($C$14-$C$2)/365,I32,$C$20,J32)) -> 0.002630424855 | L32: 0.1842895558 | M32: =IF(I33="","",(L33*(I33-$I$12)-I33*SUM($M$12:M31)+SUMPRODUCT($M$12:M31,$I$12:I31))/(I33-I32)) -> 0.007958161319 | O32: 0.01 | P32: =IF(O32="","",_xll.qlSabrVolatility(O32,$C$20,($C$14-$C$2)/365,$F$3,$F$6,$F$4,$F$5)) -> 0.3146952429 | Q32: =IF(O32="","",$C$23*BSput(($C$14-$C$2)/365,O32,$C$20,P32)) -> 0.007659775436 | R32: 0.1055820766 | S32: =IF(O33="","",(R33*(O33-$O$12)-O33*SUM($S$12:S31)+SUMPRODUCT($S$12:S31,$O$12:O31))/(O33-O32)) -> -0.001100263883 | U32: 0.125 | V32: =IF(U32="","",_xll.qlSabrVolatility(U32,$C$20,($C$14-$C$2)/365,$F$3,$F$6,$F$4,$F$5)) -> 0.2315821503 | W32: 0.01715906928 | X32: 1.575671639 | Y32: =IF(X32="","",BScall(($C$14-$C$2)/365,U32,$C$20,V32)*X32) -> 0.0006478729346 | Z32: 3.104818477e-06 | AB32: 0.011 | AC32: =IF(AB32="","",_xll.qlSabrVolatility(AB32,$C$20,($C$14-$C$2)/365,$F$3,$F$6,$F$4,$F$5)) -> 0.3085446075 | AD32: -0.002016835939 | AE32: 1.105185106 | AF32: =IF(AE32="","",BSput(($C$14-$C$2)/365,AB32,$C$20,AC32)*AE32) -> 0.001438795929 | AG32: -1.317314444e-06
B33: 2027-10-07 | C33: 2027-10-09 | D33: 2028-10-09 | E33: 1 | F33: 0.6864173858 | I33: 0.135 | J33: =IF(I33="","",_xll.qlSabrVolatility(I33,$C$20,($C$14-$C$2)/365,$F$3,$F$6,$F$4,$F$5)) -> 0.2335499324 | K33: =IF(I33="","",$C$23*BScall(($C$14-$C$2)/365,I33,$C$20,J33)) -> 0.002397971991 | L33: 0.187986978 | M33: =IF(I34="","",(L34*(I34-$I$12)-I34*SUM($M$12:M32)+SUMPRODUCT($M$12:M32,$I$12:I32))/(I34-I33)) -> 0.008035939466 | O33: 0.009 | P33: =IF(O33="","",_xll.qlSabrVolatility(O33,$C$20,($C$14-$C$2)/365,$F$3,$F$6,$F$4,$F$5)) -> 0.3215154264 | Q33: =IF(O33="","",$C$23*BSput(($C$14-$C$2)/365,O33,$C$20,P33)) -> 0.006284862507 | R33: 0.1050165171 | S33: =IF(O34="","",(R34*(O34-$O$12)-O34*SUM($S$12:S32)+SUMPRODUCT($S$12:S32,$O$12:O32))/(O34-O33)) -> -0.001095332225 | U33: 0.13 | V33: =IF(U33="","",_xll.qlSabrVolatility(U33,$C$20,($C$14-$C$2)/365,$F$3,$F$6,$F$4,$F$5)) -> 0.2325619624 | W33: 0.01842895558 | X33: 1.591632264 | Y33: =IF(X33="","",BScall(($C$14-$C$2)/365,U33,$C$20,V33)*X33) -> 0.0005940544564 | Z33: 2.852261665e-06 | AB33: 0.01 | AC33: =IF(AB33="","",_xll.qlSabrVolatility(AB33,$C$20,($C$14-$C$2)/365,$F$3,$F$6,$F$4,$F$5)) -> 0.3146952429 | AD33: -0.002111641531 | AE33: 1.100263883 | AF33: =IF(AE33="","",BSput(($C$14-$C$2)/365,AB33,$C$20,AC33)*AE33) -> 0.001195832959 | AG33: -1.086309304e-06
B34: 2028-10-07 | C34: 2028-10-09 | D34: 2029-10-09 | E34: 1 | F34: 0.6685340355 | I34: 0.14 | J34: =IF(I34="","",_xll.qlSabrVolatility(I34,$C$20,($C$14-$C$2)/365,$F$3,$F$6,$F$4,$F$5)) -> 0.2345415918 | K34: =IF(I34="","",$C$23*BScall(($C$14-$C$2)/365,I34,$C$20,J34)) -> 0.002194792079 | L34: 0.1917135408 | M34: =IF(I35="","",(L35*(I35-$I$12)-I35*SUM($M$12:M33)+SUMPRODUCT($M$12:M33,$I$12:I33))/(I35-I34)) -> 0.008111704642 | O34: 0.008 | P34: =IF(O34="","",_xll.qlSabrVolatility(O34,$C$20,($C$14-$C$2)/365,$F$3,$F$6,$F$4,$F$5)) -> 0.3291539029 | Q34: =IF(O34="","",$C$23*BSput(($C$14-$C$2)/365,O34,$C$20,P34)) -> 0.005048751729 | R34: 0.1044525843 | S34: =IF(O35="","",(R35*(O35-$O$12)-O35*SUM($S$12:S33)+SUMPRODUCT($S$12:S33,$O$12:O33))/(O35-O34)) -> -0.00109039026 | U34: 0.135 | V34: =IF(U34="","",_xll.qlSabrVolatility(U34,$C$20,($C$14-$C$2)/365,$F$3,$F$6,$F$4,$F$5)) -> 0.2335499324 | W34: 0.01973863269 | X34: 1.607187893 | Y34: =IF(X34="","",BScall(($C$14-$C$2)/365,U34,$C$20,V34)*X34) -> 0.0005468502095 | Z34: 2.630212165e-06 | AB34: 0.009 | AC34: =IF(AB34="","",_xll.qlSabrVolatility(AB34,$C$20,($C$14-$C$2)/365,$F$3,$F$6,$F$4,$F$5)) -> 0.3215154264 | AD34: -0.002205346859 | AE34: 1.095332225 | AF34: =IF(AE34="","",BSput(($C$14-$C$2)/365,AB34,$C$20,AC34)*AE34) -> 0.0009767856493 | AG34: -8.78958081e-07
B35: 2029-10-07 | C35: 2029-10-09 | D35: 2030-10-09 | E35: 1 | F35: 0.6508216488 | I35: 0.145 | J35: =IF(I35="","",_xll.qlSabrVolatility(I35,$C$20,($C$14-$C$2)/365,$F$3,$F$6,$F$4,$F$5)) -> 0.2355333678 | K35: =IF(I35="","",$C$23*BScall(($C$14-$C$2)/365,I35,$C$20,J35)) -> 0.002016306223 | L35: 0.1954687376 | M35: =IF(I36="","",(L36*(I36-$I$12)-I36*SUM($M$12:M34)+SUMPRODUCT($M$12:M34,$I$12:I34))/(I36-I35)) -> 0.008185471126 | O35: 0.007 | P35: =IF(O35="","",_xll.qlSabrVolatility(O35,$C$20,($C$14-$C$2)/365,$F$3,$F$6,$F$4,$F$5)) -> 0.3378181473 | Q35: =IF(O35="","",$C$23*BSput(($C$14-$C$2)/365,O35,$C$20,P35)) -> 0.003949763054 | R35: 0.1038902809 | S35: =IF(O36="","",(R36*(O36-$O$12)-O36*SUM($S$12:S34)+SUMPRODUCT($S$12:S34,$O$12:O34))/(O36-O35)) -> -0.001085438116 | U35: 0.14 | V35: =IF(U35="","",_xll.qlSabrVolatility(U35,$C$20,($C$14-$C$2)/365,$F$3,$F$6,$F$4,$F$5)) -> 0.2345415918 | W35: 0.02108848949 | X35: 1.622340928 | Y35: =IF(X35="","",BScall(($C$14-$C$2)/365,U35,$C$20,V35)*X35) -> 0.0005052346567 | Z35: 2.434008195e-06 | AB35: 0.008 | AC35: =IF(AB35="","",_xll.qlSabrVolatility(AB35,$C$20,($C$14-$C$2)/365,$F$3,$F$6,$F$4,$F$5)) -> 0.3291539029 | AD35: -0.002297956855 | AE35: 1.09039026 | AF35: =IF(AE35="","",BSput(($C$14-$C$2)/365,AB35,$C$20,AC35)*AE35) -> 0.0007811305128 | AG35: -6.947264055e-07
B36: 2030-10-07 | C36: 2030-10-09 | D36: 2031-10-09 | E36: 1 | F36: 0.6332856592 | I36: 0.15 | J36: =IF(I36="","",_xll.qlSabrVolatility(I36,$C$20,($C$14-$C$2)/365,$F$3,$F$6,$F$4,$F$5)) -> 0.2365224077 | K36: =IF(I36="","",$C$23*BScall(($C$14-$C$2)/365,I36,$C$20,J36)) -> 0.001858770927 | L36: 0.1992520625 | M36: =IF(I37="","",(L37*(I37-$I$12)-I37*SUM($M$12:M35)+SUMPRODUCT($M$12:M35,$I$12:I35))/(I37-I36)) -> 0.008257255329 | O36: 0.006 | P36: =IF(O36="","",_xll.qlSabrVolatility(O36,$C$20,($C$14-$C$2)/365,$F$3,$F$6,$F$4,$F$5)) -> 0.3478102914 | Q36: =IF(O36="","",$C$23*BSput(($C$14-$C$2)/365,O36,$C$20,P36)) -> 0.002986114668 | R36: 0.1033296095 | S36: =IF(O37="","",(R37*(O37-$O$12)-O37*SUM($S$12:S35)+SUMPRODUCT($S$12:S35,$O$12:O35))/(O37-O36)) -> -0.001080475925 | U36: 0.145 | V36: =IF(U36="","",_xll.qlSabrVolatility(U36,$C$20,($C$14-$C$2)/365,$F$3,$F$6,$F$4,$F$5)) -> 0.2355333678 | W36: 0.02247890482 | X36: 1.637094225 | Y36: =IF(X36="","",BScall(($C$14-$C$2)/365,U36,$C$20,V36)*X36) -> 0.0004683686213 | Z36: 2.259824602e-06 | AB36: 0.007 | AC36: =IF(AB36="","",_xll.qlSabrVolatility(AB36,$C$20,($C$14-$C$2)/365,$F$3,$F$6,$F$4,$F$5)) -> 0.3378181473 | AD36: -0.00238947646 | AE36: 1.085438116 | AF36: =IF(AE36="","",BSput(($C$14-$C$2)/365,AB36,$C$20,AC36)*AE36) -> 0.0006083222982 | AG36: -5.330629472e-07
B37: 2031-10-07 | C37: 2031-10-09 | D37: 2032-10-09 | E37: 1 | F37: 0.6159312508 | I37: 0.155 | J37: =IF(I37="","",_xll.qlSabrVolatility(I37,$C$20,($C$14-$C$2)/365,$F$3,$F$6,$F$4,$F$5)) -> 0.2375064394 | K37: =IF(I37="","",$C$23*BScall(($C$14-$C$2)/365,I37,$C$20,J37)) -> 0.001719106844 | L37: 0.2030630117 | M37: =IF(I38="","",(L38*(I38-$I$12)-I38*SUM($M$12:M36)+SUMPRODUCT($M$12:M36,$I$12:I36))/(I38-I37)) -> 0.008327075659 | O37: 0.005 | P37: =IF(O37="","",_xll.qlSabrVolatility(O37,$C$20,($C$14-$C$2)/365,$F$3,$F$6,$F$4,$F$5)) -> 0.359595721 | Q37: =IF(O37="","",$C$23*BSput(($C$14-$C$2)/365,O37,$C$20,P37)) -> 0.002156015732 | R37: 0.1027705727 | S37: =IF(O38="","",(R38*(O38-$O$12)-O38*SUM($S$12:S36)+SUMPRODUCT($S$12:S36,$O$12:O36))/(O38-O37)) -> -0.001075503818 | U37: 0.15 | V37: =IF(U37="","",_xll.qlSabrVolatility(U37,$C$20,($C$14-$C$2)/365,$F$3,$F$6,$F$4,$F$5)) -> 0.2365224077 | W37: 0.0239102475 | X37: 1.651451066 | Y37: =IF(X37="","",BScall(($C$14-$C$2)/365,U37,$C$20,V37)*X37) -> 0.0004355612196 | Z37: 2.104503789e-06 | AB37: 0.006 | AC37: =IF(AB37="","",_xll.qlSabrVolatility(AB37,$C$20,($C$14-$C$2)/365,$F$3,$F$6,$F$4,$F$5)) -> 0.3478102914 | AD37: -0.002479910627 | AE37: 1.080475925 | AF37: =IF(AE37="","",BSput(($C$14-$C$2)/365,AB37,$C$20,AC37)*AE37) -> 0.0004578035961 | AG37: -3.934114983e-07
I38: 0.16 | J38: =IF(I38="","",_xll.qlSabrVolatility(I38,$C$20,($C$14-$C$2)/365,$F$3,$F$6,$F$4,$F$5)) -> 0.2384836605 | K38: =IF(I38="","",$C$23*BScall(($C$14-$C$2)/365,I38,$C$20,J38)) -> 0.001594765981 | L38: 0.2069010831 | M38: =IF(I39="","",(L39*(I39-$I$12)-I39*SUM($M$12:M37)+SUMPRODUCT($M$12:M37,$I$12:I37))/(I39-I38)) -> 0.008394952386 | O38: 0.004 | P38: =IF(O38="","",_xll.qlSabrVolatility(O38,$C$20,($C$14-$C$2)/365,$F$3,$F$6,$F$4,$F$5)) -> 0.3739482684 | Q38: =IF(O38="","",$C$23*BSput(($C$14-$C$2)/365,O38,$C$20,P38)) -> 0.001457824911 | R38: 0.1022131733 | S38: =IF(O39="","",(R39*(O39-$O$12)-O39*SUM($S$12:S37)+SUMPRODUCT($S$12:S37,$O$12:O37))/(O39-O38)) -> -0.001070521927 | U38: 0.155 | V38: =IF(U38="","",_xll.qlSabrVolatility(U38,$C$20,($C$14-$C$2)/365,$F$3,$F$6,$F$4,$F$5)) -> 0.2375064394 | W38: 0.02538287646 | X38: 1.665415132 | Y38: =IF(X38="","",BScall(($C$14-$C$2)/365,U38,$C$20,V38)*X38) -> 0.0004062402962 | Z38: 1.965424062e-06 | AB38: 0.005 | AC38: =IF(AB38="","",_xll.qlSabrVolatility(AB38,$C$20,($C$14-$C$2)/365,$F$3,$F$6,$F$4,$F$5)) -> 0.359595721 | AD38: -0.002569264319 | AE38: 1.075503818 | AF38: =IF(AE38="","",BSput(($C$14-$C$2)/365,AB38,$C$20,AC38)*AE38) -> 0.0003290194004 | AG38: -2.75230334e-07
I39: 0.165 | J39: =IF(I39="","",_xll.qlSabrVolatility(I39,$C$20,($C$14-$C$2)/365,$F$3,$F$6,$F$4,$F$5)) -> 0.239452649 | K39: =IF(I39="","",$C$23*BScall(($C$14-$C$2)/365,I39,$C$20,J39)) -> 0.001483628078 | L39: 0.210765777 | M39: =IF(I40="","",(L40*(I40-$I$12)-I40*SUM($M$12:M38)+SUMPRODUCT($M$12:M38,$I$12:I38))/(I40-I39)) -> 0.008460907507 | O39: 0.003 | P39: =IF(O39="","",_xll.qlSabrVolatility(O39,$C$20,($C$14-$C$2)/365,$F$3,$F$6,$F$4,$F$5)) -> 0.3923056413 | Q39: =IF(O39="","",$C$23*BSput(($C$14-$C$2)/365,O39,$C$20,P39)) -> 0.0008903523925 | R39: 0.1016574138 | S39: =IF(O40="","",(R40*(O40-$O$12)-O40*SUM($S$12:S38)+SUMPRODUCT($S$12:S38,$O$12:O38))/(O40-O39)) -> -0.001065530389 | U39: 0.16 | V39: =IF(U39="","",_xll.qlSabrVolatility(U39,$C$20,($C$14-$C$2)/365,$F$3,$F$6,$F$4,$F$5)) -> 0.2384836605 | W39: 0.0268971408 | X39: 1.678990477 | Y39: =IF(X39="","",BScall(($C$14-$C$2)/365,U39,$C$20,V39)*X39) -> 0.0003799293287 | Z39: 1.840396519e-06 | AB39: 0.004 | AC39: =IF(AB39="","",_xll.qlSabrVolatility(AB39,$C$20,($C$14-$C$2)/365,$F$3,$F$6,$F$4,$F$5)) -> 0.3739482684 | AD39: -0.002657542506 | AE39: 1.070521927 | AF39: =IF(AE39="","",BSput(($C$14-$C$2)/365,AB39,$C$20,AC39)*AE39) -> 0.0002214412676 | AG39: -1.780268846e-07
I40: 0.17 | J40: =IF(I40="","",_xll.qlSabrVolatility(I40,$C$20,($C$14-$C$2)/365,$F$3,$F$6,$F$4,$F$5)) -> 0.2404122925 | K40: =IF(I40="","",$C$23*BScall(($C$14-$C$2)/365,I40,$C$20,J40)) -> 0.001383919251 | L40: 0.2146565967 | M40: =IF(I41="","",(L41*(I41-$I$12)-I41*SUM($M$12:M39)+SUMPRODUCT($M$12:M39,$I$12:I39))/(I41-I40)) -> 0.008524964619 | O40: 0.002 | P40: =IF(O40="","",_xll.qlSabrVolatility(O40,$C$20,($C$14-$C$2)/365,$F$3,$F$6,$F$4,$F$5)) -> 0.4178591094 | Q40: =IF(O40="","",$C$23*BSput(($C$14-$C$2)/365,O40,$C$20,P40)) -> 0.000453534533 | R40: 0.1011032967 | S40: =IF(O41="","",(R41*(O41-$O$12)-O41*SUM($S$12:S39)+SUMPRODUCT($S$12:S39,$O$12:O39))/(O41-O40)) -> -0.001060529336 | U40: 0.165 | V40: =IF(U40="","",_xll.qlSabrVolatility(U40,$C$20,($C$14-$C$2)/365,$F$3,$F$6,$F$4,$F$5)) -> 0.239452649 | W40: 0.0284533799 | X40: 1.692181501 | Y40: =IF(X40="","",BScall(($C$14-$C$2)/365,U40,$C$20,V40)*X40) -> 0.0003562292787 | Z40: 1.72758381e-06 | AB40: 0.003 | AC40: =IF(AB40="","",_xll.qlSabrVolatility(AB40,$C$20,($C$14-$C$2)/365,$F$3,$F$6,$F$4,$F$5)) -> 0.3923056413 | AD40: -0.002744750172 | AE40: 1.065530389 | AF40: =IF(AE40="","",BSput(($C$14-$C$2)/365,AB40,$C$20,AC40)*AE40) -> 0.0001346125015 | AG40: -1.014303091e-07
I41: 0.175 | J41: =IF(I41="","",_xll.qlSabrVolatility(I41,$C$20,($C$14-$C$2)/365,$F$3,$F$6,$F$4,$F$5)) -> 0.2413617303 | K41: =IF(I41="","",$C$23*BScall(($C$14-$C$2)/365,I41,$C$20,J41)) -> 0.001294147723 | L41: 0.2185730482 | M41: =IF(I42="","",(L42*(I42-$I$12)-I42*SUM($M$12:M40)+SUMPRODUCT($M$12:M40,$I$12:I40))/(I42-I41)) -> 0.00858714879 | O41: 0.001 | P41: =IF(O41="","",_xll.qlSabrVolatility(O41,$C$20,($C$14-$C$2)/365,$F$3,$F$6,$F$4,$F$5)) -> 0.4606275863 | Q41: =IF(O41="","",$C$23*BSput(($C$14-$C$2)/365,O41,$C$20,P41)) -> 0.0001504074906 | R41: 0.1005508246 | S41: =IF(O42="","",(R42*(O42-$O$12)-O42*SUM($S$12:S40)+SUMPRODUCT($S$12:S40,$O$12:O40))/(O42-O41)) ->  | U41: 0.17 | V41: =IF(U41="","",_xll.qlSabrVolatility(U41,$C$20,($C$14-$C$2)/365,$F$3,$F$6,$F$4,$F$5)) -> 0.2404122925 | W41: 0.03005192353 | X41: 1.704992924 | Y41: =IF(X41="","",BScall(($C$14-$C$2)/365,U41,$C$20,V41)*X41) -> 0.0003348042452 | Z41: 1.625435763e-06 | AB41: 0.002 | AC41: =IF(AB41="","",_xll.qlSabrVolatility(AB41,$C$20,($C$14-$C$2)/365,$F$3,$F$6,$F$4,$F$5)) -> 0.4178591094 | AD41: -0.002830892307 | AE41: 1.060529336 | AF41: =IF(AE41="","",BSput(($C$14-$C$2)/365,AB41,$C$20,AC41)*AE41) -> 6.824811668e-05
I42: 0.18 | J42: =IF(I42="","",_xll.qlSabrVolatility(I42,$C$20,($C$14-$C$2)/365,$F$3,$F$6,$F$4,$F$5)) -> 0.2423003071 | K42: =IF(I42="","",$C$23*BScall(($C$14-$C$2)/365,I42,$C$20,J42)) -> 0.001213052756 | L42: 0.2225146413 | M42: =IF(I43="","",(L43*(I43-$I$12)-I43*SUM($M$12:M41)+SUMPRODUCT($M$12:M41,$I$12:I41))/(I43-I42)) -> 0.008647486436 | P42: =IF(O42="","",_xll.qlSabrVolatility(O42,$C$20,($C$14-$C$2)/365,$F$3,$F$6,$F$4,$F$5)) ->  | Q42: =IF(O42="","",$C$23*BSput(($C$14-$C$2)/365,O42,$C$20,P42)) ->  | S42: =IF(O43="","",(R43*(O43-$O$12)-O43*SUM($S$12:S41)+SUMPRODUCT($S$12:S41,$O$12:O41))/(O43-O42)) ->  | U42: 0.175 | V42: =IF(U42="","",_xll.qlSabrVolatility(U42,$C$20,($C$14-$C$2)/365,$F$3,$F$6,$F$4,$F$5)) -> 0.2413617303 | W42: 0.03169309199 | X42: 1.717429758 | Y42: =IF(X42="","",BScall(($C$14-$C$2)/365,U42,$C$20,V42)*X42) -> 0.0003153700601 | Z42: 1.532638073e-06 | AB42: 0.001 | AC42: =IF(AB42="","",_xll.qlSabrVolatility(AB42,$C$20,($C$14-$C$2)/365,$F$3,$F$6,$F$4,$F$5)) -> 0.4606275863 | AD42: -0.002915973913 | AF42: =IF(AE42="","",BSput(($C$14-$C$2)/365,AB42,$C$20,AC42)*AE42) -> 
I43: 0.185 | J43: =IF(I43="","",_xll.qlSabrVolatility(I43,$C$20,($C$14-$C$2)/365,$F$3,$F$6,$F$4,$F$5)) -> 0.2432275353 | K43: =IF(I43="","",$C$23*BScall(($C$14-$C$2)/365,I43,$C$20,J43)) -> 0.001139563829 | L43: 0.2264808893 | M43: =IF(I44="","",(L44*(I44-$I$12)-I44*SUM($M$12:M42)+SUMPRODUCT($M$12:M42,$I$12:I42))/(I44-I43)) -> 0.0087060052 | P43: =IF(O43="","",_xll.qlSabrVolatility(O43,$C$20,($C$14-$C$2)/365,$F$3,$F$6,$F$4,$F$5)) ->  | Q43: =IF(O43="","",$C$23*BSput(($C$14-$C$2)/365,O43,$C$20,P43)) ->  | S43: =IF(O44="","",(R44*(O44-$O$12)-O44*SUM($S$12:S42)+SUMPRODUCT($S$12:S42,$O$12:O42))/(O44-O43)) ->  | U43: 0.18 | V43: =IF(U43="","",_xll.qlSabrVolatility(U43,$C$20,($C$14-$C$2)/365,$F$3,$F$6,$F$4,$F$5)) -> 0.2423003071 | W43: 0.0333771962 | X43: 1.729497287 | Y43: =IF(X43="","",BScall(($C$14-$C$2)/365,U43,$C$20,V43)*X43) -> 0.0002976851691 | Z43: 1.448071175e-06 | AC43: =IF(AB43="","",_xll.qlSabrVolatility(AB43,$C$20,($C$14-$C$2)/365,$F$3,$F$6,$F$4,$F$5)) ->  | AF43: =IF(AE43="","",BSput(($C$14-$C$2)/365,AB43,$C$20,AC43)*AE43) -> 
I44: 0.19 | J44: =IF(I44="","",_xll.qlSabrVolatility(I44,$C$20,($C$14-$C$2)/365,$F$3,$F$6,$F$4,$F$5)) -> 0.2441430642 | K44: =IF(I44="","",$C$23*BScall(($C$14-$C$2)/365,I44,$C$20,J44)) -> 0.001072767845 | L44: 0.2304713094 | M44: =IF(I45="","",(L45*(I45-$I$12)-I45*SUM($M$12:M43)+SUMPRODUCT($M$12:M43,$I$12:I43))/(I45-I44)) -> 0.008762733837 | P44: =IF(O44="","",_xll.qlSabrVolatility(O44,$C$20,($C$14-$C$2)/365,$F$3,$F$6,$F$4,$F$5)) ->  | Q44: =IF(O44="","",$C$23*BSput(($C$14-$C$2)/365,O44,$C$20,P44)) ->  | S44: =IF(O45="","",(R45*(O45-$O$12)-O45*SUM($S$12:S43)+SUMPRODUCT($S$12:S43,$O$12:O43))/(O45-O44)) ->  | U44: 0.185 | V44: =IF(U44="","",_xll.qlSabrVolatility(U44,$C$20,($C$14-$C$2)/365,$F$3,$F$6,$F$4,$F$5)) -> 0.2432275353 | W44: 0.03510453783 | X44: 1.74120104 | Y44: =IF(X44="","",BScall(($C$14-$C$2)/365,U44,$C$20,V44)*X44) -> 0.0002815433011 | Z44: 1.370777109e-06 | AC44: =IF(AB44="","",_xll.qlSabrVolatility(AB44,$C$20,($C$14-$C$2)/365,$F$3,$F$6,$F$4,$F$5)) ->  | AF44: =IF(AE44="","",BSput(($C$14-$C$2)/365,AB44,$C$20,AC44)*AE44) -> 
I45: 0.195 | J45: =IF(I45="","",_xll.qlSabrVolatility(I45,$C$20,($C$14-$C$2)/365,$F$3,$F$6,$F$4,$F$5)) -> 0.2450466551 | K45: =IF(I45="","",$C$23*BScall(($C$14-$C$2)/365,I45,$C$20,J45)) -> 0.001011882614 | L45: 0.2344854232 | M45: =IF(I46="","",(L46*(I46-$I$12)-I46*SUM($M$12:M44)+SUMPRODUCT($M$12:M44,$I$12:I44))/(I46-I45)) -> 0.008817702097 | P45: =IF(O45="","",_xll.qlSabrVolatility(O45,$C$20,($C$14-$C$2)/365,$F$3,$F$6,$F$4,$F$5)) ->  | Q45: =IF(O45="","",$C$23*BSput(($C$14-$C$2)/365,O45,$C$20,P45)) ->  | S45: =IF(O46="","",(R46*(O46-$O$12)-O46*SUM($S$12:S44)+SUMPRODUCT($S$12:S44,$O$12:O44))/(O46-O45)) ->  | U45: 0.19 | V45: =IF(U45="","",_xll.qlSabrVolatility(U45,$C$20,($C$14-$C$2)/365,$F$3,$F$6,$F$4,$F$5)) -> 0.2441430642 | W45: 0.0368754095 | X45: 1.752546767 | Y45: =IF(X45="","",BScall(($C$14-$C$2)/365,U45,$C$20,V45)*X45) -> 0.0002667675425 | Z45: 1.299932667e-06 | AC45: =IF(AB45="","",_xll.qlSabrVolatility(AB45,$C$20,($C$14-$C$2)/365,$F$3,$F$6,$F$4,$F$5)) ->  | AF45: =IF(AE45="","",BSput(($C$14-$C$2)/365,AB45,$C$20,AC45)*AE45) -> 
I46: 0.2 | J46: =IF(I46="","",_xll.qlSabrVolatility(I46,$C$20,($C$14-$C$2)/365,$F$3,$F$6,$F$4,$F$5)) -> 0.2459381608 | K46: =IF(I46="","",$C$23*BScall(($C$14-$C$2)/365,I46,$C$20,J46)) -> 0.0009562353337 | L46: 0.2385227569 | M46: =IF(I47="","",(L47*(I47-$I$12)-I47*SUM($M$12:M45)+SUMPRODUCT($M$12:M45,$I$12:I45))/(I47-I46)) -> 0.008870940621 | P46: =IF(O46="","",_xll.qlSabrVolatility(O46,$C$20,($C$14-$C$2)/365,$F$3,$F$6,$F$4,$F$5)) ->  | Q46: =IF(O46="","",$C$23*BSput(($C$14-$C$2)/365,O46,$C$20,P46)) ->  | S46: =IF(O47="","",(R47*(O47-$O$12)-O47*SUM($S$12:S45)+SUMPRODUCT($S$12:S45,$O$12:O45))/(O47-O46)) ->  | U46: 0.195 | V46: =IF(U46="","",_xll.qlSabrVolatility(U46,$C$20,($C$14-$C$2)/365,$F$3,$F$6,$F$4,$F$5)) -> 0.2450466551 | W46: 0.03869009483 | X46: 1.763540419 | Y46: =IF(X46="","",BScall(($C$14-$C$2)/365,U46,$C$20,V46)*X46) -> 0.0002532055242 | Z46: 1.234827536e-06 | AC46: =IF(AB46="","",_xll.qlSabrVolatility(AB46,$C$20,($C$14-$C$2)/365,$F$3,$F$6,$F$4,$F$5)) ->  | AF46: =IF(AE46="","",BSput(($C$14-$C$2)/365,AB46,$C$20,AC46)*AE46) -> 
I47: 0.205 | J47: =IF(I47="","",_xll.qlSabrVolatility(I47,$C$20,($C$14-$C$2)/365,$F$3,$F$6,$F$4,$F$5)) -> 0.2468175087 | K47: =IF(I47="","",$C$23*BScall(($C$14-$C$2)/365,I47,$C$20,J47)) -> 0.0009052450077 | L47: 0.2425828412 | M47: =IF(I48="","",(L48*(I48-$I$12)-I48*SUM($M$12:M46)+SUMPRODUCT($M$12:M46,$I$12:I46))/(I48-I47)) -> 0.008922480834 | P47: =IF(O47="","",_xll.qlSabrVolatility(O47,$C$20,($C$14-$C$2)/365,$F$3,$F$6,$F$4,$F$5)) ->  | Q47: =IF(O47="","",$C$23*BSput(($C$14-$C$2)/365,O47,$C$20,P47)) ->  | S47: =IF(O48="","",(R48*(O48-$O$12)-O48*SUM($S$12:S46)+SUMPRODUCT($S$12:S46,$O$12:O46))/(O48-O47)) ->  | U47: 0.2 | V47: =IF(U47="","",_xll.qlSabrVolatility(U47,$C$20,($C$14-$C$2)/365,$F$3,$F$6,$F$4,$F$5)) -> 0.2459381608 | W47: 0.04054886867 | X47: 1.774188124 | Y47: =IF(X47="","",BScall(($C$14-$C$2)/365,U47,$C$20,V47)*X47) -> 0.0002407254901 | Z47: 1.174846406e-06 | AC47: =IF(AB47="","",_xll.qlSabrVolatility(AB47,$C$20,($C$14-$C$2)/365,$F$3,$F$6,$F$4,$F$5)) ->  | AF47: =IF(AE47="","",BSput(($C$14-$C$2)/365,AB47,$C$20,AC47)*AE47) -> 
I48: 0.21 | J48: =IF(I48="","",_xll.qlSabrVolatility(I48,$C$20,($C$14-$C$2)/365,$F$3,$F$6,$F$4,$F$5)) -> 0.2476846869 | K48: =IF(I48="","",$C$23*BScall(($C$14-$C$2)/365,I48,$C$20,J48)) -> 0.0008584080331 | L48: 0.246665212 | M48: =IF(I49="","",(L49*(I49-$I$12)-I49*SUM($M$12:M47)+SUMPRODUCT($M$12:M47,$I$12:I47))/(I49-I48)) -> 0.008972354844 | P48: =IF(O48="","",_xll.qlSabrVolatility(O48,$C$20,($C$14-$C$2)/365,$F$3,$F$6,$F$4,$F$5)) ->  | Q48: =IF(O48="","",$C$23*BSput(($C$14-$C$2)/365,O48,$C$20,P48)) ->  | S48: =IF(O49="","",(R49*(O49-$O$12)-O49*SUM($S$12:S47)+SUMPRODUCT($S$12:S47,$O$12:O47))/(O49-O48)) ->  | U48: 0.205 | V48: =IF(U48="","",_xll.qlSabrVolatility(U48,$C$20,($C$14-$C$2)/365,$F$3,$F$6,$F$4,$F$5)) -> 0.2468175087 | W48: 0.04245199721 | X48: 1.784496167 | Y48: =IF(X48="","",BScall(($C$14-$C$2)/365,U48,$C$20,V48)*X48) -> 0.0002292130723 | Z48: 1.119454261e-06 | AC48: =IF(AB48="","",_xll.qlSabrVolatility(AB48,$C$20,($C$14-$C$2)/365,$F$3,$F$6,$F$4,$F$5)) ->  | AF48: =IF(AE48="","",BSput(($C$14-$C$2)/365,AB48,$C$20,AC48)*AE48) -> 
I49: 0.215 | J49: =IF(I49="","",_xll.qlSabrVolatility(I49,$C$20,($C$14-$C$2)/365,$F$3,$F$6,$F$4,$F$5)) -> 0.248539733 | K49: =IF(I49="","",$C$23*BScall(($C$14-$C$2)/365,I49,$C$20,J49)) -> 0.0008152863184 | L49: 0.2507694102 | M49: =IF(I50="","",(L50*(I50-$I$12)-I50*SUM($M$12:M48)+SUMPRODUCT($M$12:M48,$I$12:I48))/(I50-I49)) -> 0.009020595346 | P49: =IF(O49="","",_xll.qlSabrVolatility(O49,$C$20,($C$14-$C$2)/365,$F$3,$F$6,$F$4,$F$5)) ->  | Q49: =IF(O49="","",$C$23*BSput(($C$14-$C$2)/365,O49,$C$20,P49)) ->  | S49: =IF(O50="","",(R50*(O50-$O$12)-O50*SUM($S$12:S48)+SUMPRODUCT($S$12:S48,$O$12:O48))/(O50-O49)) ->  | U49: 0.21 | V49: =IF(U49="","",_xll.qlSabrVolatility(U49,$C$20,($C$14-$C$2)/365,$F$3,$F$6,$F$4,$F$5)) -> 0.2476846869 | W49: 0.04439973816 | X49: 1.794470969 | Y49: =IF(X49="","",BScall(($C$14-$C$2)/365,U49,$C$20,V49)*X49) -> 0.0002185686321 | Z49: 1.068184227e-06 | AC49: =IF(AB49="","",_xll.qlSabrVolatility(AB49,$C$20,($C$14-$C$2)/365,$F$3,$F$6,$F$4,$F$5)) ->  | AF49: =IF(AE49="","",BSput(($C$14-$C$2)/365,AB49,$C$20,AC49)*AE49) -> 
I50: 0.22 | J50: =IF(I50="","",_xll.qlSabrVolatility(I50,$C$20,($C$14-$C$2)/365,$F$3,$F$6,$F$4,$F$5)) -> 0.2493827245 | K50: =IF(I50="","",$C$23*BScall(($C$14-$C$2)/365,I50,$C$20,J50)) -> 0.0007754974484 | L50: 0.254894982 | M50: =IF(I51="","",(L51*(I51-$I$12)-I51*SUM($M$12:M49)+SUMPRODUCT($M$12:M49,$I$12:I49))/(I51-I50)) -> 0.009067235531 | P50: =IF(O50="","",_xll.qlSabrVolatility(O50,$C$20,($C$14-$C$2)/365,$F$3,$F$6,$F$4,$F$5)) ->  | Q50: =IF(O50="","",$C$23*BSput(($C$14-$C$2)/365,O50,$C$20,P50)) ->  | S50: =IF(O51="","",(R51*(O51-$O$12)-O51*SUM($S$12:S49)+SUMPRODUCT($S$12:S49,$O$12:O49))/(O51-O50)) ->  | U50: 0.215 | V50: =IF(U50="","",_xll.qlSabrVolatility(U50,$C$20,($C$14-$C$2)/365,$F$3,$F$6,$F$4,$F$5)) -> 0.248539733 | W50: 0.04639234089 | X50: 1.804119069 | Y50: =IF(X50="","",BScall(($C$14-$C$2)/365,U50,$C$20,V50)*X50) -> 0.0002087050587 | Z50: 1.02062749e-06 | AC50: =IF(AB50="","",_xll.qlSabrVolatility(AB50,$C$20,($C$14-$C$2)/365,$F$3,$F$6,$F$4,$F$5)) ->  | AF50: =IF(AE50="","",BSput(($C$14-$C$2)/365,AB50,$C$20,AC50)*AE50) -> 
I51: 0.225 | J51: =IF(I51="","",_xll.qlSabrVolatility(I51,$C$20,($C$14-$C$2)/365,$F$3,$F$6,$F$4,$F$5)) -> 0.2502137712 | K51: =IF(I51="","",$C$23*BScall(($C$14-$C$2)/365,I51,$C$20,J51)) -> 0.0007387065077 | L51: 0.2590414793 | M51: =IF(I52="","",(L52*(I52-$I$12)-I52*SUM($M$12:M50)+SUMPRODUCT($M$12:M50,$I$12:I50))/(I52-I51)) -> 0.009112308997 | P51: =IF(O51="","",_xll.qlSabrVolatility(O51,$C$20,($C$14-$C$2)/365,$F$3,$F$6,$F$4,$F$5)) ->  | Q51: =IF(O51="","",$C$23*BSput(($C$14-$C$2)/365,O51,$C$20,P51)) ->  | S51: =IF(O52="","",(R52*(O52-$O$12)-O52*SUM($S$12:S50)+SUMPRODUCT($S$12:S50,$O$12:O50))/(O52-O51)) ->  | U51: 0.22 | V51: =IF(U51="","",_xll.qlSabrVolatility(U51,$C$20,($C$14-$C$2)/365,$F$3,$F$6,$F$4,$F$5)) -> 0.2493827245 | W51: 0.04843004659 | X51: 1.813447106 | Y51: =IF(X51="","",BScall(($C$14-$C$2)/365,U51,$C$20,V51)*X51) -> 0.0001995459375 | Z51: 9.76424897e-07 | AC51: =IF(AB51="","",_xll.qlSabrVolatility(AB51,$C$20,($C$14-$C$2)/365,$F$3,$F$6,$F$4,$F$5)) ->  | AF51: =IF(AE51="","",BSput(($C$14-$C$2)/365,AB51,$C$20,AC51)*AE51) -> 
I52: 0.23 | J52: =IF(I52="","",_xll.qlSabrVolatility(I52,$C$20,($C$14-$C$2)/365,$F$3,$F$6,$F$4,$F$5)) -> 0.2510330085 | K52: =IF(I52="","",$C$23*BScall(($C$14-$C$2)/365,I52,$C$20,J52)) -> 0.0007046192532 | L52: 0.2632084594 | M52: =IF(I53="","",(L53*(I53-$I$12)-I53*SUM($M$12:M51)+SUMPRODUCT($M$12:M51,$I$12:I51))/(I53-I52)) -> 0.009155849665 | P52: =IF(O52="","",_xll.qlSabrVolatility(O52,$C$20,($C$14-$C$2)/365,$F$3,$F$6,$F$4,$F$5)) ->  | Q52: =IF(O52="","",$C$23*BSput(($C$14-$C$2)/365,O52,$C$20,P52)) ->  | S52: =IF(O53="","",(R53*(O53-$O$12)-O53*SUM($S$12:S51)+SUMPRODUCT($S$12:S51,$O$12:O51))/(O53-O52)) ->  | U52: 0.225 | V52: =IF(U52="","",_xll.qlSabrVolatility(U52,$C$20,($C$14-$C$2)/365,$F$3,$F$6,$F$4,$F$5)) -> 0.2502137712 | W52: 0.05051308846 | X52: 1.822461799 | Y52: =IF(X52="","",BScall(($C$14-$C$2)/365,U52,$C$20,V52)*X52) -> 0.0001910240213 | Z52: 9.352599219e-07 | AC52: =IF(AB52="","",_xll.qlSabrVolatility(AB52,$C$20,($C$14-$C$2)/365,$F$3,$F$6,$F$4,$F$5)) ->  | AF52: =IF(AE52="","",BSput(($C$14-$C$2)/365,AB52,$C$20,AC52)*AE52) -> 
I53: 0.235 | J53: =IF(I53="","",_xll.qlSabrVolatility(I53,$C$20,($C$14-$C$2)/365,$F$3,$F$6,$F$4,$F$5)) -> 0.2518405924 | K53: =IF(I53="","",$C$23*BScall(($C$14-$C$2)/365,I53,$C$20,J53)) -> 0.0006729763923 | L53: 0.2673954857 | M53: =IF(I54="","",(L54*(I54-$I$12)-I54*SUM($M$12:M52)+SUMPRODUCT($M$12:M52,$I$12:I52))/(I54-I53)) -> 0.009197891703 | P53: =IF(O53="","",_xll.qlSabrVolatility(O53,$C$20,($C$14-$C$2)/365,$F$3,$F$6,$F$4,$F$5)) ->  | Q53: =IF(O53="","",$C$23*BSput(($C$14-$C$2)/365,O53,$C$20,P53)) ->  | S53: =IF(O54="","",(R54*(O54-$O$12)-O54*SUM($S$12:S52)+SUMPRODUCT($S$12:S52,$O$12:O52))/(O54-O53)) ->  | U53: 0.23 | V53: =IF(U53="","",_xll.qlSabrVolatility(U53,$C$20,($C$14-$C$2)/365,$F$3,$F$6,$F$4,$F$5)) -> 0.2510330085 | W53: 0.05264169189 | X53: 1.831169933 | Y53: =IF(X53="","",BScall(($C$14-$C$2)/365,U53,$C$20,V53)*X53) -> 0.0001830799474 | Z53: 8.968527638e-07 | AC53: =IF(AB53="","",_xll.qlSabrVolatility(AB53,$C$20,($C$14-$C$2)/365,$F$3,$F$6,$F$4,$F$5)) ->  | AF53: =IF(AE53="","",BSput(($C$14-$C$2)/365,AB53,$C$20,AC53)*AE53) -> 
I54: 0.24 | J54: =IF(I54="","",_xll.qlSabrVolatility(I54,$C$20,($C$14-$C$2)/365,$F$3,$F$6,$F$4,$F$5)) -> 0.2526366948 | K54: =IF(I54="","",$C$23*BScall(($C$14-$C$2)/365,I54,$C$20,J54)) -> 0.0006435487673 | L54: 0.2716021271 | M54: =IF(I55="","",(L55*(I55-$I$12)-I55*SUM($M$12:M53)+SUMPRODUCT($M$12:M53,$I$12:I53))/(I55-I54)) -> 0.009238469446 | P54: =IF(O54="","",_xll.qlSabrVolatility(O54,$C$20,($C$14-$C$2)/365,$F$3,$F$6,$F$4,$F$5)) ->  | Q54: =IF(O54="","",$C$23*BSput(($C$14-$C$2)/365,O54,$C$20,P54)) ->  | S54: =IF(O55="","",(R55*(O55-$O$12)-O55*SUM($S$12:S53)+SUMPRODUCT($S$12:S53,$O$12:O53))/(O55-O54)) ->  | U54: 0.235 | V54: =IF(U54="","",_xll.qlSabrVolatility(U54,$C$20,($C$14-$C$2)/365,$F$3,$F$6,$F$4,$F$5)) -> 0.2518405924 | W54: 0.05481607456 | X54: 1.839578341 | Y54: =IF(X54="","",BScall(($C$14-$C$2)/365,U54,$C$20,V54)*X54) -> 0.0001756611581 | Z54: 8.60955365e-07 | AC54: =IF(AB54="","",_xll.qlSabrVolatility(AB54,$C$20,($C$14-$C$2)/365,$F$3,$F$6,$F$4,$F$5)) ->  | AF54: =IF(AE54="","",BSput(($C$14-$C$2)/365,AB54,$C$20,AC54)*AE54) -> 
I55: 0.245 | J55: =IF(I55="","",_xll.qlSabrVolatility(I55,$C$20,($C$14-$C$2)/365,$F$3,$F$6,$F$4,$F$5)) -> 0.2534214998 | K55: =IF(I55="","",$C$23*BScall(($C$14-$C$2)/365,I55,$C$20,J55)) -> 0.0006161332889 | L55: 0.2758279589 | M55: =IF(I56="","",(L56*(I56-$I$12)-I56*SUM($M$12:M54)+SUMPRODUCT($M$12:M54,$I$12:I54))/(I56-I55)) -> 0.009277617331 | P55: =IF(O55="","",_xll.qlSabrVolatility(O55,$C$20,($C$14-$C$2)/365,$F$3,$F$6,$F$4,$F$5)) ->  | Q55: =IF(O55="","",$C$23*BSput(($C$14-$C$2)/365,O55,$C$20,P55)) ->  | S55: =IF(O56="","",(R56*(O56-$O$12)-O56*SUM($S$12:S54)+SUMPRODUCT($S$12:S54,$O$12:O54))/(O56-O55)) ->  | U55: 0.24 | V55: =IF(U55="","",_xll.qlSabrVolatility(U55,$C$20,($C$14-$C$2)/365,$F$3,$F$6,$F$4,$F$5)) -> 0.2526366948 | W55: 0.05703644669 | X55: 1.847693889 | Y55: =IF(X55="","",BScall(($C$14-$C$2)/365,U55,$C$20,V55)*X55) -> 0.0001687209879 | Z55: 8.27347196e-07 | AC55: =IF(AB55="","",_xll.qlSabrVolatility(AB55,$C$20,($C$14-$C$2)/365,$F$3,$F$6,$F$4,$F$5)) ->  | AF55: =IF(AE55="","",BSput(($C$14-$C$2)/365,AB55,$C$20,AC55)*AE55) -> 
I56: 0.25 | J56: =IF(I56="","",_xll.qlSabrVolatility(I56,$C$20,($C$14-$C$2)/365,$F$3,$F$6,$F$4,$F$5)) -> 0.254195201 | K56: =IF(I56="","",$C$23*BScall(($C$14-$C$2)/365,I56,$C$20,J56)) -> 0.0005905494889 | L56: 0.2800725624 | M56: =IF(I57="","",(L57*(I57-$I$12)-I57*SUM($M$12:M55)+SUMPRODUCT($M$12:M55,$I$12:I55))/(I57-I56)) -> 0.009315369826 | P56: =IF(O56="","",_xll.qlSabrVolatility(O56,$C$20,($C$14-$C$2)/365,$F$3,$F$6,$F$4,$F$5)) ->  | Q56: =IF(O56="","",$C$23*BSput(($C$14-$C$2)/365,O56,$C$20,P56)) ->  | S56: =IF(O57="","",(R57*(O57-$O$12)-O57*SUM($S$12:S55)+SUMPRODUCT($S$12:S55,$O$12:O55))/(O57-O56)) ->  | U56: 0.245 | V56: =IF(U56="","",_xll.qlSabrVolatility(U56,$C$20,($C$14-$C$2)/365,$F$3,$F$6,$F$4,$F$5)) -> 0.2534214998 | W56: 0.05930301116 | X56: 1.855523466 | Y56: =IF(X56="","",BScall(($C$14-$C$2)/365,U56,$C$20,V56)*X56) -> 0.0001622178905 | Z56: 7.958316745e-07 | AC56: =IF(AB56="","",_xll.qlSabrVolatility(AB56,$C$20,($C$14-$C$2)/365,$F$3,$F$6,$F$4,$F$5)) ->  | AF56: =IF(AE56="","",BSput(($C$14-$C$2)/365,AB56,$C$20,AC56)*AE56) -> 
I57: 0.255 | J57: =IF(I57="","",_xll.qlSabrVolatility(I57,$C$20,($C$14-$C$2)/365,$F$3,$F$6,$F$4,$F$5)) -> 0.2549579985 | K57: =IF(I57="","",$C$23*BScall(($C$14-$C$2)/365,I57,$C$20,J57)) -> 0.0005666365882 | L57: 0.2843355251 | M57: =IF(I58="","",(L58*(I58-$I$12)-I58*SUM($M$12:M56)+SUMPRODUCT($M$12:M56,$I$12:I56))/(I58-I57)) -> 0.009351761369 | P57: =IF(O57="","",_xll.qlSabrVolatility(O57,$C$20,($C$14-$C$2)/365,$F$3,$F$6,$F$4,$F$5)) ->  | Q57: =IF(O57="","",$C$23*BSput(($C$14-$C$2)/365,O57,$C$20,P57)) ->  | S57: =IF(O58="","",(R58*(O58-$O$12)-O58*SUM($S$12:S56)+SUMPRODUCT($S$12:S56,$O$12:O56))/(O58-O57)) ->  | U57: 0.25 | V57: =IF(U57="","",_xll.qlSabrVolatility(U57,$C$20,($C$14-$C$2)/365,$F$3,$F$6,$F$4,$F$5)) -> 0.254195201 | W57: 0.06161596373 | X57: 1.863073965 | Y57: =IF(X57="","",BScall(($C$14-$C$2)/365,U57,$C$20,V57)*X57) -> 0.0001561147793 | Z57: 7.662331134e-07 | AC57: =IF(AB57="","",_xll.qlSabrVolatility(AB57,$C$20,($C$14-$C$2)/365,$F$3,$F$6,$F$4,$F$5)) ->  | AF57: =IF(AE57="","",BSput(($C$14-$C$2)/365,AB57,$C$20,AC57)*AE57) -> 
I58: 0.26 | J58: =IF(I58="","",_xll.qlSabrVolatility(I58,$C$20,($C$14-$C$2)/365,$F$3,$F$6,$F$4,$F$5)) -> 0.2557100971 | K58: =IF(I58="","",$C$23*BScall(($C$14-$C$2)/365,I58,$C$20,J58)) -> 0.0005442509947 | L58: 0.2886164407 | M58: =IF(I59="","",(L59*(I59-$I$12)-I59*SUM($M$12:M57)+SUMPRODUCT($M$12:M57,$I$12:I57))/(I59-I58)) -> 0.009386826311 | P58: =IF(O58="","",_xll.qlSabrVolatility(O58,$C$20,($C$14-$C$2)/365,$F$3,$F$6,$F$4,$F$5)) ->  | Q58: =IF(O58="","",$C$23*BSput(($C$14-$C$2)/365,O58,$C$20,P58)) ->  | S58: =IF(O59="","",(R59*(O59-$O$12)-O59*SUM($S$12:S57)+SUMPRODUCT($S$12:S57,$O$12:O57))/(O59-O58)) ->  | U58: 0.255 | V58: =IF(U58="","",_xll.qlSabrVolatility(U58,$C$20,($C$14-$C$2)/365,$F$3,$F$6,$F$4,$F$5)) -> 0.2549579985 | W58: 0.06397549314 | X58: 1.870352274 | Y58: =IF(X58="","",BScall(($C$14-$C$2)/365,U58,$C$20,V58)*X58) -> 0.000150378466 | Z58: 7.383941105e-07 | AC58: =IF(AB58="","",_xll.qlSabrVolatility(AB58,$C$20,($C$14-$C$2)/365,$F$3,$F$6,$F$4,$F$5)) ->  | AF58: =IF(AE58="","",BSput(($C$14-$C$2)/365,AB58,$C$20,AC58)*AE58) -> 
I59: 0.265 | J59: =IF(I59="","",_xll.qlSabrVolatility(I59,$C$20,($C$14-$C$2)/365,$F$3,$F$6,$F$4,$F$5)) -> 0.2564517046 | K59: =IF(I59="","",$C$23*BScall(($C$14-$C$2)/365,I59,$C$20,J59)) -> 0.0005232641611 | L59: 0.2929149094 | M59: =IF(I60="","",(L60*(I60-$I$12)-I60*SUM($M$12:M58)+SUMPRODUCT($M$12:M58,$I$12:I58))/(I60-I59)) -> 0.009420598859 | P59: =IF(O59="","",_xll.qlSabrVolatility(O59,$C$20,($C$14-$C$2)/365,$F$3,$F$6,$F$4,$F$5)) ->  | Q59: =IF(O59="","",$C$23*BSput(($C$14-$C$2)/365,O59,$C$20,P59)) ->  | S59: =IF(O60="","",(R60*(O60-$O$12)-O60*SUM($S$12:S58)+SUMPRODUCT($S$12:S58,$O$12:O58))/(O60-O59)) ->  | U59: 0.26 | V59: =IF(U59="","",_xll.qlSabrVolatility(U59,$C$20,($C$14-$C$2)/365,$F$3,$F$6,$F$4,$F$5)) -> 0.2557100971 | W59: 0.06638178136 | X59: 1.877365262 | Y59: =IF(X59="","",BScall(($C$14-$C$2)/365,U59,$C$20,V59)*X59) -> 0.0001449791782 | Z59: 7.121733093e-07 | AC59: =IF(AB59="","",_xll.qlSabrVolatility(AB59,$C$20,($C$14-$C$2)/365,$F$3,$F$6,$F$4,$F$5)) ->  | AF59: =IF(AE59="","",BSput(($C$14-$C$2)/365,AB59,$C$20,AC59)*AE59) -> 
D60: =IF(C60="","",DATE(YEAR(C60),MONTH(C60)+VLOOKUP($C$12,$XEX$1:$XEY$4,2,FALSE),DAY(C60))) ->  | E60: =IF(B60="","",IF($C$13="30/360",DAYS360(C60,D60)/360,IF($C$13="ACT/360",(D60-C60)/360,IF($C$13="ACT/365",(D60-C60)/365)))) ->  | I60: 0.27 | J60: =IF(I60="","",_xll.qlSabrVolatility(I60,$C$20,($C$14-$C$2)/365,$F$3,$F$6,$F$4,$F$5)) -> 0.2571830301 | K60: =IF(I60="","",$C$23*BScall(($C$14-$C$2)/365,I60,$C$20,J60)) -> 0.0005035607454 | L60: 0.2972305377 | M60: =IF(I61="","",(L61*(I61-$I$12)-I61*SUM($M$12:M59)+SUMPRODUCT($M$12:M59,$I$12:I59))/(I61-I60)) -> 0.009453113025 | P60: =IF(O60="","",_xll.qlSabrVolatility(O60,$C$20,($C$14-$C$2)/365,$F$3,$F$6,$F$4,$F$5)) ->  | Q60: =IF(O60="","",$C$23*BSput(($C$14-$C$2)/365,O60,$C$20,P60)) ->  | S60: =IF(O61="","",(R61*(O61-$O$12)-O61*SUM($S$12:S59)+SUMPRODUCT($S$12:S59,$O$12:O59))/(O61-O60)) ->  | U60: 0.265 | V60: =IF(U60="","",_xll.qlSabrVolatility(U60,$C$20,($C$14-$C$2)/365,$F$3,$F$6,$F$4,$F$5)) -> 0.2564517046 | W60: 0.06883500371 | X60: 1.884119772 | Y60: =IF(X60="","",BScall(($C$14-$C$2)/365,U60,$C$20,V60)*X60) -> 0.0001398901455 | Z60: 6.874434714e-07 | AC60: =IF(AB60="","",_xll.qlSabrVolatility(AB60,$C$20,($C$14-$C$2)/365,$F$3,$F$6,$F$4,$F$5)) ->  | AF60: =IF(AE60="","",BSput(($C$14-$C$2)/365,AB60,$C$20,AC60)*AE60) -> 
C61: =IF(OR(D60=$C$16,D60=""),"",D60) ->  | I61: 0.275 | J61: =IF(I61="","",_xll.qlSabrVolatility(I61,$C$20,($C$14-$C$2)/365,$F$3,$F$6,$F$4,$F$5)) -> 0.257904283 | K61: =IF(I61="","",$C$23*BScall(($C$14-$C$2)/365,I61,$C$20,J61)) -> 0.0004850370266 | L61: 0.3015629386 | M61: =IF(I62="","",(L62*(I62-$I$12)-I62*SUM($M$12:M60)+SUMPRODUCT($M$12:M60,$I$12:I60))/(I62-I61)) -> 0.009484402582 | P61: =IF(O61="","",_xll.qlSabrVolatility(O61,$C$20,($C$14-$C$2)/365,$F$3,$F$6,$F$4,$F$5)) ->  | Q61: =IF(O61="","",$C$23*BSput(($C$14-$C$2)/365,O61,$C$20,P61)) ->  | S61: =IF(O62="","",(R62*(O62-$O$12)-O62*SUM($S$12:S60)+SUMPRODUCT($S$12:S60,$O$12:O60))/(O62-O61)) ->  | U61: 0.27 | V61: =IF(U61="","",_xll.qlSabrVolatility(U61,$C$20,($C$14-$C$2)/365,$F$3,$F$6,$F$4,$F$5)) -> 0.2571830301 | W61: 0.07133532906 | X61: 1.890622605 | Y61: =IF(X61="","",BScall(($C$14-$C$2)/365,U61,$C$20,V61)*X61) -> 0.0001350872431 | Z61: 6.640898138e-07 | AC61: =IF(AB61="","",_xll.qlSabrVolatility(AB61,$C$20,($C$14-$C$2)/365,$F$3,$F$6,$F$4,$F$5)) ->  | AF61: =IF(AE61="","",BSput(($C$14-$C$2)/365,AB61,$C$20,AC61)*AE61) -> 
I62: 0.28 | J62: =IF(I62="","",_xll.qlSabrVolatility(I62,$C$20,($C$14-$C$2)/365,$F$3,$F$6,$F$4,$F$5)) -> 0.2586156721 | K62: =IF(I62="","",$C$23*BScall(($C$14-$C$2)/365,I62,$C$20,J62)) -> 0.0004675995357 | L62: 0.3059117316 | M62: =IF(I63="","",(L63*(I63-$I$12)-I63*SUM($M$12:M61)+SUMPRODUCT($M$12:M61,$I$12:I61))/(I63-I62)) -> 0.009514501018 | P62: =IF(O62="","",_xll.qlSabrVolatility(O62,$C$20,($C$14-$C$2)/365,$F$3,$F$6,$F$4,$F$5)) ->  | Q62: =IF(O62="","",$C$23*BSput(($C$14-$C$2)/365,O62,$C$20,P62)) ->  | S62: =IF(O63="","",(R63*(O63-$O$12)-O63*SUM($S$12:S61)+SUMPRODUCT($S$12:S61,$O$12:O61))/(O63-O62)) ->  | U62: 0.275 | V62: =IF(U62="","",_xll.qlSabrVolatility(U62,$C$20,($C$14-$C$2)/365,$F$3,$F$6,$F$4,$F$5)) -> 0.257904283 | W62: 0.07388291997 | X62: 1.896880516 | Y62: =IF(X62="","",BScall(($C$14-$C$2)/365,U62,$C$20,V62)*X62) -> 0.0001305486825 | Z62: 6.420085682e-07 | AC62: =IF(AB62="","",_xll.qlSabrVolatility(AB62,$C$20,($C$14-$C$2)/365,$F$3,$F$6,$F$4,$F$5)) ->  | AF62: =IF(AE62="","",BSput(($C$14-$C$2)/365,AB62,$C$20,AC62)*AE62) -> 
I63: 0.285 | J63: =IF(I63="","",_xll.qlSabrVolatility(I63,$C$20,($C$14-$C$2)/365,$F$3,$F$6,$F$4,$F$5)) -> 0.2593174046 | K63: =IF(I63="","",$C$23*BScall(($C$14-$C$2)/365,I63,$C$20,J63)) -> 0.0004511638702 | L63: 0.3102765424 | M63: =IF(I64="","",(L64*(I64-$I$12)-I64*SUM($M$12:M62)+SUMPRODUCT($M$12:M62,$I$12:I62))/(I64-I63)) -> 0.009543441494 | P63: =IF(O63="","",_xll.qlSabrVolatility(O63,$C$20,($C$14-$C$2)/365,$F$3,$F$6,$F$4,$F$5)) ->  | Q63: =IF(O63="","",$C$23*BSput(($C$14-$C$2)/365,O63,$C$20,P63)) ->  | S63: =IF(O64="","",(R64*(O64-$O$12)-O64*SUM($S$12:S62)+SUMPRODUCT($S$12:S62,$O$12:O62))/(O64-O63)) ->  | U63: 0.28 | V63: =IF(U63="","",_xll.qlSabrVolatility(U63,$C$20,($C$14-$C$2)/365,$F$3,$F$6,$F$4,$F$5)) -> 0.2586156721 | W63: 0.07647793289 | X63: 1.902900204 | Y63: =IF(X63="","",BScall(($C$14-$C$2)/365,U63,$C$20,V63)*X63) -> 0.0001262547448 | Z63: 6.211057316e-07 | AC63: =IF(AB63="","",_xll.qlSabrVolatility(AB63,$C$20,($C$14-$C$2)/365,$F$3,$F$6,$F$4,$F$5)) ->  | AF63: =IF(AE63="","",BSput(($C$14-$C$2)/365,AB63,$C$20,AC63)*AE63) -> 
I64: 0.29 | J64: =IF(I64="","",_xll.qlSabrVolatility(I64,$C$20,($C$14-$C$2)/365,$F$3,$F$6,$F$4,$F$5)) -> 0.2600096856 | K64: =IF(I64="","",$C$23*BScall(($C$14-$C$2)/365,I64,$C$20,J64)) -> 0.0004356536641 | L64: 0.3146570037 | M64: =IF(I65="","",(L65*(I65-$I$12)-I65*SUM($M$12:M63)+SUMPRODUCT($M$12:M63,$I$12:I63))/(I65-I64)) -> 0.009571256813 | P64: =IF(O64="","",_xll.qlSabrVolatility(O64,$C$20,($C$14-$C$2)/365,$F$3,$F$6,$F$4,$F$5)) ->  | Q64: =IF(O64="","",$C$23*BSput(($C$14-$C$2)/365,O64,$C$20,P64)) ->  | S64: =IF(O65="","",(R65*(O65-$O$12)-O65*SUM($S$12:S63)+SUMPRODUCT($S$12:S63,$O$12:O63))/(O65-O64)) ->  | U64: 0.285 | V64: =IF(U64="","",_xll.qlSabrVolatility(U64,$C$20,($C$14-$C$2)/365,$F$3,$F$6,$F$4,$F$5)) -> 0.2593174046 | W64: 0.07912051832 | X64: 1.908688299 | Y64: =IF(X64="","",BScall(($C$14-$C$2)/365,U64,$C$20,V64)*X64) -> 0.0001221875478 | Z64: 6.012959784e-07 | AC64: =IF(AB64="","",_xll.qlSabrVolatility(AB64,$C$20,($C$14-$C$2)/365,$F$3,$F$6,$F$4,$F$5)) ->  | AF64: =IF(AE64="","",BSput(($C$14-$C$2)/365,AB64,$C$20,AC64)*AE64) -> 
I65: 0.295 | J65: =IF(I65="","",_xll.qlSabrVolatility(I65,$C$20,($C$14-$C$2)/365,$F$3,$F$6,$F$4,$F$5)) -> 0.2606927177 | K65: =IF(I65="","",$C$23*BScall(($C$14-$C$2)/365,I65,$C$20,J65)) -> 0.0004209996917 | L65: 0.3190527542 | M65: =IF(I66="","",(L66*(I66-$I$12)-I66*SUM($M$12:M64)+SUMPRODUCT($M$12:M64,$I$12:I64))/(I66-I65)) -> 0.009597979378 | P65: =IF(O65="","",_xll.qlSabrVolatility(O65,$C$20,($C$14-$C$2)/365,$F$3,$F$6,$F$4,$F$5)) ->  | Q65: =IF(O65="","",$C$23*BSput(($C$14-$C$2)/365,O65,$C$20,P65)) ->  | S65: =IF(O66="","",(R66*(O66-$O$12)-O66*SUM($S$12:S64)+SUMPRODUCT($S$12:S64,$O$12:O64))/(O66-O65)) ->  | U65: 0.29 | V65: =IF(U65="","",_xll.qlSabrVolatility(U65,$C$20,($C$14-$C$2)/365,$F$3,$F$6,$F$4,$F$5)) -> 0.2600096856 | W65: 0.08181082095 | X65: 1.914251363 | Y65: =IF(X65="","",BScall(($C$14-$C$2)/365,U65,$C$20,V65)*X65) -> 0.0001183308435 | Z65: 5.825017114e-07 | AC65: =IF(AB65="","",_xll.qlSabrVolatility(AB65,$C$20,($C$14-$C$2)/365,$F$3,$F$6,$F$4,$F$5)) ->  | AF65: =IF(AE65="","",BSput(($C$14-$C$2)/365,AB65,$C$20,AC65)*AE65) -> 
I66: 0.3 | J66: =IF(I66="","",_xll.qlSabrVolatility(I66,$C$20,($C$14-$C$2)/365,$F$3,$F$6,$F$4,$F$5)) -> 0.2613667001 | K66: =IF(I66="","",$C$23*BScall(($C$14-$C$2)/365,I66,$C$20,J66)) -> 0.000407139084 | L66: 0.3234634396 | M66: =IF(I67="","",(L67*(I67-$I$12)-I67*SUM($M$12:M65)+SUMPRODUCT($M$12:M65,$I$12:I65))/(I67-I66)) -> 0.00962364117 | P66: =IF(O66="","",_xll.qlSabrVolatility(O66,$C$20,($C$14-$C$2)/365,$F$3,$F$6,$F$4,$F$5)) ->  | Q66: =IF(O66="","",$C$23*BSput(($C$14-$C$2)/365,O66,$C$20,P66)) ->  | S66: =IF(O67="","",(R67*(O67-$O$12)-O67*SUM($S$12:S65)+SUMPRODUCT($S$12:S65,$O$12:O65))/(O67-O66)) ->  | U66: 0.295 | V66: =IF(U66="","",_xll.qlSabrVolatility(U66,$C$20,($C$14-$C$2)/365,$F$3,$F$6,$F$4,$F$5)) -> 0.2606927177 | W66: 0.08454897987 | X66: 1.919595876 | Y66: =IF(X66="","",BScall(($C$14-$C$2)/365,U66,$C$20,V66)*X66) -> 0.000114669841 | Z66: 5.64652231e-07 | AC66: =IF(AB66="","",_xll.qlSabrVolatility(AB66,$C$20,($C$14-$C$2)/365,$F$3,$F$6,$F$4,$F$5)) ->  | AF66: =IF(AE66="","",BSput(($C$14-$C$2)/365,AB66,$C$20,AC66)*AE66) -> 
I67: 0.305 | J67: =IF(I67="","",_xll.qlSabrVolatility(I67,$C$20,($C$14-$C$2)/365,$F$3,$F$6,$F$4,$F$5)) -> 0.2620318288 | K67: =IF(I67="","",$C$23*BScall(($C$14-$C$2)/365,I67,$C$20,J67)) -> 0.0003940146441 | L67: 0.3278887117 | M67: =IF(I68="","",(L68*(I68-$I$12)-I68*SUM($M$12:M66)+SUMPRODUCT($M$12:M66,$I$12:I66))/(I68-I67)) -> 0.009648273713 | P67: =IF(O67="","",_xll.qlSabrVolatility(O67,$C$20,($C$14-$C$2)/365,$F$3,$F$6,$F$4,$F$5)) ->  | Q67: =IF(O67="","",$C$23*BSput(($C$14-$C$2)/365,O67,$C$20,P67)) ->  | S67: =IF(O68="","",(R68*(O68-$O$12)-O68*SUM($S$12:S66)+SUMPRODUCT($S$12:S66,$O$12:O66))/(O68-O67)) ->  | U67: 0.3 | V67: =IF(U67="","",_xll.qlSabrVolatility(U67,$C$20,($C$14-$C$2)/365,$F$3,$F$6,$F$4,$F$5)) -> 0.2613667001 | W67: 0.08733512869 | X67: 1.924728234 | Y67: =IF(X67="","",BScall(($C$14-$C$2)/365,U67,$C$20,V67)*X67) -> 0.0001111910514 | Z67: 5.476830071e-07 | AC67: =IF(AB67="","",_xll.qlSabrVolatility(AB67,$C$20,($C$14-$C$2)/365,$F$3,$F$6,$F$4,$F$5)) ->  | AF67: =IF(AE67="","",BSput(($C$14-$C$2)/365,AB67,$C$20,AC67)*AE67) -> 
I68: 0.31 | J68: =IF(I68="","",_xll.qlSabrVolatility(I68,$C$20,($C$14-$C$2)/365,$F$3,$F$6,$F$4,$F$5)) -> 0.2626882963 | K68: =IF(I68="","",$C$23*BScall(($C$14-$C$2)/365,I68,$C$20,J68)) -> 0.0003815742462 | L68: 0.3323282289 | M68: =IF(I69="","",(L69*(I69-$I$12)-I69*SUM($M$12:M67)+SUMPRODUCT($M$12:M67,$I$12:I67))/(I69-I68)) -> 0.009671908054 | P68: =IF(O68="","",_xll.qlSabrVolatility(O68,$C$20,($C$14-$C$2)/365,$F$3,$F$6,$F$4,$F$5)) ->  | Q68: =IF(O68="","",$C$23*BSput(($C$14-$C$2)/365,O68,$C$20,P68)) ->  | S68: =IF(O69="","",(R69*(O69-$O$12)-O69*SUM($S$12:S67)+SUMPRODUCT($S$12:S67,$O$12:O67))/(O69-O68)) ->  | U68: 0.305 | V68: =IF(U68="","",_xll.qlSabrVolatility(U68,$C$20,($C$14-$C$2)/365,$F$3,$F$6,$F$4,$F$5)) -> 0.2620318288 | W68: 0.09016939571 | X68: 1.929654743 | Y68: =IF(X68="","",BScall(($C$14-$C$2)/365,U68,$C$20,V68)*X68) -> 0.0001078821515 | Z68: 5.315350394e-07 | AC68: =IF(AB68="","",_xll.qlSabrVolatility(AB68,$C$20,($C$14-$C$2)/365,$F$3,$F$6,$F$4,$F$5)) ->  | AF68: =IF(AE68="","",BSput(($C$14-$C$2)/365,AB68,$C$20,AC68)*AE68) -> 
I69: 0.315 | J69: =IF(I69="","",_xll.qlSabrVolatility(I69,$C$20,($C$14-$C$2)/365,$F$3,$F$6,$F$4,$F$5)) -> 0.2633362909 | K69: =IF(I69="","",$C$23*BScall(($C$14-$C$2)/365,I69,$C$20,J69)) -> 0.000369770307 | L69: 0.3367816563 | M69: =IF(I70="","",(L70*(I70-$I$12)-I70*SUM($M$12:M68)+SUMPRODUCT($M$12:M68,$I$12:I68))/(I70-I69)) -> 0.009694574739 | P69: =IF(O69="","",_xll.qlSabrVolatility(O69,$C$20,($C$14-$C$2)/365,$F$3,$F$6,$F$4,$F$5)) ->  | Q69: =IF(O69="","",$C$23*BSput(($C$14-$C$2)/365,O69,$C$20,P69)) ->  | S69: =IF(O70="","",(R70*(O70-$O$12)-O70*SUM($S$12:S68)+SUMPRODUCT($S$12:S68,$O$12:O68))/(O70-O69)) ->  | U69: 0.31 | V69: =IF(U69="","",_xll.qlSabrVolatility(U69,$C$20,($C$14-$C$2)/365,$F$3,$F$6,$F$4,$F$5)) -> 0.2626882963 | W69: 0.0930519041 | X69: 1.934381611 | Y69: =IF(X69="","",BScall(($C$14-$C$2)/365,U69,$C$20,V69)*X69) -> 0.0001047318643 | Z69: 5.161542933e-07 | AC69: =IF(AB69="","",_xll.qlSabrVolatility(AB69,$C$20,($C$14-$C$2)/365,$F$3,$F$6,$F$4,$F$5)) ->  | AF69: =IF(AE69="","",BSput(($C$14-$C$2)/365,AB69,$C$20,AC69)*AE69) -> 
I70: 0.32 | J70: =IF(I70="","",_xll.qlSabrVolatility(I70,$C$20,($C$14-$C$2)/365,$F$3,$F$6,$F$4,$F$5)) -> 0.2639759971 | K70: =IF(I70="","",$C$23*BScall(($C$14-$C$2)/365,I70,$C$20,J70)) -> 0.0003585593203 | L70: 0.341248665 | M70: =IF(I71="","",(L71*(I71-$I$12)-I71*SUM($M$12:M69)+SUMPRODUCT($M$12:M69,$I$12:I69))/(I71-I70)) -> 0.009716303792 | P70: =IF(O70="","",_xll.qlSabrVolatility(O70,$C$20,($C$14-$C$2)/365,$F$3,$F$6,$F$4,$F$5)) ->  | Q70: =IF(O70="","",$C$23*BSput(($C$14-$C$2)/365,O70,$C$20,P70)) ->  | S70: =IF(O71="","",(R71*(O71-$O$12)-O71*SUM($S$12:S69)+SUMPRODUCT($S$12:S69,$O$12:O69))/(O71-O70)) ->  | U70: 0.315 | V70: =IF(U70="","",_xll.qlSabrVolatility(U70,$C$20,($C$14-$C$2)/365,$F$3,$F$6,$F$4,$F$5)) -> 0.2633362909 | W70: 0.09598277204 | X70: 1.938914948 | Y70: =IF(X70="","",BScall(($C$14-$C$2)/365,U70,$C$20,V70)*X70) -> 0.000101729853 | Z70: 5.01491202e-07 | AC70: =IF(AB70="","",_xll.qlSabrVolatility(AB70,$C$20,($C$14-$C$2)/365,$F$3,$F$6,$F$4,$F$5)) ->  | AF70: =IF(AE70="","",BSput(($C$14-$C$2)/365,AB70,$C$20,AC70)*AE70) -> 
I71: 0.325 | J71: =IF(I71="","",_xll.qlSabrVolatility(I71,$C$20,($C$14-$C$2)/365,$F$3,$F$6,$F$4,$F$5)) -> 0.2646075955 | K71: =IF(I71="","",$C$23*BScall(($C$14-$C$2)/365,I71,$C$20,J71)) -> 0.0003479014459 | L71: 0.3457289328 | M71: =IF(I72="","",(L72*(I72-$I$12)-I72*SUM($M$12:M70)+SUMPRODUCT($M$12:M70,$I$12:I70))/(I72-I71)) -> 0.0097371247 | P71: =IF(O71="","",_xll.qlSabrVolatility(O71,$C$20,($C$14-$C$2)/365,$F$3,$F$6,$F$4,$F$5)) ->  | Q71: =IF(O71="","",$C$23*BSput(($C$14-$C$2)/365,O71,$C$20,P71)) ->  | S71: =IF(O72="","",(R72*(O72-$O$12)-O72*SUM($S$12:S70)+SUMPRODUCT($S$12:S70,$O$12:O70))/(O72-O71)) ->  | U71: 0.32 | V71: =IF(U71="","",_xll.qlSabrVolatility(U71,$C$20,($C$14-$C$2)/365,$F$3,$F$6,$F$4,$F$5)) -> 0.2639759971 | W71: 0.09896211284 | X71: 1.943260758 | Y71: =IF(X71="","",BScall(($C$14-$C$2)/365,U71,$C$20,V71)*X71) -> 9.886662777e-05 | Z71: 4.875002262e-07 | AC71: =IF(AB71="","",_xll.qlSabrVolatility(AB71,$C$20,($C$14-$C$2)/365,$F$3,$F$6,$F$4,$F$5)) ->  | AF71: =IF(AE71="","",BSput(($C$14-$C$2)/365,AB71,$C$20,AC71)*AE71) -> 
I72: 0.33 | J72: =IF(I72="","",_xll.qlSabrVolatility(I72,$C$20,($C$14-$C$2)/365,$F$3,$F$6,$F$4,$F$5)) -> 0.2652312621 | K72: =IF(I72="","",$C$23*BScall(($C$14-$C$2)/365,I72,$C$20,J72)) -> 0.000337760146 | L72: 0.3502221437 | M72: =IF(I73="","",(L73*(I73-$I$12)-I73*SUM($M$12:M71)+SUMPRODUCT($M$12:M71,$I$12:I71))/(I73-I72)) -> 0.009757066396 | P72: =IF(O72="","",_xll.qlSabrVolatility(O72,$C$20,($C$14-$C$2)/365,$F$3,$F$6,$F$4,$F$5)) ->  | Q72: =IF(O72="","",$C$23*BSput(($C$14-$C$2)/365,O72,$C$20,P72)) ->  | S72: =IF(O73="","",(R73*(O73-$O$12)-O73*SUM($S$12:S71)+SUMPRODUCT($S$12:S71,$O$12:O71))/(O73-O72)) ->  | U72: 0.325 | V72: =IF(U72="","",_xll.qlSabrVolatility(U72,$C$20,($C$14-$C$2)/365,$F$3,$F$6,$F$4,$F$5)) -> 0.2646075955 | W72: 0.1019900352 | X72: 1.94742494 | Y72: =IF(X72="","",BScall(($C$14-$C$2)/365,U72,$C$20,V72)*X72) -> 9.61334627e-05 | Z72: 4.741394634e-07 | AC72: =IF(AB72="","",_xll.qlSabrVolatility(AB72,$C$20,($C$14-$C$2)/365,$F$3,$F$6,$F$4,$F$5)) ->  | AF72: =IF(AE72="","",BSput(($C$14-$C$2)/365,AB72,$C$20,AC72)*AE72) -> 
I73: 0.335 | J73: =IF(I73="","",_xll.qlSabrVolatility(I73,$C$20,($C$14-$C$2)/365,$F$3,$F$6,$F$4,$F$5)) -> 0.2658471693 | K73: =IF(I73="","",$C$23*BScall(($C$14-$C$2)/365,I73,$C$20,J73)) -> 0.0003281018624 | L73: 0.3547279882 | M73: =IF(I74="","",(L74*(I74-$I$12)-I74*SUM($M$12:M72)+SUMPRODUCT($M$12:M72,$I$12:I72))/(I74-I73)) -> 0.00977615725 | P73: =IF(O73="","",_xll.qlSabrVolatility(O73,$C$20,($C$14-$C$2)/365,$F$3,$F$6,$F$4,$F$5)) ->  | Q73: =IF(O73="","",$C$23*BSput(($C$14-$C$2)/365,O73,$C$20,P73)) ->  | S73: =IF(O74="","",(R74*(O74-$O$12)-O74*SUM($S$12:S72)+SUMPRODUCT($S$12:S72,$O$12:O72))/(O74-O73)) ->  | U73: 0.33 | V73: =IF(U73="","",_xll.qlSabrVolatility(U73,$C$20,($C$14-$C$2)/365,$F$3,$F$6,$F$4,$F$5)) -> 0.2652312621 | W73: 0.1050666431 | X73: 1.951413279 | Y73: =IF(X73="","",BScall(($C$14-$C$2)/365,U73,$C$20,V73)*X73) -> 9.352232267e-05 | Z73: 4.613703013e-07 | AC73: =IF(AB73="","",_xll.qlSabrVolatility(AB73,$C$20,($C$14-$C$2)/365,$F$3,$F$6,$F$4,$F$5)) ->  | AF73: =IF(AE73="","",BSput(($C$14-$C$2)/365,AB73,$C$20,AC73)*AE73) -> 
I74: 0.34 | J74: =IF(I74="","",_xll.qlSabrVolatility(I74,$C$20,($C$14-$C$2)/365,$F$3,$F$6,$F$4,$F$5)) -> 0.2664554848 | K74: =IF(I74="","",$C$23*BScall(($C$14-$C$2)/365,I74,$C$20,J74)) -> 0.0003188957302 | L74: 0.3592461628 | M74: =IF(I75="","",(L75*(I75-$I$12)-I75*SUM($M$12:M73)+SUMPRODUCT($M$12:M73,$I$12:I73))/(I75-I74)) -> 0.009794425051 | P74: =IF(O74="","",_xll.qlSabrVolatility(O74,$C$20,($C$14-$C$2)/365,$F$3,$F$6,$F$4,$F$5)) ->  | Q74: =IF(O74="","",$C$23*BSput(($C$14-$C$2)/365,O74,$C$20,P74)) ->  | S74: =IF(O75="","",(R75*(O75-$O$12)-O75*SUM($S$12:S73)+SUMPRODUCT($S$12:S73,$O$12:O73))/(O75-O74)) ->  | U74: 0.335 | V74: =IF(U74="","",_xll.qlSabrVolatility(U74,$C$20,($C$14-$C$2)/365,$F$3,$F$6,$F$4,$F$5)) -> 0.2658471693 | W74: 0.1081920364 | X74: 1.95523145 | Y74: =IF(X74="","",BScall(($C$14-$C$2)/365,U74,$C$20,V74)*X74) -> 9.102579786e-05 | Z74: 4.491571086e-07 | AC74: =IF(AB74="","",_xll.qlSabrVolatility(AB74,$C$20,($C$14-$C$2)/365,$F$3,$F$6,$F$4,$F$5)) ->  | AF74: =IF(AE74="","",BSput(($C$14-$C$2)/365,AB74,$C$20,AC74)*AE74) -> 
I75: 0.345 | J75: =IF(I75="","",_xll.qlSabrVolatility(I75,$C$20,($C$14-$C$2)/365,$F$3,$F$6,$F$4,$F$5)) -> 0.2670563725 | K75: =IF(I75="","",$C$23*BScall(($C$14-$C$2)/365,I75,$C$20,J75)) -> 0.0003101133229 | L75: 0.3637763703 | M75: =IF(I76="","",(L76*(I76-$I$12)-I76*SUM($M$12:M74)+SUMPRODUCT($M$12:M74,$I$12:I74))/(I76-I75)) -> 0.009811897006 | P75: =IF(O75="","",_xll.qlSabrVolatility(O75,$C$20,($C$14-$C$2)/365,$F$3,$F$6,$F$4,$F$5)) ->  | Q75: =IF(O75="","",$C$23*BSput(($C$14-$C$2)/365,O75,$C$20,P75)) ->  | S75: =IF(O76="","",(R76*(O76-$O$12)-O76*SUM($S$12:S74)+SUMPRODUCT($S$12:S74,$O$12:O74))/(O76-O75)) ->  | U75: 0.34 | V75: =IF(U75="","",_xll.qlSabrVolatility(U75,$C$20,($C$14-$C$2)/365,$F$3,$F$6,$F$4,$F$5)) -> 0.2664554848 | W75: 0.1113663105 | X75: 1.95888501 | Y75: =IF(X75="","",BScall(($C$14-$C$2)/365,U75,$C$20,V75)*X75) -> 8.863704557e-05 | Z75: 4.374669596e-07 | AC75: =IF(AB75="","",_xll.qlSabrVolatility(AB75,$C$20,($C$14-$C$2)/365,$F$3,$F$6,$F$4,$F$5)) ->  | AF75: =IF(AE75="","",BSput(($C$14-$C$2)/365,AB75,$C$20,AC75)*AE75) -> 
I76: 0.35 | J76: =IF(I76="","",_xll.qlSabrVolatility(I76,$C$20,($C$14-$C$2)/365,$F$3,$F$6,$F$4,$F$5)) -> 0.2676499919 | K76: =IF(I76="","",$C$23*BScall(($C$14-$C$2)/365,I76,$C$20,J76)) -> 0.000301728425 | L76: 0.3683183198 | M76: =IF(I77="","",(L77*(I77-$I$12)-I77*SUM($M$12:M75)+SUMPRODUCT($M$12:M75,$I$12:I75))/(I77-I76)) -> 0.009828599727 | P76: =IF(O76="","",_xll.qlSabrVolatility(O76,$C$20,($C$14-$C$2)/365,$F$3,$F$6,$F$4,$F$5)) ->  | Q76: =IF(O76="","",$C$23*BSput(($C$14-$C$2)/365,O76,$C$20,P76)) ->  | S76: =IF(O77="","",(R77*(O77-$O$12)-O77*SUM($S$12:S75)+SUMPRODUCT($S$12:S75,$O$12:O75))/(O77-O76)) ->  | U76: 0.345 | V76: =IF(U76="","",_xll.qlSabrVolatility(U76,$C$20,($C$14-$C$2)/365,$F$3,$F$6,$F$4,$F$5)) -> 0.2670563725 | W76: 0.1145895566 | X76: 1.962379401 | Y76: =IF(X76="","",BScall(($C$14-$C$2)/365,U76,$C$20,V76)*X76) -> 8.634973827e-05 | Z76: 4.262693886e-07 | AC76: =IF(AB76="","",_xll.qlSabrVolatility(AB76,$C$20,($C$14-$C$2)/365,$F$3,$F$6,$F$4,$F$5)) ->  | AF76: =IF(AE76="","",BSput(($C$14-$C$2)/365,AB76,$C$20,AC76)*AE76) -> 
I77: =IF(I76>=$J$5,"",I76+$J$3) -> 0.355 | J77: =IF(I77="","",_xll.qlSabrVolatility(I77,$C$20,($C$14-$C$2)/365,$F$3,$F$6,$F$4,$F$5)) -> 0.2682364986 | K77: =IF(I77="","",$C$23*BScall(($C$14-$C$2)/365,I77,$C$20,J77)) -> 0.0002937168287 | L77: =IF(I77="","",(1+I77/$C$22)^(-$C$9*$C$22)*I77/(1-(1+I77/$C$22)^-($C$22*$C$7))) -> 0.3728717262 | M77: =IF(I78="","",(L78*(I78-$I$12)-I78*SUM($M$12:M76)+SUMPRODUCT($M$12:M76,$I$12:I76))/(I78-I77)) -> 0.009844559228 | P77: =IF(O77="","",_xll.qlSabrVolatility(O77,$C$20,($C$14-$C$2)/365,$F$3,$F$6,$F$4,$F$5)) ->  | Q77: =IF(O77="","",$C$23*BSput(($C$14-$C$2)/365,O77,$C$20,P77)) ->  | S77: =IF(O78="","",(R78*(O78-$O$12)-O78*SUM($S$12:S76)+SUMPRODUCT($S$12:S76,$O$12:O76))/(O78-O77)) ->  | U77: =IF(U76>=$V$5,"",U76+$V$3) -> 0.35 | V77: =IF(U77="","",_xll.qlSabrVolatility(U77,$C$20,($C$14-$C$2)/365,$F$3,$F$6,$F$4,$F$5)) -> 0.2676499919 | W77: =IF(U77="","",(U77-$C$8)*(1+U77/$C$22)^(-$C$9*$C$22)*U77/(1-(1+U77/$C$22)^-($C$22*$C$7))) -> 0.1178618623 | X77: 1.965719945 | Y77: =IF(X77="","",BScall(($C$14-$C$2)/365,U77,$C$20,V77)*X77) -> 8.415801716e-05 | Z77: 4.155361691e-07 | AC77: =IF(AB77="","",_xll.qlSabrVolatility(AB77,$C$20,($C$14-$C$2)/365,$F$3,$F$6,$F$4,$F$5)) ->  | AD77: =IF(AB77="","",(AB77-$C$8)*(1+AB77/$C$22)^(-$C$9*$C$22)*AB77/(1-(1+AB77/$C$22)^-($C$22*$C$7))) ->  | AF77: =IF(AE77="","",BSput(($C$14-$C$2)/365,AB77,$C$20,AC77)*AE77) -> 
I78: 0.36 | J78: =IF(I78="","",_xll.qlSabrVolatility(I78,$C$20,($C$14-$C$2)/365,$F$3,$F$6,$F$4,$F$5)) -> 0.2688160441 | K78: =IF(I78="","",$C$23*BScall(($C$14-$C$2)/365,I78,$C$20,J78)) -> 0.0002860561527 | L78: 0.3774363105 | M78: =IF(I79="","",(L79*(I79-$I$12)-I79*SUM($M$12:M77)+SUMPRODUCT($M$12:M77,$I$12:I77))/(I79-I78)) -> 0.009859800923 | O78: =IF(OR(O77<$P$4+$P$3,O77=""),"",O77-$P$3) ->  | P78: =IF(O78="","",_xll.qlSabrVolatility(O78,$C$20,($C$14-$C$2)/365,$F$3,$F$6,$F$4,$F$5)) ->  | Q78: =IF(O78="","",$C$23*BSput(($C$14-$C$2)/365,O78,$C$20,P78)) ->  | R78: =IF(O78="","",(1+O78/$C$22)^(-$C$9*$C$22)*O78/(1-(1+O78/$C$22)^-($C$22*$C$7))) ->  | S78: =IF(O79="","",(R79*(O79-$O$12)-O79*SUM($S$12:S77)+SUMPRODUCT($S$12:S77,$O$12:O77))/(O79-O78)) ->  | U78: 0.355 | V78: =IF(U78="","",_xll.qlSabrVolatility(U78,$C$20,($C$14-$C$2)/365,$F$3,$F$6,$F$4,$F$5)) -> 0.2682364986 | W78: 0.121183311 | X78: =IF(U79="","",(W79+W77-2*W78)/($V$3^2)) -> 1.968911846 | Y78: =IF(X78="","",BScall(($C$14-$C$2)/365,U78,$C$20,V78)*X78) -> 8.205645049e-05 | Z78: =IF(Y79="","",0.5*(U79-U78)*(Y78+Y79)) -> 4.052411169e-07 | AB78: =IF(OR(AB77<$AC$4+$AC$3,AB77=""),"",AB77-$AC$3) ->  | AC78: =IF(AB78="","",_xll.qlSabrVolatility(AB78,$C$20,($C$14-$C$2)/365,$F$3,$F$6,$F$4,$F$5)) ->  | AE78: =IF(AB79="","",(AD79+AD77-2*AD78)/($AC$3^2)) ->  | AF78: =IF(AE78="","",BSput(($C$14-$C$2)/365,AB78,$C$20,AC78)*AE78) ->  | AG78: =IF(AF79="","",0.5*(AB79-AB78)*(AF78+AF79)) -> 
I79: 0.365 | J79: =IF(I79="","",_xll.qlSabrVolatility(I79,$C$20,($C$14-$C$2)/365,$F$3,$F$6,$F$4,$F$5)) -> 0.269388776 | K79: =IF(I79="","",$C$23*BScall(($C$14-$C$2)/365,I79,$C$20,J79)) -> 0.0002787256789 | L79: 0.3820117998 | M79: =IF(I80="","",(L80*(I80-$I$12)-I80*SUM($M$12:M78)+SUMPRODUCT($M$12:M78,$I$12:I78))/(I80-I79)) -> 0.009874349619 | P79: =IF(O79="","",_xll.qlSabrVolatility(O79,$C$20,($C$14-$C$2)/365,$F$3,$F$6,$F$4,$F$5)) ->  | Q79: =IF(O79="","",$C$23*BSput(($C$14-$C$2)/365,O79,$C$20,P79)) ->  | S79: =IF(O80="","",(R80*(O80-$O$12)-O80*SUM($S$12:S78)+SUMPRODUCT($S$12:S78,$O$12:O78))/(O80-O79)) ->  | U79: 0.36 | V79: =IF(U79="","",_xll.qlSabrVolatility(U79,$C$20,($C$14-$C$2)/365,$F$3,$F$6,$F$4,$F$5)) -> 0.2688160441 | W79: 0.1245539825 | X79: 1.971960185 | Y79: =IF(X79="","",BScall(($C$14-$C$2)/365,U79,$C$20,V79)*X79) -> 8.003999628e-05 | Z79: 3.953599124e-07 | AC79: =IF(AB79="","",_xll.qlSabrVolatility(AB79,$C$20,($C$14-$C$2)/365,$F$3,$F$6,$F$4,$F$5)) ->  | AF79: =IF(AE79="","",BSput(($C$14-$C$2)/365,AB79,$C$20,AC79)*AE79) -> 
I80: 0.37 | J80: =IF(I80="","",_xll.qlSabrVolatility(I80,$C$20,($C$14-$C$2)/365,$F$3,$F$6,$F$4,$F$5)) -> 0.269954838 | K80: =IF(I80="","",$C$23*BScall(($C$14-$C$2)/365,I80,$C$20,J80)) -> 0.0002717062062 | L80: 0.386597927 | M80: =IF(I81="","",(L81*(I81-$I$12)-I81*SUM($M$12:M79)+SUMPRODUCT($M$12:M79,$I$12:I79))/(I81-I80)) -> 0.009888229521 | P80: =IF(O80="","",_xll.qlSabrVolatility(O80,$C$20,($C$14-$C$2)/365,$F$3,$F$6,$F$4,$F$5)) ->  | Q80: =IF(O80="","",$C$23*BSput(($C$14-$C$2)/365,O80,$C$20,P80)) ->  | S80: =IF(O81="","",(R81*(O81-$O$12)-O81*SUM($S$12:S79)+SUMPRODUCT($S$12:S79,$O$12:O79))/(O81-O80)) ->  | U80: 0.365 | V80: =IF(U80="","",_xll.qlSabrVolatility(U80,$C$20,($C$14-$C$2)/365,$F$3,$F$6,$F$4,$F$5)) -> 0.269388776 | W80: 0.1279739529 | X80: 1.974869924 | Y80: =IF(X80="","",BScall(($C$14-$C$2)/365,U80,$C$20,V80)*X80) -> 7.810396869e-05 | Z80: 3.858699412e-07 | AC80: =IF(AB80="","",_xll.qlSabrVolatility(AB80,$C$20,($C$14-$C$2)/365,$F$3,$F$6,$F$4,$F$5)) ->  | AF80: =IF(AE80="","",BSput(($C$14-$C$2)/365,AB80,$C$20,AC80)*AE80) -> 
I81: 0.375 | J81: =IF(I81="","",_xll.qlSabrVolatility(I81,$C$20,($C$14-$C$2)/365,$F$3,$F$6,$F$4,$F$5)) -> 0.2705143699 | K81: =IF(I81="","",$C$23*BScall(($C$14-$C$2)/365,I81,$C$20,J81)) -> 0.0002649799193 | L81: 0.3911944306 | M81: =IF(I82="","",(L82*(I82-$I$12)-I82*SUM($M$12:M80)+SUMPRODUCT($M$12:M80,$I$12:I80))/(I82-I81)) -> 0.009901464225 | P81: =IF(O81="","",_xll.qlSabrVolatility(O81,$C$20,($C$14-$C$2)/365,$F$3,$F$6,$F$4,$F$5)) ->  | Q81: =IF(O81="","",$C$23*BSput(($C$14-$C$2)/365,O81,$C$20,P81)) ->  | S81: =IF(O82="","",(R82*(O82-$O$12)-O82*SUM($S$12:S80)+SUMPRODUCT($S$12:S80,$O$12:O80))/(O82-O81)) ->  | U81: 0.37 | V81: =IF(U81="","",_xll.qlSabrVolatility(U81,$C$20,($C$14-$C$2)/365,$F$3,$F$6,$F$4,$F$5)) -> 0.269954838 | W81: 0.1314432952 | X81: 1.977645904 | Y81: =IF(X81="","",BScall(($C$14-$C$2)/365,U81,$C$20,V81)*X81) -> 7.624400779e-05 | Z81: 3.767501504e-07 | AC81: =IF(AB81="","",_xll.qlSabrVolatility(AB81,$C$20,($C$14-$C$2)/365,$F$3,$F$6,$F$4,$F$5)) ->  | AF81: =IF(AE81="","",BSput(($C$14-$C$2)/365,AB81,$C$20,AC81)*AE81) -> 
I82: 0.38 | J82: =IF(I82="","",_xll.qlSabrVolatility(I82,$C$20,($C$14-$C$2)/365,$F$3,$F$6,$F$4,$F$5)) -> 0.2710675078 | K82: =IF(I82="","",$C$23*BScall(($C$14-$C$2)/365,I82,$C$20,J82)) -> 0.0002585302704 | L82: 0.395801055 | M82: =IF(I83="","",(L83*(I83-$I$12)-I83*SUM($M$12:M81)+SUMPRODUCT($M$12:M81,$I$12:I81))/(I83-I82)) -> 0.009914076728 | P82: =IF(O82="","",_xll.qlSabrVolatility(O82,$C$20,($C$14-$C$2)/365,$F$3,$F$6,$F$4,$F$5)) ->  | Q82: =IF(O82="","",$C$23*BSput(($C$14-$C$2)/365,O82,$C$20,P82)) ->  | S82: =IF(O83="","",(R83*(O83-$O$12)-O83*SUM($S$12:S81)+SUMPRODUCT($S$12:S81,$O$12:O81))/(O83-O82)) ->  | U82: 0.375 | V82: =IF(U82="","",_xll.qlSabrVolatility(U82,$C$20,($C$14-$C$2)/365,$F$3,$F$6,$F$4,$F$5)) -> 0.2705143699 | W82: 0.1349620785 | X82: 1.980292845 | Y82: =IF(X82="","",BScall(($C$14-$C$2)/365,U82,$C$20,V82)*X82) -> 7.445605237e-05 | Z82: 3.67980919e-07 | AC82: =IF(AB82="","",_xll.qlSabrVolatility(AB82,$C$20,($C$14-$C$2)/365,$F$3,$F$6,$F$4,$F$5)) ->  | AF82: =IF(AE82="","",BSput(($C$14-$C$2)/365,AB82,$C$20,AC82)*AE82) -> 
I83: 0.385 | J83: =IF(I83="","",_xll.qlSabrVolatility(I83,$C$20,($C$14-$C$2)/365,$F$3,$F$6,$F$4,$F$5)) -> 0.2716143842 | K83: =IF(I83="","",$C$23*BScall(($C$14-$C$2)/365,I83,$C$20,J83)) -> 0.0002523418719 | L83: 0.4004175502 | M83: =IF(I84="","",(L84*(I84-$I$12)-I84*SUM($M$12:M82)+SUMPRODUCT($M$12:M82,$I$12:I82))/(I84-I83)) -> 0.009926089422 | P83: =IF(O83="","",_xll.qlSabrVolatility(O83,$C$20,($C$14-$C$2)/365,$F$3,$F$6,$F$4,$F$5)) ->  | Q83: =IF(O83="","",$C$23*BSput(($C$14-$C$2)/365,O83,$C$20,P83)) ->  | S83: =IF(O84="","",(R84*(O84-$O$12)-O84*SUM($S$12:S82)+SUMPRODUCT($S$12:S82,$O$12:O82))/(O84-O83)) ->  | U83: 0.38 | V83: =IF(U83="","",_xll.qlSabrVolatility(U83,$C$20,($C$14-$C$2)/365,$F$3,$F$6,$F$4,$F$5)) -> 0.2710675078 | W83: 0.1385303692 | X83: 1.982815346 | Y83: =IF(X83="","",BScall(($C$14-$C$2)/365,U83,$C$20,V83)*X83) -> 7.273631523e-05 | Z83: 3.595439406e-07 | AC83: =IF(AB83="","",_xll.qlSabrVolatility(AB83,$C$20,($C$14-$C$2)/365,$F$3,$F$6,$F$4,$F$5)) ->  | AF83: =IF(AE83="","",BSput(($C$14-$C$2)/365,AB83,$C$20,AC83)*AE83) -> 
I84: 0.39 | J84: =IF(I84="","",_xll.qlSabrVolatility(I84,$C$20,($C$14-$C$2)/365,$F$3,$F$6,$F$4,$F$5)) -> 0.2721551282 | K84: =IF(I84="","",$C$23*BScall(($C$14-$C$2)/365,I84,$C$20,J84)) -> 0.0002464004004 | L84: 0.4050436718 | M84: =IF(I85="","",(L85*(I85-$I$12)-I85*SUM($M$12:M83)+SUMPRODUCT($M$12:M83,$I$12:I83))/(I85-I84)) -> 0.009937524104 | P84: =IF(O84="","",_xll.qlSabrVolatility(O84,$C$20,($C$14-$C$2)/365,$F$3,$F$6,$F$4,$F$5)) ->  | Q84: =IF(O84="","",$C$23*BSput(($C$14-$C$2)/365,O84,$C$20,P84)) ->  | S84: =IF(O85="","",(R85*(O85-$O$12)-O85*SUM($S$12:S83)+SUMPRODUCT($S$12:S83,$O$12:O83))/(O85-O84)) ->  | U84: 0.385 | V84: =IF(U84="","",_xll.qlSabrVolatility(U84,$C$20,($C$14-$C$2)/365,$F$3,$F$6,$F$4,$F$5)) -> 0.2716143842 | W84: 0.1421482303 | X84: 1.985217884 | Y84: =IF(X84="","",BScall(($C$14-$C$2)/365,U84,$C$20,V84)*X84) -> 7.108126102e-05 | Z84: 3.514221175e-07 | AC84: =IF(AB84="","",_xll.qlSabrVolatility(AB84,$C$20,($C$14-$C$2)/365,$F$3,$F$6,$F$4,$F$5)) ->  | AF84: =IF(AE84="","",BSput(($C$14-$C$2)/365,AB84,$C$20,AC84)*AE84) -> 
I85: 0.395 | J85: =IF(I85="","",_xll.qlSabrVolatility(I85,$C$20,($C$14-$C$2)/365,$F$3,$F$6,$F$4,$F$5)) -> 0.272689865 | K85: =IF(I85="","",$C$23*BScall(($C$14-$C$2)/365,I85,$C$20,J85)) -> 0.0002406925094 | L85: 0.4096791808 | M85: =IF(I86="","",(L86*(I86-$I$12)-I86*SUM($M$12:M84)+SUMPRODUCT($M$12:M84,$I$12:I84))/(I86-I85)) -> 0.009948401978 | P85: =IF(O85="","",_xll.qlSabrVolatility(O85,$C$20,($C$14-$C$2)/365,$F$3,$F$6,$F$4,$F$5)) ->  | Q85: =IF(O85="","",$C$23*BSput(($C$14-$C$2)/365,O85,$C$20,P85)) ->  | S85: =IF(O86="","",(R86*(O86-$O$12)-O86*SUM($S$12:S84)+SUMPRODUCT($S$12:S84,$O$12:O84))/(O86-O85)) ->  | U85: 0.39 | V85: =IF(U85="","",_xll.qlSabrVolatility(U85,$C$20,($C$14-$C$2)/365,$F$3,$F$6,$F$4,$F$5)) -> 0.2721551282 | W85: 0.1458157218 | X85: 1.987504821 | Y85: =IF(X85="","",BScall(($C$14-$C$2)/365,U85,$C$20,V85)*X85) -> 6.948758598e-05 | Z85: 3.435994643e-07 | AC85: =IF(AB85="","",_xll.qlSabrVolatility(AB85,$C$20,($C$14-$C$2)/365,$F$3,$F$6,$F$4,$F$5)) ->  | AF85: =IF(AE85="","",BSput(($C$14-$C$2)/365,AB85,$C$20,AC85)*AE85) -> 
I86: 0.4 | J86: =IF(I86="","",_xll.qlSabrVolatility(I86,$C$20,($C$14-$C$2)/365,$F$3,$F$6,$F$4,$F$5)) -> 0.273218717 | K86: =IF(I86="","",$C$23*BScall(($C$14-$C$2)/365,I86,$C$20,J86)) -> 0.0002352057502 | L86: 0.4143238436 | M86: =IF(I87="","",(L87*(I87-$I$12)-I87*SUM($M$12:M85)+SUMPRODUCT($M$12:M85,$I$12:I85))/(I87-I86)) -> 0.00995874366 | P86: =IF(O86="","",_xll.qlSabrVolatility(O86,$C$20,($C$14-$C$2)/365,$F$3,$F$6,$F$4,$F$5)) ->  | Q86: =IF(O86="","",$C$23*BSput(($C$14-$C$2)/365,O86,$C$20,P86)) ->  | S86: =IF(O87="","",(R87*(O87-$O$12)-O87*SUM($S$12:S85)+SUMPRODUCT($S$12:S85,$O$12:O85))/(O87-O86)) ->  | U86: 0.395 | V86: =IF(U86="","",_xll.qlSabrVolatility(U86,$C$20,($C$14-$C$2)/365,$F$3,$F$6,$F$4,$F$5)) -> 0.272689865 | W86: 0.149532901 | X86: 1.989680396 | Y86: =IF(X86="","",BScall(($C$14-$C$2)/365,U86,$C$20,V86)*X86) -> 6.795219972e-05 | Z86: 3.360610208e-07 | AC86: =IF(AB86="","",_xll.qlSabrVolatility(AB86,$C$20,($C$14-$C$2)/365,$F$3,$F$6,$F$4,$F$5)) ->  | AF86: =IF(AE86="","",BSput(($C$14-$C$2)/365,AB86,$C$20,AC86)*AE86) -> 
I87: 0.405 | J87: =IF(I87="","",_xll.qlSabrVolatility(I87,$C$20,($C$14-$C$2)/365,$F$3,$F$6,$F$4,$F$5)) -> 0.2737418029 | K87: =IF(I87="","",$C$23*BScall(($C$14-$C$2)/365,I87,$C$20,J87)) -> 0.0002299285003 | L87: 0.418977432 | M87: =IF(I88="","",(L88*(I88-$I$12)-I88*SUM($M$12:M86)+SUMPRODUCT($M$12:M86,$I$12:I86))/(I88-I87)) -> 0.009968569184 | P87: =IF(O87="","",_xll.qlSabrVolatility(O87,$C$20,($C$14-$C$2)/365,$F$3,$F$6,$F$4,$F$5)) ->  | Q87: =IF(O87="","",$C$23*BSput(($C$14-$C$2)/365,O87,$C$20,P87)) ->  | S87: =IF(O88="","",(R88*(O88-$O$12)-O88*SUM($S$12:S86)+SUMPRODUCT($S$12:S86,$O$12:O86))/(O88-O87)) ->  | U87: 0.4 | V87: =IF(U87="","",_xll.qlSabrVolatility(U87,$C$20,($C$14-$C$2)/365,$F$3,$F$6,$F$4,$F$5)) -> 0.273218717 | W87: 0.1532998221 | X87: 1.991748732 | Y87: =IF(X87="","",BScall(($C$14-$C$2)/365,U87,$C$20,V87)*X87) -> 6.647220859e-05 | Z87: 3.287927729e-07 | AC87: =IF(AB87="","",_xll.qlSabrVolatility(AB87,$C$20,($C$14-$C$2)/365,$F$3,$F$6,$F$4,$F$5)) ->  | AF87: =IF(AE87="","",BSput(($C$14-$C$2)/365,AB87,$C$20,AC87)*AE87) -> 
I88: 0.41 | J88: =IF(I88="","",_xll.qlSabrVolatility(I88,$C$20,($C$14-$C$2)/365,$F$3,$F$6,$F$4,$F$5)) -> 0.2742592383 | K88: =IF(I88="","",$C$23*BScall(($C$14-$C$2)/365,I88,$C$20,J88)) -> 0.0002248498982 | L88: 0.4236397229 | M88: =IF(I89="","",(L89*(I89-$I$12)-I89*SUM($M$12:M87)+SUMPRODUCT($M$12:M87,$I$12:I87))/(I89-I88)) -> 0.009977898011 | P88: =IF(O88="","",_xll.qlSabrVolatility(O88,$C$20,($C$14-$C$2)/365,$F$3,$F$6,$F$4,$F$5)) ->  | Q88: =IF(O88="","",$C$23*BSput(($C$14-$C$2)/365,O88,$C$20,P88)) ->  | S88: =IF(O89="","",(R89*(O89-$O$12)-O89*SUM($S$12:S87)+SUMPRODUCT($S$12:S87,$O$12:O87))/(O89-O88)) ->  | U88: 0.405 | V88: =IF(U88="","",_xll.qlSabrVolatility(U88,$C$20,($C$14-$C$2)/365,$F$3,$F$6,$F$4,$F$5)) -> 0.2737418029 | W88: 0.157116537 | X88: 1.993713837 | Y88: =IF(X88="","",BScall(($C$14-$C$2)/365,U88,$C$20,V88)*X88) -> 6.504490056e-05 | Z88: 3.2178158e-07 | AC88: =IF(AB88="","",_xll.qlSabrVolatility(AB88,$C$20,($C$14-$C$2)/365,$F$3,$F$6,$F$4,$F$5)) ->  | AF88: =IF(AE88="","",BSput(($C$14-$C$2)/365,AB88,$C$20,AC88)*AE88) -> 
I89: 0.415 | J89: =IF(I89="","",_xll.qlSabrVolatility(I89,$C$20,($C$14-$C$2)/365,$F$3,$F$6,$F$4,$F$5)) -> 0.2747711359 | K89: =IF(I89="","",$C$23*BScall(($C$14-$C$2)/365,I89,$C$20,J89)) -> 0.0002199597843 | L89: 0.4283104985 | M89: =IF(I90="","",(L90*(I90-$I$12)-I90*SUM($M$12:M88)+SUMPRODUCT($M$12:M88,$I$12:I88))/(I90-I89)) -> 0.009986749033 | P89: =IF(O89="","",_xll.qlSabrVolatility(O89,$C$20,($C$14-$C$2)/365,$F$3,$F$6,$F$4,$F$5)) ->  | Q89: =IF(O89="","",$C$23*BSput(($C$14-$C$2)/365,O89,$C$20,P89)) ->  | S89: =IF(O90="","",(R90*(O90-$O$12)-O90*SUM($S$12:S88)+SUMPRODUCT($S$12:S88,$O$12:O88))/(O90-O89)) ->  | U89: 0.41 | V89: =IF(U89="","",_xll.qlSabrVolatility(U89,$C$20,($C$14-$C$2)/365,$F$3,$F$6,$F$4,$F$5)) -> 0.2742592383 | W89: 0.1609830947 | X89: 1.995579602 | Y89: =IF(X89="","",BScall(($C$14-$C$2)/365,U89,$C$20,V89)*X89) -> 6.366773146e-05 | Z89: 3.150151098e-07 | AC89: =IF(AB89="","",_xll.qlSabrVolatility(AB89,$C$20,($C$14-$C$2)/365,$F$3,$F$6,$F$4,$F$5)) ->  | AF89: =IF(AE89="","",BSput(($C$14-$C$2)/365,AB89,$C$20,AC89)*AE89) -> 
I90: 0.42 | J90: =IF(I90="","",_xll.qlSabrVolatility(I90,$C$20,($C$14-$C$2)/365,$F$3,$F$6,$F$4,$F$5)) -> 0.2752776051 | K90: =IF(I90="","",$C$23*BScall(($C$14-$C$2)/365,I90,$C$20,J90)) -> 0.0002152486472 | L90: 0.4329895458 | M90: =IF(I91="","",(L91*(I91-$I$12)-I91*SUM($M$12:M89)+SUMPRODUCT($M$12:M89,$I$12:I89))/(I91-I90)) -> 0.009995140584 | P90: =IF(O90="","",_xll.qlSabrVolatility(O90,$C$20,($C$14-$C$2)/365,$F$3,$F$6,$F$4,$F$5)) ->  | Q90: =IF(O90="","",$C$23*BSput(($C$14-$C$2)/365,O90,$C$20,P90)) ->  | S90: =IF(O91="","",(R91*(O91-$O$12)-O91*SUM($S$12:S89)+SUMPRODUCT($S$12:S89,$O$12:O89))/(O91-O90)) ->  | U90: 0.415 | V90: =IF(U90="","",_xll.qlSabrVolatility(U90,$C$20,($C$14-$C$2)/365,$F$3,$F$6,$F$4,$F$5)) -> 0.2747711359 | W90: 0.1648995419 | X90: 1.997349807 | Y90: =IF(X90="","",BScall(($C$14-$C$2)/365,U90,$C$20,V90)*X90) -> 6.233831246e-05 | Z90: 3.084817777e-07 | AC90: =IF(AB90="","",_xll.qlSabrVolatility(AB90,$C$20,($C$14-$C$2)/365,$F$3,$F$6,$F$4,$F$5)) ->  | AF90: =IF(AE90="","",BSput(($C$14-$C$2)/365,AB90,$C$20,AC90)*AE90) -> 
I91: 0.425 | J91: =IF(I91="","",_xll.qlSabrVolatility(I91,$C$20,($C$14-$C$2)/365,$F$3,$F$6,$F$4,$F$5)) -> 0.2757787526 | K91: =IF(I91="","",$C$23*BScall(($C$14-$C$2)/365,I91,$C$20,J91)) -> 0.0002107075742 | L91: 0.437676657 | M91: =IF(I92="","",(L92*(I92-$I$12)-I92*SUM($M$12:M90)+SUMPRODUCT($M$12:M90,$I$12:I90))/(I92-I91)) -> 0.01000309045 | P91: =IF(O91="","",_xll.qlSabrVolatility(O91,$C$20,($C$14-$C$2)/365,$F$3,$F$6,$F$4,$F$5)) ->  | Q91: =IF(O91="","",$C$23*BSput(($C$14-$C$2)/365,O91,$C$20,P91)) ->  | S91: =IF(O92="","",(R92*(O92-$O$12)-O92*SUM($S$12:S90)+SUMPRODUCT($S$12:S90,$O$12:O90))/(O92-O91)) ->  | U91: 0.42 | V91: =IF(U91="","",_xll.qlSabrVolatility(U91,$C$20,($C$14-$C$2)/365,$F$3,$F$6,$F$4,$F$5)) -> 0.2752776051 | W91: 0.1688659229 | X91: 1.999028117 | Y91: =IF(X91="","",BScall(($C$14-$C$2)/365,U91,$C$20,V91)*X91) -> 6.105439861e-05 | Z91: 3.021706924e-07 | AC91: =IF(AB91="","",_xll.qlSabrVolatility(AB91,$C$20,($C$14-$C$2)/365,$F$3,$F$6,$F$4,$F$5)) ->  | AF91: =IF(AE91="","",BSput(($C$14-$C$2)/365,AB91,$C$20,AC91)*AE91) -> 
B92: =IF(C92="","",C92-2) ->  | D92: =IF(C92="","",DATE(YEAR(C92),MONTH(C92)+VLOOKUP($C$12,$XEX$1:$XEY$4,2,FALSE),DAY(C92))) ->  | E92: =IF(B92="","",IF($C$13="30/360",DAYS360(C92,D92)/360,IF($C$13="ACT/360",(D92-C92)/360,IF($C$13="ACT/365",(D92-C92)/365)))) ->  | F92: =IF(B92="","",DF(D92-$C$2,Maturities,ZcRates)) ->  | I92: 0.43 | J92: =IF(I92="","",_xll.qlSabrVolatility(I92,$C$20,($C$14-$C$2)/365,$F$3,$F$6,$F$4,$F$5)) -> 0.2762746821 | K92: =IF(I92="","",$C$23*BScall(($C$14-$C$2)/365,I92,$C$20,J92)) -> 0.0002063282067 | L92: 0.4423716291 | M92: =IF(I93="","",(L93*(I93-$I$12)-I93*SUM($M$12:M91)+SUMPRODUCT($M$12:M91,$I$12:I91))/(I93-I92)) -> 0.01001061586 | P92: =IF(O92="","",_xll.qlSabrVolatility(O92,$C$20,($C$14-$C$2)/365,$F$3,$F$6,$F$4,$F$5)) ->  | Q92: =IF(O92="","",$C$23*BSput(($C$14-$C$2)/365,O92,$C$20,P92)) ->  | S92: =IF(O93="","",(R93*(O93-$O$12)-O93*SUM($S$12:S91)+SUMPRODUCT($S$12:S91,$O$12:O91))/(O93-O92)) ->  | U92: 0.425 | V92: =IF(U92="","",_xll.qlSabrVolatility(U92,$C$20,($C$14-$C$2)/365,$F$3,$F$6,$F$4,$F$5)) -> 0.2757787526 | W92: 0.1728822795 | X92: 2.00061809 | Y92: =IF(X92="","",BScall(($C$14-$C$2)/365,U92,$C$20,V92)*X92) -> 5.981387835e-05 | Z92: 2.960716057e-07 | AC92: =IF(AB92="","",_xll.qlSabrVolatility(AB92,$C$20,($C$14-$C$2)/365,$F$3,$F$6,$F$4,$F$5)) ->  | AF92: =IF(AE92="","",BSput(($C$14-$C$2)/365,AB92,$C$20,AC92)*AE92) -> 
C93: =IF(OR(D92=$C$16,D92=""),"",D92) ->  | I93: 0.435 | J93: =IF(I93="","",_xll.qlSabrVolatility(I93,$C$20,($C$14-$C$2)/365,$F$3,$F$6,$F$4,$F$5)) -> 0.2767654947 | K93: =IF(I93="","",$C$23*BScall(($C$14-$C$2)/365,I93,$C$20,J93)) -> 0.0002021026994 | L93: 0.4470742638 | M93: =IF(I94="","",(L94*(I94-$I$12)-I94*SUM($M$12:M92)+SUMPRODUCT($M$12:M92,$I$12:I92))/(I94-I93)) -> 0.01001773354 | P93: =IF(O93="","",_xll.qlSabrVolatility(O93,$C$20,($C$14-$C$2)/365,$F$3,$F$6,$F$4,$F$5)) ->  | Q93: =IF(O93="","",$C$23*BSput(($C$14-$C$2)/365,O93,$C$20,P93)) ->  | S93: =IF(O94="","",(R94*(O94-$O$12)-O94*SUM($S$12:S92)+SUMPRODUCT($S$12:S92,$O$12:O92))/(O94-O93)) ->  | U93: 0.43 | V93: =IF(U93="","",_xll.qlSabrVolatility(U93,$C$20,($C$14-$C$2)/365,$F$3,$F$6,$F$4,$F$5)) -> 0.2762746821 | W93: 0.1769486516 | X93: 2.002123173 | Y93: =IF(X93="","",BScall(($C$14-$C$2)/365,U93,$C$20,V93)*X93) -> 5.861476395e-05 | Z93: 2.901748667e-07 | AC93: =IF(AB93="","",_xll.qlSabrVolatility(AB93,$C$20,($C$14-$C$2)/365,$F$3,$F$6,$F$4,$F$5)) ->  | AF93: =IF(AE93="","",BSput(($C$14-$C$2)/365,AB93,$C$20,AC93)*AE93) -> 
I94: 0.44 | J94: =IF(I94="","",_xll.qlSabrVolatility(I94,$C$20,($C$14-$C$2)/365,$F$3,$F$6,$F$4,$F$5)) -> 0.2772512887 | K94: =IF(I94="","",$C$23*BScall(($C$14-$C$2)/365,I94,$C$20,J94)) -> 0.0001980236822 | L94: 0.4517843675 | M94: =IF(I95="","",(L95*(I95-$I$12)-I95*SUM($M$12:M93)+SUMPRODUCT($M$12:M93,$I$12:I93))/(I95-I94)) -> 0.01002445967 | P94: =IF(O94="","",_xll.qlSabrVolatility(O94,$C$20,($C$14-$C$2)/365,$F$3,$F$6,$F$4,$F$5)) ->  | Q94: =IF(O94="","",$C$23*BSput(($C$14-$C$2)/365,O94,$C$20,P94)) ->  | S94: =IF(O95="","",(R95*(O95-$O$12)-O95*SUM($S$12:S93)+SUMPRODUCT($S$12:S93,$O$12:O93))/(O95-O94)) ->  | U94: 0.435 | V94: =IF(U94="","",_xll.qlSabrVolatility(U94,$C$20,($C$14-$C$2)/365,$F$3,$F$6,$F$4,$F$5)) -> 0.2767654947 | W94: 0.1810650768 | X94: 2.003546708 | Y94: =IF(X94="","",BScall(($C$14-$C$2)/365,U94,$C$20,V94)*X94) -> 5.745518273e-05 | Z94: 2.844713793e-07 | AC94: =IF(AB94="","",_xll.qlSabrVolatility(AB94,$C$20,($C$14-$C$2)/365,$F$3,$F$6,$F$4,$F$5)) ->  | AF94: =IF(AE94="","",BSput(($C$14-$C$2)/365,AB94,$C$20,AC94)*AE94) -> 
I95: 0.445 | J95: =IF(I95="","",_xll.qlSabrVolatility(I95,$C$20,($C$14-$C$2)/365,$F$3,$F$6,$F$4,$F$5)) -> 0.2777321599 | K95: =IF(I95="","",$C$23*BScall(($C$14-$C$2)/365,I95,$C$20,J95)) -> 0.0001940842268 | L95: 0.4565017514 | M95: =IF(I96="","",(L96*(I96-$I$12)-I96*SUM($M$12:M94)+SUMPRODUCT($M$12:M94,$I$12:I94))/(I96-I95)) -> 0.01003080991 | P95: =IF(O95="","",_xll.qlSabrVolatility(O95,$C$20,($C$14-$C$2)/365,$F$3,$F$6,$F$4,$F$5)) ->  | Q95: =IF(O95="","",$C$23*BSput(($C$14-$C$2)/365,O95,$C$20,P95)) ->  | S95: =IF(O96="","",(R96*(O96-$O$12)-O96*SUM($S$12:S94)+SUMPRODUCT($S$12:S94,$O$12:O94))/(O96-O95)) ->  | U95: 0.44 | V95: =IF(U95="","",_xll.qlSabrVolatility(U95,$C$20,($C$14-$C$2)/365,$F$3,$F$6,$F$4,$F$5)) -> 0.2772512887 | W95: 0.1852315907 | X95: 2.004891933 | Y95: =IF(X95="","",BScall(($C$14-$C$2)/365,U95,$C$20,V95)*X95) -> 5.6333369e-05 | Z95: 2.789525642e-07 | AC95: =IF(AB95="","",_xll.qlSabrVolatility(AB95,$C$20,($C$14-$C$2)/365,$F$3,$F$6,$F$4,$F$5)) ->  | AF95: =IF(AE95="","",BSput(($C$14-$C$2)/365,AB95,$C$20,AC95)*AE95) -> 
I96: 0.45 | J96: =IF(I96="","",_xll.qlSabrVolatility(I96,$C$20,($C$14-$C$2)/365,$F$3,$F$6,$F$4,$F$5)) -> 0.2782082016 | K96: =IF(I96="","",$C$23*BScall(($C$14-$C$2)/365,I96,$C$20,J96)) -> 0.0001902778143 | L96: 0.4612262311 | M96: =IF(I97="","",(L97*(I97-$I$12)-I97*SUM($M$12:M95)+SUMPRODUCT($M$12:M95,$I$12:I95))/(I97-I96)) -> 0.01003679945 | P96: =IF(O96="","",_xll.qlSabrVolatility(O96,$C$20,($C$14-$C$2)/365,$F$3,$F$6,$F$4,$F$5)) ->  | Q96: =IF(O96="","",$C$23*BSput(($C$14-$C$2)/365,O96,$C$20,P96)) ->  | S96: =IF(O97="","",(R97*(O97-$O$12)-O97*SUM($S$12:S95)+SUMPRODUCT($S$12:S95,$O$12:O95))/(O97-O96)) ->  | U96: 0.445 | V96: =IF(U96="","",_xll.qlSabrVolatility(U96,$C$20,($C$14-$C$2)/365,$F$3,$F$6,$F$4,$F$5)) -> 0.2777321599 | W96: 0.1894482268 | X96: 2.006161983 | Y96: =IF(X96="","",BScall(($C$14-$C$2)/365,U96,$C$20,V96)*X96) -> 5.524765669e-05 | Z96: 2.73610323e-07 | AC96: =IF(AB96="","",_xll.qlSabrVolatility(AB96,$C$20,($C$14-$C$2)/365,$F$3,$F$6,$F$4,$F$5)) ->  | AF96: =IF(AE96="","",BSput(($C$14-$C$2)/365,AB96,$C$20,AC96)*AE96) -> 
I97: 0.455 | J97: =IF(I97="","",_xll.qlSabrVolatility(I97,$C$20,($C$14-$C$2)/365,$F$3,$F$6,$F$4,$F$5)) -> 0.2786795045 | K97: =IF(I97="","",$C$23*BScall(($C$14-$C$2)/365,I97,$C$20,J97)) -> 0.000186598307 | L97: 0.4659576265 | M97: =IF(I98="","",(L98*(I98-$I$12)-I98*SUM($M$12:M96)+SUMPRODUCT($M$12:M96,$I$12:I96))/(I98-I97)) -> 0.01004244295 | P97: =IF(O97="","",_xll.qlSabrVolatility(O97,$C$20,($C$14-$C$2)/365,$F$3,$F$6,$F$4,$F$5)) ->  | Q97: =IF(O97="","",$C$23*BSput(($C$14-$C$2)/365,O97,$C$20,P97)) ->  | S97: =IF(O98="","",(R98*(O98-$O$12)-O98*SUM($S$12:S96)+SUMPRODUCT($S$12:S96,$O$12:O96))/(O98-O97)) ->  | U97: 0.45 | V97: =IF(U97="","",_xll.qlSabrVolatility(U97,$C$20,($C$14-$C$2)/365,$F$3,$F$6,$F$4,$F$5)) -> 0.2782082016 | W97: 0.193715017 | X97: 2.00735989 | Y97: =IF(X97="","",BScall(($C$14-$C$2)/365,U97,$C$20,V97)*X97) -> 5.419647251e-05 | Z97: 2.684370057e-07 | AC97: =IF(AB97="","",_xll.qlSabrVolatility(AB97,$C$20,($C$14-$C$2)/365,$F$3,$F$6,$F$4,$F$5)) ->  | AF97: =IF(AE97="","",BSput(($C$14-$C$2)/365,AB97,$C$20,AC97)*AE97) -> 
I98: 0.46 | J98: =IF(I98="","",_xll.qlSabrVolatility(I98,$C$20,($C$14-$C$2)/365,$F$3,$F$6,$F$4,$F$5)) -> 0.2791461571 | K98: =IF(I98="","",$C$23*BScall(($C$14-$C$2)/365,I98,$C$20,J98)) -> 0.0001830399217 | L98: 0.470695762 | M98: =IF(I99="","",(L99*(I99-$I$12)-I99*SUM($M$12:M97)+SUMPRODUCT($M$12:M97,$I$12:I97))/(I99-I98)) -> 0.01004775462 | P98: =IF(O98="","",_xll.qlSabrVolatility(O98,$C$20,($C$14-$C$2)/365,$F$3,$F$6,$F$4,$F$5)) ->  | Q98: =IF(O98="","",$C$23*BSput(($C$14-$C$2)/365,O98,$C$20,P98)) ->  | S98: =IF(O99="","",(R99*(O99-$O$12)-O99*SUM($S$12:S97)+SUMPRODUCT($S$12:S97,$O$12:O97))/(O99-O98)) ->  | U98: 0.455 | V98: =IF(U98="","",_xll.qlSabrVolatility(U98,$C$20,($C$14-$C$2)/365,$F$3,$F$6,$F$4,$F$5)) -> 0.2786795045 | W98: 0.1980319912 | X98: 2.008488591 | Y98: =IF(X98="","",BScall(($C$14-$C$2)/365,U98,$C$20,V98)*X98) -> 5.317832975e-05 | Z98: 2.634253805e-07 | AC98: =IF(AB98="","",_xll.qlSabrVolatility(AB98,$C$20,($C$14-$C$2)/365,$F$3,$F$6,$F$4,$F$5)) ->  | AF98: =IF(AE98="","",BSput(($C$14-$C$2)/365,AB98,$C$20,AC98)*AE98) -> 
I99: 0.465 | J99: =IF(I99="","",_xll.qlSabrVolatility(I99,$C$20,($C$14-$C$2)/365,$F$3,$F$6,$F$4,$F$5)) -> 0.2796082455 | K99: =IF(I99="","",$C$23*BScall(($C$14-$C$2)/365,I99,$C$20,J99)) -> 0.0001795972052 | L99: 0.4754404663 | M99: =IF(I100="","",(L100*(I100-$I$12)-I100*SUM($M$12:M98)+SUMPRODUCT($M$12:M98,$I$12:I98))/(I100-I99)) -> 0.01005274818 | P99: =IF(O99="","",_xll.qlSabrVolatility(O99,$C$20,($C$14-$C$2)/365,$F$3,$F$6,$F$4,$F$5)) ->  | Q99: =IF(O99="","",$C$23*BSput(($C$14-$C$2)/365,O99,$C$20,P99)) ->  | S99: =IF(O100="","",(R100*(O100-$O$12)-O100*SUM($S$12:S98)+SUMPRODUCT($S$12:S98,$O$12:O98))/(O100-O99)) ->  | U99: 0.46 | V99: =IF(U99="","",_xll.qlSabrVolatility(U99,$C$20,($C$14-$C$2)/365,$F$3,$F$6,$F$4,$F$5)) -> 0.2791461571 | W99: 0.2023991777 | X99: 2.009550924 | Y99: =IF(X99="","",BScall(($C$14-$C$2)/365,U99,$C$20,V99)*X99) -> 5.219182247e-05 | Z99: 2.585686067e-07 | AC99: =IF(AB99="","",_xll.qlSabrVolatility(AB99,$C$20,($C$14-$C$2)/365,$F$3,$F$6,$F$4,$F$5)) ->  | AF99: =IF(AE99="","",BSput(($C$14-$C$2)/365,AB99,$C$20,AC99)*AE99) -> 
I100: 0.47 | J100: =IF(I100="","",_xll.qlSabrVolatility(I100,$C$20,($C$14-$C$2)/365,$F$3,$F$6,$F$4,$F$5)) -> 0.2800658538 | K100: =IF(I100="","",$C$23*BScall(($C$14-$C$2)/365,I100,$C$20,J100)) -> 0.0001762650116 | L100: 0.4801915722 | M100: =IF(I101="","",(L101*(I101-$I$12)-I101*SUM($M$12:M99)+SUMPRODUCT($M$12:M99,$I$12:I99))/(I101-I100)) -> 0.01005743689 | P100: =IF(O100="","",_xll.qlSabrVolatility(O100,$C$20,($C$14-$C$2)/365,$F$3,$F$6,$F$4,$F$5)) ->  | Q100: =IF(O100="","",$C$23*BSput(($C$14-$C$2)/365,O100,$C$20,P100)) ->  | S100: =IF(O101="","",(R101*(O101-$O$12)-O101*SUM($S$12:S99)+SUMPRODUCT($S$12:S99,$O$12:O99))/(O101-O100)) ->  | U100: 0.465 | V100: =IF(U100="","",_xll.qlSabrVolatility(U100,$C$20,($C$14-$C$2)/365,$F$3,$F$6,$F$4,$F$5)) -> 0.2796082455 | W100: 0.2068166028 | X100: 2.010549635 | Y100: =IF(X100="","",BScall(($C$14-$C$2)/365,U100,$C$20,V100)*X100) -> 5.123562021e-05 | Z100: 2.538602083e-07 | AC100: =IF(AB100="","",_xll.qlSabrVolatility(AB100,$C$20,($C$14-$C$2)/365,$F$3,$F$6,$F$4,$F$5)) ->  | AF100: =IF(AE100="","",BSput(($C$14-$C$2)/365,AB100,$C$20,AC100)*AE100) -> 
I101: 0.475 | J101: =IF(I101="","",_xll.qlSabrVolatility(I101,$C$20,($C$14-$C$2)/365,$F$3,$F$6,$F$4,$F$5)) -> 0.2805190636 | K101: =IF(I101="","",$C$23*BScall(($C$14-$C$2)/365,I101,$C$20,J101)) -> 0.0001730384823 | L101: 0.4849489166 | M101: =IF(I102="","",(L102*(I102-$I$12)-I102*SUM($M$12:M100)+SUMPRODUCT($M$12:M100,$I$12:I100))/(I102-I101)) -> 0.01006183357 | P101: =IF(O101="","",_xll.qlSabrVolatility(O101,$C$20,($C$14-$C$2)/365,$F$3,$F$6,$F$4,$F$5)) ->  | Q101: =IF(O101="","",$C$23*BSput(($C$14-$C$2)/365,O101,$C$20,P101)) ->  | S101: =IF(O102="","",(R102*(O102-$O$12)-O102*SUM($S$12:S100)+SUMPRODUCT($S$12:S100,$O$12:O100))/(O102-O101)) ->  | U101: 0.47 | V101: =IF(U101="","",_xll.qlSabrVolatility(U101,$C$20,($C$14-$C$2)/365,$F$3,$F$6,$F$4,$F$5)) -> 0.2800658538 | W101: 0.2112842918 | X101: 2.011487378 | Y101: =IF(X101="","",BScall(($C$14-$C$2)/365,U101,$C$20,V101)*X101) -> 5.03084631e-05 | Z101: 2.49294051e-07 | AC101: =IF(AB101="","",_xll.qlSabrVolatility(AB101,$C$20,($C$14-$C$2)/365,$F$3,$F$6,$F$4,$F$5)) ->  | AF101: =IF(AE101="","",BSput(($C$14-$C$2)/365,AB101,$C$20,AC101)*AE101) -> 
I102: 0.48 | J102: =IF(I102="","",_xll.qlSabrVolatility(I102,$C$20,($C$14-$C$2)/365,$F$3,$F$6,$F$4,$F$5)) -> 0.2809679547 | K102: =IF(I102="","",$C$23*BScall(($C$14-$C$2)/365,I102,$C$20,J102)) -> 0.0001699130262 | L102: 0.4897123404 | M102: =IF(I103="","",(L103*(I103-$I$12)-I103*SUM($M$12:M101)+SUMPRODUCT($M$12:M101,$I$12:I101))/(I103-I102)) -> 0.01006595059 | P102: =IF(O102="","",_xll.qlSabrVolatility(O102,$C$20,($C$14-$C$2)/365,$F$3,$F$6,$F$4,$F$5)) ->  | Q102: =IF(O102="","",$C$23*BSput(($C$14-$C$2)/365,O102,$C$20,P102)) ->  | S102: =IF(O103="","",(R103*(O103-$O$12)-O103*SUM($S$12:S101)+SUMPRODUCT($S$12:S101,$O$12:O101))/(O103-O102)) ->  | U102: 0.475 | V102: =IF(U102="","",_xll.qlSabrVolatility(U102,$C$20,($C$14-$C$2)/365,$F$3,$F$6,$F$4,$F$5)) -> 0.2805190636 | W102: 0.2158022679 | X102: 2.012366714 | Y102: =IF(X102="","",BScall(($C$14-$C$2)/365,U102,$C$20,V102)*X102) -> 4.940915729e-05 | Z102: 2.448643203e-07 | AC102: =IF(AB102="","",_xll.qlSabrVolatility(AB102,$C$20,($C$14-$C$2)/365,$F$3,$F$6,$F$4,$F$5)) ->  | AF102: =IF(AE102="","",BSput(($C$14-$C$2)/365,AB102,$C$20,AC102)*AE102) -> 
I103: 0.485 | J103: =IF(I103="","",_xll.qlSabrVolatility(I103,$C$20,($C$14-$C$2)/365,$F$3,$F$6,$F$4,$F$5)) -> 0.2814126048 | K103: =IF(I103="","",$C$23*BScall(($C$14-$C$2)/365,I103,$C$20,J103)) -> 0.0001668843027 | L103: 0.4944816884 | M103: =IF(I104="","",(L104*(I104-$I$12)-I104*SUM($M$12:M102)+SUMPRODUCT($M$12:M102,$I$12:I102))/(I104-I103)) -> 0.01006979991 | P103: =IF(O103="","",_xll.qlSabrVolatility(O103,$C$20,($C$14-$C$2)/365,$F$3,$F$6,$F$4,$F$5)) ->  | Q103: =IF(O103="","",$C$23*BSput(($C$14-$C$2)/365,O103,$C$20,P103)) ->  | S103: =IF(O104="","",(R104*(O104-$O$12)-O104*SUM($S$12:S102)+SUMPRODUCT($S$12:S102,$O$12:O102))/(O104-O103)) ->  | U103: 0.48 | V103: =IF(U103="","",_xll.qlSabrVolatility(U103,$C$20,($C$14-$C$2)/365,$F$3,$F$6,$F$4,$F$5)) -> 0.2809679547 | W103: 0.2203705532 | X103: 2.013190119 | Y103: =IF(X103="","",BScall(($C$14-$C$2)/365,U103,$C$20,V103)*X103) -> 4.853657082e-05 | Z103: 2.405655012e-07 | AC103: =IF(AB103="","",_xll.qlSabrVolatility(AB103,$C$20,($C$14-$C$2)/365,$F$3,$F$6,$F$4,$F$5)) ->  | AF103: =IF(AE103="","",BSput(($C$14-$C$2)/365,AB103,$C$20,AC103)*AE103) -> 
I104: 0.49 | J104: =IF(I104="","",_xll.qlSabrVolatility(I104,$C$20,($C$14-$C$2)/365,$F$3,$F$6,$F$4,$F$5)) -> 0.2818530895 | K104: =IF(I104="","",$C$23*BScall(($C$14-$C$2)/365,I104,$C$20,J104)) -> 0.0001639482049 | L104: 0.4992568092 | M104: =IF(I105="","",(L105*(I105-$I$12)-I105*SUM($M$12:M103)+SUMPRODUCT($M$12:M103,$I$12:I103))/(I105-I104)) -> 0.01007339306 | P104: =IF(O104="","",_xll.qlSabrVolatility(O104,$C$20,($C$14-$C$2)/365,$F$3,$F$6,$F$4,$F$5)) ->  | Q104: =IF(O104="","",$C$23*BSput(($C$14-$C$2)/365,O104,$C$20,P104)) ->  | S104: =IF(O105="","",(R105*(O105-$O$12)-O105*SUM($S$12:S103)+SUMPRODUCT($S$12:S103,$O$12:O103))/(O105-O104)) ->  | U104: 0.485 | V104: =IF(U104="","",_xll.qlSabrVolatility(U104,$C$20,($C$14-$C$2)/365,$F$3,$F$6,$F$4,$F$5)) -> 0.2814126048 | W104: 0.2249891682 | X104: 2.013959983 | Y104: =IF(X104="","",BScall(($C$14-$C$2)/365,U104,$C$20,V104)*X104) -> 4.768962966e-05 | Z104: 2.363923597e-07 | AC104: =IF(AB104="","",_xll.qlSabrVolatility(AB104,$C$20,($C$14-$C$2)/365,$F$3,$F$6,$F$4,$F$5)) ->  | AF104: =IF(AE104="","",BSput(($C$14-$C$2)/365,AB104,$C$20,AC104)*AE104) -> 
I105: 0.495 | J105: =IF(I105="","",_xll.qlSabrVolatility(I105,$C$20,($C$14-$C$2)/365,$F$3,$F$6,$F$4,$F$5)) -> 0.2822894827 | K105: =IF(I105="","",$C$23*BScall(($C$14-$C$2)/365,I105,$C$20,J105)) -> 0.0001611008448 | L105: 0.5040375553 | M105: =IF(I106="","",(L106*(I106-$I$12)-I106*SUM($M$12:M104)+SUMPRODUCT($M$12:M104,$I$12:I104))/(I106-I105)) -> 0.01007674116 | P105: =IF(O105="","",_xll.qlSabrVolatility(O105,$C$20,($C$14-$C$2)/365,$F$3,$F$6,$F$4,$F$5)) ->  | Q105: =IF(O105="","",$C$23*BSput(($C$14-$C$2)/365,O105,$C$20,P105)) ->  | S105: =IF(O106="","",(R106*(O106-$O$12)-O106*SUM($S$12:S104)+SUMPRODUCT($S$12:S104,$O$12:O104))/(O106-O105)) ->  | U105: 0.49 | V105: =IF(U105="","",_xll.qlSabrVolatility(U105,$C$20,($C$14-$C$2)/365,$F$3,$F$6,$F$4,$F$5)) -> 0.2818530895 | W105: 0.2296581322 | X105: 2.014678612 | Y105: =IF(X105="","",BScall(($C$14-$C$2)/365,U105,$C$20,V105)*X105) -> 4.686731421e-05 | Z105: 2.323399252e-07 | AC105: =IF(AB105="","",_xll.qlSabrVolatility(AB105,$C$20,($C$14-$C$2)/365,$F$3,$F$6,$F$4,$F$5)) ->  | AF105: =IF(AE105="","",BSput(($C$14-$C$2)/365,AB105,$C$20,AC105)*AE105) -> 
I106: 0.5 | J106: =IF(I106="","",_xll.qlSabrVolatility(I106,$C$20,($C$14-$C$2)/365,$F$3,$F$6,$F$4,$F$5)) -> 0.2827218564 | K106: =IF(I106="","",$C$23*BScall(($C$14-$C$2)/365,I106,$C$20,J106)) -> 0.0001583385394 | L106: 0.5088237829 | M106: =IF(I107="","",(L107*(I107-$I$12)-I107*SUM($M$12:M105)+SUMPRODUCT($M$12:M105,$I$12:I105))/(I107-I106)) -> 0.01007985495 | P106: =IF(O106="","",_xll.qlSabrVolatility(O106,$C$20,($C$14-$C$2)/365,$F$3,$F$6,$F$4,$F$5)) ->  | Q106: =IF(O106="","",$C$23*BSput(($C$14-$C$2)/365,O106,$C$20,P106)) ->  | S106: =IF(O107="","",(R107*(O107-$O$12)-O107*SUM($S$12:S105)+SUMPRODUCT($S$12:S105,$O$12:O105))/(O107-O106)) ->  | U106: 0.495 | V106: =IF(U106="","",_xll.qlSabrVolatility(U106,$C$20,($C$14-$C$2)/365,$F$3,$F$6,$F$4,$F$5)) -> 0.2822894827 | W106: 0.2343774632 | X106: 2.015348232 | Y106: =IF(X106="","",BScall(($C$14-$C$2)/365,U106,$C$20,V106)*X106) -> 4.606865588e-05 | Z106: 2.284034748e-07 | AC106: =IF(AB106="","",_xll.qlSabrVolatility(AB106,$C$20,($C$14-$C$2)/365,$F$3,$F$6,$F$4,$F$5)) ->  | AF106: =IF(AE106="","",BSput(($C$14-$C$2)/365,AB106,$C$20,AC106)*AE106) -> 
I107: 0.505 | J107: =IF(I107="","",_xll.qlSabrVolatility(I107,$C$20,($C$14-$C$2)/365,$F$3,$F$6,$F$4,$F$5)) -> 0.2831502807 | K107: =IF(I107="","",$C$23*BScall(($C$14-$C$2)/365,I107,$C$20,J107)) -> 0.0001556577977 | L107: 0.5136153514 | M107: =IF(I108="","",(L108*(I108-$I$12)-I108*SUM($M$12:M106)+SUMPRODUCT($M$12:M106,$I$12:I106))/(I108-I107)) -> 0.01008274477 | P107: =IF(O107="","",_xll.qlSabrVolatility(O107,$C$20,($C$14-$C$2)/365,$F$3,$F$6,$F$4,$F$5)) ->  | Q107: =IF(O107="","",$C$23*BSput(($C$14-$C$2)/365,O107,$C$20,P107)) ->  | S107: =IF(O108="","",(R108*(O108-$O$12)-O108*SUM($S$12:S106)+SUMPRODUCT($S$12:S106,$O$12:O106))/(O108-O107)) ->  | U107: 0.5 | V107: =IF(U107="","",_xll.qlSabrVolatility(U107,$C$20,($C$14-$C$2)/365,$F$3,$F$6,$F$4,$F$5)) -> 0.2827218564 | W107: 0.2391471779 | X107: 2.01597099 | Y107: =IF(X107="","",BScall(($C$14-$C$2)/365,U107,$C$20,V107)*X107) -> 4.529273405e-05 | Z107: 2.245785181e-07 | AC107: =IF(AB107="","",_xll.qlSabrVolatility(AB107,$C$20,($C$14-$C$2)/365,$F$3,$F$6,$F$4,$F$5)) ->  | AF107: =IF(AE107="","",BSput(($C$14-$C$2)/365,AB107,$C$20,AC107)*AE107) -> 
I108: 0.51 | J108: =IF(I108="","",_xll.qlSabrVolatility(I108,$C$20,($C$14-$C$2)/365,$F$3,$F$6,$F$4,$F$5)) -> 0.2835748241 | K108: =IF(I108="","",$C$23*BScall(($C$14-$C$2)/365,I108,$C$20,J108)) -> 0.0001530553086 | L108: 0.5184121242 | M108: =IF(I109="","",(L109*(I109-$I$12)-I109*SUM($M$12:M107)+SUMPRODUCT($M$12:M107,$I$12:I107))/(I109-I108)) -> 0.01008542059 | P108: =IF(O108="","",_xll.qlSabrVolatility(O108,$C$20,($C$14-$C$2)/365,$F$3,$F$6,$F$4,$F$5)) ->  | Q108: =IF(O108="","",$C$23*BSput(($C$14-$C$2)/365,O108,$C$20,P108)) ->  | S108: =IF(O109="","",(R109*(O109-$O$12)-O109*SUM($S$12:S107)+SUMPRODUCT($S$12:S107,$O$12:O107))/(O109-O108)) ->  | U108: 0.505 | V108: =IF(U108="","",_xll.qlSabrVolatility(U108,$C$20,($C$14-$C$2)/365,$F$3,$F$6,$F$4,$F$5)) -> 0.2831502807 | W108: 0.2439672919 | X108: 2.016548953 | Y108: =IF(X108="","",BScall(($C$14-$C$2)/365,U108,$C$20,V108)*X108) -> 4.45386732e-05 | Z108: 2.208607835e-07 | AC108: =IF(AB108="","",_xll.qlSabrVolatility(AB108,$C$20,($C$14-$C$2)/365,$F$3,$F$6,$F$4,$F$5)) ->  | AF108: =IF(AE108="","",BSput(($C$14-$C$2)/365,AB108,$C$20,AC108)*AE108) -> 
I109: 0.515 | J109: =IF(I109="","",_xll.qlSabrVolatility(I109,$C$20,($C$14-$C$2)/365,$F$3,$F$6,$F$4,$F$5)) -> 0.2839955534 | K109: =IF(I109="","",$C$23*BScall(($C$14-$C$2)/365,I109,$C$20,J109)) -> 0.0001505279303 | L109: 0.5232139679 | M109: =IF(I110="","",(L110*(I110-$I$12)-I110*SUM($M$12:M108)+SUMPRODUCT($M$12:M108,$I$12:I108))/(I110-I109)) -> 0.01008789203 | P109: =IF(O109="","",_xll.qlSabrVolatility(O109,$C$20,($C$14-$C$2)/365,$F$3,$F$6,$F$4,$F$5)) ->  | Q109: =IF(O109="","",$C$23*BSput(($C$14-$C$2)/365,O109,$C$20,P109)) ->  | S109: =IF(O110="","",(R110*(O110-$O$12)-O110*SUM($S$12:S108)+SUMPRODUCT($S$12:S108,$O$12:O108))/(O110-O109)) ->  | U109: 0.51 | V109: =IF(U109="","",_xll.qlSabrVolatility(U109,$C$20,($C$14-$C$2)/365,$F$3,$F$6,$F$4,$F$5)) -> 0.2835748241 | W109: 0.2488378196 | X109: 2.017084118 | Y109: =IF(X109="","",BScall(($C$14-$C$2)/365,U109,$C$20,V109)*X109) -> 4.380564021e-05 | Z109: 2.172462052e-07 | AC109: =IF(AB109="","",_xll.qlSabrVolatility(AB109,$C$20,($C$14-$C$2)/365,$F$3,$F$6,$F$4,$F$5)) ->  | AF109: =IF(AE109="","",BSput(($C$14-$C$2)/365,AB109,$C$20,AC109)*AE109) -> 
I110: 0.52 | J110: =IF(I110="","",_xll.qlSabrVolatility(I110,$C$20,($C$14-$C$2)/365,$F$3,$F$6,$F$4,$F$5)) -> 0.2844125337 | K110: =IF(I110="","",$C$23*BScall(($C$14-$C$2)/365,I110,$C$20,J110)) -> 0.0001480726793 | L110: 0.5280207524 | M110: =IF(I111="","",(L111*(I111-$I$12)-I111*SUM($M$12:M109)+SUMPRODUCT($M$12:M109,$I$12:I109))/(I111-I110)) -> 0.01009016834 | P110: =IF(O110="","",_xll.qlSabrVolatility(O110,$C$20,($C$14-$C$2)/365,$F$3,$F$6,$F$4,$F$5)) ->  | Q110: =IF(O110="","",$C$23*BSput(($C$14-$C$2)/365,O110,$C$20,P110)) ->  | S110: =IF(O111="","",(R111*(O111-$O$12)-O111*SUM($S$12:S109)+SUMPRODUCT($S$12:S109,$O$12:O109))/(O111-O110)) ->  | U110: 0.515 | V110: =IF(U110="","",_xll.qlSabrVolatility(U110,$C$20,($C$14-$C$2)/365,$F$3,$F$6,$F$4,$F$5)) -> 0.2839955534 | W110: 0.2537587744 | X110: 2.017578406 | Y110: =IF(X110="","",BScall(($C$14-$C$2)/365,U110,$C$20,V110)*X110) -> 4.309284188e-05 | Z110: 2.137309113e-07 | AC110: =IF(AB110="","",_xll.qlSabrVolatility(AB110,$C$20,($C$14-$C$2)/365,$F$3,$F$6,$F$4,$F$5)) ->  | AF110: =IF(AE110="","",BSput(($C$14-$C$2)/365,AB110,$C$20,AC110)*AE110) -> 
I111: 0.525 | J111: =IF(I111="","",_xll.qlSabrVolatility(I111,$C$20,($C$14-$C$2)/365,$F$3,$F$6,$F$4,$F$5)) -> 0.2848258285 | K111: =IF(I111="","",$C$23*BScall(($C$14-$C$2)/365,I111,$C$20,J111)) -> 0.0001456867215 | L111: 0.5328323511 | M111: =IF(I112="","",(L112*(I112-$I$12)-I112*SUM($M$12:M110)+SUMPRODUCT($M$12:M110,$I$12:I110))/(I112-I111)) -> 0.01009225844 | P111: =IF(O111="","",_xll.qlSabrVolatility(O111,$C$20,($C$14-$C$2)/365,$F$3,$F$6,$F$4,$F$5)) ->  | Q111: =IF(O111="","",$C$23*BSput(($C$14-$C$2)/365,O111,$C$20,P111)) ->  | S111: =IF(O112="","",(R112*(O112-$O$12)-O112*SUM($S$12:S110)+SUMPRODUCT($S$12:S110,$O$12:O110))/(O112-O111)) ->  | U111: 0.52 | V111: =IF(U111="","",_xll.qlSabrVolatility(U111,$C$20,($C$14-$C$2)/365,$F$3,$F$6,$F$4,$F$5)) -> 0.2844125337 | W111: 0.2587301687 | X111: 2.018033669 | Y111: =IF(X111="","",BScall(($C$14-$C$2)/365,U111,$C$20,V111)*X111) -> 4.239952264e-05 | Z111: 2.103112125e-07 | AC111: =IF(AB111="","",_xll.qlSabrVolatility(AB111,$C$20,($C$14-$C$2)/365,$F$3,$F$6,$F$4,$F$5)) ->  | AF111: =IF(AE111="","",BSput(($C$14-$C$2)/365,AB111,$C$20,AC111)*AE111) -> 
I112: 0.53 | J112: =IF(I112="","",_xll.qlSabrVolatility(I112,$C$20,($C$14-$C$2)/365,$F$3,$F$6,$F$4,$F$5)) -> 0.2852355 | K112: =IF(I112="","",$C$23*BScall(($C$14-$C$2)/365,I112,$C$20,J112)) -> 0.0001433673626 | L112: 0.5376486404 | M112: =IF(I113="","",(L113*(I113-$I$12)-I113*SUM($M$12:M111)+SUMPRODUCT($M$12:M111,$I$12:I111))/(I113-I112)) -> 0.01009417092 | P112: =IF(O112="","",_xll.qlSabrVolatility(O112,$C$20,($C$14-$C$2)/365,$F$3,$F$6,$F$4,$F$5)) ->  | Q112: =IF(O112="","",$C$23*BSput(($C$14-$C$2)/365,O112,$C$20,P112)) ->  | S112: =IF(O113="","",(R113*(O113-$O$12)-O113*SUM($S$12:S111)+SUMPRODUCT($S$12:S111,$O$12:O111))/(O113-O112)) ->  | U112: 0.525 | V112: =IF(U112="","",_xll.qlSabrVolatility(U112,$C$20,($C$14-$C$2)/365,$F$3,$F$6,$F$4,$F$5)) -> 0.2848258285 | W112: 0.2637520138 | X112: 2.018451689 | Y112: =IF(X112="","",BScall(($C$14-$C$2)/365,U112,$C$20,V112)*X112) -> 4.172496237e-05 | Z112: 2.069835919e-07 | AC112: =IF(AB112="","",_xll.qlSabrVolatility(AB112,$C$20,($C$14-$C$2)/365,$F$3,$F$6,$F$4,$F$5)) ->  | AF112: =IF(AE112="","",BSput(($C$14-$C$2)/365,AB112,$C$20,AC112)*AE112) -> 
I113: 0.535 | J113: =IF(I113="","",_xll.qlSabrVolatility(I113,$C$20,($C$14-$C$2)/365,$F$3,$F$6,$F$4,$F$5)) -> 0.2856416086 | K113: =IF(I113="","",$C$23*BScall(($C$14-$C$2)/365,I113,$C$20,J113)) -> 0.0001411120404 | L113: 0.5424694999 | M113: =IF(I114="","",(L114*(I114-$I$12)-I114*SUM($M$12:M112)+SUMPRODUCT($M$12:M112,$I$12:I112))/(I114-I113)) -> 0.01009591402 | P113: =IF(O113="","",_xll.qlSabrVolatility(O113,$C$20,($C$14-$C$2)/365,$F$3,$F$6,$F$4,$F$5)) ->  | Q113: =IF(O113="","",$C$23*BSput(($C$14-$C$2)/365,O113,$C$20,P113)) ->  | S113: =IF(O114="","",(R114*(O114-$O$12)-O114*SUM($S$12:S112)+SUMPRODUCT($S$12:S112,$O$12:O112))/(O114-O113)) ->  | U113: 0.53 | V113: =IF(U113="","",_xll.qlSabrVolatility(U113,$C$20,($C$14-$C$2)/365,$F$3,$F$6,$F$4,$F$5)) -> 0.2852355 | W113: 0.2688243202 | X113: 2.018834183 | Y113: =IF(X113="","",BScall(($C$14-$C$2)/365,U113,$C$20,V113)*X113) -> 4.10684744e-05 | Z113: 2.03744695e-07 | AC113: =IF(AB113="","",_xll.qlSabrVolatility(AB113,$C$20,($C$14-$C$2)/365,$F$3,$F$6,$F$4,$F$5)) ->  | AF113: =IF(AE113="","",BSput(($C$14-$C$2)/365,AB113,$C$20,AC113)*AE113) -> 
I114: 0.54 | J114: =IF(I114="","",_xll.qlSabrVolatility(I114,$C$20,($C$14-$C$2)/365,$F$3,$F$6,$F$4,$F$5)) -> 0.2860442135 | K114: =IF(I114="","",$C$23*BScall(($C$14-$C$2)/365,I114,$C$20,J114)) -> 0.0001389183169 | L114: 0.5472948123 | M114: =IF(I115="","",(L115*(I115-$I$12)-I115*SUM($M$12:M113)+SUMPRODUCT($M$12:M113,$I$12:I113))/(I115-I114)) -> 0.01009749569 | P114: =IF(O114="","",_xll.qlSabrVolatility(O114,$C$20,($C$14-$C$2)/365,$F$3,$F$6,$F$4,$F$5)) ->  | Q114: =IF(O114="","",$C$23*BSput(($C$14-$C$2)/365,O114,$C$20,P114)) ->  | S114: =IF(O115="","",(R115*(O115-$O$12)-O115*SUM($S$12:S113)+SUMPRODUCT($S$12:S113,$O$12:O113))/(O115-O114)) ->  | U114: 0.535 | V114: =IF(U114="","",_xll.qlSabrVolatility(U114,$C$20,($C$14-$C$2)/365,$F$3,$F$6,$F$4,$F$5)) -> 0.2856416086 | W114: 0.2739470975 | X114: 2.019182803 | Y114: =IF(X114="","",BScall(($C$14-$C$2)/365,U114,$C$20,V114)*X114) -> 4.042940361e-05 | Z114: 2.005913208e-07 | AC114: =IF(AB114="","",_xll.qlSabrVolatility(AB114,$C$20,($C$14-$C$2)/365,$F$3,$F$6,$F$4,$F$5)) ->  | AF114: =IF(AE114="","",BSput(($C$14-$C$2)/365,AB114,$C$20,AC114)*AE114) -> 
I115: 0.545 | J115: =IF(I115="","",_xll.qlSabrVolatility(I115,$C$20,($C$14-$C$2)/365,$F$3,$F$6,$F$4,$F$5)) -> 0.2864433723 | K115: =IF(I115="","",$C$23*BScall(($C$14-$C$2)/365,I115,$C$20,J115)) -> 0.0001367838707 | L115: 0.5521244633 | M115: =IF(I116="","",(L116*(I116-$I$12)-I116*SUM($M$12:M114)+SUMPRODUCT($M$12:M114,$I$12:I114))/(I116-I115)) -> 0.01009892359 | P115: =IF(O115="","",_xll.qlSabrVolatility(O115,$C$20,($C$14-$C$2)/365,$F$3,$F$6,$F$4,$F$5)) ->  | Q115: =IF(O115="","",$C$23*BSput(($C$14-$C$2)/365,O115,$C$20,P115)) ->  | S115: =IF(O116="","",(R116*(O116-$O$12)-O116*SUM($S$12:S114)+SUMPRODUCT($S$12:S114,$O$12:O114))/(O116-O115)) ->  | U115: 0.54 | V115: =IF(U115="","",_xll.qlSabrVolatility(U115,$C$20,($C$14-$C$2)/365,$F$3,$F$6,$F$4,$F$5)) -> 0.2860442135 | W115: 0.2791203543 | X115: 2.019499139 | Y115: =IF(X115="","",BScall(($C$14-$C$2)/365,U115,$C$20,V115)*X115) -> 3.980712472e-05 | Z115: 1.975204133e-07 | AC115: =IF(AB115="","",_xll.qlSabrVolatility(AB115,$C$20,($C$14-$C$2)/365,$F$3,$F$6,$F$4,$F$5)) ->  | AF115: =IF(AE115="","",BSput(($C$14-$C$2)/365,AB115,$C$20,AC115)*AE115) -> 
I116: 0.55 | J116: =IF(I116="","",_xll.qlSabrVolatility(I116,$C$20,($C$14-$C$2)/365,$F$3,$F$6,$F$4,$F$5)) -> 0.2868391414 | K116: =IF(I116="","",$C$23*BScall(($C$14-$C$2)/365,I116,$C$20,J116)) -> 0.0001347064909 | L116: 0.5569583414 | M116: =IF(I117="","",(L117*(I117-$I$12)-I117*SUM($M$12:M115)+SUMPRODUCT($M$12:M115,$I$12:I115))/(I117-I116)) -> 0.01010020506 | P116: =IF(O116="","",_xll.qlSabrVolatility(O116,$C$20,($C$14-$C$2)/365,$F$3,$F$6,$F$4,$F$5)) ->  | Q116: =IF(O116="","",$C$23*BSput(($C$14-$C$2)/365,O116,$C$20,P116)) ->  | S116: =IF(O117="","",(R117*(O117-$O$12)-O117*SUM($S$12:S115)+SUMPRODUCT($S$12:S115,$O$12:O115))/(O117-O116)) ->  | U116: 0.545 | V116: =IF(U116="","",_xll.qlSabrVolatility(U116,$C$20,($C$14-$C$2)/365,$F$3,$F$6,$F$4,$F$5)) -> 0.2864433723 | W116: 0.2843440986 | X116: 2.019784719 | Y116: =IF(X116="","",BScall(($C$14-$C$2)/365,U116,$C$20,V116)*X116) -> 3.920104061e-05 | Z116: 1.945290535e-07 | AC116: =IF(AB116="","",_xll.qlSabrVolatility(AB116,$C$20,($C$14-$C$2)/365,$F$3,$F$6,$F$4,$F$5)) ->  | AF116: =IF(AE116="","",BSput(($C$14-$C$2)/365,AB116,$C$20,AC116)*AE116) -> 
I117: 0.555 | J117: =IF(I117="","",_xll.qlSabrVolatility(I117,$C$20,($C$14-$C$2)/365,$F$3,$F$6,$F$4,$F$5)) -> 0.2872315758 | K117: =IF(I117="","",$C$23*BScall(($C$14-$C$2)/365,I117,$C$20,J117)) -> 0.0001326840706 | L117: 0.561796338 | M117: =IF(I118="","",(L118*(I118-$I$12)-I118*SUM($M$12:M116)+SUMPRODUCT($M$12:M116,$I$12:I116))/(I118-I117)) -> 0.01010134717 | P117: =IF(O117="","",_xll.qlSabrVolatility(O117,$C$20,($C$14-$C$2)/365,$F$3,$F$6,$F$4,$F$5)) ->  | Q117: =IF(O117="","",$C$23*BSput(($C$14-$C$2)/365,O117,$C$20,P117)) ->  | S117: =IF(O118="","",(R118*(O118-$O$12)-O118*SUM($S$12:S116)+SUMPRODUCT($S$12:S116,$O$12:O116))/(O118-O117)) ->  | U117: 0.55 | V117: =IF(U117="","",_xll.qlSabrVolatility(U117,$C$20,($C$14-$C$2)/365,$F$3,$F$6,$F$4,$F$5)) -> 0.2868391414 | W117: 0.2896183375 | X117: 2.020041013 | Y117: =IF(X117="","",BScall(($C$14-$C$2)/365,U117,$C$20,V117)*X117) -> 3.86105808e-05 | Z117: 1.91614452e-07 | AC117: =IF(AB117="","",_xll.qlSabrVolatility(AB117,$C$20,($C$14-$C$2)/365,$F$3,$F$6,$F$4,$F$5)) ->  | AF117: =IF(AE117="","",BSput(($C$14-$C$2)/365,AB117,$C$20,AC117)*AE117) -> 
I118: 0.56 | J118: =IF(I118="","",_xll.qlSabrVolatility(I118,$C$20,($C$14-$C$2)/365,$F$3,$F$6,$F$4,$F$5)) -> 0.2876207293 | K118: =IF(I118="","",$C$23*BScall(($C$14-$C$2)/365,I118,$C$20,J118)) -> 0.0001307146007 | L118: 0.5666383474 | M118: =IF(I119="","",(L119*(I119-$I$12)-I119*SUM($M$12:M117)+SUMPRODUCT($M$12:M117,$I$12:I117))/(I119-I118)) -> 0.01010235671 | P118: =IF(O118="","",_xll.qlSabrVolatility(O118,$C$20,($C$14-$C$2)/365,$F$3,$F$6,$F$4,$F$5)) ->  | Q118: =IF(O118="","",$C$23*BSput(($C$14-$C$2)/365,O118,$C$20,P118)) ->  | S118: =IF(O119="","",(R119*(O119-$O$12)-O119*SUM($S$12:S117)+SUMPRODUCT($S$12:S117,$O$12:O117))/(O119-O118)) ->  | U118: 0.555 | V118: =IF(U118="","",_xll.qlSabrVolatility(U118,$C$20,($C$14-$C$2)/365,$F$3,$F$6,$F$4,$F$5)) -> 0.2872315758 | W118: 0.2949430775 | X118: 2.020269435 | Y118: =IF(X118="","",BScall(($C$14-$C$2)/365,U118,$C$20,V118)*X118) -> 3.803520002e-05 | Z118: 1.887739422e-07 | AC118: =IF(AB118="","",_xll.qlSabrVolatility(AB118,$C$20,($C$14-$C$2)/365,$F$3,$F$6,$F$4,$F$5)) ->  | AF118: =IF(AE118="","",BSput(($C$14-$C$2)/365,AB118,$C$20,AC118)*AE118) -> 
I119: 0.565 | J119: =IF(I119="","",_xll.qlSabrVolatility(I119,$C$20,($C$14-$C$2)/365,$F$3,$F$6,$F$4,$F$5)) -> 0.2880066543 | K119: =IF(I119="","",$C$23*BScall(($C$14-$C$2)/365,I119,$C$20,J119)) -> 0.000128796165 | L119: 0.5714842666 | M119: =IF(I120="","",(L120*(I120-$I$12)-I120*SUM($M$12:M118)+SUMPRODUCT($M$12:M118,$I$12:I118))/(I120-I119)) -> 0.01010324021 | P119: =IF(O119="","",_xll.qlSabrVolatility(O119,$C$20,($C$14-$C$2)/365,$F$3,$F$6,$F$4,$F$5)) ->  | Q119: =IF(O119="","",$C$23*BSput(($C$14-$C$2)/365,O119,$C$20,P119)) ->  | S119: =IF(O120="","",(R120*(O120-$O$12)-O120*SUM($S$12:S118)+SUMPRODUCT($S$12:S118,$O$12:O118))/(O120-O119)) ->  | U119: 0.56 | V119: =IF(U119="","",_xll.qlSabrVolatility(U119,$C$20,($C$14-$C$2)/365,$F$3,$F$6,$F$4,$F$5)) -> 0.2876207293 | W119: 0.3003183241 | X119: 2.020471342 | Y119: =IF(X119="","",BScall(($C$14-$C$2)/365,U119,$C$20,V119)*X119) -> 3.747437687e-05 | Z119: 1.860049735e-07 | AC119: =IF(AB119="","",_xll.qlSabrVolatility(AB119,$C$20,($C$14-$C$2)/365,$F$3,$F$6,$F$4,$F$5)) ->  | AF119: =IF(AE119="","",BSput(($C$14-$C$2)/365,AB119,$C$20,AC119)*AE119) -> 
I120: 0.57 | J120: =IF(I120="","",_xll.qlSabrVolatility(I120,$C$20,($C$14-$C$2)/365,$F$3,$F$6,$F$4,$F$5)) -> 0.2883894022 | K120: =IF(I120="","",$C$23*BScall(($C$14-$C$2)/365,I120,$C$20,J120)) -> 0.0001269269346 | L120: 0.576333995 | M120: =IF(I121="","",(L121*(I121-$I$12)-I121*SUM($M$12:M119)+SUMPRODUCT($M$12:M119,$I$12:I119))/(I121-I120)) -> 0.01010400392 | P120: =IF(O120="","",_xll.qlSabrVolatility(O120,$C$20,($C$14-$C$2)/365,$F$3,$F$6,$F$4,$F$5)) ->  | Q120: =IF(O120="","",$C$23*BSput(($C$14-$C$2)/365,O120,$C$20,P120)) ->  | S120: =IF(O121="","",(R121*(O121-$O$12)-O121*SUM($S$12:S119)+SUMPRODUCT($S$12:S119,$O$12:O119))/(O121-O120)) ->  | U120: 0.565 | V120: =IF(U120="","",_xll.qlSabrVolatility(U120,$C$20,($C$14-$C$2)/365,$F$3,$F$6,$F$4,$F$5)) -> 0.2880066543 | W120: 0.3057440826 | X120: 2.020648041 | Y120: =IF(X120="","",BScall(($C$14-$C$2)/365,U120,$C$20,V120)*X120) -> 3.692761254e-05 | Z120: 1.833051055e-07 | AC120: =IF(AB120="","",_xll.qlSabrVolatility(AB120,$C$20,($C$14-$C$2)/365,$F$3,$F$6,$F$4,$F$5)) ->  | AF120: =IF(AE120="","",BSput(($C$14-$C$2)/365,AB120,$C$20,AC120)*AE120) -> 
I121: 0.575 | J121: =IF(I121="","",_xll.qlSabrVolatility(I121,$C$20,($C$14-$C$2)/365,$F$3,$F$6,$F$4,$F$5)) -> 0.2887690231 | K121: =IF(I121="","",$C$23*BScall(($C$14-$C$2)/365,I121,$C$20,J121)) -> 0.0001251051634 | L121: 0.5811874348 | M121: =IF(I122="","",(L122*(I122-$I$12)-I122*SUM($M$12:M120)+SUMPRODUCT($M$12:M120,$I$12:I120))/(I122-I121)) -> 0.01010465388 | P121: =IF(O121="","",_xll.qlSabrVolatility(O121,$C$20,($C$14-$C$2)/365,$F$3,$F$6,$F$4,$F$5)) ->  | Q121: =IF(O121="","",$C$23*BSput(($C$14-$C$2)/365,O121,$C$20,P121)) ->  | S121: =IF(O122="","",(R122*(O122-$O$12)-O122*SUM($S$12:S120)+SUMPRODUCT($S$12:S120,$O$12:O120))/(O122-O121)) ->  | U121: 0.57 | V121: =IF(U121="","",_xll.qlSabrVolatility(U121,$C$20,($C$14-$C$2)/365,$F$3,$F$6,$F$4,$F$5)) -> 0.2883894022 | W121: 0.3112203573 | X121: 2.020800784 | Y121: =IF(X121="","",BScall(($C$14-$C$2)/365,U121,$C$20,V121)*X121) -> 3.639442964e-05 | Z121: 1.806720018e-07 | AC121: =IF(AB121="","",_xll.qlSabrVolatility(AB121,$C$20,($C$14-$C$2)/365,$F$3,$F$6,$F$4,$F$5)) ->  | AF121: =IF(AE121="","",BSput(($C$14-$C$2)/365,AB121,$C$20,AC121)*AE121) -> 
I122: 0.58 | J122: =IF(I122="","",_xll.qlSabrVolatility(I122,$C$20,($C$14-$C$2)/365,$F$3,$F$6,$F$4,$F$5)) -> 0.289145566 | K122: =IF(I122="","",$C$23*BScall(($C$14-$C$2)/365,I122,$C$20,J122)) -> 0.0001233291835 | L122: 0.5860444908 | M122: =IF(I123="","",(L123*(I123-$I$12)-I123*SUM($M$12:M121)+SUMPRODUCT($M$12:M121,$I$12:I121))/(I123-I122)) -> 0.01010519585 | P122: =IF(O122="","",_xll.qlSabrVolatility(O122,$C$20,($C$14-$C$2)/365,$F$3,$F$6,$F$4,$F$5)) ->  | Q122: =IF(O122="","",$C$23*BSput(($C$14-$C$2)/365,O122,$C$20,P122)) ->  | S122: =IF(O123="","",(R123*(O123-$O$12)-O123*SUM($S$12:S121)+SUMPRODUCT($S$12:S121,$O$12:O121))/(O123-O122)) ->  | U122: 0.575 | V122: =IF(U122="","",_xll.qlSabrVolatility(U122,$C$20,($C$14-$C$2)/365,$F$3,$F$6,$F$4,$F$5)) -> 0.2887690231 | W122: 0.316747152 | X122: 2.020930775 | Y122: =IF(X122="","",BScall(($C$14-$C$2)/365,U122,$C$20,V122)*X122) -> 3.58743711e-05 | Z122: 1.781034255e-07 | AC122: =IF(AB122="","",_xll.qlSabrVolatility(AB122,$C$20,($C$14-$C$2)/365,$F$3,$F$6,$F$4,$F$5)) ->  | AF122: =IF(AE122="","",BSput(($C$14-$C$2)/365,AB122,$C$20,AC122)*AE122) -> 
I123: 0.585 | J123: =IF(I123="","",_xll.qlSabrVolatility(I123,$C$20,($C$14-$C$2)/365,$F$3,$F$6,$F$4,$F$5)) -> 0.2895190788 | K123: =IF(I123="","",$C$23*BScall(($C$14-$C$2)/365,I123,$C$20,J123)) -> 0.0001215974011 | L123: 0.59090507 | M123: =IF(I124="","",(L124*(I124-$I$12)-I124*SUM($M$12:M122)+SUMPRODUCT($M$12:M122,$I$12:I122))/(I124-I123)) -> 0.01010563538 | P123: =IF(O123="","",_xll.qlSabrVolatility(O123,$C$20,($C$14-$C$2)/365,$F$3,$F$6,$F$4,$F$5)) ->  | Q123: =IF(O123="","",$C$23*BSput(($C$14-$C$2)/365,O123,$C$20,P123)) ->  | S123: =IF(O124="","",(R124*(O124-$O$12)-O124*SUM($S$12:S122)+SUMPRODUCT($S$12:S122,$O$12:O122))/(O124-O123)) ->  | U123: 0.58 | V123: =IF(U123="","",_xll.qlSabrVolatility(U123,$C$20,($C$14-$C$2)/365,$F$3,$F$6,$F$4,$F$5)) -> 0.289145566 | W123: 0.3223244699 | X123: 2.02103917 | Y123: =IF(X123="","",BScall(($C$14-$C$2)/365,U123,$C$20,V123)*X123) -> 3.53669991e-05 | Z123: 1.755972331e-07 | AC123: =IF(AB123="","",_xll.qlSabrVolatility(AB123,$C$20,($C$14-$C$2)/365,$F$3,$F$6,$F$4,$F$5)) ->  | AF123: =IF(AE123="","",BSput(($C$14-$C$2)/365,AB123,$C$20,AC123)*AE123) -> 
D124: =IF(C124="","",DATE(YEAR(C124),MONTH(C124)+VLOOKUP($C$12,$XEX$1:$XEY$4,2,FALSE),DAY(C124))) ->  | E124: =IF(B124="","",IF($C$13="30/360",DAYS360(C124,D124)/360,IF($C$13="ACT/360",(D124-C124)/360,IF($C$13="ACT/365",(D124-C124)/365)))) ->  | I124: 0.59 | J124: =IF(I124="","",_xll.qlSabrVolatility(I124,$C$20,($C$14-$C$2)/365,$F$3,$F$6,$F$4,$F$5)) -> 0.2898896082 | K124: =IF(I124="","",$C$23*BScall(($C$14-$C$2)/365,I124,$C$20,J124)) -> 0.0001199082923 | L124: 0.5957690821 | M124: =IF(I125="","",(L125*(I125-$I$12)-I125*SUM($M$12:M123)+SUMPRODUCT($M$12:M123,$I$12:I123))/(I125-I124)) -> 0.0101059778 | P124: =IF(O124="","",_xll.qlSabrVolatility(O124,$C$20,($C$14-$C$2)/365,$F$3,$F$6,$F$4,$F$5)) ->  | Q124: =IF(O124="","",$C$23*BSput(($C$14-$C$2)/365,O124,$C$20,P124)) ->  | S124: =IF(O125="","",(R125*(O125-$O$12)-O125*SUM($S$12:S123)+SUMPRODUCT($S$12:S123,$O$12:O123))/(O125-O124)) ->  | U124: 0.585 | V124: =IF(U124="","",_xll.qlSabrVolatility(U124,$C$20,($C$14-$C$2)/365,$F$3,$F$6,$F$4,$F$5)) -> 0.2895190788 | W124: 0.3279523139 | X124: 2.021127077 | Y124: =IF(X124="","",BScall(($C$14-$C$2)/365,U124,$C$20,V124)*X124) -> 3.487189414e-05 | Z124: 1.731513705e-07 | AC124: =IF(AB124="","",_xll.qlSabrVolatility(AB124,$C$20,($C$14-$C$2)/365,$F$3,$F$6,$F$4,$F$5)) ->  | AF124: =IF(AE124="","",BSput(($C$14-$C$2)/365,AB124,$C$20,AC124)*AE124) -> 
C125: =IF(OR(D124=$C$16,D124=""),"",D124) ->  | I125: 0.595 | J125: =IF(I125="","",_xll.qlSabrVolatility(I125,$C$20,($C$14-$C$2)/365,$F$3,$F$6,$F$4,$F$5)) -> 0.2902572001 | K125: =IF(I125="","",$C$23*BScall(($C$14-$C$2)/365,I125,$C$20,J125)) -> 0.0001182603998 | L125: 0.6006364389 | M125: =IF(I126="","",(L126*(I126-$I$12)-I126*SUM($M$12:M124)+SUMPRODUCT($M$12:M124,$I$12:I124))/(I126-I125)) -> 0.0101062282 | P125: =IF(O125="","",_xll.qlSabrVolatility(O125,$C$20,($C$14-$C$2)/365,$F$3,$F$6,$F$4,$F$5)) ->  | Q125: =IF(O125="","",$C$23*BSput(($C$14-$C$2)/365,O125,$C$20,P125)) ->  | S125: =IF(O126="","",(R126*(O126-$O$12)-O126*SUM($S$12:S124)+SUMPRODUCT($S$12:S124,$O$12:O124))/(O126-O125)) ->  | U125: 0.59 | V125: =IF(U125="","",_xll.qlSabrVolatility(U125,$C$20,($C$14-$C$2)/365,$F$3,$F$6,$F$4,$F$5)) -> 0.2898896082 | W125: 0.333630686 | X125: 2.02119556 | Y125: =IF(X125="","",BScall(($C$14-$C$2)/365,U125,$C$20,V125)*X125) -> 3.438865405e-05 | Z125: 1.707638681e-07 | AC125: =IF(AB125="","",_xll.qlSabrVolatility(AB125,$C$20,($C$14-$C$2)/365,$F$3,$F$6,$F$4,$F$5)) ->  | AF125: =IF(AE125="","",BSput(($C$14-$C$2)/365,AB125,$C$20,AC125)*AE125) -> 
I126: 0.6 | J126: =IF(I126="","",_xll.qlSabrVolatility(I126,$C$20,($C$14-$C$2)/365,$F$3,$F$6,$F$4,$F$5)) -> 0.2906218992 | K126: =IF(I126="","",$C$23*BScall(($C$14-$C$2)/365,I126,$C$20,J126)) -> 0.0001166523291 | L126: 0.6055070546 | M126: =IF(I127="","",(L127*(I127-$I$12)-I127*SUM($M$12:M125)+SUMPRODUCT($M$12:M125,$I$12:I125))/(I127-I126)) -> 0.01010639148 | P126: =IF(O126="","",_xll.qlSabrVolatility(O126,$C$20,($C$14-$C$2)/365,$F$3,$F$6,$F$4,$F$5)) ->  | Q126: =IF(O126="","",$C$23*BSput(($C$14-$C$2)/365,O126,$C$20,P126)) ->  | S126: =IF(O127="","",(R127*(O127-$O$12)-O127*SUM($S$12:S125)+SUMPRODUCT($S$12:S125,$O$12:O125))/(O127-O126)) ->  | U126: 0.595 | V126: =IF(U126="","",_xll.qlSabrVolatility(U126,$C$20,($C$14-$C$2)/365,$F$3,$F$6,$F$4,$F$5)) -> 0.2902572001 | W126: 0.339359588 | X126: 2.02124564 | Y126: =IF(X126="","",BScall(($C$14-$C$2)/365,U126,$C$20,V126)*X126) -> 3.391689318e-05 | Z126: 1.684328369e-07 | AC126: =IF(AB126="","",_xll.qlSabrVolatility(AB126,$C$20,($C$14-$C$2)/365,$F$3,$F$6,$F$4,$F$5)) ->  | AF126: =IF(AE126="","",BSput(($C$14-$C$2)/365,AB126,$C$20,AC126)*AE126) -> 
I127: 0.605 | J127: =IF(I127="","",_xll.qlSabrVolatility(I127,$C$20,($C$14-$C$2)/365,$F$3,$F$6,$F$4,$F$5)) -> 0.2909837493 | K127: =IF(I127="","",$C$23*BScall(($C$14-$C$2)/365,I127,$C$20,J127)) -> 0.0001150827452 | L127: 0.6103808456 | M127: =IF(I128="","",(L128*(I128-$I$12)-I128*SUM($M$12:M126)+SUMPRODUCT($M$12:M126,$I$12:I126))/(I128-I127)) -> 0.01010647233 | P127: =IF(O127="","",_xll.qlSabrVolatility(O127,$C$20,($C$14-$C$2)/365,$F$3,$F$6,$F$4,$F$5)) ->  | Q127: =IF(O127="","",$C$23*BSput(($C$14-$C$2)/365,O127,$C$20,P127)) ->  | S127: =IF(O128="","",(R128*(O128-$O$12)-O128*SUM($S$12:S126)+SUMPRODUCT($S$12:S126,$O$12:O126))/(O128-O127)) ->  | U127: 0.6 | V127: =IF(U127="","",_xll.qlSabrVolatility(U127,$C$20,($C$14-$C$2)/365,$F$3,$F$6,$F$4,$F$5)) -> 0.2906218992 | W127: 0.3451390211 | X127: 2.021278296 | Y127: =IF(X127="","",BScall(($C$14-$C$2)/365,U127,$C$20,V127)*X127) -> 3.345624159e-05 | Z127: 1.661564645e-07 | AC127: =IF(AB127="","",_xll.qlSabrVolatility(AB127,$C$20,($C$14-$C$2)/365,$F$3,$F$6,$F$4,$F$5)) ->  | AF127: =IF(AE127="","",BSput(($C$14-$C$2)/365,AB127,$C$20,AC127)*AE127) -> 
I128: 0.61 | J128: =IF(I128="","",_xll.qlSabrVolatility(I128,$C$20,($C$14-$C$2)/365,$F$3,$F$6,$F$4,$F$5)) -> 0.2913427932 | K128: =IF(I128="","",$C$23*BScall(($C$14-$C$2)/365,I128,$C$20,J128)) -> 0.0001135503699 | L128: 0.6152577305 | M128: =IF(I129="","",(L129*(I129-$I$12)-I129*SUM($M$12:M127)+SUMPRODUCT($M$12:M127,$I$12:I127))/(I129-I128)) -> 0.01010647525 | P128: =IF(O128="","",_xll.qlSabrVolatility(O128,$C$20,($C$14-$C$2)/365,$F$3,$F$6,$F$4,$F$5)) ->  | Q128: =IF(O128="","",$C$23*BSput(($C$14-$C$2)/365,O128,$C$20,P128)) ->  | S128: =IF(O129="","",(R129*(O129-$O$12)-O129*SUM($S$12:S127)+SUMPRODUCT($S$12:S127,$O$12:O127))/(O129-O128)) ->  | U128: 0.605 | V128: =IF(U128="","",_xll.qlSabrVolatility(U128,$C$20,($C$14-$C$2)/365,$F$3,$F$6,$F$4,$F$5)) -> 0.2909837493 | W128: 0.3509689862 | X128: 2.021294466 | Y128: =IF(X128="","",BScall(($C$14-$C$2)/365,U128,$C$20,V128)*X128) -> 3.300634421e-05 | Z128: 1.639330111e-07 | AC128: =IF(AB128="","",_xll.qlSabrVolatility(AB128,$C$20,($C$14-$C$2)/365,$F$3,$F$6,$F$4,$F$5)) ->  | AF128: =IF(AE128="","",BSput(($C$14-$C$2)/365,AB128,$C$20,AC128)*AE128) -> 
I129: 0.615 | J129: =IF(I129="","",_xll.qlSabrVolatility(I129,$C$20,($C$14-$C$2)/365,$F$3,$F$6,$F$4,$F$5)) -> 0.2916990728 | K129: =IF(I129="","",$C$23*BScall(($C$14-$C$2)/365,I129,$C$20,J129)) -> 0.0001120539786 | L129: 0.6201376299 | M129: =IF(I130="","",(L130*(I130-$I$12)-I130*SUM($M$12:M128)+SUMPRODUCT($M$12:M128,$I$12:I128))/(I130-I129)) -> 0.01010640453 | P129: =IF(O129="","",_xll.qlSabrVolatility(O129,$C$20,($C$14-$C$2)/365,$F$3,$F$6,$F$4,$F$5)) ->  | Q129: =IF(O129="","",$C$23*BSput(($C$14-$C$2)/365,O129,$C$20,P129)) ->  | S129: =IF(O130="","",(R130*(O130-$O$12)-O130*SUM($S$12:S128)+SUMPRODUCT($S$12:S128,$O$12:O128))/(O130-O129)) ->  | U129: 0.61 | V129: =IF(U129="","",_xll.qlSabrVolatility(U129,$C$20,($C$14-$C$2)/365,$F$3,$F$6,$F$4,$F$5)) -> 0.2913427932 | W129: 0.3568494837 | X129: 2.021295049 | Y129: =IF(X129="","",BScall(($C$14-$C$2)/365,U129,$C$20,V129)*X129) -> 3.256686021e-05 | Z129: 1.617608062e-07 | AC129: =IF(AB129="","",_xll.qlSabrVolatility(AB129,$C$20,($C$14-$C$2)/365,$F$3,$F$6,$F$4,$F$5)) ->  | AF129: =IF(AE129="","",BSput(($C$14-$C$2)/365,AB129,$C$20,AC129)*AE129) -> 
I130: 0.62 | J130: =IF(I130="","",_xll.qlSabrVolatility(I130,$C$20,($C$14-$C$2)/365,$F$3,$F$6,$F$4,$F$5)) -> 0.292052629 | K130: =IF(I130="","",$C$23*BScall(($C$14-$C$2)/365,I130,$C$20,J130)) -> 0.0001105923978 | L130: 0.6250204667 | M130: =IF(I131="","",(L131*(I131-$I$12)-I131*SUM($M$12:M129)+SUMPRODUCT($M$12:M129,$I$12:I129))/(I131-I130)) -> 0.01010626432 | P130: =IF(O130="","",_xll.qlSabrVolatility(O130,$C$20,($C$14-$C$2)/365,$F$3,$F$6,$F$4,$F$5)) ->  | Q130: =IF(O130="","",$C$23*BSput(($C$14-$C$2)/365,O130,$C$20,P130)) ->  | S130: =IF(O131="","",(R131*(O131-$O$12)-O131*SUM($S$12:S129)+SUMPRODUCT($S$12:S129,$O$12:O129))/(O131-O130)) ->  | U130: 0.615 | V130: =IF(U130="","",_xll.qlSabrVolatility(U130,$C$20,($C$14-$C$2)/365,$F$3,$F$6,$F$4,$F$5)) -> 0.2916990728 | W130: 0.3627805135 | X130: 2.021280907 | Y130: =IF(X130="","",BScall(($C$14-$C$2)/365,U130,$C$20,V130)*X130) -> 3.213746225e-05 | Z130: 1.596382452e-07 | AC130: =IF(AB130="","",_xll.qlSabrVolatility(AB130,$C$20,($C$14-$C$2)/365,$F$3,$F$6,$F$4,$F$5)) ->  | AF130: =IF(AE130="","",BSput(($C$14-$C$2)/365,AB130,$C$20,AC130)*AE130) -> 
I131: 0.625 | J131: =IF(I131="","",_xll.qlSabrVolatility(I131,$C$20,($C$14-$C$2)/365,$F$3,$F$6,$F$4,$F$5)) -> 0.292403502 | K131: =IF(I131="","",$C$23*BScall(($C$14-$C$2)/365,I131,$C$20,J131)) -> 0.0001091645023 | L131: 0.6299061656 | M131: =IF(I132="","",(L132*(I132-$I$12)-I132*SUM($M$12:M130)+SUMPRODUCT($M$12:M130,$I$12:I130))/(I132-I131)) -> 0.01010605856 | P131: =IF(O131="","",_xll.qlSabrVolatility(O131,$C$20,($C$14-$C$2)/365,$F$3,$F$6,$F$4,$F$5)) ->  | Q131: =IF(O131="","",$C$23*BSput(($C$14-$C$2)/365,O131,$C$20,P131)) ->  | S131: =IF(O132="","",(R132*(O132-$O$12)-O132*SUM($S$12:S130)+SUMPRODUCT($S$12:S130,$O$12:O130))/(O132-O131)) ->  | U131: 0.62 | V131: =IF(U131="","",_xll.qlSabrVolatility(U131,$C$20,($C$14-$C$2)/365,$F$3,$F$6,$F$4,$F$5)) -> 0.292052629 | W131: 0.3687620754 | X131: 2.021252864 | Y131: =IF(X131="","",BScall(($C$14-$C$2)/365,U131,$C$20,V131)*X131) -> 3.171783585e-05 | Z131: 1.575637866e-07 | AC131: =IF(AB131="","",_xll.qlSabrVolatility(AB131,$C$20,($C$14-$C$2)/365,$F$3,$F$6,$F$4,$F$5)) ->  | AF131: =IF(AE131="","",BSput(($C$14-$C$2)/365,AB131,$C$20,AC131)*AE131) -> 
I132: 0.63 | J132: =IF(I132="","",_xll.qlSabrVolatility(I132,$C$20,($C$14-$C$2)/365,$F$3,$F$6,$F$4,$F$5)) -> 0.2927517311 | K132: =IF(I132="","",$C$23*BScall(($C$14-$C$2)/365,I132,$C$20,J132)) -> 0.0001077692129 | L132: 0.6347946534 | M132: =IF(I133="","",(L133*(I133-$I$12)-I133*SUM($M$12:M131)+SUMPRODUCT($M$12:M131,$I$12:I131))/(I133-I132)) -> 0.01010579103 | P132: =IF(O132="","",_xll.qlSabrVolatility(O132,$C$20,($C$14-$C$2)/365,$F$3,$F$6,$F$4,$F$5)) ->  | Q132: =IF(O132="","",$C$23*BSput(($C$14-$C$2)/365,O132,$C$20,P132)) ->  | S132: =IF(O133="","",(R133*(O133-$O$12)-O133*SUM($S$12:S131)+SUMPRODUCT($S$12:S131,$O$12:O131))/(O133-O132)) ->  | U132: 0.625 | V132: =IF(U132="","",_xll.qlSabrVolatility(U132,$C$20,($C$14-$C$2)/365,$F$3,$F$6,$F$4,$F$5)) -> 0.292403502 | W132: 0.3747941686 | X132: 2.021211712 | Y132: =IF(X132="","",BScall(($C$14-$C$2)/365,U132,$C$20,V132)*X132) -> 3.13076788e-05 | Z132: 1.555359485e-07 | AC132: =IF(AB132="","",_xll.qlSabrVolatility(AB132,$C$20,($C$14-$C$2)/365,$F$3,$F$6,$F$4,$F$5)) ->  | AF132: =IF(AE132="","",BSput(($C$14-$C$2)/365,AB132,$C$20,AC132)*AE132) -> 
I133: 0.635 | J133: =IF(I133="","",_xll.qlSabrVolatility(I133,$C$20,($C$14-$C$2)/365,$F$3,$F$6,$F$4,$F$5)) -> 0.2930973546 | K133: =IF(I133="","",$C$23*BScall(($C$14-$C$2)/365,I133,$C$20,J133)) -> 0.0001064054944 | L133: 0.6396858586 | M133: =IF(I134="","",(L134*(I134-$I$12)-I134*SUM($M$12:M132)+SUMPRODUCT($M$12:M132,$I$12:I132))/(I134-I133)) -> 0.01010546536 | P133: =IF(O133="","",_xll.qlSabrVolatility(O133,$C$20,($C$14-$C$2)/365,$F$3,$F$6,$F$4,$F$5)) ->  | Q133: =IF(O133="","",$C$23*BSput(($C$14-$C$2)/365,O133,$C$20,P133)) ->  | S133: =IF(O134="","",(R134*(O134-$O$12)-O134*SUM($S$12:S132)+SUMPRODUCT($S$12:S132,$O$12:O132))/(O134-O133)) ->  | U133: 0.63 | V133: =IF(U133="","",_xll.qlSabrVolatility(U133,$C$20,($C$14-$C$2)/365,$F$3,$F$6,$F$4,$F$5)) -> 0.2927517311 | W133: 0.380876792 | X133: 2.021158207 | Y133: =IF(X133="","",BScall(($C$14-$C$2)/365,U133,$C$20,V133)*X133) -> 3.090670058e-05 | Z133: 1.53553306e-07 | AC133: =IF(AB133="","",_xll.qlSabrVolatility(AB133,$C$20,($C$14-$C$2)/365,$F$3,$F$6,$F$4,$F$5)) ->  | AF133: =IF(AE133="","",BSput(($C$14-$C$2)/365,AB133,$C$20,AC133)*AE133) -> 
I134: 0.64 | J134: =IF(I134="","",_xll.qlSabrVolatility(I134,$C$20,($C$14-$C$2)/365,$F$3,$F$6,$F$4,$F$5)) -> 0.2934404101 | K134: =IF(I134="","",$C$23*BScall(($C$14-$C$2)/365,I134,$C$20,J134)) -> 0.000105072353 | L134: 0.6445797118 | M134: =IF(I135="","",(L135*(I135-$I$12)-I135*SUM($M$12:M133)+SUMPRODUCT($M$12:M133,$I$12:I133))/(I135-I134)) -> 0.01010508501 | P134: =IF(O134="","",_xll.qlSabrVolatility(O134,$C$20,($C$14-$C$2)/365,$F$3,$F$6,$F$4,$F$5)) ->  | Q134: =IF(O134="","",$C$23*BSput(($C$14-$C$2)/365,O134,$C$20,P134)) ->  | S134: =IF(O135="","",(R135*(O135-$O$12)-O135*SUM($S$12:S133)+SUMPRODUCT($S$12:S133,$O$12:O133))/(O135-O134)) ->  | U134: 0.635 | V134: =IF(U134="","",_xll.qlSabrVolatility(U134,$C$20,($C$14-$C$2)/365,$F$3,$F$6,$F$4,$F$5)) -> 0.2930973546 | W134: 0.3870099445 | X134: 2.021093072 | Y134: =IF(X134="","",BScall(($C$14-$C$2)/365,U134,$C$20,V134)*X134) -> 3.051462181e-05 | Z134: 1.516144889e-07 | AC134: =IF(AB134="","",_xll.qlSabrVolatility(AB134,$C$20,($C$14-$C$2)/365,$F$3,$F$6,$F$4,$F$5)) ->  | AF134: =IF(AE134="","",BSput(($C$14-$C$2)/365,AB134,$C$20,AC134)*AE134) -> 
I135: 0.645 | J135: =IF(I135="","",_xll.qlSabrVolatility(I135,$C$20,($C$14-$C$2)/365,$F$3,$F$6,$F$4,$F$5)) -> 0.2937809344 | K135: =IF(I135="","",$C$23*BScall(($C$14-$C$2)/365,I135,$C$20,J135)) -> 0.0001037688347 | L135: 0.6494761454 | M135: =IF(I136="","",(L136*(I136-$I$12)-I136*SUM($M$12:M134)+SUMPRODUCT($M$12:M134,$I$12:I134))/(I136-I135)) -> 0.01010465328 | P135: =IF(O135="","",_xll.qlSabrVolatility(O135,$C$20,($C$14-$C$2)/365,$F$3,$F$6,$F$4,$F$5)) ->  | Q135: =IF(O135="","",$C$23*BSput(($C$14-$C$2)/365,O135,$C$20,P135)) ->  | S135: =IF(O136="","",(R136*(O136-$O$12)-O136*SUM($S$12:S134)+SUMPRODUCT($S$12:S134,$O$12:O134))/(O136-O135)) ->  | U135: 0.64 | V135: =IF(U135="","",_xll.qlSabrVolatility(U135,$C$20,($C$14-$C$2)/365,$F$3,$F$6,$F$4,$F$5)) -> 0.2934404101 | W135: 0.3931936242 | X135: 2.021017001 | Y135: =IF(X135="","",BScall(($C$14-$C$2)/365,U135,$C$20,V135)*X135) -> 3.013117373e-05 | Z135: 1.497181786e-07 | AC135: =IF(AB135="","",_xll.qlSabrVolatility(AB135,$C$20,($C$14-$C$2)/365,$F$3,$F$6,$F$4,$F$5)) ->  | AF135: =IF(AE135="","",BSput(($C$14-$C$2)/365,AB135,$C$20,AC135)*AE135) -> 
I136: 0.65 | J136: =IF(I136="","",_xll.qlSabrVolatility(I136,$C$20,($C$14-$C$2)/365,$F$3,$F$6,$F$4,$F$5)) -> 0.2941189637 | K136: =IF(I136="","",$C$23*BScall(($C$14-$C$2)/365,I136,$C$20,J136)) -> 0.0001024940231 | L136: 0.6543750933 | M136: =IF(I137="","",(L137*(I137-$I$12)-I137*SUM($M$12:M135)+SUMPRODUCT($M$12:M135,$I$12:I135))/(I137-I136)) -> 0.01010417336 | P136: =IF(O136="","",_xll.qlSabrVolatility(O136,$C$20,($C$14-$C$2)/365,$F$3,$F$6,$F$4,$F$5)) ->  | Q136: =IF(O136="","",$C$23*BSput(($C$14-$C$2)/365,O136,$C$20,P136)) ->  | S136: =IF(O137="","",(R137*(O137-$O$12)-O137*SUM($S$12:S135)+SUMPRODUCT($S$12:S135,$O$12:O135))/(O137-O136)) ->  | U136: 0.645 | V136: =IF(U136="","",_xll.qlSabrVolatility(U136,$C$20,($C$14-$C$2)/365,$F$3,$F$6,$F$4,$F$5)) -> 0.2937809344 | W136: 0.3994278294 | X136: 2.020930657 | Y136: =IF(X136="","",BScall(($C$14-$C$2)/365,U136,$C$20,V136)*X136) -> 2.975609773e-05 | Z136: 1.478631065e-07 | AC136: =IF(AB136="","",_xll.qlSabrVolatility(AB136,$C$20,($C$14-$C$2)/365,$F$3,$F$6,$F$4,$F$5)) ->  | AF136: =IF(AE136="","",BSput(($C$14-$C$2)/365,AB136,$C$20,AC136)*AE136) -> 
I137: 0.655 | J137: =IF(I137="","",_xll.qlSabrVolatility(I137,$C$20,($C$14-$C$2)/365,$F$3,$F$6,$F$4,$F$5)) -> 0.2944545332 | K137: =IF(I137="","",$C$23*BScall(($C$14-$C$2)/365,I137,$C$20,J137)) -> 0.0001012470378 | L137: 0.6592764915 | M137: =IF(I138="","",(L138*(I138-$I$12)-I138*SUM($M$12:M136)+SUMPRODUCT($M$12:M136,$I$12:I136))/(I138-I137)) -> 0.01010364827 | P137: =IF(O137="","",_xll.qlSabrVolatility(O137,$C$20,($C$14-$C$2)/365,$F$3,$F$6,$F$4,$F$5)) ->  | Q137: =IF(O137="","",$C$23*BSput(($C$14-$C$2)/365,O137,$C$20,P137)) ->  | S137: =IF(O138="","",(R138*(O138-$O$12)-O138*SUM($S$12:S136)+SUMPRODUCT($S$12:S136,$O$12:O136))/(O138-O137)) ->  | U137: 0.65 | V137: =IF(U137="","",_xll.qlSabrVolatility(U137,$C$20,($C$14-$C$2)/365,$F$3,$F$6,$F$4,$F$5)) -> 0.2941189637 | W137: 0.4057125578 | X137: 2.020834672 | Y137: =IF(X137="","",BScall(($C$14-$C$2)/365,U137,$C$20,V137)*X137) -> 2.938914487e-05 | Z137: 1.460480509e-07 | AC137: =IF(AB137="","",_xll.qlSabrVolatility(AB137,$C$20,($C$14-$C$2)/365,$F$3,$F$6,$F$4,$F$5)) ->  | AF137: =IF(AE137="","",BSput(($C$14-$C$2)/365,AB137,$C$20,AC137)*AE137) -> 
I138: 0.66 | J138: =IF(I138="","",_xll.qlSabrVolatility(I138,$C$20,($C$14-$C$2)/365,$F$3,$F$6,$F$4,$F$5)) -> 0.2947876775 | K138: =IF(I138="","",$C$23*BScall(($C$14-$C$2)/365,I138,$C$20,J138)) -> 0.0001000270326 | L138: 0.6641802773 | M138: =IF(I139="","",(L139*(I139-$I$12)-I139*SUM($M$12:M137)+SUMPRODUCT($M$12:M137,$I$12:I137))/(I139-I138)) -> 0.01010308089 | P138: =IF(O138="","",_xll.qlSabrVolatility(O138,$C$20,($C$14-$C$2)/365,$F$3,$F$6,$F$4,$F$5)) ->  | Q138: =IF(O138="","",$C$23*BSput(($C$14-$C$2)/365,O138,$C$20,P138)) ->  | S138: =IF(O139="","",(R139*(O139-$O$12)-O139*SUM($S$12:S137)+SUMPRODUCT($S$12:S137,$O$12:O137))/(O139-O138)) ->  | U138: 0.655 | V138: =IF(U138="","",_xll.qlSabrVolatility(U138,$C$20,($C$14-$C$2)/365,$F$3,$F$6,$F$4,$F$5)) -> 0.2944545332 | W138: 0.4120478072 | X138: 2.020729653 | Y138: =IF(X138="","",BScall(($C$14-$C$2)/365,U138,$C$20,V138)*X138) -> 2.903007549e-05 | Z138: 1.442718355e-07 | AC138: =IF(AB138="","",_xll.qlSabrVolatility(AB138,$C$20,($C$14-$C$2)/365,$F$3,$F$6,$F$4,$F$5)) ->  | AF138: =IF(AE138="","",BSput(($C$14-$C$2)/365,AB138,$C$20,AC138)*AE138) -> 
I139: 0.665 | J139: =IF(I139="","",_xll.qlSabrVolatility(I139,$C$20,($C$14-$C$2)/365,$F$3,$F$6,$F$4,$F$5)) -> 0.2951184305 | K139: =IF(I139="","",$C$23*BScall(($C$14-$C$2)/365,I139,$C$20,J139)) -> 9.883319398e-05 | L139: 0.66908639 | M139: =IF(I140="","",(L140*(I140-$I$12)-I140*SUM($M$12:M138)+SUMPRODUCT($M$12:M138,$I$12:I138))/(I140-I139)) -> 0.01010247401 | P139: =IF(O139="","",_xll.qlSabrVolatility(O139,$C$20,($C$14-$C$2)/365,$F$3,$F$6,$F$4,$F$5)) ->  | Q139: =IF(O139="","",$C$23*BSput(($C$14-$C$2)/365,O139,$C$20,P139)) ->  | S139: =IF(O140="","",(R140*(O140-$O$12)-O140*SUM($S$12:S138)+SUMPRODUCT($S$12:S138,$O$12:O138))/(O140-O139)) ->  | U139: 0.66 | V139: =IF(U139="","",_xll.qlSabrVolatility(U139,$C$20,($C$14-$C$2)/365,$F$3,$F$6,$F$4,$F$5)) -> 0.2947876775 | W139: 0.4184335747 | X139: 2.020616179 | Y139: =IF(X139="","",BScall(($C$14-$C$2)/365,U139,$C$20,V139)*X139) -> 2.867865873e-05 | Z139: 1.425333273e-07 | AC139: =IF(AB139="","",_xll.qlSabrVolatility(AB139,$C$20,($C$14-$C$2)/365,$F$3,$F$6,$F$4,$F$5)) ->  | AF139: =IF(AE139="","",BSput(($C$14-$C$2)/365,AB139,$C$20,AC139)*AE139) -> 
I140: 0.67 | J140: =IF(I140="","",_xll.qlSabrVolatility(I140,$C$20,($C$14-$C$2)/365,$F$3,$F$6,$F$4,$F$5)) -> 0.2954468253 | K140: =IF(I140="","",$C$23*BScall(($C$14-$C$2)/365,I140,$C$20,J140)) -> 9.766473941e-05 | L140: 0.6739947703 | M140: =IF(I141="","",(L141*(I141-$I$12)-I141*SUM($M$12:M139)+SUMPRODUCT($M$12:M139,$I$12:I139))/(I141-I140)) -> 0.01010183025 | P140: =IF(O140="","",_xll.qlSabrVolatility(O140,$C$20,($C$14-$C$2)/365,$F$3,$F$6,$F$4,$F$5)) ->  | Q140: =IF(O140="","",$C$23*BSput(($C$14-$C$2)/365,O140,$C$20,P140)) ->  | S140: =IF(O141="","",(R141*(O141-$O$12)-O141*SUM($S$12:S139)+SUMPRODUCT($S$12:S139,$O$12:O139))/(O141-O140)) ->  | U140: 0.665 | V140: =IF(U140="","",_xll.qlSabrVolatility(U140,$C$20,($C$14-$C$2)/365,$F$3,$F$6,$F$4,$F$5)) -> 0.2951184305 | W140: 0.4248698577 | X140: 2.020494802 | Y140: =IF(X140="","",BScall(($C$14-$C$2)/365,U140,$C$20,V140)*X140) -> 2.83346722e-05 | Z140: 1.408314344e-07 | AC140: =IF(AB140="","",_xll.qlSabrVolatility(AB140,$C$20,($C$14-$C$2)/365,$F$3,$F$6,$F$4,$F$5)) ->  | AF140: =IF(AE140="","",BSput(($C$14-$C$2)/365,AB140,$C$20,AC140)*AE140) -> 
I141: =IF(I140>=$J$5,"",I140+$J$3) -> 0.675 | J141: =IF(I141="","",_xll.qlSabrVolatility(I141,$C$20,($C$14-$C$2)/365,$F$3,$F$6,$F$4,$F$5)) -> 0.2957728945 | K141: =IF(I141="","",$C$23*BScall(($C$14-$C$2)/365,I141,$C$20,J141)) -> 9.652091617e-05 | L141: =IF(I141="","",(1+I141/$C$22)^(-$C$9*$C$22)*I141/(1-(1+I141/$C$22)^-($C$22*$C$7))) -> 0.6789053605 | M141: =IF(I142="","",(L142*(I142-$I$12)-I142*SUM($M$12:M140)+SUMPRODUCT($M$12:M140,$I$12:I140))/(I142-I141)) -> 0.01010115215 | P141: =IF(O141="","",_xll.qlSabrVolatility(O141,$C$20,($C$14-$C$2)/365,$F$3,$F$6,$F$4,$F$5)) ->  | Q141: =IF(O141="","",$C$23*BSput(($C$14-$C$2)/365,O141,$C$20,P141)) ->  | S141: =IF(O142="","",(R142*(O142-$O$12)-O142*SUM($S$12:S140)+SUMPRODUCT($S$12:S140,$O$12:O140))/(O142-O141)) ->  | U141: =IF(U140>=$V$5,"",U140+$V$3) -> 0.67 | V141: =IF(U141="","",_xll.qlSabrVolatility(U141,$C$20,($C$14-$C$2)/365,$F$3,$F$6,$F$4,$F$5)) -> 0.2954468253 | W141: =IF(U141="","",(U141-$C$8)*(1+U141/$C$22)^(-$C$9*$C$22)*U141/(1-(1+U141/$C$22)^-($C$22*$C$7))) -> 0.431356653 | X141: 2.020366051 | Y141: =IF(X141="","",BScall(($C$14-$C$2)/365,U141,$C$20,V141)*X141) -> 2.799790157e-05 | Z141: 1.391651045e-07 | AC141: =IF(AB141="","",_xll.qlSabrVolatility(AB141,$C$20,($C$14-$C$2)/365,$F$3,$F$6,$F$4,$F$5)) ->  | AD141: =IF(AB141="","",(AB141-$C$8)*(1+AB141/$C$22)^(-$C$9*$C$22)*AB141/(1-(1+AB141/$C$22)^-($C$22*$C$7))) ->  | AF141: =IF(AE141="","",BSput(($C$14-$C$2)/365,AB141,$C$20,AC141)*AE141) -> 
I142: 0.68 | J142: =IF(I142="","",_xll.qlSabrVolatility(I142,$C$20,($C$14-$C$2)/365,$F$3,$F$6,$F$4,$F$5)) -> 0.29609667 | K142: =IF(I142="","",$C$23*BScall(($C$14-$C$2)/365,I142,$C$20,J142)) -> 9.540099983e-05 | L142: 0.6838181042 | M142: =IF(I143="","",(L143*(I143-$I$12)-I143*SUM($M$12:M141)+SUMPRODUCT($M$12:M141,$I$12:I141))/(I143-I142)) -> 0.0101004421 | O142: =IF(OR(O141<$P$4+$P$3,O141=""),"",O141-$P$3) ->  | P142: =IF(O142="","",_xll.qlSabrVolatility(O142,$C$20,($C$14-$C$2)/365,$F$3,$F$6,$F$4,$F$5)) ->  | Q142: =IF(O142="","",$C$23*BSput(($C$14-$C$2)/365,O142,$C$20,P142)) ->  | R142: =IF(O142="","",(1+O142/$C$22)^(-$C$9*$C$22)*O142/(1-(1+O142/$C$22)^-($C$22*$C$7))) ->  | S142: =IF(O143="","",(R143*(O143-$O$12)-O143*SUM($S$12:S141)+SUMPRODUCT($S$12:S141,$O$12:O141))/(O143-O142)) ->  | U142: 0.675 | V142: =IF(U142="","",_xll.qlSabrVolatility(U142,$C$20,($C$14-$C$2)/365,$F$3,$F$6,$F$4,$F$5)) -> 0.2957728945 | W142: 0.4378939575 | X142: =IF(U143="","",(W143+W141-2*W142)/($V$3^2)) -> 2.02023043 | Y142: =IF(X142="","",BScall(($C$14-$C$2)/365,U142,$C$20,V142)*X142) -> 2.766814025e-05 | Z142: =IF(Y143="","",0.5*(U143-U142)*(Y142+Y143)) -> 1.375333232e-07 | AB142: =IF(OR(AB141<$AC$4+$AC$3,AB141=""),"",AB141-$AC$3) ->  | AC142: =IF(AB142="","",_xll.qlSabrVolatility(AB142,$C$20,($C$14-$C$2)/365,$F$3,$F$6,$F$4,$F$5)) ->  | AE142: =IF(AB143="","",(AD143+AD141-2*AD142)/($AC$3^2)) ->  | AF142: =IF(AE142="","",BSput(($C$14-$C$2)/365,AB142,$C$20,AC142)*AE142) ->  | AG142: =IF(AF143="","",0.5*(AB143-AB142)*(AF142+AF143)) -> 
I143: 0.685 | J143: =IF(I143="","",_xll.qlSabrVolatility(I143,$C$20,($C$14-$C$2)/365,$F$3,$F$6,$F$4,$F$5)) -> 0.2964181829 | K143: =IF(I143="","",$C$23*BScall(($C$14-$C$2)/365,I143,$C$20,J143)) -> 9.430429299e-05 | L143: 0.6887329469 | M143: =IF(I144="","",(L144*(I144-$I$12)-I144*SUM($M$12:M142)+SUMPRODUCT($M$12:M142,$I$12:I142))/(I144-I143)) -> 0.0100997024 | P143: =IF(O143="","",_xll.qlSabrVolatility(O143,$C$20,($C$14-$C$2)/365,$F$3,$F$6,$F$4,$F$5)) ->  | Q143: =IF(O143="","",$C$23*BSput(($C$14-$C$2)/365,O143,$C$20,P143)) ->  | S143: =IF(O144="","",(R144*(O144-$O$12)-O144*SUM($S$12:S142)+SUMPRODUCT($S$12:S142,$O$12:O142))/(O144-O143)) ->  | U143: 0.68 | V143: =IF(U143="","",_xll.qlSabrVolatility(U143,$C$20,($C$14-$C$2)/365,$F$3,$F$6,$F$4,$F$5)) -> 0.29609667 | W143: 0.4444817677 | X143: 2.02008842 | Y143: =IF(X143="","",BScall(($C$14-$C$2)/365,U143,$C$20,V143)*X143) -> 2.734518902e-05 | Z143: 1.359351119e-07 | AC143: =IF(AB143="","",_xll.qlSabrVolatility(AB143,$C$20,($C$14-$C$2)/365,$F$3,$F$6,$F$4,$F$5)) ->  | AF143: =IF(AE143="","",BSput(($C$14-$C$2)/365,AB143,$C$20,AC143)*AE143) -> 
I144: 0.69 | J144: =IF(I144="","",_xll.qlSabrVolatility(I144,$C$20,($C$14-$C$2)/365,$F$3,$F$6,$F$4,$F$5)) -> 0.2967374638 | K144: =IF(I144="","",$C$23*BScall(($C$14-$C$2)/365,I144,$C$20,J144)) -> 9.32301241e-05 | L144: 0.6936498351 | M144: =IF(I145="","",(L145*(I145-$I$12)-I145*SUM($M$12:M143)+SUMPRODUCT($M$12:M143,$I$12:I143))/(I145-I144)) -> 0.01009893524 | P144: =IF(O144="","",_xll.qlSabrVolatility(O144,$C$20,($C$14-$C$2)/365,$F$3,$F$6,$F$4,$F$5)) ->  | Q144: =IF(O144="","",$C$23*BSput(($C$14-$C$2)/365,O144,$C$20,P144)) ->  | S144: =IF(O145="","",(R145*(O145-$O$12)-O145*SUM($S$12:S143)+SUMPRODUCT($S$12:S143,$O$12:O143))/(O145-O144)) ->  | U144: 0.685 | V144: =IF(U144="","",_xll.qlSabrVolatility(U144,$C$20,($C$14-$C$2)/365,$F$3,$F$6,$F$4,$F$5)) -> 0.2964181829 | W144: 0.4511200802 | X144: 2.01994048 | Y144: =IF(X144="","",BScall(($C$14-$C$2)/365,U144,$C$20,V144)*X144) -> 2.702885575e-05 | Z144: 1.343695271e-07 | AC144: =IF(AB144="","",_xll.qlSabrVolatility(AB144,$C$20,($C$14-$C$2)/365,$F$3,$F$6,$F$4,$F$5)) ->  | AF144: =IF(AE144="","",BSput(($C$14-$C$2)/365,AB144,$C$20,AC144)*AE144) -> 
I145: 0.695 | J145: =IF(I145="","",_xll.qlSabrVolatility(I145,$C$20,($C$14-$C$2)/365,$F$3,$F$6,$F$4,$F$5)) -> 0.2970545429 | K145: =IF(I145="","",$C$23*BScall(($C$14-$C$2)/365,I145,$C$20,J145)) -> 9.217784627e-05 | L145: 0.698568717 | M145: =IF(I146="","",(L146*(I146-$I$12)-I146*SUM($M$12:M144)+SUMPRODUCT($M$12:M144,$I$12:I144))/(I146-I145)) -> 0.01009814271 | P145: =IF(O145="","",_xll.qlSabrVolatility(O145,$C$20,($C$14-$C$2)/365,$F$3,$F$6,$F$4,$F$5)) ->  | Q145: =IF(O145="","",$C$23*BSput(($C$14-$C$2)/365,O145,$C$20,P145)) ->  | S145: =IF(O146="","",(R146*(O146-$O$12)-O146*SUM($S$12:S144)+SUMPRODUCT($S$12:S144,$O$12:O144))/(O146-O145)) ->  | U145: 0.69 | V145: =IF(U145="","",_xll.qlSabrVolatility(U145,$C$20,($C$14-$C$2)/365,$F$3,$F$6,$F$4,$F$5)) -> 0.2967374638 | W145: 0.4578088912 | X145: 2.019787048 | Y145: =IF(X145="","",BScall(($C$14-$C$2)/365,U145,$C$20,V145)*X145) -> 2.671895508e-05 | Z145: 1.32835658e-07 | AC145: =IF(AB145="","",_xll.qlSabrVolatility(AB145,$C$20,($C$14-$C$2)/365,$F$3,$F$6,$F$4,$F$5)) ->  | AF145: =IF(AE145="","",BSput(($C$14-$C$2)/365,AB145,$C$20,AC145)*AE145) -> 
I146: 0.7 | J146: =IF(I146="","",_xll.qlSabrVolatility(I146,$C$20,($C$14-$C$2)/365,$F$3,$F$6,$F$4,$F$5)) -> 0.2973694494 | K146: =IF(I146="","",$C$23*BScall(($C$14-$C$2)/365,I146,$C$20,J146)) -> 9.114683618e-05 | L146: 0.703489542 | M146: =IF(I147="","",(L147*(I147-$I$12)-I147*SUM($M$12:M145)+SUMPRODUCT($M$12:M145,$I$12:I145))/(I147-I146)) -> 0.01009732681 | P146: =IF(O146="","",_xll.qlSabrVolatility(O146,$C$20,($C$14-$C$2)/365,$F$3,$F$6,$F$4,$F$5)) ->  | Q146: =IF(O146="","",$C$23*BSput(($C$14-$C$2)/365,O146,$C$20,P146)) ->  | S146: =IF(O147="","",(R147*(O147-$O$12)-O147*SUM($S$12:S145)+SUMPRODUCT($S$12:S145,$O$12:O145))/(O147-O146)) ->  | U146: 0.695 | V146: =IF(U146="","",_xll.qlSabrVolatility(U146,$C$20,($C$14-$C$2)/365,$F$3,$F$6,$F$4,$F$5)) -> 0.2970545429 | W146: 0.4645481968 | X146: 2.019628543 | Y146: =IF(X146="","",BScall(($C$14-$C$2)/365,U146,$C$20,V146)*X146) -> 2.641530812e-05 | Z146: 1.313326259e-07 | AC146: =IF(AB146="","",_xll.qlSabrVolatility(AB146,$C$20,($C$14-$C$2)/365,$F$3,$F$6,$F$4,$F$5)) ->  | AF146: =IF(AE146="","",BSput(($C$14-$C$2)/365,AB146,$C$20,AC146)*AE146) -> 
I147: 0.705 | J147: =IF(I147="","",_xll.qlSabrVolatility(I147,$C$20,($C$14-$C$2)/365,$F$3,$F$6,$F$4,$F$5)) -> 0.2976822122 | K147: =IF(I147="","",$C$23*BScall(($C$14-$C$2)/365,I147,$C$20,J147)) -> 9.013649309e-05 | L147: 0.7084122609 | M147: =IF(I148="","",(L148*(I148-$I$12)-I148*SUM($M$12:M146)+SUMPRODUCT($M$12:M146,$I$12:I146))/(I148-I147)) -> 0.01009648941 | P147: =IF(O147="","",_xll.qlSabrVolatility(O147,$C$20,($C$14-$C$2)/365,$F$3,$F$6,$F$4,$F$5)) ->  | Q147: =IF(O147="","",$C$23*BSput(($C$14-$C$2)/365,O147,$C$20,P147)) ->  | S147: =IF(O148="","",(R148*(O148-$O$12)-O148*SUM($S$12:S146)+SUMPRODUCT($S$12:S146,$O$12:O146))/(O148-O147)) ->  | U147: 0.7 | V147: =IF(U147="","",_xll.qlSabrVolatility(U147,$C$20,($C$14-$C$2)/365,$F$3,$F$6,$F$4,$F$5)) -> 0.2973694494 | W147: 0.4713379932 | X147: 2.019465361 | Y147: =IF(X147="","",BScall(($C$14-$C$2)/365,U147,$C$20,V147)*X147) -> 2.611774222e-05 | Z147: 1.298595822e-07 | AC147: =IF(AB147="","",_xll.qlSabrVolatility(AB147,$C$20,($C$14-$C$2)/365,$F$3,$F$6,$F$4,$F$5)) ->  | AF147: =IF(AE147="","",BSput(($C$14-$C$2)/365,AB147,$C$20,AC147)*AE147) -> 
I148: 0.71 | J148: =IF(I148="","",_xll.qlSabrVolatility(I148,$C$20,($C$14-$C$2)/365,$F$3,$F$6,$F$4,$F$5)) -> 0.2979928597 | K148: =IF(I148="","",$C$23*BScall(($C$14-$C$2)/365,I148,$C$20,J148)) -> 8.91462378e-05 | L148: 0.7133368258 | M148: =IF(I149="","",(L149*(I149-$I$12)-I149*SUM($M$12:M147)+SUMPRODUCT($M$12:M147,$I$12:I147))/(I149-I148)) -> 0.01009563234 | P148: =IF(O148="","",_xll.qlSabrVolatility(O148,$C$20,($C$14-$C$2)/365,$F$3,$F$6,$F$4,$F$5)) ->  | Q148: =IF(O148="","",$C$23*BSput(($C$14-$C$2)/365,O148,$C$20,P148)) ->  | S148: =IF(O149="","",(R149*(O149-$O$12)-O149*SUM($S$12:S147)+SUMPRODUCT($S$12:S147,$O$12:O147))/(O149-O148)) ->  | U148: 0.705 | V148: =IF(U148="","",_xll.qlSabrVolatility(U148,$C$20,($C$14-$C$2)/365,$F$3,$F$6,$F$4,$F$5)) -> 0.2976822122 | W148: 0.4781782761 | X148: 2.019297882 | Y148: =IF(X148="","",BScall(($C$14-$C$2)/365,U148,$C$20,V148)*X148) -> 2.582609067e-05 | Z148: 1.284157079e-07 | AC148: =IF(AB148="","",_xll.qlSabrVolatility(AB148,$C$20,($C$14-$C$2)/365,$F$3,$F$6,$F$4,$F$5)) ->  | AF148: =IF(AE148="","",BSput(($C$14-$C$2)/365,AB148,$C$20,AC148)*AE148) -> 
I149: 0.715 | J149: =IF(I149="","",_xll.qlSabrVolatility(I149,$C$20,($C$14-$C$2)/365,$F$3,$F$6,$F$4,$F$5)) -> 0.2983014195 | K149: =IF(I149="","",$C$23*BScall(($C$14-$C$2)/365,I149,$C$20,J149)) -> 8.817551173e-05 | L149: 0.71826319 | M149: =IF(I150="","",(L150*(I150-$I$12)-I150*SUM($M$12:M148)+SUMPRODUCT($M$12:M148,$I$12:I148))/(I150-I149)) -> 0.01009475731 | P149: =IF(O149="","",_xll.qlSabrVolatility(O149,$C$20,($C$14-$C$2)/365,$F$3,$F$6,$F$4,$F$5)) ->  | Q149: =IF(O149="","",$C$23*BSput(($C$14-$C$2)/365,O149,$C$20,P149)) ->  | S149: =IF(O150="","",(R150*(O150-$O$12)-O150*SUM($S$12:S148)+SUMPRODUCT($S$12:S148,$O$12:O148))/(O150-O149)) ->  | U149: 0.71 | V149: =IF(U149="","",_xll.qlSabrVolatility(U149,$C$20,($C$14-$C$2)/365,$F$3,$F$6,$F$4,$F$5)) -> 0.2979928597 | W149: 0.4850690416 | X149: 2.019126468 | Y149: =IF(X149="","",BScall(($C$14-$C$2)/365,U149,$C$20,V149)*X149) -> 2.554019247e-05 | Z149: 1.270002114e-07 | AC149: =IF(AB149="","",_xll.qlSabrVolatility(AB149,$C$20,($C$14-$C$2)/365,$F$3,$F$6,$F$4,$F$5)) ->  | AF149: =IF(AE149="","",BSput(($C$14-$C$2)/365,AB149,$C$20,AC149)*AE149) -> 
I150: 0.72 | J150: =IF(I150="","",_xll.qlSabrVolatility(I150,$C$20,($C$14-$C$2)/365,$F$3,$F$6,$F$4,$F$5)) -> 0.2986079189 | K150: =IF(I150="","",$C$23*BScall(($C$14-$C$2)/365,I150,$C$20,J150)) -> 8.722377608e-05 | L150: 0.7231913081 | M150: =IF(I151="","",(L151*(I151-$I$12)-I151*SUM($M$12:M149)+SUMPRODUCT($M$12:M149,$I$12:I149))/(I151-I150)) -> 0.01009386595 | P150: =IF(O150="","",_xll.qlSabrVolatility(O150,$C$20,($C$14-$C$2)/365,$F$3,$F$6,$F$4,$F$5)) ->  | Q150: =IF(O150="","",$C$23*BSput(($C$14-$C$2)/365,O150,$C$20,P150)) ->  | S150: =IF(O151="","",(R151*(O151-$O$12)-O151*SUM($S$12:S149)+SUMPRODUCT($S$12:S149,$O$12:O149))/(O151-O150)) ->  | U150: 0.715 | V150: =IF(U150="","",_xll.qlSabrVolatility(U150,$C$20,($C$14-$C$2)/365,$F$3,$F$6,$F$4,$F$5)) -> 0.2983014195 | W150: 0.4920102852 | X150: 2.018951461 | Y150: =IF(X150="","",BScall(($C$14-$C$2)/365,U150,$C$20,V150)*X150) -> 2.525989211e-05 | Z150: 1.256123285e-07 | AC150: =IF(AB150="","",_xll.qlSabrVolatility(AB150,$C$20,($C$14-$C$2)/365,$F$3,$F$6,$F$4,$F$5)) ->  | AF150: =IF(AE150="","",BSput(($C$14-$C$2)/365,AB150,$C$20,AC150)*AE150) -> 
I151: 0.725 | J151: =IF(I151="","",_xll.qlSabrVolatility(I151,$C$20,($C$14-$C$2)/365,$F$3,$F$6,$F$4,$F$5)) -> 0.2989123845 | K151: =IF(I151="","",$C$23*BScall(($C$14-$C$2)/365,I151,$C$20,J151)) -> 8.629051092e-05 | L151: 0.7281211356 | M151: =IF(I152="","",(L152*(I152-$I$12)-I152*SUM($M$12:M150)+SUMPRODUCT($M$12:M150,$I$12:I150))/(I152-I151)) -> 0.01009295982 | P151: =IF(O151="","",_xll.qlSabrVolatility(O151,$C$20,($C$14-$C$2)/365,$F$3,$F$6,$F$4,$F$5)) ->  | Q151: =IF(O151="","",$C$23*BSput(($C$14-$C$2)/365,O151,$C$20,P151)) ->  | S151: =IF(O152="","",(R152*(O152-$O$12)-O152*SUM($S$12:S150)+SUMPRODUCT($S$12:S150,$O$12:O150))/(O152-O151)) ->  | U151: 0.72 | V151: =IF(U151="","",_xll.qlSabrVolatility(U151,$C$20,($C$14-$C$2)/365,$F$3,$F$6,$F$4,$F$5)) -> 0.2986079189 | W151: 0.4990020026 | X151: 2.01877319 | Y151: =IF(X151="","",BScall(($C$14-$C$2)/365,U151,$C$20,V151)*X151) -> 2.498503931e-05 | Z151: 1.242513204e-07 | AC151: =IF(AB151="","",_xll.qlSabrVolatility(AB151,$C$20,($C$14-$C$2)/365,$F$3,$F$6,$F$4,$F$5)) ->  | AF151: =IF(AE151="","",BSput(($C$14-$C$2)/365,AB151,$C$20,AC151)*AE151) -> 
I152: 0.73 | J152: =IF(I152="","",_xll.qlSabrVolatility(I152,$C$20,($C$14-$C$2)/365,$F$3,$F$6,$F$4,$F$5)) -> 0.2992148426 | K152: =IF(I152="","",$C$23*BScall(($C$14-$C$2)/365,I152,$C$20,J152)) -> 8.537521443e-05 | L152: 0.7330526297 | M152: =IF(I153="","",(L153*(I153-$I$12)-I153*SUM($M$12:M151)+SUMPRODUCT($M$12:M151,$I$12:I151))/(I153-I152)) -> 0.01009204041 | P152: =IF(O152="","",_xll.qlSabrVolatility(O152,$C$20,($C$14-$C$2)/365,$F$3,$F$6,$F$4,$F$5)) ->  | Q152: =IF(O152="","",$C$23*BSput(($C$14-$C$2)/365,O152,$C$20,P152)) ->  | S152: =IF(O153="","",(R153*(O153-$O$12)-O153*SUM($S$12:S151)+SUMPRODUCT($S$12:S151,$O$12:O151))/(O153-O152)) ->  | U152: 0.725 | V152: =IF(U152="","",_xll.qlSabrVolatility(U152,$C$20,($C$14-$C$2)/365,$F$3,$F$6,$F$4,$F$5)) -> 0.2989123845 | W152: 0.5060441893 | X152: 2.018591964 | Y152: =IF(X152="","",BScall(($C$14-$C$2)/365,U152,$C$20,V152)*X152) -> 2.471548886e-05 | Z152: 1.22916473e-07 | AC152: =IF(AB152="","",_xll.qlSabrVolatility(AB152,$C$20,($C$14-$C$2)/365,$F$3,$F$6,$F$4,$F$5)) ->  | AF152: =IF(AE152="","",BSput(($C$14-$C$2)/365,AB152,$C$20,AC152)*AE152) -> 
I153: 0.735 | J153: =IF(I153="","",_xll.qlSabrVolatility(I153,$C$20,($C$14-$C$2)/365,$F$3,$F$6,$F$4,$F$5)) -> 0.2995153188 | K153: =IF(I153="","",$C$23*BScall(($C$14-$C$2)/365,I153,$C$20,J153)) -> 8.447740215e-05 | L153: 0.7379857482 | M153: =IF(I154="","",(L154*(I154-$I$12)-I154*SUM($M$12:M152)+SUMPRODUCT($M$12:M152,$I$12:I152))/(I154-I153)) -> 0.01009110911 | P153: =IF(O153="","",_xll.qlSabrVolatility(O153,$C$20,($C$14-$C$2)/365,$F$3,$F$6,$F$4,$F$5)) ->  | Q153: =IF(O153="","",$C$23*BSput(($C$14-$C$2)/365,O153,$C$20,P153)) ->  | S153: =IF(O154="","",(R154*(O154-$O$12)-O154*SUM($S$12:S152)+SUMPRODUCT($S$12:S152,$O$12:O152))/(O154-O153)) ->  | U153: 0.73 | V153: =IF(U153="","",_xll.qlSabrVolatility(U153,$C$20,($C$14-$C$2)/365,$F$3,$F$6,$F$4,$F$5)) -> 0.2992148426 | W153: 0.5131368408 | X153: 2.018408081 | Y153: =IF(X153="","",BScall(($C$14-$C$2)/365,U153,$C$20,V153)*X153) -> 2.445110036e-05 | Z153: 1.216070961e-07 | AC153: =IF(AB153="","",_xll.qlSabrVolatility(AB153,$C$20,($C$14-$C$2)/365,$F$3,$F$6,$F$4,$F$5)) ->  | AF153: =IF(AE153="","",BSput(($C$14-$C$2)/365,AB153,$C$20,AC153)*AE153) -> 
I154: 0.74 | J154: =IF(I154="","",_xll.qlSabrVolatility(I154,$C$20,($C$14-$C$2)/365,$F$3,$F$6,$F$4,$F$5)) -> 0.2998138383 | K154: =IF(I154="","",$C$23*BScall(($C$14-$C$2)/365,I154,$C$20,J154)) -> 8.359660621e-05 | L154: 0.7429204504 | M154: =IF(I155="","",(L155*(I155-$I$12)-I155*SUM($M$12:M153)+SUMPRODUCT($M$12:M153,$I$12:I153))/(I155-I154)) -> 0.01009016726 | P154: =IF(O154="","",_xll.qlSabrVolatility(O154,$C$20,($C$14-$C$2)/365,$F$3,$F$6,$F$4,$F$5)) ->  | Q154: =IF(O154="","",$C$23*BSput(($C$14-$C$2)/365,O154,$C$20,P154)) ->  | S154: =IF(O155="","",(R155*(O155-$O$12)-O155*SUM($S$12:S153)+SUMPRODUCT($S$12:S153,$O$12:O153))/(O155-O154)) ->  | U154: 0.735 | V154: =IF(U154="","",_xll.qlSabrVolatility(U154,$C$20,($C$14-$C$2)/365,$F$3,$F$6,$F$4,$F$5)) -> 0.2995153188 | W154: 0.5202799525 | X154: 2.018221822 | Y154: =IF(X154="","",BScall(($C$14-$C$2)/365,U154,$C$20,V154)*X154) -> 2.419173809e-05 | Z154: 1.203225221e-07 | AC154: =IF(AB154="","",_xll.qlSabrVolatility(AB154,$C$20,($C$14-$C$2)/365,$F$3,$F$6,$F$4,$F$5)) ->  | AF154: =IF(AE154="","",BSput(($C$14-$C$2)/365,AB154,$C$20,AC154)*AE154) -> 
I155: 0.745 | J155: =IF(I155="","",_xll.qlSabrVolatility(I155,$C$20,($C$14-$C$2)/365,$F$3,$F$6,$F$4,$F$5)) -> 0.3001104259 | K155: =IF(I155="","",$C$23*BScall(($C$14-$C$2)/365,I155,$C$20,J155)) -> 8.273237469e-05 | L155: 0.7478566963 | M155: =IF(I156="","",(L156*(I156-$I$12)-I156*SUM($M$12:M154)+SUMPRODUCT($M$12:M154,$I$12:I154))/(I156-I155)) -> 0.01008921614 | P155: =IF(O155="","",_xll.qlSabrVolatility(O155,$C$20,($C$14-$C$2)/365,$F$3,$F$6,$F$4,$F$5)) ->  | Q155: =IF(O155="","",$C$23*BSput(($C$14-$C$2)/365,O155,$C$20,P155)) ->  | S155: =IF(O156="","",(R156*(O156-$O$12)-O156*SUM($S$12:S154)+SUMPRODUCT($S$12:S154,$O$12:O154))/(O156-O155)) ->  | U155: 0.74 | V155: =IF(U155="","",_xll.qlSabrVolatility(U155,$C$20,($C$14-$C$2)/365,$F$3,$F$6,$F$4,$F$5)) -> 0.2998138383 | W155: 0.5274735198 | X155: 2.018033452 | Y155: =IF(X155="","",BScall(($C$14-$C$2)/365,U155,$C$20,V155)*X155) -> 2.393727076e-05 | Z155: 1.190621054e-07 | AC155: =IF(AB155="","",_xll.qlSabrVolatility(AB155,$C$20,($C$14-$C$2)/365,$F$3,$F$6,$F$4,$F$5)) ->  | AF155: =IF(AE155="","",BSput(($C$14-$C$2)/365,AB155,$C$20,AC155)*AE155) -> 
I156: 0.75 | J156: =IF(I156="","",_xll.qlSabrVolatility(I156,$C$20,($C$14-$C$2)/365,$F$3,$F$6,$F$4,$F$5)) -> 0.3004051058 | K156: =IF(I156="","",$C$23*BScall(($C$14-$C$2)/365,I156,$C$20,J156)) -> 8.188427094e-05 | L156: 0.7527944473 | M156: =IF(I157="","",(L157*(I157-$I$12)-I157*SUM($M$12:M155)+SUMPRODUCT($M$12:M155,$I$12:I155))/(I157-I156)) -> 0.01008825694 | P156: =IF(O156="","",_xll.qlSabrVolatility(O156,$C$20,($C$14-$C$2)/365,$F$3,$F$6,$F$4,$F$5)) ->  | Q156: =IF(O156="","",$C$23*BSput(($C$14-$C$2)/365,O156,$C$20,P156)) ->  | S156: =IF(O157="","",(R157*(O157-$O$12)-O157*SUM($S$12:S155)+SUMPRODUCT($S$12:S155,$O$12:O155))/(O157-O156)) ->  | U156: 0.745 | V156: =IF(U156="","",_xll.qlSabrVolatility(U156,$C$20,($C$14-$C$2)/365,$F$3,$F$6,$F$4,$F$5)) -> 0.3001104259 | W156: 0.5347175379 | X156: 2.017843228 | Y156: =IF(X156="","",BScall(($C$14-$C$2)/365,U156,$C$20,V156)*X156) -> 2.368757139e-05 | Z156: 1.178252212e-07 | AC156: =IF(AB156="","",_xll.qlSabrVolatility(AB156,$C$20,($C$14-$C$2)/365,$F$3,$F$6,$F$4,$F$5)) ->  | AF156: =IF(AE156="","",BSput(($C$14-$C$2)/365,AB156,$C$20,AC156)*AE156) -> 
I157: 0.755 | J157: =IF(I157="","",_xll.qlSabrVolatility(I157,$C$20,($C$14-$C$2)/365,$F$3,$F$6,$F$4,$F$5)) -> 0.300697902 | K157: =IF(I157="","",$C$23*BScall(($C$14-$C$2)/365,I157,$C$20,J157)) -> 8.105187298e-05 | L157: 0.7577336655 | M157: =IF(I158="","",(L158*(I158-$I$12)-I158*SUM($M$12:M156)+SUMPRODUCT($M$12:M156,$I$12:I156))/(I158-I157)) -> 0.01008729081 | P157: =IF(O157="","",_xll.qlSabrVolatility(O157,$C$20,($C$14-$C$2)/365,$F$3,$F$6,$F$4,$F$5)) ->  | Q157: =IF(O157="","",$C$23*BSput(($C$14-$C$2)/365,O157,$C$20,P157)) ->  | S157: =IF(O158="","",(R158*(O158-$O$12)-O158*SUM($S$12:S156)+SUMPRODUCT($S$12:S156,$O$12:O156))/(O158-O157)) ->  | U157: 0.75 | V157: =IF(U157="","",_xll.qlSabrVolatility(U157,$C$20,($C$14-$C$2)/365,$F$3,$F$6,$F$4,$F$5)) -> 0.3004051058 | W157: 0.542012002 | X157: 2.017651388 | Y157: =IF(X157="","",BScall(($C$14-$C$2)/365,U157,$C$20,V157)*X157) -> 2.344251711e-05 | Z157: 1.166112653e-07 | AC157: =IF(AB157="","",_xll.qlSabrVolatility(AB157,$C$20,($C$14-$C$2)/365,$F$3,$F$6,$F$4,$F$5)) ->  | AF157: =IF(AE157="","",BSput(($C$14-$C$2)/365,AB157,$C$20,AC157)*AE157) -> 
I158: 0.76 | J158: =IF(I158="","",_xll.qlSabrVolatility(I158,$C$20,($C$14-$C$2)/365,$F$3,$F$6,$F$4,$F$5)) -> 0.3009888377 | K158: =IF(I158="","",$C$23*BScall(($C$14-$C$2)/365,I158,$C$20,J158)) -> 8.023477286e-05 | L158: 0.7626743143 | M158: =IF(I159="","",(L159*(I159-$I$12)-I159*SUM($M$12:M157)+SUMPRODUCT($M$12:M157,$I$12:I157))/(I159-I158)) -> 0.01008631882 | P158: =IF(O158="","",_xll.qlSabrVolatility(O158,$C$20,($C$14-$C$2)/365,$F$3,$F$6,$F$4,$F$5)) ->  | Q158: =IF(O158="","",$C$23*BSput(($C$14-$C$2)/365,O158,$C$20,P158)) ->  | S158: =IF(O159="","",(R159*(O159-$O$12)-O159*SUM($S$12:S157)+SUMPRODUCT($S$12:S157,$O$12:O157))/(O159-O158)) ->  | U158: 0.755 | V158: =IF(U158="","",_xll.qlSabrVolatility(U158,$C$20,($C$14-$C$2)/365,$F$3,$F$6,$F$4,$F$5)) -> 0.300697902 | W158: 0.5493569075 | X158: 2.017458161 | Y158: =IF(X158="","",BScall(($C$14-$C$2)/365,U158,$C$20,V158)*X158) -> 2.3201989e-05 | Z158: 1.154196525e-07 | AC158: =IF(AB158="","",_xll.qlSabrVolatility(AB158,$C$20,($C$14-$C$2)/365,$F$3,$F$6,$F$4,$F$5)) ->  | AF158: =IF(AE158="","",BSput(($C$14-$C$2)/365,AB158,$C$20,AC158)*AE158) -> 
I159: 0.765 | J159: =IF(I159="","",_xll.qlSabrVolatility(I159,$C$20,($C$14-$C$2)/365,$F$3,$F$6,$F$4,$F$5)) -> 0.301277936 | K159: =IF(I159="","",$C$23*BScall(($C$14-$C$2)/365,I159,$C$20,J159)) -> 7.943257614e-05 | L159: 0.7676163577 | M159: =IF(I160="","",(L160*(I160-$I$12)-I160*SUM($M$12:M158)+SUMPRODUCT($M$12:M158,$I$12:I158))/(I160-I159)) -> 0.01008534202 | P159: =IF(O159="","",_xll.qlSabrVolatility(O159,$C$20,($C$14-$C$2)/365,$F$3,$F$6,$F$4,$F$5)) ->  | Q159: =IF(O159="","",$C$23*BSput(($C$14-$C$2)/365,O159,$C$20,P159)) ->  | S159: =IF(O160="","",(R160*(O160-$O$12)-O160*SUM($S$12:S158)+SUMPRODUCT($S$12:S158,$O$12:O158))/(O160-O159)) ->  | U159: 0.76 | V159: =IF(U159="","",_xll.qlSabrVolatility(U159,$C$20,($C$14-$C$2)/365,$F$3,$F$6,$F$4,$F$5)) -> 0.3009888377 | W159: 0.5567522494 | X159: 2.017263765 | Y159: =IF(X159="","",BScall(($C$14-$C$2)/365,U159,$C$20,V159)*X159) -> 2.296587198e-05 | Z159: 1.142498164e-07 | AC159: =IF(AB159="","",_xll.qlSabrVolatility(AB159,$C$20,($C$14-$C$2)/365,$F$3,$F$6,$F$4,$F$5)) ->  | AF159: =IF(AE159="","",BSput(($C$14-$C$2)/365,AB159,$C$20,AC159)*AE159) -> 
I160: 0.77 | J160: =IF(I160="","",_xll.qlSabrVolatility(I160,$C$20,($C$14-$C$2)/365,$F$3,$F$6,$F$4,$F$5)) -> 0.3015652194 | K160: =IF(I160="","",$C$23*BScall(($C$14-$C$2)/365,I160,$C$20,J160)) -> 7.864490134e-05 | L160: 0.772559761 | M160: =IF(I161="","",(L161*(I161-$I$12)-I161*SUM($M$12:M159)+SUMPRODUCT($M$12:M159,$I$12:I159))/(I161-I160)) -> 0.01008436136 | P160: =IF(O160="","",_xll.qlSabrVolatility(O160,$C$20,($C$14-$C$2)/365,$F$3,$F$6,$F$4,$F$5)) ->  | Q160: =IF(O160="","",$C$23*BSput(($C$14-$C$2)/365,O160,$C$20,P160)) ->  | S160: =IF(O161="","",(R161*(O161-$O$12)-O161*SUM($S$12:S159)+SUMPRODUCT($S$12:S159,$O$12:O159))/(O161-O160)) ->  | U160: 0.765 | V160: =IF(U160="","",_xll.qlSabrVolatility(U160,$C$20,($C$14-$C$2)/365,$F$3,$F$6,$F$4,$F$5)) -> 0.301277936 | W160: 0.5641980229 | X160: 2.017068403 | Y160: =IF(X160="","",BScall(($C$14-$C$2)/365,U160,$C$20,V160)*X160) -> 2.273405459e-05 | Z160: 1.131012088e-07 | AC160: =IF(AB160="","",_xll.qlSabrVolatility(AB160,$C$20,($C$14-$C$2)/365,$F$3,$F$6,$F$4,$F$5)) ->  | AF160: =IF(AE160="","",BSput(($C$14-$C$2)/365,AB160,$C$20,AC160)*AE160) -> 
I161: 0.775 | J161: =IF(I161="","",_xll.qlSabrVolatility(I161,$C$20,($C$14-$C$2)/365,$F$3,$F$6,$F$4,$F$5)) -> 0.3018507102 | K161: =IF(I161="","",$C$23*BScall(($C$14-$C$2)/365,I161,$C$20,J161)) -> 7.787137941e-05 | L161: 0.7775044902 | M161: =IF(I162="","",(L162*(I162-$I$12)-I162*SUM($M$12:M160)+SUMPRODUCT($M$12:M160,$I$12:I160))/(I162-I161)) -> 0.01008337776 | P161: =IF(O161="","",_xll.qlSabrVolatility(O161,$C$20,($C$14-$C$2)/365,$F$3,$F$6,$F$4,$F$5)) ->  | Q161: =IF(O161="","",$C$23*BSput(($C$14-$C$2)/365,O161,$C$20,P161)) ->  | S161: =IF(O162="","",(R162*(O162-$O$12)-O162*SUM($S$12:S160)+SUMPRODUCT($S$12:S160,$O$12:O160))/(O162-O161)) ->  | U161: 0.77 | V161: =IF(U161="","",_xll.qlSabrVolatility(U161,$C$20,($C$14-$C$2)/365,$F$3,$F$6,$F$4,$F$5)) -> 0.3015652194 | W161: 0.5716942232 | X161: 2.016872271 | Y161: =IF(X161="","",BScall(($C$14-$C$2)/365,U161,$C$20,V161)*X161) -> 2.250642894e-05 | Z161: 1.119732985e-07 | AC161: =IF(AB161="","",_xll.qlSabrVolatility(AB161,$C$20,($C$14-$C$2)/365,$F$3,$F$6,$F$4,$F$5)) ->  | AF161: =IF(AE161="","",BSput(($C$14-$C$2)/365,AB161,$C$20,AC161)*AE161) -> 
I162: 0.78 | J162: =IF(I162="","",_xll.qlSabrVolatility(I162,$C$20,($C$14-$C$2)/365,$F$3,$F$6,$F$4,$F$5)) -> 0.3021344299 | K162: =IF(I162="","",$C$23*BScall(($C$14-$C$2)/365,I162,$C$20,J162)) -> 7.711165325e-05 | L162: 0.7824505121 | M162: =IF(I163="","",(L163*(I163-$I$12)-I163*SUM($M$12:M161)+SUMPRODUCT($M$12:M161,$I$12:I161))/(I163-I162)) -> 0.0100823921 | P162: =IF(O162="","",_xll.qlSabrVolatility(O162,$C$20,($C$14-$C$2)/365,$F$3,$F$6,$F$4,$F$5)) ->  | Q162: =IF(O162="","",$C$23*BSput(($C$14-$C$2)/365,O162,$C$20,P162)) ->  | S162: =IF(O163="","",(R163*(O163-$O$12)-O163*SUM($S$12:S161)+SUMPRODUCT($S$12:S161,$O$12:O161))/(O163-O162)) ->  | U162: 0.775 | V162: =IF(U162="","",_xll.qlSabrVolatility(U162,$C$20,($C$14-$C$2)/365,$F$3,$F$6,$F$4,$F$5)) -> 0.3018507102 | W162: 0.5792408452 | X162: 2.016675552 | Y162: =IF(X162="","",BScall(($C$14-$C$2)/365,U162,$C$20,V162)*X162) -> 2.228289048e-05 | Z162: 1.108655711e-07 | AC162: =IF(AB162="","",_xll.qlSabrVolatility(AB162,$C$20,($C$14-$C$2)/365,$F$3,$F$6,$F$4,$F$5)) ->  | AF162: =IF(AE162="","",BSput(($C$14-$C$2)/365,AB162,$C$20,AC162)*AE162) -> 
I163: 0.785 | J163: =IF(I163="","",_xll.qlSabrVolatility(I163,$C$20,($C$14-$C$2)/365,$F$3,$F$6,$F$4,$F$5)) -> 0.3024164001 | K163: =IF(I163="","",$C$23*BScall(($C$14-$C$2)/365,I163,$C$20,J163)) -> 7.636537726e-05 | L163: 0.7873977947 | M163: =IF(I164="","",(L164*(I164-$I$12)-I164*SUM($M$12:M162)+SUMPRODUCT($M$12:M162,$I$12:I162))/(I164-I163)) -> 0.01008140519 | P163: =IF(O163="","",_xll.qlSabrVolatility(O163,$C$20,($C$14-$C$2)/365,$F$3,$F$6,$F$4,$F$5)) ->  | Q163: =IF(O163="","",$C$23*BSput(($C$14-$C$2)/365,O163,$C$20,P163)) ->  | S163: =IF(O164="","",(R164*(O164-$O$12)-O164*SUM($S$12:S162)+SUMPRODUCT($S$12:S162,$O$12:O162))/(O164-O163)) ->  | U163: 0.78 | V163: =IF(U163="","",_xll.qlSabrVolatility(U163,$C$20,($C$14-$C$2)/365,$F$3,$F$6,$F$4,$F$5)) -> 0.3021344299 | W163: 0.5868378841 | X163: 2.01647842 | Y163: =IF(X163="","",BScall(($C$14-$C$2)/365,U163,$C$20,V163)*X163) -> 2.206333796e-05 | Z163: 1.09777528e-07 | AC163: =IF(AB163="","",_xll.qlSabrVolatility(AB163,$C$20,($C$14-$C$2)/365,$F$3,$F$6,$F$4,$F$5)) ->  | AF163: =IF(AE163="","",BSput(($C$14-$C$2)/365,AB163,$C$20,AC163)*AE163) -> 
I164: 0.79 | J164: =IF(I164="","",_xll.qlSabrVolatility(I164,$C$20,($C$14-$C$2)/365,$F$3,$F$6,$F$4,$F$5)) -> 0.3026966416 | K164: =IF(I164="","",$C$23*BScall(($C$14-$C$2)/365,I164,$C$20,J164)) -> 7.563221685e-05 | L164: 0.7923463064 | M164: =IF(I165="","",(L165*(I165-$I$12)-I165*SUM($M$12:M163)+SUMPRODUCT($M$12:M163,$I$12:I163))/(I165-I164)) -> 0.01008041782 | P164: =IF(O164="","",_xll.qlSabrVolatility(O164,$C$20,($C$14-$C$2)/365,$F$3,$F$6,$F$4,$F$5)) ->  | Q164: =IF(O164="","",$C$23*BSput(($C$14-$C$2)/365,O164,$C$20,P164)) ->  | S164: =IF(O165="","",(R165*(O165-$O$12)-O165*SUM($S$12:S163)+SUMPRODUCT($S$12:S163,$O$12:O163))/(O165-O164)) ->  | U164: 0.785 | V164: =IF(U164="","",_xll.qlSabrVolatility(U164,$C$20,($C$14-$C$2)/365,$F$3,$F$6,$F$4,$F$5)) -> 0.3024164001 | W164: 0.594485335 | X164: 2.016281039 | Y164: =IF(X164="","",BScall(($C$14-$C$2)/365,U164,$C$20,V164)*X164) -> 2.184767326e-05 | Z164: 1.087086863e-07 | AC164: =IF(AB164="","",_xll.qlSabrVolatility(AB164,$C$20,($C$14-$C$2)/365,$F$3,$F$6,$F$4,$F$5)) ->  | AF164: =IF(AE164="","",BSput(($C$14-$C$2)/365,AB164,$C$20,AC164)*AE164) -> 
I165: 0.795 | J165: =IF(I165="","",_xll.qlSabrVolatility(I165,$C$20,($C$14-$C$2)/365,$F$3,$F$6,$F$4,$F$5)) -> 0.3029751752 | K165: =IF(I165="","",$C$23*BScall(($C$14-$C$2)/365,I165,$C$20,J165)) -> 7.491184806e-05 | L165: 0.7972960168 | M165: =IF(I166="","",(L166*(I166-$I$12)-I166*SUM($M$12:M164)+SUMPRODUCT($M$12:M164,$I$12:I164))/(I166-I165)) -> 0.01007943071 | P165: =IF(O165="","",_xll.qlSabrVolatility(O165,$C$20,($C$14-$C$2)/365,$F$3,$F$6,$F$4,$F$5)) ->  | Q165: =IF(O165="","",$C$23*BSput(($C$14-$C$2)/365,O165,$C$20,P165)) ->  | S165: =IF(O166="","",(R166*(O166-$O$12)-O166*SUM($S$12:S164)+SUMPRODUCT($S$12:S164,$O$12:O164))/(O166-O165)) ->  | U165: 0.79 | V165: =IF(U165="","",_xll.qlSabrVolatility(U165,$C$20,($C$14-$C$2)/365,$F$3,$F$6,$F$4,$F$5)) -> 0.3026966416 | W165: 0.6021831929 | X165: 2.016083564 | Y165: =IF(X165="","",BScall(($C$14-$C$2)/365,U165,$C$20,V165)*X165) -> 2.163580127e-05 | Z165: 1.076585778e-07 | AC165: =IF(AB165="","",_xll.qlSabrVolatility(AB165,$C$20,($C$14-$C$2)/365,$F$3,$F$6,$F$4,$F$5)) ->  | AF165: =IF(AE165="","",BSput(($C$14-$C$2)/365,AB165,$C$20,AC165)*AE165) -> 
I166: 0.8 | J166: =IF(I166="","",_xll.qlSabrVolatility(I166,$C$20,($C$14-$C$2)/365,$F$3,$F$6,$F$4,$F$5)) -> 0.3032520211 | K166: =IF(I166="","",$C$23*BScall(($C$14-$C$2)/365,I166,$C$20,J166)) -> 7.420395715e-05 | L166: 0.8022468961 | M166: =IF(I167="","",(L167*(I167-$I$12)-I167*SUM($M$12:M165)+SUMPRODUCT($M$12:M165,$I$12:I165))/(I167-I166)) -> 0.01007844456 | P166: =IF(O166="","",_xll.qlSabrVolatility(O166,$C$20,($C$14-$C$2)/365,$F$3,$F$6,$F$4,$F$5)) ->  | Q166: =IF(O166="","",$C$23*BSput(($C$14-$C$2)/365,O166,$C$20,P166)) ->  | S166: =IF(O167="","",(R167*(O167-$O$12)-O167*SUM($S$12:S165)+SUMPRODUCT($S$12:S165,$O$12:O165))/(O167-O166)) ->  | U166: 0.795 | V166: =IF(U166="","",_xll.qlSabrVolatility(U166,$C$20,($C$14-$C$2)/365,$F$3,$F$6,$F$4,$F$5)) -> 0.3029751752 | W166: 0.6099314529 | X166: 2.015886143 | Y166: =IF(X166="","",BScall(($C$14-$C$2)/365,U166,$C$20,V166)*X166) -> 2.142762983e-05 | Z166: 1.066267484e-07 | AC166: =IF(AB166="","",_xll.qlSabrVolatility(AB166,$C$20,($C$14-$C$2)/365,$F$3,$F$6,$F$4,$F$5)) ->  | AF166: =IF(AE166="","",BSput(($C$14-$C$2)/365,AB166,$C$20,AC166)*AE166) -> 
I167: 0.805 | J167: =IF(I167="","",_xll.qlSabrVolatility(I167,$C$20,($C$14-$C$2)/365,$F$3,$F$6,$F$4,$F$5)) -> 0.3035271991 | K167: =IF(I167="","",$C$23*BScall(($C$14-$C$2)/365,I167,$C$20,J167)) -> 7.350824015e-05 | L167: 0.8071989153 | M167: =IF(I168="","",(L168*(I168-$I$12)-I168*SUM($M$12:M166)+SUMPRODUCT($M$12:M166,$I$12:I166))/(I168-I167)) -> 0.01007746001 | P167: =IF(O167="","",_xll.qlSabrVolatility(O167,$C$20,($C$14-$C$2)/365,$F$3,$F$6,$F$4,$F$5)) ->  | Q167: =IF(O167="","",$C$23*BSput(($C$14-$C$2)/365,O167,$C$20,P167)) ->  | S167: =IF(O168="","",(R168*(O168-$O$12)-O168*SUM($S$12:S166)+SUMPRODUCT($S$12:S166,$O$12:O166))/(O168-O167)) ->  | U167: 0.8 | V167: =IF(U167="","",_xll.qlSabrVolatility(U167,$C$20,($C$14-$C$2)/365,$F$3,$F$6,$F$4,$F$5)) -> 0.3032520211 | W167: 0.61773011 | X167: 2.015688912 | Y167: =IF(X167="","",BScall(($C$14-$C$2)/365,U167,$C$20,V167)*X167) -> 2.122306955e-05 | Z167: 1.056127583e-07 | AC167: =IF(AB167="","",_xll.qlSabrVolatility(AB167,$C$20,($C$14-$C$2)/365,$F$3,$F$6,$F$4,$F$5)) ->  | AF167: =IF(AE167="","",BSput(($C$14-$C$2)/365,AB167,$C$20,AC167)*AE167) -> 
I168: 0.81 | J168: =IF(I168="","",_xll.qlSabrVolatility(I168,$C$20,($C$14-$C$2)/365,$F$3,$F$6,$F$4,$F$5)) -> 0.3038007289 | K168: =IF(I168="","",$C$23*BScall(($C$14-$C$2)/365,I168,$C$20,J168)) -> 7.282440257e-05 | L168: 0.8121520462 | M168: =IF(I169="","",(L169*(I169-$I$12)-I169*SUM($M$12:M167)+SUMPRODUCT($M$12:M167,$I$12:I167))/(I169-I168)) -> 0.01007647769 | P168: =IF(O168="","",_xll.qlSabrVolatility(O168,$C$20,($C$14-$C$2)/365,$F$3,$F$6,$F$4,$F$5)) ->  | Q168: =IF(O168="","",$C$23*BSput(($C$14-$C$2)/365,O168,$C$20,P168)) ->  | S168: =IF(O169="","",(R169*(O169-$O$12)-O169*SUM($S$12:S167)+SUMPRODUCT($S$12:S167,$O$12:O167))/(O169-O168)) ->  | U168: 0.805 | V168: =IF(U168="","",_xll.qlSabrVolatility(U168,$C$20,($C$14-$C$2)/365,$F$3,$F$6,$F$4,$F$5)) -> 0.3035271991 | W168: 0.6255791594 | X168: 2.015492003 | Y168: =IF(X168="","",BScall(($C$14-$C$2)/365,U168,$C$20,V168)*X168) -> 2.102203376e-05 | Z168: 1.046161804e-07 | AC168: =IF(AB168="","",_xll.qlSabrVolatility(AB168,$C$20,($C$14-$C$2)/365,$F$3,$F$6,$F$4,$F$5)) ->  | AF168: =IF(AE168="","",BSput(($C$14-$C$2)/365,AB168,$C$20,AC168)*AE168) -> 
I169: 0.815 | J169: =IF(I169="","",_xll.qlSabrVolatility(I169,$C$20,($C$14-$C$2)/365,$F$3,$F$6,$F$4,$F$5)) -> 0.3040726297 | K169: =IF(I169="","",$C$23*BScall(($C$14-$C$2)/365,I169,$C$20,J169)) -> 7.2152159e-05 | L169: 0.8171062613 | M169: =IF(I170="","",(L170*(I170-$I$12)-I170*SUM($M$12:M168)+SUMPRODUCT($M$12:M168,$I$12:I168))/(I170-I169)) -> 0.01007549815 | P169: =IF(O169="","",_xll.qlSabrVolatility(O169,$C$20,($C$14-$C$2)/365,$F$3,$F$6,$F$4,$F$5)) ->  | Q169: =IF(O169="","",$C$23*BSput(($C$14-$C$2)/365,O169,$C$20,P169)) ->  | S169: =IF(O170="","",(R170*(O170-$O$12)-O170*SUM($S$12:S168)+SUMPRODUCT($S$12:S168,$O$12:O168))/(O170-O169)) ->  | U169: 0.81 | V169: =IF(U169="","",_xll.qlSabrVolatility(U169,$C$20,($C$14-$C$2)/365,$F$3,$F$6,$F$4,$F$5)) -> 0.3038007289 | W169: 0.6334785961 | X169: 2.015295537 | Y169: =IF(X169="","",BScall(($C$14-$C$2)/365,U169,$C$20,V169)*X169) -> 2.08244384e-05 | Z169: 1.036366008e-07 | AC169: =IF(AB169="","",_xll.qlSabrVolatility(AB169,$C$20,($C$14-$C$2)/365,$F$3,$F$6,$F$4,$F$5)) ->  | AF169: =IF(AE169="","",BSput(($C$14-$C$2)/365,AB169,$C$20,AC169)*AE169) -> 
I170: 0.82 | J170: =IF(I170="","",_xll.qlSabrVolatility(I170,$C$20,($C$14-$C$2)/365,$F$3,$F$6,$F$4,$F$5)) -> 0.3043429204 | K170: =IF(I170="","",$C$23*BScall(($C$14-$C$2)/365,I170,$C$20,J170)) -> 7.149123278e-05 | L170: 0.8220615337 | M170: =IF(I171="","",(L171*(I171-$I$12)-I171*SUM($M$12:M169)+SUMPRODUCT($M$12:M169,$I$12:I169))/(I171-I170)) -> 0.01007452196 | P170: =IF(O170="","",_xll.qlSabrVolatility(O170,$C$20,($C$14-$C$2)/365,$F$3,$F$6,$F$4,$F$5)) ->  | Q170: =IF(O170="","",$C$23*BSput(($C$14-$C$2)/365,O170,$C$20,P170)) ->  | S170: =IF(O171="","",(R171*(O171-$O$12)-O171*SUM($S$12:S169)+SUMPRODUCT($S$12:S169,$O$12:O169))/(O171-O170)) ->  | U170: 0.815 | V170: =IF(U170="","",_xll.qlSabrVolatility(U170,$C$20,($C$14-$C$2)/365,$F$3,$F$6,$F$4,$F$5)) -> 0.3040726297 | W170: 0.6414284151 | X170: 2.015099631 | Y170: =IF(X170="","",BScall(($C$14-$C$2)/365,U170,$C$20,V170)*X170) -> 2.063020193e-05 | Z170: 1.026736178e-07 | AC170: =IF(AB170="","",_xll.qlSabrVolatility(AB170,$C$20,($C$14-$C$2)/365,$F$3,$F$6,$F$4,$F$5)) ->  | AF170: =IF(AE170="","",BSput(($C$14-$C$2)/365,AB170,$C$20,AC170)*AE170) -> 
I171: 0.825 | J171: =IF(I171="","",_xll.qlSabrVolatility(I171,$C$20,($C$14-$C$2)/365,$F$3,$F$6,$F$4,$F$5)) -> 0.3046116195 | K171: =IF(I171="","",$C$23*BScall(($C$14-$C$2)/365,I171,$C$20,J171)) -> 7.084135568e-05 | L171: 0.8270178375 | M171: =IF(I172="","",(L172*(I172-$I$12)-I172*SUM($M$12:M170)+SUMPRODUCT($M$12:M170,$I$12:I170))/(I172-I171)) -> 0.0100735496 | P171: =IF(O171="","",_xll.qlSabrVolatility(O171,$C$20,($C$14-$C$2)/365,$F$3,$F$6,$F$4,$F$5)) ->  | Q171: =IF(O171="","",$C$23*BSput(($C$14-$C$2)/365,O171,$C$20,P171)) ->  | S171: =IF(O172="","",(R172*(O172-$O$12)-O172*SUM($S$12:S170)+SUMPRODUCT($S$12:S170,$O$12:O170))/(O172-O171)) ->  | U171: 0.82 | V171: =IF(U171="","",_xll.qlSabrVolatility(U171,$C$20,($C$14-$C$2)/365,$F$3,$F$6,$F$4,$F$5)) -> 0.3043429204 | W171: 0.6494286117 | X171: 2.014904391 | Y171: =IF(X171="","",BScall(($C$14-$C$2)/365,U171,$C$20,V171)*X171) -> 2.043924521e-05 | Z171: 1.017268417e-07 | AC171: =IF(AB171="","",_xll.qlSabrVolatility(AB171,$C$20,($C$14-$C$2)/365,$F$3,$F$6,$F$4,$F$5)) ->  | AF171: =IF(AE171="","",BSput(($C$14-$C$2)/365,AB171,$C$20,AC171)*AE171) -> 
I172: 0.83 | J172: =IF(I172="","",_xll.qlSabrVolatility(I172,$C$20,($C$14-$C$2)/365,$F$3,$F$6,$F$4,$F$5)) -> 0.3048787453 | K172: =IF(I172="","",$C$23*BScall(($C$14-$C$2)/365,I172,$C$20,J172)) -> 7.020226758e-05 | L172: 0.8319751471 | M172: =IF(I173="","",(L173*(I173-$I$12)-I173*SUM($M$12:M171)+SUMPRODUCT($M$12:M171,$I$12:I171))/(I173-I172)) -> 0.01007258157 | P172: =IF(O172="","",_xll.qlSabrVolatility(O172,$C$20,($C$14-$C$2)/365,$F$3,$F$6,$F$4,$F$5)) ->  | Q172: =IF(O172="","",$C$23*BSput(($C$14-$C$2)/365,O172,$C$20,P172)) ->  | S172: =IF(O173="","",(R173*(O173-$O$12)-O173*SUM($S$12:S171)+SUMPRODUCT($S$12:S171,$O$12:O171))/(O173-O172)) ->  | U172: 0.825 | V172: =IF(U172="","",_xll.qlSabrVolatility(U172,$C$20,($C$14-$C$2)/365,$F$3,$F$6,$F$4,$F$5)) -> 0.3046116195 | W172: 0.6574791808 | X172: 2.014709921 | Y172: =IF(X172="","",BScall(($C$14-$C$2)/365,U172,$C$20,V172)*X172) -> 2.025149145e-05 | Z172: 1.00795894e-07 | AC172: =IF(AB172="","",_xll.qlSabrVolatility(AB172,$C$20,($C$14-$C$2)/365,$F$3,$F$6,$F$4,$F$5)) ->  | AF172: =IF(AE172="","",BSput(($C$14-$C$2)/365,AB172,$C$20,AC172)*AE172) -> 
I173: 0.835 | J173: =IF(I173="","",_xll.qlSabrVolatility(I173,$C$20,($C$14-$C$2)/365,$F$3,$F$6,$F$4,$F$5)) -> 0.3051443158 | K173: =IF(I173="","",$C$23*BScall(($C$14-$C$2)/365,I173,$C$20,J173)) -> 6.957371618e-05 | L173: 0.8369334379 | M173: =IF(I174="","",(L174*(I174-$I$12)-I174*SUM($M$12:M172)+SUMPRODUCT($M$12:M172,$I$12:I172))/(I174-I173)) -> 0.0100716183 | P173: =IF(O173="","",_xll.qlSabrVolatility(O173,$C$20,($C$14-$C$2)/365,$F$3,$F$6,$F$4,$F$5)) ->  | Q173: =IF(O173="","",$C$23*BSput(($C$14-$C$2)/365,O173,$C$20,P173)) ->  | S173: =IF(O174="","",(R174*(O174-$O$12)-O174*SUM($S$12:S172)+SUMPRODUCT($S$12:S172,$O$12:O172))/(O174-O173)) ->  | U173: 0.83 | V173: =IF(U173="","",_xll.qlSabrVolatility(U173,$C$20,($C$14-$C$2)/365,$F$3,$F$6,$F$4,$F$5)) -> 0.3048787453 | W173: 0.6655801177 | X173: 2.014516314 | Y173: =IF(X173="","",BScall(($C$14-$C$2)/365,U173,$C$20,V173)*X173) -> 2.006686614e-05 | Z173: 9.988040762e-08 | AC173: =IF(AB173="","",_xll.qlSabrVolatility(AB173,$C$20,($C$14-$C$2)/365,$F$3,$F$6,$F$4,$F$5)) ->  | AF173: =IF(AE173="","",BSput(($C$14-$C$2)/365,AB173,$C$20,AC173)*AE173) -> 
I174: 0.84 | J174: =IF(I174="","",_xll.qlSabrVolatility(I174,$C$20,($C$14-$C$2)/365,$F$3,$F$6,$F$4,$F$5)) -> 0.3054083487 | K174: =IF(I174="","",$C$23*BScall(($C$14-$C$2)/365,I174,$C$20,J174)) -> 6.895545672e-05 | L174: 0.8418926857 | M174: =IF(I175="","",(L175*(I175-$I$12)-I175*SUM($M$12:M173)+SUMPRODUCT($M$12:M173,$I$12:I173))/(I175-I174)) -> 0.01007066022 | P174: =IF(O174="","",_xll.qlSabrVolatility(O174,$C$20,($C$14-$C$2)/365,$F$3,$F$6,$F$4,$F$5)) ->  | Q174: =IF(O174="","",$C$23*BSput(($C$14-$C$2)/365,O174,$C$20,P174)) ->  | S174: =IF(O175="","",(R175*(O175-$O$12)-O175*SUM($S$12:S173)+SUMPRODUCT($S$12:S173,$O$12:O173))/(O175-O174)) ->  | U174: 0.835 | V174: =IF(U174="","",_xll.qlSabrVolatility(U174,$C$20,($C$14-$C$2)/365,$F$3,$F$6,$F$4,$F$5)) -> 0.3051443158 | W174: 0.6737314175 | X174: 2.014323661 | Y174: =IF(X174="","",BScall(($C$14-$C$2)/365,U174,$C$20,V174)*X174) -> 1.988529691e-05 | Z174: 9.898002603e-08 | AC174: =IF(AB174="","",_xll.qlSabrVolatility(AB174,$C$20,($C$14-$C$2)/365,$F$3,$F$6,$F$4,$F$5)) ->  | AF174: =IF(AE174="","",BSput(($C$14-$C$2)/365,AB174,$C$20,AC174)*AE174) -> 
I175: 0.845 | J175: =IF(I175="","",_xll.qlSabrVolatility(I175,$C$20,($C$14-$C$2)/365,$F$3,$F$6,$F$4,$F$5)) -> 0.3056708611 | K175: =IF(I175="","",$C$23*BScall(($C$14-$C$2)/365,I175,$C$20,J175)) -> 6.834725169e-05 | L175: 0.846852867 | M175: =IF(I176="","",(L176*(I176-$I$12)-I176*SUM($M$12:M174)+SUMPRODUCT($M$12:M174,$I$12:I174))/(I176-I175)) -> 0.01006970771 | P175: =IF(O175="","",_xll.qlSabrVolatility(O175,$C$20,($C$14-$C$2)/365,$F$3,$F$6,$F$4,$F$5)) ->  | Q175: =IF(O175="","",$C$23*BSput(($C$14-$C$2)/365,O175,$C$20,P175)) ->  | S175: =IF(O176="","",(R176*(O176-$O$12)-O176*SUM($S$12:S174)+SUMPRODUCT($S$12:S174,$O$12:O174))/(O176-O175)) ->  | U175: 0.84 | V175: =IF(U175="","",_xll.qlSabrVolatility(U175,$C$20,($C$14-$C$2)/365,$F$3,$F$6,$F$4,$F$5)) -> 0.3054083487 | W175: 0.6819330754 | X175: 2.014132044 | Y175: =IF(X175="","",BScall(($C$14-$C$2)/365,U175,$C$20,V175)*X175) -> 1.970671351e-05 | Z175: 9.809440302e-08 | AC175: =IF(AB175="","",_xll.qlSabrVolatility(AB175,$C$20,($C$14-$C$2)/365,$F$3,$F$6,$F$4,$F$5)) ->  | AF175: =IF(AE175="","",BSput(($C$14-$C$2)/365,AB175,$C$20,AC175)*AE175) -> 
I176: 0.85 | J176: =IF(I176="","",_xll.qlSabrVolatility(I176,$C$20,($C$14-$C$2)/365,$F$3,$F$6,$F$4,$F$5)) -> 0.3059318704 | K176: =IF(I176="","",$C$23*BScall(($C$14-$C$2)/365,I176,$C$20,J176)) -> 6.774887059e-05 | L176: 0.851813959 | M176: =IF(I177="","",(L177*(I177-$I$12)-I177*SUM($M$12:M175)+SUMPRODUCT($M$12:M175,$I$12:I175))/(I177-I176)) -> 0.01006876114 | P176: =IF(O176="","",_xll.qlSabrVolatility(O176,$C$20,($C$14-$C$2)/365,$F$3,$F$6,$F$4,$F$5)) ->  | Q176: =IF(O176="","",$C$23*BSput(($C$14-$C$2)/365,O176,$C$20,P176)) ->  | S176: =IF(O177="","",(R177*(O177-$O$12)-O177*SUM($S$12:S175)+SUMPRODUCT($S$12:S175,$O$12:O175))/(O177-O176)) ->  | U176: 0.845 | V176: =IF(U176="","",_xll.qlSabrVolatility(U176,$C$20,($C$14-$C$2)/365,$F$3,$F$6,$F$4,$F$5)) -> 0.3056708611 | W176: 0.6901850866 | X176: 2.013941543 | Y176: =IF(X176="","",BScall(($C$14-$C$2)/365,U176,$C$20,V176)*X176) -> 1.95310477e-05 | Z176: 9.722320235e-08 | AC176: =IF(AB176="","",_xll.qlSabrVolatility(AB176,$C$20,($C$14-$C$2)/365,$F$3,$F$6,$F$4,$F$5)) ->  | AF176: =IF(AE176="","",BSput(($C$14-$C$2)/365,AB176,$C$20,AC176)*AE176) -> 
I177: 0.855 | J177: =IF(I177="","",_xll.qlSabrVolatility(I177,$C$20,($C$14-$C$2)/365,$F$3,$F$6,$F$4,$F$5)) -> 0.3061913931 | K177: =IF(I177="","",$C$23*BScall(($C$14-$C$2)/365,I177,$C$20,J177)) -> 6.716008967e-05 | L177: 0.8567759393 | M177: =IF(I178="","",(L178*(I178-$I$12)-I178*SUM($M$12:M176)+SUMPRODUCT($M$12:M176,$I$12:I176))/(I178-I177)) -> 0.01006782084 | P177: =IF(O177="","",_xll.qlSabrVolatility(O177,$C$20,($C$14-$C$2)/365,$F$3,$F$6,$F$4,$F$5)) ->  | Q177: =IF(O177="","",$C$23*BSput(($C$14-$C$2)/365,O177,$C$20,P177)) ->  | S177: =IF(O178="","",(R178*(O178-$O$12)-O178*SUM($S$12:S176)+SUMPRODUCT($S$12:S176,$O$12:O176))/(O178-O177)) ->  | U177: 0.85 | V177: =IF(U177="","",_xll.qlSabrVolatility(U177,$C$20,($C$14-$C$2)/365,$F$3,$F$6,$F$4,$F$5)) -> 0.3059318704 | W177: 0.6984874464 | X177: 2.013752228 | Y177: =IF(X177="","",BScall(($C$14-$C$2)/365,U177,$C$20,V177)*X177) -> 1.935823324e-05 | Z177: 9.636609741e-08 | AC177: =IF(AB177="","",_xll.qlSabrVolatility(AB177,$C$20,($C$14-$C$2)/365,$F$3,$F$6,$F$4,$F$5)) ->  | AF177: =IF(AE177="","",BSput(($C$14-$C$2)/365,AB177,$C$20,AC177)*AE177) -> 
I178: 0.86 | J178: =IF(I178="","",_xll.qlSabrVolatility(I178,$C$20,($C$14-$C$2)/365,$F$3,$F$6,$F$4,$F$5)) -> 0.3064494459 | K178: =IF(I178="","",$C$23*BScall(($C$14-$C$2)/365,I178,$C$20,J178)) -> 6.658069168e-05 | L178: 0.8617387863 | M178: =IF(I179="","",(L179*(I179-$I$12)-I179*SUM($M$12:M177)+SUMPRODUCT($M$12:M177,$I$12:I177))/(I179-I178)) -> 0.01006688714 | P178: =IF(O178="","",_xll.qlSabrVolatility(O178,$C$20,($C$14-$C$2)/365,$F$3,$F$6,$F$4,$F$5)) ->  | Q178: =IF(O178="","",$C$23*BSput(($C$14-$C$2)/365,O178,$C$20,P178)) ->  | S178: =IF(O179="","",(R179*(O179-$O$12)-O179*SUM($S$12:S177)+SUMPRODUCT($S$12:S177,$O$12:O177))/(O179-O178)) ->  | U178: 0.855 | V178: =IF(U178="","",_xll.qlSabrVolatility(U178,$C$20,($C$14-$C$2)/365,$F$3,$F$6,$F$4,$F$5)) -> 0.3061913931 | W178: 0.7068401499 | X178: 2.013564169 | Y178: =IF(X178="","",BScall(($C$14-$C$2)/365,U178,$C$20,V178)*X178) -> 1.918820573e-05 | Z178: 9.552277088e-08 | AC178: =IF(AB178="","",_xll.qlSabrVolatility(AB178,$C$20,($C$14-$C$2)/365,$F$3,$F$6,$F$4,$F$5)) ->  | AF178: =IF(AE178="","",BSput(($C$14-$C$2)/365,AB178,$C$20,AC178)*AE178) -> 
I179: 0.865 | J179: =IF(I179="","",_xll.qlSabrVolatility(I179,$C$20,($C$14-$C$2)/365,$F$3,$F$6,$F$4,$F$5)) -> 0.306706045 | K179: =IF(I179="","",$C$23*BScall(($C$14-$C$2)/365,I179,$C$20,J179)) -> 6.601046568e-05 | L179: 0.8667024787 | M179: =IF(I180="","",(L180*(I180-$I$12)-I180*SUM($M$12:M178)+SUMPRODUCT($M$12:M178,$I$12:I178))/(I180-I179)) -> 0.01006596031 | P179: =IF(O179="","",_xll.qlSabrVolatility(O179,$C$20,($C$14-$C$2)/365,$F$3,$F$6,$F$4,$F$5)) ->  | Q179: =IF(O179="","",$C$23*BSput(($C$14-$C$2)/365,O179,$C$20,P179)) ->  | S179: =IF(O180="","",(R180*(O180-$O$12)-O180*SUM($S$12:S178)+SUMPRODUCT($S$12:S178,$O$12:O178))/(O180-O179)) ->  | U179: 0.86 | V179: =IF(U179="","",_xll.qlSabrVolatility(U179,$C$20,($C$14-$C$2)/365,$F$3,$F$6,$F$4,$F$5)) -> 0.3064494459 | W179: 0.7152431926 | X179: 2.013377427 | Y179: =IF(X179="","",BScall(($C$14-$C$2)/365,U179,$C$20,V179)*X179) -> 1.902090262e-05 | Z179: 9.469291442e-08 | AC179: =IF(AB179="","",_xll.qlSabrVolatility(AB179,$C$20,($C$14-$C$2)/365,$F$3,$F$6,$F$4,$F$5)) ->  | AF179: =IF(AE179="","",BSput(($C$14-$C$2)/365,AB179,$C$20,AC179)*AE179) -> 
I180: 0.87 | J180: =IF(I180="","",_xll.qlSabrVolatility(I180,$C$20,($C$14-$C$2)/365,$F$3,$F$6,$F$4,$F$5)) -> 0.3069612063 | K180: =IF(I180="","",$C$23*BScall(($C$14-$C$2)/365,I180,$C$20,J180)) -> 6.544920677e-05 | L180: 0.8716669959 | M180: =IF(I181="","",(L181*(I181-$I$12)-I181*SUM($M$12:M179)+SUMPRODUCT($M$12:M179,$I$12:I179))/(I181-I180)) -> 0.01006504063 | P180: =IF(O180="","",_xll.qlSabrVolatility(O180,$C$20,($C$14-$C$2)/365,$F$3,$F$6,$F$4,$F$5)) ->  | Q180: =IF(O180="","",$C$23*BSput(($C$14-$C$2)/365,O180,$C$20,P180)) ->  | S180: =IF(O181="","",(R181*(O181-$O$12)-O181*SUM($S$12:S179)+SUMPRODUCT($S$12:S179,$O$12:O179))/(O181-O180)) ->  | U180: 0.865 | V180: =IF(U180="","",_xll.qlSabrVolatility(U180,$C$20,($C$14-$C$2)/365,$F$3,$F$6,$F$4,$F$5)) -> 0.306706045 | W180: 0.7236965697 | X180: 2.013192061 | Y180: =IF(X180="","",BScall(($C$14-$C$2)/365,U180,$C$20,V180)*X180) -> 1.885626314e-05 | Z180: 9.387622836e-08 | AC180: =IF(AB180="","",_xll.qlSabrVolatility(AB180,$C$20,($C$14-$C$2)/365,$F$3,$F$6,$F$4,$F$5)) ->  | AF180: =IF(AE180="","",BSput(($C$14-$C$2)/365,AB180,$C$20,AC180)*AE180) -> 
I181: 0.875 | J181: =IF(I181="","",_xll.qlSabrVolatility(I181,$C$20,($C$14-$C$2)/365,$F$3,$F$6,$F$4,$F$5)) -> 0.3072149456 | K181: =IF(I181="","",$C$23*BScall(($C$14-$C$2)/365,I181,$C$20,J181)) -> 6.489671591e-05 | L181: 0.876632318 | M181: =IF(I182="","",(L182*(I182-$I$12)-I182*SUM($M$12:M180)+SUMPRODUCT($M$12:M180,$I$12:I180))/(I182-I181)) -> 0.01006412835 | P181: =IF(O181="","",_xll.qlSabrVolatility(O181,$C$20,($C$14-$C$2)/365,$F$3,$F$6,$F$4,$F$5)) ->  | Q181: =IF(O181="","",$C$23*BSput(($C$14-$C$2)/365,O181,$C$20,P181)) ->  | S181: =IF(O182="","",(R182*(O182-$O$12)-O182*SUM($S$12:S180)+SUMPRODUCT($S$12:S180,$O$12:O180))/(O182-O181)) ->  | U181: 0.87 | V181: =IF(U181="","",_xll.qlSabrVolatility(U181,$C$20,($C$14-$C$2)/365,$F$3,$F$6,$F$4,$F$5)) -> 0.3069612063 | W181: 0.7322002766 | X181: 2.013008126 | Y181: =IF(X181="","",BScall(($C$14-$C$2)/365,U181,$C$20,V181)*X181) -> 1.86942282e-05 | Z181: 9.307242142e-08 | AC181: =IF(AB181="","",_xll.qlSabrVolatility(AB181,$C$20,($C$14-$C$2)/365,$F$3,$F$6,$F$4,$F$5)) ->  | AF181: =IF(AE181="","",BSput(($C$14-$C$2)/365,AB181,$C$20,AC181)*AE181) -> 
I182: 0.88 | J182: =IF(I182="","",_xll.qlSabrVolatility(I182,$C$20,($C$14-$C$2)/365,$F$3,$F$6,$F$4,$F$5)) -> 0.3074672784 | K182: =IF(I182="","",$C$23*BScall(($C$14-$C$2)/365,I182,$C$20,J182)) -> 6.43527997e-05 | L182: 0.8815984252 | M182: =IF(I183="","",(L183*(I183-$I$12)-I183*SUM($M$12:M181)+SUMPRODUCT($M$12:M181,$I$12:I181))/(I183-I182)) -> 0.0100632237 | P182: =IF(O182="","",_xll.qlSabrVolatility(O182,$C$20,($C$14-$C$2)/365,$F$3,$F$6,$F$4,$F$5)) ->  | Q182: =IF(O182="","",$C$23*BSput(($C$14-$C$2)/365,O182,$C$20,P182)) ->  | S182: =IF(O183="","",(R183*(O183-$O$12)-O183*SUM($S$12:S181)+SUMPRODUCT($S$12:S181,$O$12:O181))/(O183-O182)) ->  | U182: 0.875 | V182: =IF(U182="","",_xll.qlSabrVolatility(U182,$C$20,($C$14-$C$2)/365,$F$3,$F$6,$F$4,$F$5)) -> 0.3072149456 | W182: 0.7407543087 | X182: 2.01282567 | Y182: =IF(X182="","",BScall(($C$14-$C$2)/365,U182,$C$20,V182)*X182) -> 1.853474037e-05 | Z182: 9.228121042e-08 | AC182: =IF(AB182="","",_xll.qlSabrVolatility(AB182,$C$20,($C$14-$C$2)/365,$F$3,$F$6,$F$4,$F$5)) ->  | AF182: =IF(AE182="","",BSput(($C$14-$C$2)/365,AB182,$C$20,AC182)*AE182) -> 
I183: 0.885 | J183: =IF(I183="","",_xll.qlSabrVolatility(I183,$C$20,($C$14-$C$2)/365,$F$3,$F$6,$F$4,$F$5)) -> 0.3077182198 | K183: =IF(I183="","",$C$23*BScall(($C$14-$C$2)/365,I183,$C$20,J183)) -> 6.38172702e-05 | L183: 0.8865652986 | M183: =IF(I184="","",(L184*(I184-$I$12)-I184*SUM($M$12:M182)+SUMPRODUCT($M$12:M182,$I$12:I182))/(I184-I183)) -> 0.01006232689 | P183: =IF(O183="","",_xll.qlSabrVolatility(O183,$C$20,($C$14-$C$2)/365,$F$3,$F$6,$F$4,$F$5)) ->  | Q183: =IF(O183="","",$C$23*BSput(($C$14-$C$2)/365,O183,$C$20,P183)) ->  | S183: =IF(O184="","",(R184*(O184-$O$12)-O184*SUM($S$12:S182)+SUMPRODUCT($S$12:S182,$O$12:O182))/(O184-O183)) ->  | U183: 0.88 | V183: =IF(U183="","",_xll.qlSabrVolatility(U183,$C$20,($C$14-$C$2)/365,$F$3,$F$6,$F$4,$F$5)) -> 0.3074672784 | W183: 0.7493586614 | X183: 2.01264474 | Y183: =IF(X183="","",BScall(($C$14-$C$2)/365,U183,$C$20,V183)*X183) -> 1.83777438e-05 | Z183: 9.150232003e-08 | AC183: =IF(AB183="","",_xll.qlSabrVolatility(AB183,$C$20,($C$14-$C$2)/365,$F$3,$F$6,$F$4,$F$5)) ->  | AF183: =IF(AE183="","",BSput(($C$14-$C$2)/365,AB183,$C$20,AC183)*AE183) -> 
I184: 0.89 | J184: =IF(I184="","",_xll.qlSabrVolatility(I184,$C$20,($C$14-$C$2)/365,$F$3,$F$6,$F$4,$F$5)) -> 0.3079677849 | K184: =IF(I184="","",$C$23*BScall(($C$14-$C$2)/365,I184,$C$20,J184)) -> 6.328994475e-05 | L184: 0.8915329195 | M184: =IF(I185="","",(L185*(I185-$I$12)-I185*SUM($M$12:M183)+SUMPRODUCT($M$12:M183,$I$12:I183))/(I185-I184)) -> 0.01006143811 | P184: =IF(O184="","",_xll.qlSabrVolatility(O184,$C$20,($C$14-$C$2)/365,$F$3,$F$6,$F$4,$F$5)) ->  | Q184: =IF(O184="","",$C$23*BSput(($C$14-$C$2)/365,O184,$C$20,P184)) ->  | S184: =IF(O185="","",(R185*(O185-$O$12)-O185*SUM($S$12:S183)+SUMPRODUCT($S$12:S183,$O$12:O183))/(O185-O184)) ->  | U184: 0.885 | V184: =IF(U184="","",_xll.qlSabrVolatility(U184,$C$20,($C$14-$C$2)/365,$F$3,$F$6,$F$4,$F$5)) -> 0.3077182198 | W184: 0.7580133303 | X184: 2.012465378 | Y184: =IF(X184="","",BScall(($C$14-$C$2)/365,U184,$C$20,V184)*X184) -> 1.822318421e-05 | Z184: 9.073548247e-08 | AC184: =IF(AB184="","",_xll.qlSabrVolatility(AB184,$C$20,($C$14-$C$2)/365,$F$3,$F$6,$F$4,$F$5)) ->  | AF184: =IF(AE184="","",BSput(($C$14-$C$2)/365,AB184,$C$20,AC184)*AE184) -> 
I185: 0.895 | J185: =IF(I185="","",_xll.qlSabrVolatility(I185,$C$20,($C$14-$C$2)/365,$F$3,$F$6,$F$4,$F$5)) -> 0.3082159883 | K185: =IF(I185="","",$C$23*BScall(($C$14-$C$2)/365,I185,$C$20,J185)) -> 6.277064577e-05 | L185: 0.8965012699 | M185: =IF(I186="","",(L186*(I186-$I$12)-I186*SUM($M$12:M184)+SUMPRODUCT($M$12:M184,$I$12:I184))/(I186-I185)) -> 0.01006055754 | P185: =IF(O185="","",_xll.qlSabrVolatility(O185,$C$20,($C$14-$C$2)/365,$F$3,$F$6,$F$4,$F$5)) ->  | Q185: =IF(O185="","",$C$23*BSput(($C$14-$C$2)/365,O185,$C$20,P185)) ->  | S185: =IF(O186="","",(R186*(O186-$O$12)-O186*SUM($S$12:S184)+SUMPRODUCT($S$12:S184,$O$12:O184))/(O186-O185)) ->  | U185: 0.89 | V185: =IF(U185="","",_xll.qlSabrVolatility(U185,$C$20,($C$14-$C$2)/365,$F$3,$F$6,$F$4,$F$5)) -> 0.3079677849 | W185: 0.7667183107 | X185: 2.012287622 | Y185: =IF(X185="","",BScall(($C$14-$C$2)/365,U185,$C$20,V185)*X185) -> 1.807100878e-05 | Z185: 8.99804373e-08 | AC185: =IF(AB185="","",_xll.qlSabrVolatility(AB185,$C$20,($C$14-$C$2)/365,$F$3,$F$6,$F$4,$F$5)) ->  | AF185: =IF(AE185="","",BSput(($C$14-$C$2)/365,AB185,$C$20,AC185)*AE185) -> 
I186: 0.9 | J186: =IF(I186="","",_xll.qlSabrVolatility(I186,$C$20,($C$14-$C$2)/365,$F$3,$F$6,$F$4,$F$5)) -> 0.3084628446 | K186: =IF(I186="","",$C$23*BScall(($C$14-$C$2)/365,I186,$C$20,J186)) -> 6.225920059e-05 | L186: 0.9014703321 | M186: =IF(I187="","",(L187*(I187-$I$12)-I187*SUM($M$12:M185)+SUMPRODUCT($M$12:M185,$I$12:I185))/(I187-I186)) -> 0.01005968534 | P186: =IF(O186="","",_xll.qlSabrVolatility(O186,$C$20,($C$14-$C$2)/365,$F$3,$F$6,$F$4,$F$5)) ->  | Q186: =IF(O186="","",$C$23*BSput(($C$14-$C$2)/365,O186,$C$20,P186)) ->  | S186: =IF(O187="","",(R187*(O187-$O$12)-O187*SUM($S$12:S185)+SUMPRODUCT($S$12:S185,$O$12:O185))/(O187-O186)) ->  | U186: 0.895 | V186: =IF(U186="","",_xll.qlSabrVolatility(U186,$C$20,($C$14-$C$2)/365,$F$3,$F$6,$F$4,$F$5)) -> 0.3082159883 | W186: 0.7754735984 | X186: 2.012111508 | Y186: =IF(X186="","",BScall(($C$14-$C$2)/365,U186,$C$20,V186)*X186) -> 1.792116614e-05 | Z186: 8.923693118e-08 | AC186: =IF(AB186="","",_xll.qlSabrVolatility(AB186,$C$20,($C$14-$C$2)/365,$F$3,$F$6,$F$4,$F$5)) ->  | AF186: =IF(AE186="","",BSput(($C$14-$C$2)/365,AB186,$C$20,AC186)*AE186) -> 
I187: 0.905 | J187: =IF(I187="","",_xll.qlSabrVolatility(I187,$C$20,($C$14-$C$2)/365,$F$3,$F$6,$F$4,$F$5)) -> 0.3087083681 | K187: =IF(I187="","",$C$23*BScall(($C$14-$C$2)/365,I187,$C$20,J187)) -> 6.175544131e-05 | L187: 0.9064400889 | M187: =IF(I188="","",(L188*(I188-$I$12)-I188*SUM($M$12:M186)+SUMPRODUCT($M$12:M186,$I$12:I186))/(I188-I187)) -> 0.01005882165 | P187: =IF(O187="","",_xll.qlSabrVolatility(O187,$C$20,($C$14-$C$2)/365,$F$3,$F$6,$F$4,$F$5)) ->  | Q187: =IF(O187="","",$C$23*BSput(($C$14-$C$2)/365,O187,$C$20,P187)) ->  | S187: =IF(O188="","",(R188*(O188-$O$12)-O188*SUM($S$12:S186)+SUMPRODUCT($S$12:S186,$O$12:O186))/(O188-O187)) ->  | U187: 0.9 | V187: =IF(U187="","",_xll.qlSabrVolatility(U187,$C$20,($C$14-$C$2)/365,$F$3,$F$6,$F$4,$F$5)) -> 0.3084628446 | W187: 0.7842791889 | X187: 2.011937068 | Y187: =IF(X187="","",BScall(($C$14-$C$2)/365,U187,$C$20,V187)*X187) -> 1.777360633e-05 | Z187: 8.85047176e-08 | AC187: =IF(AB187="","",_xll.qlSabrVolatility(AB187,$C$20,($C$14-$C$2)/365,$F$3,$F$6,$F$4,$F$5)) ->  | AF187: =IF(AE187="","",BSput(($C$14-$C$2)/365,AB187,$C$20,AC187)*AE187) -> 
I188: 0.91 | J188: =IF(I188="","",_xll.qlSabrVolatility(I188,$C$20,($C$14-$C$2)/365,$F$3,$F$6,$F$4,$F$5)) -> 0.3089525727 | K188: =IF(I188="","",$C$23*BScall(($C$14-$C$2)/365,I188,$C$20,J188)) -> 6.125920461e-05 | L188: 0.9114105236 | M188: =IF(I189="","",(L189*(I189-$I$12)-I189*SUM($M$12:M187)+SUMPRODUCT($M$12:M187,$I$12:I187))/(I189-I188)) -> 0.0100579666 | P188: =IF(O188="","",_xll.qlSabrVolatility(O188,$C$20,($C$14-$C$2)/365,$F$3,$F$6,$F$4,$F$5)) ->  | Q188: =IF(O188="","",$C$23*BSput(($C$14-$C$2)/365,O188,$C$20,P188)) ->  | S188: =IF(O189="","",(R189*(O189-$O$12)-O189*SUM($S$12:S187)+SUMPRODUCT($S$12:S187,$O$12:O187))/(O189-O188)) ->  | U188: 0.905 | V188: =IF(U188="","",_xll.qlSabrVolatility(U188,$C$20,($C$14-$C$2)/365,$F$3,$F$6,$F$4,$F$5)) -> 0.3087083681 | W188: 0.7931350778 | X188: 2.01176433 | Y188: =IF(X188="","",BScall(($C$14-$C$2)/365,U188,$C$20,V188)*X188) -> 1.762828071e-05 | Z188: 8.778355671e-08 | AC188: =IF(AB188="","",_xll.qlSabrVolatility(AB188,$C$20,($C$14-$C$2)/365,$F$3,$F$6,$F$4,$F$5)) ->  | AF188: =IF(AE188="","",BSput(($C$14-$C$2)/365,AB188,$C$20,AC188)*AE188) -> 
I189: 0.915 | J189: =IF(I189="","",_xll.qlSabrVolatility(I189,$C$20,($C$14-$C$2)/365,$F$3,$F$6,$F$4,$F$5)) -> 0.3091954725 | K189: =IF(I189="","",$C$23*BScall(($C$14-$C$2)/365,I189,$C$20,J189)) -> 6.077033161e-05 | L189: 0.9163816199 | M189: =IF(I190="","",(L190*(I190-$I$12)-I190*SUM($M$12:M188)+SUMPRODUCT($M$12:M188,$I$12:I188))/(I190-I189)) -> 0.01005712031 | P189: =IF(O189="","",_xll.qlSabrVolatility(O189,$C$20,($C$14-$C$2)/365,$F$3,$F$6,$F$4,$F$5)) ->  | Q189: =IF(O189="","",$C$23*BSput(($C$14-$C$2)/365,O189,$C$20,P189)) ->  | S189: =IF(O190="","",(R190*(O190-$O$12)-O190*SUM($S$12:S188)+SUMPRODUCT($S$12:S188,$O$12:O188))/(O190-O189)) ->  | U189: 0.91 | V189: =IF(U189="","",_xll.qlSabrVolatility(U189,$C$20,($C$14-$C$2)/365,$F$3,$F$6,$F$4,$F$5)) -> 0.3089525727 | W189: 0.8020412608 | X189: 2.011593321 | Y189: =IF(X189="","",BScall(($C$14-$C$2)/365,U189,$C$20,V189)*X189) -> 1.748514197e-05 | Z189: 8.707321508e-08 | AC189: =IF(AB189="","",_xll.qlSabrVolatility(AB189,$C$20,($C$14-$C$2)/365,$F$3,$F$6,$F$4,$F$5)) ->  | AF189: =IF(AE189="","",BSput(($C$14-$C$2)/365,AB189,$C$20,AC189)*AE189) -> 
I190: 0.92 | J190: =IF(I190="","",_xll.qlSabrVolatility(I190,$C$20,($C$14-$C$2)/365,$F$3,$F$6,$F$4,$F$5)) -> 0.3094370809 | K190: =IF(I190="","",$C$23*BScall(($C$14-$C$2)/365,I190,$C$20,J190)) -> 6.028866774e-05 | L190: 0.9213533619 | M190: =IF(I191="","",(L191*(I191-$I$12)-I191*SUM($M$12:M189)+SUMPRODUCT($M$12:M189,$I$12:I189))/(I191-I190)) -> 0.01005628289 | P190: =IF(O190="","",_xll.qlSabrVolatility(O190,$C$20,($C$14-$C$2)/365,$F$3,$F$6,$F$4,$F$5)) ->  | Q190: =IF(O190="","",$C$23*BSput(($C$14-$C$2)/365,O190,$C$20,P190)) ->  | S190: =IF(O191="","",(R191*(O191-$O$12)-O191*SUM($S$12:S189)+SUMPRODUCT($S$12:S189,$O$12:O189))/(O191-O190)) ->  | U190: 0.915 | V190: =IF(U190="","",_xll.qlSabrVolatility(U190,$C$20,($C$14-$C$2)/365,$F$3,$F$6,$F$4,$F$5)) -> 0.3091954725 | W190: 0.8109977336 | X190: 2.011424063 | Y190: =IF(X190="","",BScall(($C$14-$C$2)/365,U190,$C$20,V190)*X190) -> 1.734414406e-05 | Z190: 8.637346547e-08 | AC190: =IF(AB190="","",_xll.qlSabrVolatility(AB190,$C$20,($C$14-$C$2)/365,$F$3,$F$6,$F$4,$F$5)) ->  | AF190: =IF(AE190="","",BSput(($C$14-$C$2)/365,AB190,$C$20,AC190)*AE190) -> 
I191: 0.925 | J191: =IF(I191="","",_xll.qlSabrVolatility(I191,$C$20,($C$14-$C$2)/365,$F$3,$F$6,$F$4,$F$5)) -> 0.3096774114 | K191: =IF(I191="","",$C$23*BScall(($C$14-$C$2)/365,I191,$C$20,J191)) -> 5.981406258e-05 | L191: 0.926325734 | M191: =IF(I192="","",(L192*(I192-$I$12)-I192*SUM($M$12:M190)+SUMPRODUCT($M$12:M190,$I$12:I190))/(I192-I191)) -> 0.01005545442 | P191: =IF(O191="","",_xll.qlSabrVolatility(O191,$C$20,($C$14-$C$2)/365,$F$3,$F$6,$F$4,$F$5)) ->  | Q191: =IF(O191="","",$C$23*BSput(($C$14-$C$2)/365,O191,$C$20,P191)) ->  | S191: =IF(O192="","",(R192*(O192-$O$12)-O192*SUM($S$12:S190)+SUMPRODUCT($S$12:S190,$O$12:O190))/(O192-O191)) ->  | U191: 0.92 | V191: =IF(U191="","",_xll.qlSabrVolatility(U191,$C$20,($C$14-$C$2)/365,$F$3,$F$6,$F$4,$F$5)) -> 0.3094370809 | W191: 0.8200044921 | X191: 2.011256578 | Y191: =IF(X191="","",BScall(($C$14-$C$2)/365,U191,$C$20,V191)*X191) -> 1.720524213e-05 | Z191: 8.568408671e-08 | AC191: =IF(AB191="","",_xll.qlSabrVolatility(AB191,$C$20,($C$14-$C$2)/365,$F$3,$F$6,$F$4,$F$5)) ->  | AF191: =IF(AE191="","",BSput(($C$14-$C$2)/365,AB191,$C$20,AC191)*AE191) -> 
I192: 0.93 | J192: =IF(I192="","",_xll.qlSabrVolatility(I192,$C$20,($C$14-$C$2)/365,$F$3,$F$6,$F$4,$F$5)) -> 0.3099164772 | K192: =IF(I192="","",$C$23*BScall(($C$14-$C$2)/365,I192,$C$20,J192)) -> 5.934636972e-05 | L192: 0.9312987212 | M192: =IF(I193="","",(L193*(I193-$I$12)-I193*SUM($M$12:M191)+SUMPRODUCT($M$12:M191,$I$12:I191))/(I193-I192)) -> 0.01005463497 | P192: =IF(O192="","",_xll.qlSabrVolatility(O192,$C$20,($C$14-$C$2)/365,$F$3,$F$6,$F$4,$F$5)) ->  | Q192: =IF(O192="","",$C$23*BSput(($C$14-$C$2)/365,O192,$C$20,P192)) ->  | S192: =IF(O193="","",(R193*(O193-$O$12)-O193*SUM($S$12:S191)+SUMPRODUCT($S$12:S191,$O$12:O191))/(O193-O192)) ->  | U192: 0.925 | V192: =IF(U192="","",_xll.qlSabrVolatility(U192,$C$20,($C$14-$C$2)/365,$F$3,$F$6,$F$4,$F$5)) -> 0.3096774114 | W192: 0.8290615319 | X192: 2.011090883 | Y192: =IF(X192="","",BScall(($C$14-$C$2)/365,U192,$C$20,V192)*X192) -> 1.706839255e-05 | Z192: 8.50048634e-08 | AC192: =IF(AB192="","",_xll.qlSabrVolatility(AB192,$C$20,($C$14-$C$2)/365,$F$3,$F$6,$F$4,$F$5)) ->  | AF192: =IF(AE192="","",BSput(($C$14-$C$2)/365,AB192,$C$20,AC192)*AE192) -> 
I193: 0.935 | J193: =IF(I193="","",_xll.qlSabrVolatility(I193,$C$20,($C$14-$C$2)/365,$F$3,$F$6,$F$4,$F$5)) -> 0.3101542912 | K193: =IF(I193="","",$C$23*BScall(($C$14-$C$2)/365,I193,$C$20,J193)) -> 5.888544665e-05 | L193: 0.9362723087 | M193: =IF(I194="","",(L194*(I194-$I$12)-I194*SUM($M$12:M192)+SUMPRODUCT($M$12:M192,$I$12:I192))/(I194-I193)) -> 0.01005382463 | P193: =IF(O193="","",_xll.qlSabrVolatility(O193,$C$20,($C$14-$C$2)/365,$F$3,$F$6,$F$4,$F$5)) ->  | Q193: =IF(O193="","",$C$23*BSput(($C$14-$C$2)/365,O193,$C$20,P193)) ->  | S193: =IF(O194="","",(R194*(O194-$O$12)-O194*SUM($S$12:S192)+SUMPRODUCT($S$12:S192,$O$12:O192))/(O194-O193)) ->  | U193: 0.93 | V193: =IF(U193="","",_xll.qlSabrVolatility(U193,$C$20,($C$14-$C$2)/365,$F$3,$F$6,$F$4,$F$5)) -> 0.3099164772 | W193: 0.838168849 | X193: 2.010926995 | Y193: =IF(X193="","",BScall(($C$14-$C$2)/365,U193,$C$20,V193)*X193) -> 1.693355281e-05 | Z193: 8.433558583e-08 | AC193: =IF(AB193="","",_xll.qlSabrVolatility(AB193,$C$20,($C$14-$C$2)/365,$F$3,$F$6,$F$4,$F$5)) ->  | AF193: =IF(AE193="","",BSput(($C$14-$C$2)/365,AB193,$C$20,AC193)*AE193) -> 
I194: 0.94 | J194: =IF(I194="","",_xll.qlSabrVolatility(I194,$C$20,($C$14-$C$2)/365,$F$3,$F$6,$F$4,$F$5)) -> 0.3103908664 | K194: =IF(I194="","",$C$23*BScall(($C$14-$C$2)/365,I194,$C$20,J194)) -> 5.843115462e-05 | L194: 0.9412464822 | M194: =IF(I195="","",(L195*(I195-$I$12)-I195*SUM($M$12:M193)+SUMPRODUCT($M$12:M193,$I$12:I193))/(I195-I194)) -> 0.01005302345 | P194: =IF(O194="","",_xll.qlSabrVolatility(O194,$C$20,($C$14-$C$2)/365,$F$3,$F$6,$F$4,$F$5)) ->  | Q194: =IF(O194="","",$C$23*BSput(($C$14-$C$2)/365,O194,$C$20,P194)) ->  | S194: =IF(O195="","",(R195*(O195-$O$12)-O195*SUM($S$12:S193)+SUMPRODUCT($S$12:S193,$O$12:O193))/(O195-O194)) ->  | U194: 0.935 | V194: =IF(U194="","",_xll.qlSabrVolatility(U194,$C$20,($C$14-$C$2)/365,$F$3,$F$6,$F$4,$F$5)) -> 0.3101542912 | W194: 0.8473264393 | X194: 2.010764926 | Y194: =IF(X194="","",BScall(($C$14-$C$2)/365,U194,$C$20,V194)*X194) -> 1.680068152e-05 | Z194: 8.367604974e-08 | AC194: =IF(AB194="","",_xll.qlSabrVolatility(AB194,$C$20,($C$14-$C$2)/365,$F$3,$F$6,$F$4,$F$5)) ->  | AF194: =IF(AE194="","",BSput(($C$14-$C$2)/365,AB194,$C$20,AC194)*AE194) -> 
I195: 0.945 | J195: =IF(I195="","",_xll.qlSabrVolatility(I195,$C$20,($C$14-$C$2)/365,$F$3,$F$6,$F$4,$F$5)) -> 0.3106262154 | K195: =IF(I195="","",$C$23*BScall(($C$14-$C$2)/365,I195,$C$20,J195)) -> 5.798335851e-05 | L195: 0.9462212277 | M195: =IF(I196="","",(L196*(I196-$I$12)-I196*SUM($M$12:M194)+SUMPRODUCT($M$12:M194,$I$12:I194))/(I196-I195)) -> 0.01005223147 | P195: =IF(O195="","",_xll.qlSabrVolatility(O195,$C$20,($C$14-$C$2)/365,$F$3,$F$6,$F$4,$F$5)) ->  | Q195: =IF(O195="","",$C$23*BSput(($C$14-$C$2)/365,O195,$C$20,P195)) ->  | S195: =IF(O196="","",(R196*(O196-$O$12)-O196*SUM($S$12:S194)+SUMPRODUCT($S$12:S194,$O$12:O194))/(O196-O195)) ->  | U195: 0.94 | V195: =IF(U195="","",_xll.qlSabrVolatility(U195,$C$20,($C$14-$C$2)/365,$F$3,$F$6,$F$4,$F$5)) -> 0.3103908664 | W195: 0.8565342988 | X195: 2.010604689 | Y195: =IF(X195="","",BScall(($C$14-$C$2)/365,U195,$C$20,V195)*X195) -> 1.666973837e-05 | Z195: 8.302605618e-08 | AC195: =IF(AB195="","",_xll.qlSabrVolatility(AB195,$C$20,($C$14-$C$2)/365,$F$3,$F$6,$F$4,$F$5)) ->  | AF195: =IF(AE195="","",BSput(($C$14-$C$2)/365,AB195,$C$20,AC195)*AE195) -> 
I196: 0.95 | J196: =IF(I196="","",_xll.qlSabrVolatility(I196,$C$20,($C$14-$C$2)/365,$F$3,$F$6,$F$4,$F$5)) -> 0.3108603504 | K196: =IF(I196="","",$C$23*BScall(($C$14-$C$2)/365,I196,$C$20,J196)) -> 5.754192675e-05 | L196: 0.9511965315 | M196: =IF(I197="","",(L197*(I197-$I$12)-I197*SUM($M$12:M195)+SUMPRODUCT($M$12:M195,$I$12:I195))/(I197-I196)) -> 0.01005144873 | P196: =IF(O196="","",_xll.qlSabrVolatility(O196,$C$20,($C$14-$C$2)/365,$F$3,$F$6,$F$4,$F$5)) ->  | Q196: =IF(O196="","",$C$23*BSput(($C$14-$C$2)/365,O196,$C$20,P196)) ->  | S196: =IF(O197="","",(R197*(O197-$O$12)-O197*SUM($S$12:S195)+SUMPRODUCT($S$12:S195,$O$12:O195))/(O197-O196)) ->  | U196: 0.945 | V196: =IF(U196="","",_xll.qlSabrVolatility(U196,$C$20,($C$14-$C$2)/365,$F$3,$F$6,$F$4,$F$5)) -> 0.3106262154 | W196: 0.8657924233 | X196: 2.010446293 | Y196: =IF(X196="","",BScall(($C$14-$C$2)/365,U196,$C$20,V196)*X196) -> 1.65406841e-05 | Z196: 8.23854113e-08 | AC196: =IF(AB196="","",_xll.qlSabrVolatility(AB196,$C$20,($C$14-$C$2)/365,$F$3,$F$6,$F$4,$F$5)) ->  | AF196: =IF(AE196="","",BSput(($C$14-$C$2)/365,AB196,$C$20,AC196)*AE196) -> 
I197: 0.955 | J197: =IF(I197="","",_xll.qlSabrVolatility(I197,$C$20,($C$14-$C$2)/365,$F$3,$F$6,$F$4,$F$5)) -> 0.3110932839 | K197: =IF(I197="","",$C$23*BScall(($C$14-$C$2)/365,I197,$C$20,J197)) -> 5.710673117e-05 | L197: 0.9561723805 | M197: =IF(I198="","",(L198*(I198-$I$12)-I198*SUM($M$12:M196)+SUMPRODUCT($M$12:M196,$I$12:I196))/(I198-I197)) -> 0.01005067526 | P197: =IF(O197="","",_xll.qlSabrVolatility(O197,$C$20,($C$14-$C$2)/365,$F$3,$F$6,$F$4,$F$5)) ->  | Q197: =IF(O197="","",$C$23*BSput(($C$14-$C$2)/365,O197,$C$20,P197)) ->  | S197: =IF(O198="","",(R198*(O198-$O$12)-O198*SUM($S$12:S196)+SUMPRODUCT($S$12:S196,$O$12:O196))/(O198-O197)) ->  | U197: 0.95 | V197: =IF(U197="","",_xll.qlSabrVolatility(U197,$C$20,($C$14-$C$2)/365,$F$3,$F$6,$F$4,$F$5)) -> 0.3108603504 | W197: 0.875100809 | X197: 2.010289745 | Y197: =IF(X197="","",BScall(($C$14-$C$2)/365,U197,$C$20,V197)*X197) -> 1.641348043e-05 | Z197: 8.175392627e-08 | AC197: =IF(AB197="","",_xll.qlSabrVolatility(AB197,$C$20,($C$14-$C$2)/365,$F$3,$F$6,$F$4,$F$5)) ->  | AF197: =IF(AE197="","",BSput(($C$14-$C$2)/365,AB197,$C$20,AC197)*AE197) -> 
I198: 0.96 | J198: =IF(I198="","",_xll.qlSabrVolatility(I198,$C$20,($C$14-$C$2)/365,$F$3,$F$6,$F$4,$F$5)) -> 0.3113250278 | K198: =IF(I198="","",$C$23*BScall(($C$14-$C$2)/365,I198,$C$20,J198)) -> 5.667764692e-05 | L198: 0.9611487616 | M198: =IF(I199="","",(L199*(I199-$I$12)-I199*SUM($M$12:M197)+SUMPRODUCT($M$12:M197,$I$12:I197))/(I199-I198)) -> 0.01004991108 | P198: =IF(O198="","",_xll.qlSabrVolatility(O198,$C$20,($C$14-$C$2)/365,$F$3,$F$6,$F$4,$F$5)) ->  | Q198: =IF(O198="","",$C$23*BSput(($C$14-$C$2)/365,O198,$C$20,P198)) ->  | S198: =IF(O199="","",(R199*(O199-$O$12)-O199*SUM($S$12:S197)+SUMPRODUCT($S$12:S197,$O$12:O197))/(O199-O198)) ->  | U198: 0.955 | V198: =IF(U198="","",_xll.qlSabrVolatility(U198,$C$20,($C$14-$C$2)/365,$F$3,$F$6,$F$4,$F$5)) -> 0.3110932839 | W198: 0.8844594519 | X198: 2.010135051 | Y198: =IF(X198="","",BScall(($C$14-$C$2)/365,U198,$C$20,V198)*X198) -> 1.628809008e-05 | Z198: 8.113141706e-08 | AC198: =IF(AB198="","",_xll.qlSabrVolatility(AB198,$C$20,($C$14-$C$2)/365,$F$3,$F$6,$F$4,$F$5)) ->  | AF198: =IF(AE198="","",BSput(($C$14-$C$2)/365,AB198,$C$20,AC198)*AE198) -> 
I199: 0.965 | J199: =IF(I199="","",_xll.qlSabrVolatility(I199,$C$20,($C$14-$C$2)/365,$F$3,$F$6,$F$4,$F$5)) -> 0.3115555941 | K199: =IF(I199="","",$C$23*BScall(($C$14-$C$2)/365,I199,$C$20,J199)) -> 5.625455234e-05 | L199: 0.9661256622 | M199: =IF(I200="","",(L200*(I200-$I$12)-I200*SUM($M$12:M198)+SUMPRODUCT($M$12:M198,$I$12:I198))/(I200-I199)) -> 0.0100491562 | P199: =IF(O199="","",_xll.qlSabrVolatility(O199,$C$20,($C$14-$C$2)/365,$F$3,$F$6,$F$4,$F$5)) ->  | Q199: =IF(O199="","",$C$23*BSput(($C$14-$C$2)/365,O199,$C$20,P199)) ->  | S199: =IF(O200="","",(R200*(O200-$O$12)-O200*SUM($S$12:S198)+SUMPRODUCT($S$12:S198,$O$12:O198))/(O200-O199)) ->  | U199: 0.96 | V199: =IF(U199="","",_xll.qlSabrVolatility(U199,$C$20,($C$14-$C$2)/365,$F$3,$F$6,$F$4,$F$5)) -> 0.3113250278 | W199: 0.8938683483 | X199: 2.009982215 | Y199: =IF(X199="","",BScall(($C$14-$C$2)/365,U199,$C$20,V199)*X199) -> 1.616447674e-05 | Z199: 8.051770431e-08 | AC199: =IF(AB199="","",_xll.qlSabrVolatility(AB199,$C$20,($C$14-$C$2)/365,$F$3,$F$6,$F$4,$F$5)) ->  | AF199: =IF(AE199="","",BSput(($C$14-$C$2)/365,AB199,$C$20,AC199)*AE199) -> 
I200: 0.97 | J200: =IF(I200="","",_xll.qlSabrVolatility(I200,$C$20,($C$14-$C$2)/365,$F$3,$F$6,$F$4,$F$5)) -> 0.3117849944 | K200: =IF(I200="","",$C$23*BScall(($C$14-$C$2)/365,I200,$C$20,J200)) -> 5.583732889e-05 | L200: 0.97110307 | M200: =IF(I201="","",(L201*(I201-$I$12)-I201*SUM($M$12:M199)+SUMPRODUCT($M$12:M199,$I$12:I199))/(I201-I200)) -> 0.01004841063 | P200: =IF(O200="","",_xll.qlSabrVolatility(O200,$C$20,($C$14-$C$2)/365,$F$3,$F$6,$F$4,$F$5)) ->  | Q200: =IF(O200="","",$C$23*BSput(($C$14-$C$2)/365,O200,$C$20,P200)) ->  | S200: =IF(O201="","",(R201*(O201-$O$12)-O201*SUM($S$12:S199)+SUMPRODUCT($S$12:S199,$O$12:O199))/(O201-O200)) ->  | U200: 0.965 | V200: =IF(U200="","",_xll.qlSabrVolatility(U200,$C$20,($C$14-$C$2)/365,$F$3,$F$6,$F$4,$F$5)) -> 0.3115555941 | W200: 0.9033274941 | X200: 2.00983124 | Y200: =IF(X200="","",BScall(($C$14-$C$2)/365,U200,$C$20,V200)*X200) -> 1.604260498e-05 | Z200: 7.99126132e-08 | AC200: =IF(AB200="","",_xll.qlSabrVolatility(AB200,$C$20,($C$14-$C$2)/365,$F$3,$F$6,$F$4,$F$5)) ->  | AF200: =IF(AE200="","",BSput(($C$14-$C$2)/365,AB200,$C$20,AC200)*AE200) -> 
... 811 more rows

Sheet Caplet Payoff check
A2: strike | B2: =CMS!C8 -> 0.037
A3: tenor | B3: =CMS!C7 -> 30
A4: delay | B4: =CMS!C9 -> 0
A5: freq | B5: =CMS!C22 -> 1
B7: Swap rate | C7: =B2 -> 0.037 | D7: =C7+0.1% -> 0.038 | E7: =D7+0.1% -> 0.039 | F7: 0.04 | G7: 0.041 | H7: 0.042 | I7: 0.043 | J7: 0.044 | K7: 0.045 | L7: 0.046 | M7: 0.047 | N7: 0.048 | O7: 0.049 | P7: 0.05 | Q7: 0.051 | R7: 0.052 | S7: 0.053 | T7: 0.054 | U7: 0.055 | V7: 0.056 | W7: 0.057 | X7: 0.058 | Y7: 0.059 | Z7: 0.06 | AA7: 0.061 | AB7: 0.062 | AC7: 0.063 | AD7: 0.064 | AE7: 0.065 | AF7: 0.066 | AG7: 0.067 | AH7: 0.068 | AI7: 0.069 | AJ7: 0.07 | AK7: 0.071 | AL7: 0.072 | AM7: 0.073 | AN7: 0.074 | AO7: 0.075 | AP7: 0.076 | AQ7: 0.077 | AR7: 0.078 | AS7: 0.079 | AT7: 0.08 | AU7: 0.081 | AV7: 0.082 | AW7: 0.083 | AX7: 0.084 | AY7: 0.085 | AZ7: 0.086 | BA7: 0.087 | BB7: 0.088 | BC7: 0.089 | BD7: 0.09 | BE7: 0.091 | BF7: 0.092 | BG7: 0.093 | BH7: 0.094 | BI7: 0.095 | BJ7: 0.096 | BK7: 0.097 | BL7: 0.098 | BM7: 0.099 | BN7: 0.1 | BO7: 0.101 | BP7: 0.102 | BQ7: =BP7+0.1% -> 0.103 | BR7: 0.104 | BS7: 0.105 | BT7: 0.106 | BU7: 0.107 | BV7: 0.108 | BW7: 0.109 | BX7: 0.11 | BY7: 0.111 | BZ7: 0.112 | CA7: 0.113 | CB7: 0.114 | CC7: 0.115 | CD7: 0.116 | CE7: 0.117 | CF7: 0.118 | CG7: 0.119 | CH7: 0.12 | CI7: 0.121 | CJ7: 0.122 | CK7: 0.123 | CL7: 0.124 | CM7: 0.125 | CN7: 0.126 | CO7: 0.127 | CP7: 0.128 | CQ7: 0.129 | CR7: 0.13 | CS7: 0.131 | CT7: 0.132 | CU7: 0.133 | CV7: 0.134 | CW7: 0.135 | CX7: 0.136 | CY7: 0.137 | CZ7: 0.138 | DA7: 0.139 | DB7: 0.14 | DC7: 0.141 | DD7: 0.142 | DE7: 0.143 | DF7: 0.144 | DG7: 0.145 | DH7: 0.146 | DI7: 0.147 | DJ7: 0.148 | DK7: 0.149 | DL7: 0.15 | DM7: 0.151 | DN7: 0.152 | DO7: 0.153 | DP7: 0.154 | DQ7: 0.155 | DR7: 0.156 | DS7: 0.157
B8: CMS caplet | C8: =MAX(C7-$B$2,0)*(1+C7/$B$5)^(-$B$5*$B$4) -> 0 | D8: =MAX(D7-$B$2,0)*(1+D7/$B$5)^(-$B$5*$B$4) -> 0.001 | E8: 0.002 | F8: 0.003 | G8: 0.004 | H8: 0.005 | I8: 0.006 | J8: 0.007 | K8: 0.008 | L8: 0.009 | M8: 0.01 | N8: 0.011 | O8: 0.012 | P8: 0.013 | Q8: 0.014 | R8: 0.015 | S8: 0.016 | T8: 0.017 | U8: 0.018 | V8: 0.019 | W8: 0.02 | X8: 0.021 | Y8: 0.022 | Z8: 0.023 | AA8: 0.024 | AB8: 0.025 | AC8: 0.026 | AD8: 0.027 | AE8: 0.028 | AF8: 0.029 | AG8: 0.03 | AH8: 0.031 | AI8: 0.032 | AJ8: 0.033 | AK8: 0.034 | AL8: 0.035 | AM8: 0.036 | AN8: 0.037 | AO8: 0.038 | AP8: 0.039 | AQ8: 0.04 | AR8: 0.041 | AS8: 0.042 | AT8: 0.043 | AU8: 0.044 | AV8: 0.045 | AW8: 0.046 | AX8: 0.047 | AY8: 0.048 | AZ8: 0.049 | BA8: 0.05 | BB8: 0.051 | BC8: 0.052 | BD8: 0.053 | BE8: 0.054 | BF8: 0.055 | BG8: 0.056 | BH8: 0.057 | BI8: 0.058 | BJ8: 0.059 | BK8: 0.06 | BL8: 0.061 | BM8: 0.062 | BN8: 0.063 | BO8: 0.064 | BP8: =MAX(BP7-$B$2,0)*(1+BP7/$B$5)^(-$B$5*$B$4) -> 0.065 | BQ8: 0.066 | BR8: 0.067 | BS8: 0.068 | BT8: 0.069 | BU8: 0.07 | BV8: 0.071 | BW8: 0.072 | BX8: 0.073 | BY8: 0.074 | BZ8: 0.075 | CA8: 0.076 | CB8: 0.077 | CC8: 0.078 | CD8: 0.079 | CE8: 0.08 | CF8: 0.081 | CG8: 0.082 | CH8: 0.083 | CI8: 0.084 | CJ8: 0.085 | CK8: 0.086 | CL8: 0.087 | CM8: 0.088 | CN8: 0.089 | CO8: 0.09 | CP8: 0.091 | CQ8: 0.092 | CR8: 0.093 | CS8: 0.094 | CT8: 0.095 | CU8: 0.096 | CV8: 0.097 | CW8: 0.098 | CX8: 0.099 | CY8: 0.1 | CZ8: 0.101 | DA8: 0.102 | DB8: 0.103 | DC8: 0.104 | DD8: 0.105 | DE8: 0.106 | DF8: 0.107 | DG8: 0.108 | DH8: 0.109 | DI8: 0.11 | DJ8: 0.111 | DK8: 0.112 | DL8: 0.113 | DM8: 0.114 | DN8: 0.115 | DO8: 0.116 | DP8: 0.117 | DQ8: 0.118 | DR8: 0.119 | DS8: 0.12
B9: Swaption basket | C9: =SUMPRODUCT($B$12:$B$1011,C12:C1011) -> 0 | D9: =SUMPRODUCT($B$12:$B$1011,D12:D1011) -> 0.001049766903 | E9: 0.00207395724 | F9: 0.00307327442 | G9: 0.004048401136 | H9: 0.005 | I9: 0.006048849129 | J9: 0.007072601053 | K9: 0.00807193832 | L9: 0.009047523541 | M9: 0.01 | N9: 0.01104784833 | O9: 0.01207112185 | P9: 0.01307048071 | Q9: 0.01404656592 | R9: 0.015 | S9: 0.01604678169 | T9: 0.017069545 | U9: 0.01806892654 | V9: 0.01904554465 | W9: 0.02 | X9: 0.02104566478 | Y9: 0.0220678935 | Z9: 0.02306729846 | AA9: 0.02404447459 | AB9: 0.025 | AC9: 0.02604451163 | AD9: 0.02706618805 | AE9: 0.02806561685 | AF9: 0.02904336913 | AG9: 0.03 | AH9: 0.03104333469 | AI9: 0.03206444706 | AJ9: 0.03306389986 | AK9: 0.03404224019 | AL9: 0.035 | AM9: 0.03604214492 | AN9: 0.03706268677 | AO9: 0.03806216349 | AP9: 0.03904109828 | AQ9: 0.04 | AR9: 0.04104095189 | AS9: 0.04206092129 | AT9: 0.04306042167 | AU9: 0.04403995257 | AV9: 0.045 | AW9: 0.04603976381 | AX9: 0.04705916281 | AY9: 0.04805868642 | AZ9: 0.04903881095 | BA9: 0.05 | BB9: 0.05103858766 | BC9: 0.05205742166 | BD9: 0.05305696794 | BE9: 0.05403768016 | BF9: 0.055 | BG9: 0.0560374293 | BH9: 0.05705570651 | BI9: 0.05805527481 | BJ9: 0.05903656584 | BK9: 0.06 | BL9: 0.06103629354 | BM9: 0.06205402451 | BN9: 0.06305361409 | BO9: 0.06403547265 | BP9: =SUMPRODUCT($B$12:$B$1011,BP12:BP1011) -> 0.065 | BQ9: 0.06603518425 | BR9: 0.06705238141 | BS9: 0.06805199149 | BT9: 0.06903440435 | BU9: 0.07 | BV9: 0.07103410449 | BW9: 0.07205078175 | BX9: 0.07305041149 | BY9: 0.07403336391 | BZ9: 0.075 | CA9: 0.07603305658 | CB9: 0.07704922899 | CC9: 0.07804887753 | CD9: 0.07903235361 | CE9: 0.08 | CF9: 0.08103204219 | CG9: 0.08204772564 | CH9: 0.08304739211 | CI9: 0.08403137509 | CJ9: 0.085 | CK9: 0.08603106244 | CL9: 0.08704627336 | CM9: 0.0880459569 | CN9: 0.08903042949 | CO9: 0.09 | CP9: 0.09103011799 | CQ9: 0.09204487314 | CR9: 0.09304457289 | CS9: 0.09402951745 | CT9: 0.095 | CU9: 0.09602920906 | CV9: 0.09704352535 | CW9: 0.09804324047 | CX9: 0.09902863926 | CY9: 0.1 | CZ9: 0.1010283356 | DA9: 0.1020422299 | DB9: 0.1030419596 | DC9: 0.1040277949 | DD9: 0.105 | DE9: 0.1060274971 | DF9: 0.1070409862 | DG9: 0.1080407296 | DH9: 0.1090269839 | DI9: 0.11 | DJ9: 0.1110266932 | DK9: 0.1120397934 | DL9: 0.1130395498 | DM9: 0.1140262059 | DN9: 0.115 | DO9: 0.1160259229 | DP9: 0.1170386504 | DQ9: 0.118038419 | DR9: 0.1190254601 | DS9: 0.12
A11: strikes | B11: weights | C11: cs swaption
A12: =CMS!I12 -> 0.037 | B12: =CMS!M12 -> 0.05924258813 | C12: =IF($A13="","",MAX(C$7-$A12,0)*(1-(1+C$7/$B$5)^(-$B$3*$B$5))/C$7) -> 0 | D12: =IF($A13="","",MAX(D$7-$A12,0)*(1-(1+D$7/$B$5)^(-$B$3*$B$5))/D$7) -> 0.01771980152 | E12: 0.03500787703 | F12: 0.0518760999 | G12: 0.06833599382 | H12: 0.08439874351 | I12: 0.1000752053 | J12: 0.1153759171 | K12: 0.1303111084 | L12: 0.1448907096 | M12: 0.1591243614 | N12: 0.1730214233 | O12: 0.1865909829 | P12: 0.1998418633 | Q12: 0.2127826322 | R12: 0.2254216087 | S12: 0.2377668716 | T12: 0.2498262666 | U12: 0.2616074131 | V12: 0.2731177112 | W12: 0.2843643486 | X12: 0.2953543066 | Y12: 0.3060943667 | Z12: 0.3165911165 | AA12: 0.3268509555 | AB12: 0.3368801009 | AC12: 0.346684593 | AD12: 0.3562703004 | AE12: 0.3656429254 | AF12: 0.3748080088 | AG12: 0.3837709348 | AH12: 0.3925369358 | AI12: 0.4011110966 | AJ12: 0.4094983591 | AK12: 0.4177035264 | AL12: 0.425731267 | AM12: 0.4335861189 | AN12: 0.4412724933 | AO12: 0.4487946781 | AP12: 0.4561568422 | AQ12: 0.4633630386 | AR12: 0.4704172077 | AS12: 0.4773231809 | AT12: 0.4840846838 | AU12: 0.4907053388 | AV12: 0.497188669 | AW12: 0.5035381004 | AX12: 0.5097569649 | AY12: 0.5158485032 | AZ12: 0.5218158674 | BA12: 0.5276621235 | BB12: 0.5333902539 | BC12: 0.53900316 | BD12: 0.5445036643 | BE12: 0.5498945128 | BF12: 0.5551783775 | BG12: 0.5603578578 | BH12: 0.5654354834 | BI12: 0.5704137158 | BJ12: 0.5752949504 | BK12: 0.5800815185 | BL12: 0.584775689 | BM12: 0.5893796701 | BN12: 0.5938956114 | BO12: 0.5983256052 | BP12: =IF($A13="","",MAX(BP$7-$A12,0)*(1-(1+BP$7/$B$5)^(-$B$3*$B$5))/BP$7) -> 0.6026716882 | BQ12: 0.6069358432 | BR12: 0.6111200007 | BS12: 0.61522604 | BT12: 0.6192557912 | BU12: 0.623211036 | BV12: 0.6270935097 | BW12: 0.6309049018 | BX12: 0.6346468579 | BY12: 0.6383209806 | BZ12: 0.6419288309 | CA12: 0.6454719292 | CB12: 0.6489517565 | CC12: 0.6523697553 | CD12: 0.6557273313 | CE12: 0.6590258537 | CF12: 0.6622666564 | CG12: 0.6654510394 | CH12: 0.6685802693 | CI12: 0.6716555803 | CJ12: 0.6746781751 | CK12: 0.677649226 | CL12: 0.6805698754 | CM12: 0.6834412367 | CN12: 0.6862643955 | CO12: 0.6890404097 | CP12: 0.6917703106 | CQ12: 0.6944551039 | CR12: 0.6970957699 | CS12: 0.6996932642 | CT12: 0.7022485191 | CU12: 0.7047624432 | CV12: 0.7072359228 | CW12: 0.7096698222 | CX12: 0.7120649844 | CY12: 0.7144222314 | CZ12: 0.7167423654 | DA12: 0.7190261684 | DB12: 0.7212744036 | DC12: 0.7234878154 | DD12: 0.7256671303 | DE12: 0.7278130568 | DF12: 0.7299262864 | DG12: 0.7320074939 | DH12: 0.7340573377 | DI12: 0.7360764604 | DJ12: 0.7380654892 | DK12: 0.7400250362 | DL12: 0.7419556989 | DM12: 0.7438580606 | DN12: 0.7457326906 | DO12: 0.7475801448 | DP12: 0.7494009659 | DQ12: 0.7511956838 | DR12: 0.7529648159 | DS12: 0.7547088674
A13: =CMS!I13 -> 0.042 | B13: =CMS!M13 -> 0.007202680902 | C13: =IF($A14="","",MAX(C$7-$A13,0)*(1-(1+C$7/$B$5)^(-$B$3*$B$5))/C$7) -> 0 | D13: 0 | E13: 0 | F13: 0 | G13: 0 | H13: 1.171267854e-16 | I13: 0.01667920088 | J13: 0.03296454773 | K13: 0.04886666563 | L13: 0.06439587093 | M13: 0.07956218068 | N13: 0.09437532182 | O13: 0.10884474 | P13: 0.1229796082 | Q13: 0.136788835 | R13: 0.1502810724 | S13: 0.1634647242 | T13: 0.1763479529 | U13: 0.1889386872 | V13: 0.2012446293 | W13: 0.2132732614 | X13: 0.2250318526 | Y13: 0.2365274652 | Z13: 0.2477669607 | AA13: 0.2587570064 | AB13: 0.2695040807 | AC13: 0.2800144789 | AD13: 0.2902943188 | AE13: 0.3003495458 | AF13: 0.3101859383 | AG13: 0.3198091124 | AH13: 0.3292245268 | AI13: 0.3384374877 | AJ13: 0.3474531531 | AK13: 0.3562765372 | AL13: 0.3649125146 | AM13: 0.3733658246 | AN13: 0.3816410752 | AO13: 0.3897427468 | AP13: 0.3976751958 | AQ13: 0.4054426588 | AR13: 0.4130492556 | AS13: 0.4204989927 | AT13: 0.427795767 | AU13: 0.4349433685 | AV13: 0.4419454836 | AW13: 0.4488056982 | AX13: 0.4555275006 | AY13: 0.4621142842 | AZ13: 0.4685693504 | BA13: 0.4748959112 | BB13: 0.4810970918 | BC13: 0.4871759331 | BD13: 0.4931353941 | BE13: 0.4989783543 | BF13: 0.5047076159 | BG13: 0.5103259062 | BH13: 0.5158358796 | BI13: 0.5212401196 | BJ13: 0.526541141 | BK13: 0.531741392 | BL13: 0.5368432554 | BM13: 0.5418490516 | BN13: 0.5467610391 | BO13: 0.5515814173 | BP13: 0.5563123275 | BQ13: 0.5609558551 | BR13: 0.5655140305 | BS13: 0.5699888312 | BT13: 0.5743821831 | BU13: 0.578695962 | BV13: 0.5829319949 | BW13: 0.5870920614 | BX13: 0.591177895 | BY13: 0.5951911846 | BZ13: 0.5991335755 | CA13: 0.6030066707 | CB13: 0.606812032 | CC13: 0.6105511813 | CD13: 0.6142256015 | CE13: 0.6178367378 | CF13: 0.6213859986 | CG13: 0.6248747565 | CH13: 0.6283043495 | CI13: 0.6316760815 | CJ13: 0.6349912236 | CK13: 0.6382510152 | CL13: 0.6414566641 | CM13: 0.6446093483 | CN13: 0.647710216 | CO13: 0.6507603869 | CP13: 0.6537609529 | CQ13: 0.6567129787 | CR13: 0.6596175027 | CS13: 0.6624755374 | CT13: 0.6652880707 | CU13: 0.6680560659 | CV13: 0.6707804629 | CW13: 0.6734621782 | CX13: 0.6761021064 | CY13: 0.6787011199 | CZ13: 0.68126007 | DA13: 0.6837797876 | DB13: 0.686261083 | DC13: 0.6887047474 | DD13: 0.6911115526 | DE13: 0.6934822522 | DF13: 0.6958175814 | DG13: 0.698118258 | DH13: 0.7003849827 | DI13: 0.7026184395 | DJ13: 0.704819296 | DK13: 0.7069882042 | DL13: 0.7091258008 | DM13: 0.7112327071 | DN13: 0.7133095302 | DO13: 0.7153568627 | DP13: 0.7173752836 | DQ13: 0.7193653582 | DR13: 0.7213276387 | DS13: 0.7232626646
A14: =CMS!I14 -> 0.047 | B14: =CMS!M14 -> 0.007492811487 | C14: 0 | D14: 0 | E14: 0 | F14: 0 | G14: 0 | H14: 0 | I14: 0 | J14: 0 | K14: 0 | L14: 0 | M14: 2.208294122e-16 | N14: 0.0157292203 | O14: 0.03109849715 | P14: 0.04611735308 | Q14: 0.06079503776 | R14: 0.07514053622 | S14: 0.08916257686 | T14: 0.1028696392 | U14: 0.1162699614 | V14: 0.1293715474 | W14: 0.1421821743 | X14: 0.1547093987 | Y14: 0.1669605636 | Z14: 0.178942805 | AA14: 0.1906630574 | AB14: 0.2021280606 | AC14: 0.2133443649 | AD14: 0.2243183373 | AE14: 0.2350561663 | AF14: 0.2455638678 | AG14: 0.2558472899 | AH14: 0.2659121178 | AI14: 0.2757638789 | AJ14: 0.2854079472 | AK14: 0.294849548 | AL14: 0.3040937622 | AM14: 0.3131455303 | AN14: 0.3220096572 | AO14: 0.3306908154 | AP14: 0.3391935494 | AQ14: 0.347522279 | AR14: 0.3556813034 | AS14: 0.3636748045 | AT14: 0.3715068503 | AU14: 0.3791813982 | AV14: 0.3867022981 | AW14: 0.394073296 | AX14: 0.4012980362 | AY14: 0.4083800651 | AZ14: 0.4153228333 | BA14: 0.4221296988 | BB14: 0.4288039296 | BC14: 0.4353487061 | BD14: 0.4417671238 | BE14: 0.4480621957 | BF14: 0.4542368543 | BG14: 0.4602939546 | BH14: 0.4662362758 | BI14: 0.4720665234 | BJ14: 0.4777873317 | BK14: 0.4834012654 | BL14: 0.4889108219 | BM14: 0.494318433 | BN14: 0.4996264668 | BO14: 0.5048372294 | BP14: 0.5099529669 | BQ14: 0.514975867 | BR14: 0.5199080603 | BS14: 0.5247516224 | BT14: 0.5295085751 | BU14: 0.534180888 | BV14: 0.5387704801 | BW14: 0.543279221 | BX14: 0.5477089321 | BY14: 0.5520613886 | BZ14: 0.5563383201 | CA14: 0.5605414122 | CB14: 0.5646723076 | CC14: 0.5687326072 | CD14: 0.5727238717 | CE14: 0.5766476219 | CF14: 0.5805053408 | CG14: 0.5842984737 | CH14: 0.5880284296 | CI14: 0.5916965826 | CJ14: 0.5953042722 | CK14: 0.5988528044 | CL14: 0.6023434529 | CM14: 0.6057774598 | CN14: 0.6091560365 | CO14: 0.6124803642 | CP14: 0.6157515952 | CQ14: 0.6189708535 | CR14: 0.6221392355 | CS14: 0.6252578106 | CT14: 0.6283276223 | CU14: 0.6313496887 | CV14: 0.6343250029 | CW14: 0.6372545342 | CX14: 0.6401392284 | CY14: 0.6429800083 | CZ14: 0.6457777747 | DA14: 0.6485334068 | DB14: 0.6512477624 | DC14: 0.6539216793 | DD14: 0.656555975 | DE14: 0.6591514476 | DF14: 0.6617088764 | DG14: 0.6642290222 | DH14: 0.6667126278 | DI14: 0.6691604185 | DJ14: 0.6715731028 | DK14: 0.6739513723 | DL14: 0.6762959026 | DM14: 0.6786073536 | DN14: 0.6808863697 | DO14: 0.6831335806 | DP14: 0.6853496013 | DQ14: 0.6875350326 | DR14: 0.6896904616 | DS14: 0.6918164618
A15: =CMS!I15 -> 0.052 | B15: =CMS!M15 -> 0.007765200477 | C15: 0 | D15: 0 | E15: 0 | F15: 0 | G15: 0 | H15: 0 | I15: 0 | J15: 0 | K15: 0 | L15: 0 | M15: 0 | N15: 0 | O15: 0 | P15: 0 | Q15: 0 | R15: 3.128353252e-16 | S15: 0.01486042948 | T15: 0.02939132548 | U15: 0.04360123551 | V15: 0.05749846552 | W15: 0.07109108714 | X15: 0.08438694473 | Y15: 0.09739366213 | Z15: 0.1101186492 | AA15: 0.1225691083 | AB15: 0.1347520404 | AC15: 0.1466742509 | AD15: 0.1583423557 | AE15: 0.1697627868 | AF15: 0.1809417973 | AG15: 0.1918854674 | AH15: 0.2025997088 | AI15: 0.2130902701 | AJ15: 0.2233627413 | AK15: 0.2334225589 | AL15: 0.2432750097 | AM15: 0.2529252361 | AN15: 0.2623782392 | AO15: 0.2716388841 | AP15: 0.2807119029 | AQ15: 0.2896018991 | AR15: 0.2983133512 | AS15: 0.3068506163 | AT15: 0.3152179336 | AU15: 0.3234194279 | AV15: 0.3314591127 | AW15: 0.3393408938 | AX15: 0.3470685719 | AY15: 0.354645846 | AZ15: 0.3620763162 | BA15: 0.3693634865 | BB15: 0.3765107675 | BC15: 0.3835214792 | BD15: 0.3903988536 | BE15: 0.3971460371 | BF15: 0.4037660927 | BG15: 0.410262003 | BH15: 0.416636672 | BI15: 0.4228929272 | BJ15: 0.4290335223 | BK15: 0.4350611389 | BL15: 0.4409783884 | BM15: 0.4467878144 | BN15: 0.4524918944 | BO15: =IF($A16="","",MAX(BO$7-$A15,0)*(1-(1+BO$7/$B$5)^(-$B$3*$B$5))/BO$7) -> 0.4580930415 | BP15: 0.4635936063 | BQ15: 0.4689958788 | BR15: 0.4743020901 | BS15: 0.4795144135 | BT15: 0.484634967 | BU15: 0.489665814 | BV15: 0.4946089654 | BW15: 0.4994663806 | BX15: 0.5042399693 | BY15: 0.5089315927 | BZ15: 0.5135430647 | CA15: 0.5180761537 | CB15: 0.5225325831 | CC15: 0.5269140332 | CD15: 0.5312221418 | CE15: 0.5354585061 | CF15: 0.539624683 | CG15: 0.5437221908 | CH15: 0.5477525098 | CI15: 0.5517170838 | CJ15: 0.5556173207 | CK15: 0.5594545935 | CL15: 0.5632302417 | CM15: 0.5669455714 | CN15: 0.5706018569 | CO15: 0.5742003414 | CP15: 0.5777422375 | CQ15: 0.5812287283 | CR15: 0.5846609683 | CS15: 0.5880400838 | CT15: 0.591367174 | CU15: 0.5946433114 | CV15: 0.597869543 | CW15: 0.6010468902 | CX15: 0.6041763504 | CY15: 0.6072588967 | CZ15: 0.6102954794 | DA15: 0.613287026 | DB15: 0.6162344419 | DC15: 0.6191386113 | DD15: 0.6220003974 | DE15: 0.6248206431 | DF15: 0.6276001715 | DG15: 0.6303397864 | DH15: 0.6330402729 | DI15: 0.6357023976 | DJ15: 0.6383269096 | DK15: 0.6409145403 | DL15: 0.6434660044 | DM15: 0.645982 | DN15: 0.6484632093 | DO15: 0.6509102985 | DP15: 0.653323919 | DQ15: 0.6557047071 | DR15: 0.6580532845 | DS15: 0.660370259
A16: =CMS!I16 -> 0.057 | B16: =CMS!M16 -> 0.008019395832 | C16: 0 | D16: =IF($A17="","",MAX(D$7-$A16,0)*(1-(1+D$7/$B$5)^(-$B$3*$B$5))/D$7) -> 0 | E16: =IF($A17="","",MAX(E$7-$A16,0)*(1-(1+E$7/$B$5)^(-$B$3*$B$5))/E$7) -> 0 | F16: =IF($A17="","",MAX(F$7-$A16,0)*(1-(1+F$7/$B$5)^(-$B$3*$B$5))/F$7) -> 0 | G16: =IF($A17="","",MAX(G$7-$A16,0)*(1-(1+G$7/$B$5)^(-$B$3*$B$5))/G$7) -> 0 | H16: =IF($A17="","",MAX(H$7-$A16,0)*(1-(1+H$7/$B$5)^(-$B$3*$B$5))/H$7) -> 0 | I16: =IF($A17="","",MAX(I$7-$A16,0)*(1-(1+I$7/$B$5)^(-$B$3*$B$5))/I$7) -> 0 | J16: =IF($A17="","",MAX(J$7-$A16,0)*(1-(1+J$7/$B$5)^(-$B$3*$B$5))/J$7) -> 0 | K16: =IF($A17="","",MAX(K$7-$A16,0)*(1-(1+K$7/$B$5)^(-$B$3*$B$5))/K$7) -> 0 | L16: =IF($A17="","",MAX(L$7-$A16,0)*(1-(1+L$7/$B$5)^(-$B$3*$B$5))/L$7) -> 0 | M16: =IF($A17="","",MAX(M$7-$A16,0)*(1-(1+M$7/$B$5)^(-$B$3*$B$5))/M$7) -> 0 | N16: =IF($A17="","",MAX(N$7-$A16,0)*(1-(1+N$7/$B$5)^(-$B$3*$B$5))/N$7) -> 0 | O16: =IF($A17="","",MAX(O$7-$A16,0)*(1-(1+O$7/$B$5)^(-$B$3*$B$5))/O$7) -> 0 | P16: =IF($A17="","",MAX(P$7-$A16,0)*(1-(1+P$7/$B$5)^(-$B$3*$B$5))/P$7) -> 0 | Q16: =IF($A17="","",MAX(Q$7-$A16,0)*(1-(1+Q$7/$B$5)^(-$B$3*$B$5))/Q$7) -> 0 | R16: =IF($A17="","",MAX(R$7-$A16,0)*(1-(1+R$7/$B$5)^(-$B$3*$B$5))/R$7) -> 0 | S16: =IF($A17="","",MAX(S$7-$A16,0)*(1-(1+S$7/$B$5)^(-$B$3*$B$5))/S$7) -> 0 | T16: =IF($A17="","",MAX(T$7-$A16,0)*(1-(1+T$7/$B$5)^(-$B$3*$B$5))/T$7) -> 0 | U16: =IF($A17="","",MAX(U$7-$A16,0)*(1-(1+U$7/$B$5)^(-$B$3*$B$5))/U$7) -> 0 | V16: =IF($A17="","",MAX(V$7-$A16,0)*(1-(1+V$7/$B$5)^(-$B$3*$B$5))/V$7) -> 0 | W16: =IF($A17="","",MAX(W$7-$A16,0)*(1-(1+W$7/$B$5)^(-$B$3*$B$5))/W$7) -> 3.94634809e-16 | X16: =IF($A17="","",MAX(X$7-$A16,0)*(1-(1+X$7/$B$5)^(-$B$3*$B$5))/X$7) -> 0.01406449079 | Y16: =IF($A17="","",MAX(Y$7-$A16,0)*(1-(1+Y$7/$B$5)^(-$B$3*$B$5))/Y$7) -> 0.02782676061 | Z16: =IF($A17="","",MAX(Z$7-$A16,0)*(1-(1+Z$7/$B$5)^(-$B$3*$B$5))/Z$7) -> 0.04129449345 | AA16: =IF($A17="","",MAX(AA$7-$A16,0)*(1-(1+AA$7/$B$5)^(-$B$3*$B$5))/AA$7) -> 0.05447515925 | AB16: =IF($A17="","",MAX(AB$7-$A16,0)*(1-(1+AB$7/$B$5)^(-$B$3*$B$5))/AB$7) -> 0.06737602018 | AC16: =IF($A17="","",MAX(AC$7-$A16,0)*(1-(1+AC$7/$B$5)^(-$B$3*$B$5))/AC$7) -> 0.08000413684 | AD16: =IF($A17="","",MAX(AD$7-$A16,0)*(1-(1+AD$7/$B$5)^(-$B$3*$B$5))/AD$7) -> 0.09236637417 | AE16: =IF($A17="","",MAX(AE$7-$A16,0)*(1-(1+AE$7/$B$5)^(-$B$3*$B$5))/AE$7) -> 0.1044694072 | AF16: =IF($A17="","",MAX(AF$7-$A16,0)*(1-(1+AF$7/$B$5)^(-$B$3*$B$5))/AF$7) -> 0.1163197269 | AG16: =IF($A17="","",MAX(AG$7-$A16,0)*(1-(1+AG$7/$B$5)^(-$B$3*$B$5))/AG$7) -> 0.1279236449 | AH16: =IF($A17="","",MAX(AH$7-$A16,0)*(1-(1+AH$7/$B$5)^(-$B$3*$B$5))/AH$7) -> 0.1392872998 | AI16: =IF($A17="","",MAX(AI$7-$A16,0)*(1-(1+AI$7/$B$5)^(-$B$3*$B$5))/AI$7) -> 0.1504166612 | AJ16: =IF($A17="","",MAX(AJ$7-$A16,0)*(1-(1+AJ$7/$B$5)^(-$B$3*$B$5))/AJ$7) -> 0.1613175354 | AK16: =IF($A17="","",MAX(AK$7-$A16,0)*(1-(1+AK$7/$B$5)^(-$B$3*$B$5))/AK$7) -> 0.1719955697 | AL16: =IF($A17="","",MAX(AL$7-$A16,0)*(1-(1+AL$7/$B$5)^(-$B$3*$B$5))/AL$7) -> 0.1824562573 | AM16: =IF($A17="","",MAX(AM$7-$A16,0)*(1-(1+AM$7/$B$5)^(-$B$3*$B$5))/AM$7) -> 0.1927049418 | AN16: =IF($A17="","",MAX(AN$7-$A16,0)*(1-(1+AN$7/$B$5)^(-$B$3*$B$5))/AN$7) -> 0.2027468212 | AO16: =IF($A17="","",MAX(AO$7-$A16,0)*(1-(1+AO$7/$B$5)^(-$B$3*$B$5))/AO$7) -> 0.2125869528 | AP16: =IF($A17="","",MAX(AP$7-$A16,0)*(1-(1+AP$7/$B$5)^(-$B$3*$B$5))/AP$7) -> 0.2222302565 | AQ16: =IF($A17="","",MAX(AQ$7-$A16,0)*(1-(1+AQ$7/$B$5)^(-$B$3*$B$5))/AQ$7) -> 0.2316815193 | AR16: =IF($A17="","",MAX(AR$7-$A16,0)*(1-(1+AR$7/$B$5)^(-$B$3*$B$5))/AR$7) -> 0.2409453991 | AS16: =IF($A17="","",MAX(AS$7-$A16,0)*(1-(1+AS$7/$B$5)^(-$B$3*$B$5))/AS$7) -> 0.2500264281 | AT16: =IF($A17="","",MAX(AT$7-$A16,0)*(1-(1+AT$7/$B$5)^(-$B$3*$B$5))/AT$7) -> 0.2589290169 | AU16: =IF($A17="","",MAX(AU$7-$A16,0)*(1-(1+AU$7/$B$5)^(-$B$3*$B$5))/AU$7) -> 0.2676574575 | AV16: =IF($A17="","",MAX(AV$7-$A16,0)*(1-(1+AV$7/$B$5)^(-$B$3*$B$5))/AV$7) -> 0.2762159272 | AW16: =IF($A17="","",MAX(AW$7-$A16,0)*(1-(1+AW$7/$B$5)^(-$B$3*$B$5))/AW$7) -> 0.2846084915 | AX16: =IF($A17="","",MAX(AX$7-$A16,0)*(1-(1+AX$7/$B$5)^(-$B$3*$B$5))/AX$7) -> 0.2928391075 | AY16: =IF($A17="","",MAX(AY$7-$A16,0)*(1-(1+AY$7/$B$5)^(-$B$3*$B$5))/AY$7) -> 0.3009116269 | AZ16: =IF($A17="","",MAX(AZ$7-$A16,0)*(1-(1+AZ$7/$B$5)^(-$B$3*$B$5))/AZ$7) -> 0.3088297991 | BA16: =IF($A17="","",MAX(BA$7-$A16,0)*(1-(1+BA$7/$B$5)^(-$B$3*$B$5))/BA$7) -> 0.3165972741 | BB16: =IF($A17="","",MAX(BB$7-$A16,0)*(1-(1+BB$7/$B$5)^(-$B$3*$B$5))/BB$7) -> 0.3242176053 | BC16: =IF($A17="","",MAX(BC$7-$A16,0)*(1-(1+BC$7/$B$5)^(-$B$3*$B$5))/BC$7) -> 0.3316942523 | BD16: =IF($A17="","",MAX(BD$7-$A16,0)*(1-(1+BD$7/$B$5)^(-$B$3*$B$5))/BD$7) -> 0.3390305834 | BE16: =IF($A17="","",MAX(BE$7-$A16,0)*(1-(1+BE$7/$B$5)^(-$B$3*$B$5))/BE$7) -> 0.3462298785 | BF16: =IF($A17="","",MAX(BF$7-$A16,0)*(1-(1+BF$7/$B$5)^(-$B$3*$B$5))/BF$7) -> 0.3532953311 | BG16: =IF($A17="","",MAX(BG$7-$A16,0)*(1-(1+BG$7/$B$5)^(-$B$3*$B$5))/BG$7) -> 0.3602300514 | BH16: =IF($A17="","",MAX(BH$7-$A16,0)*(1-(1+BH$7/$B$5)^(-$B$3*$B$5))/BH$7) -> 0.3670370682 | BI16: =IF($A17="","",MAX(BI$7-$A16,0)*(1-(1+BI$7/$B$5)^(-$B$3*$B$5))/BI$7) -> 0.373719331 | BJ16: =IF($A17="","",MAX(BJ$7-$A16,0)*(1-(1+BJ$7/$B$5)^(-$B$3*$B$5))/BJ$7) -> 0.380279713 | BK16: =IF($A17="","",MAX(BK$7-$A16,0)*(1-(1+BK$7/$B$5)^(-$B$3*$B$5))/BK$7) -> 0.3867210123 | BL16: =IF($A17="","",MAX(BL$7-$A16,0)*(1-(1+BL$7/$B$5)^(-$B$3*$B$5))/BL$7) -> 0.3930459549 | BM16: =IF($A17="","",MAX(BM$7-$A16,0)*(1-(1+BM$7/$B$5)^(-$B$3*$B$5))/BM$7) -> 0.3992571959 | BN16: =IF($A17="","",MAX(BN$7-$A16,0)*(1-(1+BN$7/$B$5)^(-$B$3*$B$5))/BN$7) -> 0.4053573221 | BO16: 0.4113488536 | BP16: 0.4172342457 | BQ16: 0.4230158907 | BR16: 0.4286961199 | BS16: 0.4342772047 | BT16: 0.439761359 | BU16: 0.44515074 | BV16: 0.4504474506 | BW16: 0.4556535402 | BX16: 0.4607710064 | BY16: 0.4658017967 | BZ16: 0.4707478094 | CA16: 0.4756108952 | CB16: 0.4803928587 | CC16: 0.4850954591 | CD16: 0.489720412 | CE16: 0.4942693902 | CF16: 0.4987440252 | CG16: 0.5031459079 | CH16: 0.50747659 | CI16: 0.511737585 | CJ16: 0.5159303692 | CK16: 0.5200563827 | CL16: 0.5241170304 | CM16: 0.5281136829 | CN16: 0.5320476774 | CO16: 0.5359203186 | CP16: 0.5397328797 | CQ16: 0.5434866031 | CR16: 0.5471827011 | CS16: 0.550822357 | CT16: 0.5544067256 | CU16: =IF($A17="","",MAX(CU$7-$A16,0)*(1-(1+CU$7/$B$5)^(-$B$3*$B$5))/CU$7) -> 0.5579369342 | CV16: =IF($A17="","",MAX(CV$7-$A16,0)*(1-(1+CV$7/$B$5)^(-$B$3*$B$5))/CV$7) -> 0.561414083 | CW16: =IF($A17="","",MAX(CW$7-$A16,0)*(1-(1+CW$7/$B$5)^(-$B$3*$B$5))/CW$7) -> 0.5648392463 | CX16: =IF($A17="","",MAX(CX$7-$A16,0)*(1-(1+CX$7/$B$5)^(-$B$3*$B$5))/CX$7) -> 0.5682134724 | CY16: =IF($A17="","",MAX(CY$7-$A16,0)*(1-(1+CY$7/$B$5)^(-$B$3*$B$5))/CY$7) -> 0.5715377852 | CZ16: =IF($A17="","",MAX(CZ$7-$A16,0)*(1-(1+CZ$7/$B$5)^(-$B$3*$B$5))/CZ$7) -> 0.5748131841 | DA16: =IF($A17="","",MAX(DA$7-$A16,0)*(1-(1+DA$7/$B$5)^(-$B$3*$B$5))/DA$7) -> 0.5780406451 | DB16: =IF($A17="","",MAX(DB$7-$A16,0)*(1-(1+DB$7/$B$5)^(-$B$3*$B$5))/DB$7) -> 0.5812211213 | DC16: =IF($A17="","",MAX(DC$7-$A16,0)*(1-(1+DC$7/$B$5)^(-$B$3*$B$5))/DC$7) -> 0.5843555432 | DD16: =IF($A17="","",MAX(DD$7-$A16,0)*(1-(1+DD$7/$B$5)^(-$B$3*$B$5))/DD$7) -> 0.5874448197 | DE16: =IF($A17="","",MAX(DE$7-$A16,0)*(1-(1+DE$7/$B$5)^(-$B$3*$B$5))/DE$7) -> 0.5904898385 | DF16: =IF($A17="","",MAX(DF$7-$A16,0)*(1-(1+DF$7/$B$5)^(-$B$3*$B$5))/DF$7) -> 0.5934914665 | DG16: =IF($A17="","",MAX(DG$7-$A16,0)*(1-(1+DG$7/$B$5)^(-$B$3*$B$5))/DG$7) -> 0.5964505506 | DH16: =IF($A17="","",MAX(DH$7-$A16,0)*(1-(1+DH$7/$B$5)^(-$B$3*$B$5))/DH$7) -> 0.5993679179 | DI16: =IF($A17="","",MAX(DI$7-$A16,0)*(1-(1+DI$7/$B$5)^(-$B$3*$B$5))/DI$7) -> 0.6022443767 | DJ16: =IF($A17="","",MAX(DJ$7-$A16,0)*(1-(1+DJ$7/$B$5)^(-$B$3*$B$5))/DJ$7) -> 0.6050807164 | DK16: =IF($A17="","",MAX(DK$7-$A16,0)*(1-(1+DK$7/$B$5)^(-$B$3*$B$5))/DK$7) -> 0.6078777083 | DL16: =IF($A17="","",MAX(DL$7-$A16,0)*(1-(1+DL$7/$B$5)^(-$B$3*$B$5))/DL$7) -> 0.6106361062 | DM16: =IF($A17="","",MAX(DM$7-$A16,0)*(1-(1+DM$7/$B$5)^(-$B$3*$B$5))/DM$7) -> 0.6133566465 | DN16: =IF($A17="","",MAX(DN$7-$A16,0)*(1-(1+DN$7/$B$5)^(-$B$3*$B$5))/DN$7) -> 0.6160400488 | DO16: =IF($A17="","",MAX(DO$7-$A16,0)*(1-(1+DO$7/$B$5)^(-$B$3*$B$5))/DO$7) -> 0.6186870164 | DP16: =IF($A17="","",MAX(DP$7-$A16,0)*(1-(1+DP$7/$B$5)^(-$B$3*$B$5))/DP$7) -> 0.6212982367 | DQ16: =IF($A17="","",MAX(DQ$7-$A16,0)*(1-(1+DQ$7/$B$5)^(-$B$3*$B$5))/DQ$7) -> 0.6238743815 | DR16: =IF($A17="","",MAX(DR$7-$A16,0)*(1-(1+DR$7/$B$5)^(-$B$3*$B$5))/DR$7) -> 0.6264161073 | DS16: =IF($A17="","",MAX(DS$7-$A16,0)*(1-(1+DS$7/$B$5)^(-$B$3*$B$5))/DS$7) -> 0.6289240562
A17: =CMS!I17 -> 0.062 | B17: =CMS!M17 -> 0.008255215143 | C17: 0 | D17: 0 | E17: 0 | F17: 0 | G17: 0 | H17: 0 | I17: 0 | J17: 0 | K17: 0 | L17: 0 | M17: 0 | N17: 0 | O17: 0 | P17: 0 | Q17: 0 | R17: 0 | S17: 0 | T17: 0 | U17: 0 | V17: 0 | W17: 0 | X17: 0 | Y17: 0 | Z17: 0 | AA17: 0 | AB17: 4.675150557e-16 | AC17: 0.01333402281 | AD17: 0.02639039262 | AE17: 0.03917602772 | AF17: 0.05169765638 | AG17: 0.06396182247 | AH17: 0.0759748908 | AI17: 0.08774305238 | AJ17: 0.09927232947 | AK17: 0.1105685805 | AL17: 0.1216375049 | AM17: 0.1324846475 | AN17: 0.1431154032 | AO17: 0.1535350215 | AP17: 0.16374861 | AQ17: 0.1737611395 | AR17: 0.1835774469 | AS17: 0.1932022399 | AT17: 0.2026401002 | AU17: 0.2118954872 | AV17: 0.2209727418 | AW17: 0.2298760893 | AX17: 0.2386096432 | AY17: 0.2471774078 | AZ17: 0.255583282 | BA17: 0.2638310618 | BB17: 0.2719244432 | BC17: 0.2798670254 | BD17: 0.2876623132 | BE17: 0.2953137199 | BF17: 0.3028245695 | BG17: 0.3101980999 | BH17: 0.3174374644 | BI17: 0.3245457348 | BJ17: 0.3315259036 | BK17: 0.3383808858 | BL17: 0.3451135214 | BM17: 0.3517265773 | BN17: 0.3582227497 | BO17: 0.3646046657 | BP17: =IF($A18="","",MAX(BP$7-$A17,0)*(1-(1+BP$7/$B$5)^(-$B$3*$B$5))/BP$7) -> 0.370874885 | BQ17: =IF($A18="","",MAX(BQ$7-$A17,0)*(1-(1+BQ$7/$B$5)^(-$B$3*$B$5))/BQ$7) -> 0.3770359026 | BR17: =IF($A18="","",MAX(BR$7-$A17,0)*(1-(1+BR$7/$B$5)^(-$B$3*$B$5))/BR$7) -> 0.3830901497 | BS17: =IF($A18="","",MAX(BS$7-$A17,0)*(1-(1+BS$7/$B$5)^(-$B$3*$B$5))/BS$7) -> 0.3890399959 | BT17: =IF($A18="","",MAX(BT$7-$A17,0)*(1-(1+BT$7/$B$5)^(-$B$3*$B$5))/BT$7) -> 0.3948877509 | BU17: =IF($A18="","",MAX(BU$7-$A17,0)*(1-(1+BU$7/$B$5)^(-$B$3*$B$5))/BU$7) -> 0.400635666 | BV17: =IF($A18="","",MAX(BV$7-$A17,0)*(1-(1+BV$7/$B$5)^(-$B$3*$B$5))/BV$7) -> 0.4062859358 | BW17: =IF($A18="","",MAX(BW$7-$A17,0)*(1-(1+BW$7/$B$5)^(-$B$3*$B$5))/BW$7) -> 0.4118406998 | BX17: =IF($A18="","",MAX(BX$7-$A17,0)*(1-(1+BX$7/$B$5)^(-$B$3*$B$5))/BX$7) -> 0.4173020435 | BY17: =IF($A18="","",MAX(BY$7-$A17,0)*(1-(1+BY$7/$B$5)^(-$B$3*$B$5))/BY$7) -> 0.4226720007 | BZ17: =IF($A18="","",MAX(BZ$7-$A17,0)*(1-(1+BZ$7/$B$5)^(-$B$3*$B$5))/BZ$7) -> 0.427952554 | CA17: =IF($A18="","",MAX(CA$7-$A17,0)*(1-(1+CA$7/$B$5)^(-$B$3*$B$5))/CA$7) -> 0.4331456367 | CB17: =IF($A18="","",MAX(CB$7-$A17,0)*(1-(1+CB$7/$B$5)^(-$B$3*$B$5))/CB$7) -> 0.4382531342 | CC17: =IF($A18="","",MAX(CC$7-$A17,0)*(1-(1+CC$7/$B$5)^(-$B$3*$B$5))/CC$7) -> 0.443276885 | CD17: =IF($A18="","",MAX(CD$7-$A17,0)*(1-(1+CD$7/$B$5)^(-$B$3*$B$5))/CD$7) -> 0.4482186822 | CE17: =IF($A18="","",MAX(CE$7-$A17,0)*(1-(1+CE$7/$B$5)^(-$B$3*$B$5))/CE$7) -> 0.4530802744 | CF17: =IF($A18="","",MAX(CF$7-$A17,0)*(1-(1+CF$7/$B$5)^(-$B$3*$B$5))/CF$7) -> 0.4578633674 | CG17: =IF($A18="","",MAX(CG$7-$A17,0)*(1-(1+CG$7/$B$5)^(-$B$3*$B$5))/CG$7) -> 0.462569625 | CH17: =IF($A18="","",MAX(CH$7-$A17,0)*(1-(1+CH$7/$B$5)^(-$B$3*$B$5))/CH$7) -> 0.4672006701 | CI17: =IF($A18="","",MAX(CI$7-$A17,0)*(1-(1+CI$7/$B$5)^(-$B$3*$B$5))/CI$7) -> 0.4717580861 | CJ17: =IF($A18="","",MAX(CJ$7-$A17,0)*(1-(1+CJ$7/$B$5)^(-$B$3*$B$5))/CJ$7) -> 0.4762434177 | CK17: =IF($A18="","",MAX(CK$7-$A17,0)*(1-(1+CK$7/$B$5)^(-$B$3*$B$5))/CK$7) -> 0.4806581719 | CL17: =IF($A18="","",MAX(CL$7-$A17,0)*(1-(1+CL$7/$B$5)^(-$B$3*$B$5))/CL$7) -> 0.4850038192 | CM17: =IF($A18="","",MAX(CM$7-$A17,0)*(1-(1+CM$7/$B$5)^(-$B$3*$B$5))/CM$7) -> 0.4892817945 | CN17: =IF($A18="","",MAX(CN$7-$A17,0)*(1-(1+CN$7/$B$5)^(-$B$3*$B$5))/CN$7) -> 0.4934934979 | CO17: =IF($A18="","",MAX(CO$7-$A17,0)*(1-(1+CO$7/$B$5)^(-$B$3*$B$5))/CO$7) -> 0.4976402959 | CP17: =IF($A18="","",MAX(CP$7-$A17,0)*(1-(1+CP$7/$B$5)^(-$B$3*$B$5))/CP$7) -> 0.501723522 | CQ17: =IF($A18="","",MAX(CQ$7-$A17,0)*(1-(1+CQ$7/$B$5)^(-$B$3*$B$5))/CQ$7) -> 0.5057444779 | CR17: =IF($A18="","",MAX(CR$7-$A17,0)*(1-(1+CR$7/$B$5)^(-$B$3*$B$5))/CR$7) -> 0.5097044339 | CS17: =IF($A18="","",MAX(CS$7-$A17,0)*(1-(1+CS$7/$B$5)^(-$B$3*$B$5))/CS$7) -> 0.5136046301 | CT17: =IF($A18="","",MAX(CT$7-$A17,0)*(1-(1+CT$7/$B$5)^(-$B$3*$B$5))/CT$7) -> 0.5174462772 | CU17: 0.5212305569 | CV17: 0.5249586231 | CW17: 0.5286316023 | CX17: 0.5322505944 | CY17: 0.5358166736 | CZ17: 0.5393308888 | DA17: 0.5427942643 | DB17: 0.5462078008 | DC17: 0.5495724752 | DD17: 0.5528892421 | DE17: 0.5561590339 | DF17: 0.5593827615 | DG17: 0.5625613147 | DH17: 0.565695563 | DI17: 0.5687863558 | DJ17: 0.5718345232 | DK17: 0.5748408764 | DL17: 0.577806208 | DM17: 0.5807312929 | DN17: 0.5836168883 | DO17: 0.5864637343 | DP17: 0.5892725544 | DQ17: 0.5920440559 | DR17: 0.5947789302 | DS17: 0.5974778533
A18: =CMS!I18 -> 0.067 | B18: =CMS!M18 -> 0.008472720942 | C18: 0 | D18: 0 | E18: 0 | F18: 0 | G18: 0 | H18: 0 | I18: 0 | J18: 0 | K18: 0 | L18: 0 | M18: 0 | N18: 0 | O18: 0 | P18: 0 | Q18: 0 | R18: 0 | S18: 0 | T18: 0 | U18: 0 | V18: 0 | W18: 0 | X18: 0 | Y18: 0 | Z18: 0 | AA18: 0 | AB18: 0 | AC18: 0 | AD18: 0 | AE18: 0 | AF18: 0 | AG18: 3.5505944e-16 | AH18: 0.0126624818 | AI18: 0.02506944354 | AJ18: 0.03722712355 | AK18: 0.04914159134 | AL18: 0.06081875243 | AM18: 0.07226435316 | AN18: 0.08348398521 | AO18: 0.09448309012 | AP18: 0.1052669636 | AQ18: 0.1158407597 | AR18: 0.1262094948 | AS18: 0.1363780517 | AT18: 0.1463511835 | AU18: 0.1561335169 | AV18: 0.1657295563 | AW18: 0.1751436871 | AX18: 0.1843801788 | AY18: 0.1934431887 | AZ18: 0.2023367649 | BA18: 0.2110648494 | BB18: 0.219631281 | BC18: 0.2280397985 | BD18: 0.236294043 | BE18: 0.2443975613 | BF18: 0.2523538079 | BG18: 0.2601661483 | BH18: 0.2678378606 | BI18: 0.2753721386 | BJ18: 0.2827720943 | BK18: 0.2900407592 | BL18: 0.2971810878 | BM18: 0.3041959588 | BN18: 0.3110881774 | BO18: 0.3178604778 | BP18: 0.3245155244 | BQ18: 0.3310559145 | BR18: 0.3374841795 | BS18: 0.3438027871 | BT18: 0.3500141428 | BU18: 0.356120592 | BV18: 0.3621244211 | BW18: 0.3680278594 | BX18: 0.3738330807 | BY18: 0.3795422047 | BZ18: 0.3851572986 | CA18: 0.3906803782 | CB18: 0.3961134098 | CC18: 0.401458311 | CD18: 0.4067169523 | CE18: 0.4118911585 | CF18: 0.4169827096 | CG18: 0.4219933421 | CH18: 0.4269247503 | CI18: 0.4317785873 | CJ18: 0.4365564662 | CK18: 0.4412599611 | CL18: 0.445890608 | CM18: 0.450449906 | CN18: 0.4549393184 | CO18: 0.4593602731 | CP18: 0.4637141643 | CQ18: 0.4680023527 | CR18: 0.4722261667 | CS18: 0.4763869033 | CT18: 0.4804858288 | CU18: 0.4845241797 | CV18: 0.4885031632 | CW18: 0.4924239583 | CX18: 0.4962877164 | CY18: 0.500095562 | CZ18: 0.5038485935 | DA18: 0.5075478835 | DB18: 0.5111944802 | DC18: 0.5147894071 | DD18: 0.5183336645 | DE18: 0.5218282294 | DF18: 0.5252740566 | DG18: 0.5286720789 | DH18: 0.532023208 | DI18: 0.5353283348 | DJ18: 0.53858833 | DK18: 0.5418040444 | DL18: 0.5449763098 | DM18: 0.5481059394 | DN18: 0.5511937279 | DO18: 0.5542404522 | DP18: 0.5572468721 | DQ18: 0.5602137303 | DR18: 0.5631417531 | DS18: 0.5660316505
A19: =CMS!I19 -> 0.072 | B19: =CMS!M19 -> 0.008672192711 | C19: 0 | D19: 0 | E19: 0 | F19: 0 | G19: 0 | H19: 0 | I19: 0 | J19: 0 | K19: 0 | L19: 0 | M19: 0 | N19: 0 | O19: 0 | P19: 0 | Q19: 0 | R19: 0 | S19: 0 | T19: 0 | U19: 0 | V19: 0 | W19: 0 | X19: 0 | Y19: 0 | Z19: 0 | AA19: 0 | AB19: 0 | AC19: 0 | AD19: 0 | AE19: 0 | AF19: 0 | AG19: 0 | AH19: 0 | AI19: 0 | AJ19: 0 | AK19: 0 | AL19: 3.376118964e-16 | AM19: 0.01204405886 | AN19: 0.0238525672 | AO19: 0.0354311588 | AP19: 0.04678531715 | AQ19: 0.05792037983 | AR19: 0.06884154259 | AS19: 0.07955386349 | AT19: 0.09006226675 | AU19: 0.1003715466 | AV19: 0.1104863709 | AW19: 0.1204112849 | AX19: 0.1301507144 | AY19: 0.1397089696 | AZ19: 0.1490902478 | BA19: 0.1582986371 | BB19: 0.1673381189 | BC19: 0.1762125715 | BD19: 0.1849257728 | BE19: 0.1934814027 | BF19: 0.2018830464 | BG19: 0.2101341967 | BH19: 0.2182382567 | BI19: 0.2261985425 | BJ19: 0.2340182849 | BK19: 0.2417006327 | BL19: 0.2492486543 | BM19: 0.2566653402 | BN19: 0.2639536051 | BO19: 0.2711162898 | BP19: 0.2781561638 | BQ19: 0.2850759264 | BR19: 0.2918782093 | BS19: 0.2985655782 | BT19: 0.3051405348 | BU19: 0.311605518 | BV19: 0.3179629063 | BW19: 0.324215019 | BX19: 0.3303641178 | BY19: 0.3364124087 | BZ19: 0.3423620432 | CA19: 0.3482151197 | CB19: 0.3539736853 | CC19: 0.3596397369 | CD19: 0.3652152225 | CE19: 0.3707020427 | CF19: 0.3761020518 | CG19: 0.3814170592 | CH19: 0.3866488304 | CI19: 0.3917990885 | CJ19: 0.3968695148 | CK19: 0.4018617503 | CL19: 0.4067773968 | CM19: 0.4116180176 | CN19: 0.4163851388 | CO19: 0.4210802504 | CP19: 0.4257048066 | CQ19: 0.4302602274 | CR19: 0.4347478995 | CS19: 0.4391691765 | CT19: 0.4435253805 | CU19: 0.4478178024 | CV19: 0.4520477032 | CW19: 0.4562163143 | CX19: 0.4603248384 | CY19: 0.4643744504 | CZ19: 0.4683662982 | DA19: 0.4723015027 | DB19: 0.4761811596 | DC19: 0.4800063391 | DD19: 0.4837780869 | DE19: 0.4874974248 | DF19: 0.4911653516 | DG19: 0.4947828431 | DH19: 0.4983508531 | DI19: 0.5018703139 | DJ19: 0.5053421368 | DK19: 0.5087672124 | DL19: 0.5121464117 | DM19: 0.5154805859 | DN19: 0.5187705674 | DO19: 0.5220171701 | DP19: 0.5252211898 | DQ19: 0.5283834047 | DR19: 0.5315045759 | DS19: 0.5345854477
A20: =CMS!I20 -> 0.077 | B20: =CMS!M20 -> 0.008854096937 | C20: 0 | D20: 0 | E20: 0 | F20: 0 | G20: 0 | H20: 0 | I20: 0 | J20: 0 | K20: 0 | L20: 0 | M20: 0 | N20: 0 | O20: 0 | P20: 0 | Q20: 0 | R20: 0 | S20: 0 | T20: 0 | U20: 0 | V20: 0 | W20: 0 | X20: 0 | Y20: 0 | Z20: 0 | AA20: 0 | AB20: 0 | AC20: 0 | AD20: 0 | AE20: 0 | AF20: 0 | AG20: 0 | AH20: 0 | AI20: 0 | AJ20: 0 | AK20: 0 | AL20: 0 | AM20: 0 | AN20: 0 | AO20: 0 | AP20: 0 | AQ20: 3.215226964e-16 | AR20: 0.01147359043 | AS20: 0.02272967528 | AT20: 0.03377335003 | AU20: 0.04460957626 | AV20: 0.05524318545 | AW20: 0.06567888266 | AX20: 0.07592125009 | AY20: 0.08597475054 | AZ20: 0.09584373075 | BA20: 0.1055324247 | BB20: 0.1150449567 | BC20: 0.1243853446 | BD20: 0.1335575026 | BE20: 0.1425652441 | BF20: 0.1514122848 | BG20: 0.1601022451 | BH20: 0.1686386529 | BI20: 0.1770249463 | BJ20: 0.1852644756 | BK20: 0.1933605062 | BL20: 0.2013162208 | BM20: 0.2091347217 | BN20: 0.2168190327 | BO20: 0.2243721019 | BP20: 0.2317968031 | BQ20: 0.2390959382 | BR20: 0.2462722391 | BS20: 0.2533283694 | BT20: 0.2602669267 | BU20: 0.267090444 | BV20: 0.2738013915 | BW20: 0.2804021786 | BX20: 0.2868951549 | BY20: 0.2932826127 | BZ20: 0.2995667878 | CA20: 0.3057498612 | CB20: 0.3118339609 | CC20: 0.3178211629 | CD20: 0.3237134927 | CE20: 0.3295129268 | CF20: 0.335221394 | CG20: 0.3408407763 | CH20: 0.3463729106 | CI20: 0.3518195897 | CJ20: 0.3571825633 | CK20: 0.3624635395 | CL20: 0.3676641855 | CM20: 0.3727861291 | CN20: 0.3778309593 | CO20: 0.3828002276 | CP20: 0.3876954488 | CQ20: 0.3925181022 | CR20: 0.3972696323 | CS20: 0.4019514497 | CT20: 0.4065649321 | CU20: 0.4111114252 | CV20: 0.4155922433 | CW20: 0.4200086703 | CX20: 0.4243619604 | CY20: 0.4286533389 | CZ20: 0.4328840028 | DA20: 0.4370551219 | DB20: 0.4411678391 | DC20: 0.445223271 | DD20: 0.4492225092 | DE20: 0.4531666203 | DF20: 0.4570566466 | DG20: 0.4608936073 | DH20: 0.4646784982 | DI20: 0.468412293 | DJ20: 0.4720959435 | DK20: 0.4757303804 | DL20: 0.4793165135 | DM20: 0.4828552323 | DN20: 0.4863474069 | DO20: 0.489793888 | DP20: 0.4931955075 | DQ20: 0.4965530791 | DR20: 0.4998673988 | DS20: 0.5031392449
A21: =CMS!I21 -> 0.082 | B21: =CMS!M21 -> 0.009019056457 | C21: 0 | D21: 0 | E21: 0 | F21: 0 | G21: 0 | H21: 0 | I21: 0 | J21: 0 | K21: 0 | L21: 0 | M21: 0 | N21: 0 | O21: 0 | P21: 0 | Q21: 0 | R21: 0 | S21: 0 | T21: 0 | U21: 0 | V21: 0 | W21: 0 | X21: 0 | Y21: 0 | Z21: 0 | AA21: 0 | AB21: 0 | AC21: 0 | AD21: 0 | AE21: 0 | AF21: 0 | AG21: 0 | AH21: 0 | AI21: 0 | AJ21: 0 | AK21: 0 | AL21: 0 | AM21: 0 | AN21: 0 | AO21: 0 | AP21: 0 | AQ21: 0 | AR21: 0 | AS21: 0 | AT21: 0 | AU21: 0 | AV21: 3.066612822e-16 | AW21: 0.01094648044 | AX21: 0.02169178574 | AY21: 0.03224053145 | AZ21: 0.04259721367 | BA21: 0.05276621235 | BB21: 0.06275179458 | BC21: 0.07255811769 | BD21: 0.08218923234 | BE21: 0.09164908547 | BF21: 0.1009415232 | BG21: 0.1100702935 | BH21: 0.1190390491 | BI21: 0.1278513501 | BJ21: 0.1365106662 | BK21: 0.1450203796 | BL21: 0.1533837873 | BM21: 0.1616041031 | BN21: 0.1696844604 | BO21: 0.177627914 | BP21: 0.1854374425 | BQ21: 0.1931159501 | BR21: 0.2006662689 | BS21: 0.2080911606 | BT21: 0.2153933187 | BU21: 0.22257537 | BV21: 0.2296398768 | BW21: 0.2365893382 | BX21: 0.2434261921 | BY21: 0.2501528167 | BZ21: 0.2567715324 | CA21: 0.2632846027 | CB21: 0.2696942364 | CC21: 0.2760025888 | CD21: 0.2822117628 | CE21: 0.288323811 | CF21: 0.2943407362 | CG21: 0.3002644934 | CH21: 0.3060969908 | CI21: 0.3118400908 | CJ21: 0.3174956118 | CK21: 0.3230653287 | CL21: 0.3285509743 | CM21: 0.3339542407 | CN21: 0.3392767798 | CO21: 0.3445202048 | CP21: 0.3496860911 | CQ21: 0.354775977 | CR21: 0.3597913651 | CS21: 0.3647337229 | CT21: 0.3696044837 | CU21: 0.3744050479 | CV21: 0.3791367834 | CW21: 0.3838010263 | CX21: 0.3883990824 | CY21: 0.3929322273 | CZ21: 0.3974017075 | DA21: 0.4018087411 | DB21: 0.4061545185 | DC21: 0.410440203 | DD21: 0.4146669316 | DE21: 0.4188358157 | DF21: 0.4229479416 | DG21: 0.4270043714 | DH21: 0.4310061432 | DI21: 0.4349542721 | DJ21: 0.4388497503 | DK21: 0.4426935485 | DL21: 0.4464866153 | DM21: 0.4502298788 | DN21: 0.4539242465 | DO21: 0.4575706059 | DP21: 0.4611698252 | DQ21: 0.4647227535 | DR21: 0.4682302216 | DS21: 0.4716930421
A22: =CMS!I22 -> 0.087 | B22: =CMS!M22 -> 0.00916782019 | C22: 0 | D22: 0 | E22: 0 | F22: 0 | G22: 0 | H22: 0 | I22: 0 | J22: 0 | K22: 0 | L22: 0 | M22: 0 | N22: 0 | O22: 0 | P22: 0 | Q22: 0 | R22: 0 | S22: 0 | T22: 0 | U22: 0 | V22: 0 | W22: 0 | X22: 0 | Y22: 0 | Z22: 0 | AA22: 0 | AB22: 0 | AC22: 0 | AD22: 0 | AE22: 0 | AF22: 0 | AG22: 0 | AH22: 0 | AI22: 0 | AJ22: 0 | AK22: 0 | AL22: 0 | AM22: 0 | AN22: 0 | AO22: 0 | AP22: 0 | AQ22: 0 | AR22: 0 | AS22: 0 | AT22: 0 | AU22: 0 | AV22: 0 | AW22: 0 | AX22: 0 | AY22: 0 | AZ22: 0 | BA22: 2.929113194e-16 | BB22: 0.01045863243 | BC22: 0.02073089077 | BD22: 0.03082096213 | BE22: 0.04073292688 | BF22: 0.05047076159 | BG22: 0.06003834191 | BH22: 0.06943944533 | BI22: 0.0786777539 | BJ22: 0.08775685684 | BK22: 0.09668025308 | BL22: 0.1054513537 | BM22: 0.1140734845 | BN22: 0.1225498881 | BO22: 0.1308837261 | BP22: 0.1390780819 | BQ22: 0.147135962 | BR22: 0.1550602987 | BS22: 0.1628539518 | BT22: 0.1705197106 | BU22: 0.178060296 | BV22: 0.185478362 | BW22: 0.1927764978 | BX22: 0.1999572292 | BY22: 0.2070230207 | BZ22: 0.213976277 | CA22: 0.2208193442 | CB22: 0.227554512 | CC22: 0.2341840147 | CD22: 0.240710033 | CE22: 0.2471346951 | CF22: 0.2534600784 | CG22: 0.2596882105 | CH22: 0.2658210709 | CI22: 0.271860592 | CJ22: 0.2778086603 | CK22: 0.2836671179 | CL22: 0.2894377631 | CM22: 0.2951223522 | CN22: 0.3007226003 | CO22: 0.3062401821 | CP22: 0.3116767334 | CQ22: 0.3170338518 | CR22: 0.3223130979 | CS22: 0.327515996 | CT22: 0.3326440354 | CU22: 0.3376986707 | CV22: 0.3426813234 | CW22: 0.3475933823 | CX22: 0.3524362044 | CY22: 0.3572111157 | CZ22: 0.3619194122 | DA22: 0.3665623603 | DB22: 0.3711411979 | DC22: 0.3756571349 | DD22: 0.380111354 | DE22: 0.3845050111 | DF22: 0.3888392367 | DG22: 0.3931151356 | DH22: 0.3973337883 | DI22: 0.4014962511 | DJ22: 0.4056035571 | DK22: 0.4096567165 | DL22: 0.4136567171 | DM22: 0.4176045253 | DN22: 0.421501086 | DO22: 0.4253473238 | DP22: 0.4291441429 | DQ22: 0.432892428 | DR22: 0.4365930445 | DS22: 0.4402468393
A23: =CMS!I23 -> 0.092 | B23: =CMS!M23 -> 0.0093012341 | C23: 0 | D23: 0 | E23: 0 | F23: 0 | G23: 0 | H23: 0 | I23: 0 | J23: 0 | K23: 0 | L23: 0 | M23: 0 | N23: 0 | O23: 0 | P23: 0 | Q23: 0 | R23: 0 | S23: 0 | T23: 0 | U23: 0 | V23: 0 | W23: 0 | X23: 0 | Y23: 0 | Z23: 0 | AA23: 0 | AB23: 0 | AC23: 0 | AD23: 0 | AE23: 0 | AF23: 0 | AG23: 0 | AH23: 0 | AI23: 0 | AJ23: 0 | AK23: 0 | AL23: 0 | AM23: 0 | AN23: 0 | AO23: 0 | AP23: 0 | AQ23: 0 | AR23: 0 | AS23: 0 | AT23: 0 | AU23: 0 | AV23: 0 | AW23: 0 | AX23: 0 | AY23: 0 | AZ23: 0 | BA23: 0 | BB23: 0 | BC23: 0 | BD23: 0 | BE23: 0 | BF23: 2.801690079e-16 | BG23: 0.01000639032 | BH23: 0.01983984152 | BI23: 0.02950415771 | BJ23: 0.03900304748 | BK23: 0.04834012654 | BL23: 0.05751892023 | BM23: 0.06654286598 | BN23: 0.07541531574 | BO23: 0.08413953823 | BP23: 0.09271872126 | BQ23: 0.1011559739 | BR23: 0.1094543285 | BS23: 0.1176167429 | BT23: 0.1256461026 | BU23: 0.133545222 | BV23: 0.1413168472 | BW23: 0.1489636574 | BX23: 0.1564882663 | BY23: 0.1638932248 | BZ23: 0.1711810216 | CA23: 0.1783540857 | CB23: 0.1854147876 | CC23: 0.1923654407 | CD23: 0.1992083032 | CE23: 0.2059455793 | CF23: 0.2125794206 | CG23: 0.2191119276 | CH23: 0.2255451511 | CI23: 0.2318810932 | CJ23: 0.2381217089 | CK23: 0.244268907 | CL23: 0.2503245519 | CM23: 0.2562904638 | CN23: 0.2621684208 | CO23: 0.2679601593 | CP23: 0.2736673756 | CQ23: 0.2792917266 | CR23: 0.2848348307 | CS23: 0.2902982692 | CT23: 0.295683587 | CU23: 0.3009922934 | CV23: 0.3062258635 | CW23: 0.3113857383 | CX23: 0.3164733264 | CY23: 0.3214900042 | CZ23: 0.3264371169 | DA23: 0.3313159795 | DB23: 0.3361278774 | DC23: 0.3408740669 | DD23: 0.3455557763 | DE23: 0.3501742066 | DF23: 0.3547305317 | DG23: 0.3592258998 | DH23: 0.3636614333 | DI23: 0.3680382302 | DJ23: 0.3723573639 | DK23: 0.3766198845 | DL23: 0.3808268189 | DM23: 0.3849791717 | DN23: 0.3890779256 | DO23: 0.3931240417 | DP23: 0.3971184606 | DQ23: 0.4010621024 | DR23: 0.4049558674 | DS23: 0.4088006365
A24: =CMS!I24 -> 0.097 | B24: =CMS!M24 -> 0.009420214109 | C24: 0 | D24: 0 | E24: 0 | F24: 0 | G24: 0 | H24: 0 | I24: 0 | J24: 0 | K24: 0 | L24: 0 | M24: 0 | N24: 0 | O24: 0 | P24: 0 | Q24: 0 | R24: 0 | S24: 0 | T24: 0 | U24: 0 | V24: 0 | W24: 0 | X24: 0 | Y24: 0 | Z24: 0 | AA24: 0 | AB24: 0 | AC24: 0 | AD24: 0 | AE24: 0 | AF24: 0 | AG24: 0 | AH24: 0 | AI24: 0 | AJ24: 0 | AK24: 0 | AL24: 0 | AM24: 0 | AN24: 0 | AO24: 0 | AP24: 0 | AQ24: 0 | AR24: 0 | AS24: 0 | AT24: 0 | AU24: 0 | AV24: 0 | AW24: 0 | AX24: 0 | AY24: 0 | AZ24: 0 | BA24: 0 | BB24: 0 | BC24: 0 | BD24: 0 | BE24: 0 | BF24: 0 | BG24: 0 | BH24: 0 | BI24: 0 | BJ24: 0 | BK24: 2.683416075e-16 | BL24: 0.009586486704 | BM24: 0.01901224742 | BN24: 0.0282807434 | BO24: 0.03739535032 | BP24: 0.04635936063 | BQ24: 0.05517598575 | BR24: 0.06384835828 | BS24: 0.07237953412 | BT24: 0.0807724945 | BU24: 0.089030148 | BV24: 0.09715533248 | BW24: 0.105150817 | BX24: 0.1130193035 | BY24: 0.1207634288 | BZ24: 0.1283857662 | CA24: 0.1358888272 | CB24: 0.1432750631 | CC24: 0.1505468666 | CD24: 0.1577065734 | CE24: 0.1647564634 | CF24: 0.1716987628 | CG24: 0.1785356447 | CH24: 0.1852692313 | CI24: 0.1919015944 | CJ24: 0.1984347574 | CK24: 0.2048706962 | CL24: 0.2112113406 | CM24: 0.2174585753 | CN24: 0.2236142412 | CO24: 0.2296801366 | CP24: 0.2356580179 | CQ24: 0.2415496014 | CR24: 0.2473565635 | CS24: 0.2530805424 | CT24: 0.2587231386 | CU24: 0.2642859162 | CV24: 0.2697704035 | CW24: 0.2751780943 | CX24: 0.2805104484 | CY24: 0.2857688926 | CZ24: 0.2909548216 | DA24: 0.2960695987 | DB24: 0.3011145568 | DC24: 0.3060909988 | DD24: 0.3110001987 | DE24: 0.315843402 | DF24: 0.3206218267 | DG24: 0.3253366639 | DH24: 0.3299890784 | DI24: 0.3345802093 | DJ24: 0.3391111707 | DK24: 0.3435830525 | DL24: 0.3479969207 | DM24: 0.3523538182 | DN24: 0.3566547651 | DO24: 0.3609007596 | DP24: 0.3650927783 | DQ24: 0.3692317768 | DR24: 0.3733186902 | DS24: 0.3773544337
A25: =CMS!I25 -> 0.102 | B25: =CMS!M25 -> 0.009525721428 | C25: 0 | D25: 0 | E25: 0 | F25: 0 | G25: 0 | H25: 0 | I25: 0 | J25: 0 | K25: 0 | L25: 0 | M25: 0 | N25: 0 | O25: 0 | P25: 0 | Q25: 0 | R25: 0 | S25: 0 | T25: 0 | U25: 0 | V25: 0 | W25: 0 | X25: 0 | Y25: 0 | Z25: 0 | AA25: 0 | AB25: 0 | AC25: 0 | AD25: 0 | AE25: 0 | AF25: 0 | AG25: 0 | AH25: 0 | AI25: 0 | AJ25: 0 | AK25: 0 | AL25: 0 | AM25: 0 | AN25: 0 | AO25: 0 | AP25: 0 | AQ25: 0 | AR25: 0 | AS25: 0 | AT25: 0 | AU25: 0 | AV25: 0 | AW25: 0 | AX25: 0 | AY25: 0 | AZ25: 0 | BA25: 0 | BB25: 0 | BC25: 0 | BD25: 0 | BE25: 0 | BF25: 0 | BG25: 0 | BH25: 0 | BI25: 0 | BJ25: 0 | BK25: 0 | BL25: 0 | BM25: 0 | BN25: 0 | BO25: 0 | BP25: 2.573461479e-16 | BQ25: 0.009195997624 | BR25: 0.01824238808 | BS25: 0.02714232529 | BT25: 0.03589888645 | BU25: 0.044515074 | BV25: 0.05299381772 | BW25: 0.06133797656 | BX25: 0.06955034059 | BY25: 0.07763363278 | BZ25: 0.08559051079 | CA25: 0.0934235687 | CB25: 0.1011353387 | CC25: 0.1087282926 | CD25: 0.1162048435 | CE25: 0.1235673476 | CF25: 0.130818105 | CG25: 0.1379593618 | CH25: 0.1449933114 | CI25: 0.1519220955 | CJ25: 0.1587478059 | CK25: 0.1654724854 | CL25: 0.1720981294 | CM25: 0.1786266869 | CN25: 0.1850600617 | CO25: 0.1914001138 | CP25: 0.1976486602 | CQ25: 0.2038074762 | CR25: 0.2098782963 | CS25: 0.2158628156 | CT25: 0.2217626902 | CU25: 0.2275795389 | CV25: 0.2333149436 | CW25: 0.2389704503 | CX25: 0.2445475704 | CY25: 0.250047781 | CZ25: 0.2554725263 | DA25: 0.2608232179 | DB25: 0.2661012363 | DC25: 0.2713079308 | DD25: 0.2764446211 | DE25: 0.2815125974 | DF25: 0.2865131218 | DG25: 0.2914474281 | DH25: 0.2963167235 | DI25: 0.3011221883 | DJ25: 0.3058649775 | DK25: 0.3105462206 | DL25: 0.3151670226 | DM25: 0.3197284647 | DN25: 0.3242316046 | DO25: 0.3286774775 | DP25: 0.333067096 | DQ25: 0.3374014512 | DR25: 0.3416815131 | DS25: 0.3459082309
A26: =CMS!I26 -> 0.107 | B26: =CMS!M26 -> 0.00961874064 | C26: 0 | D26: 0 | E26: 0 | F26: 0 | G26: 0 | H26: 0 | I26: 0 | J26: 0 | K26: 0 | L26: 0 | M26: 0 | N26: 0 | O26: 0 | P26: 0 | Q26: 0 | R26: 0 | S26: 0 | T26: 0 | U26: 0 | V26: 0 | W26: 0 | X26: 0 | Y26: 0 | Z26: 0 | AA26: 0 | AB26: 0 | AC26: 0 | AD26: 0 | AE26: 0 | AF26: 0 | AG26: 0 | AH26: 0 | AI26: 0 | AJ26: 0 | AK26: 0 | AL26: 0 | AM26: 0 | AN26: 0 | AO26: 0 | AP26: 0 | AQ26: 0 | AR26: 0 | AS26: 0 | AT26: 0 | AU26: 0 | AV26: 0 | AW26: 0 | AX26: 0 | AY26: 0 | AZ26: 0 | BA26: 0 | BB26: 0 | BC26: 0 | BD26: 0 | BE26: 0 | BF26: 0 | BG26: 0 | BH26: 0 | BI26: 0 | BJ26: 0 | BK26: 0 | BL26: 0 | BM26: 0 | BN26: 0 | BO26: 0 | BP26: 0 | BQ26: 0 | BR26: 0 | BS26: 0 | BT26: 0 | BU26: 2.471083005e-16 | BV26: 0.008832302953 | BW26: 0.01752513616 | BX26: 0.02608137772 | BY26: 0.03450383679 | BZ26: 0.0427952554 | CA26: 0.0509583102 | CB26: 0.05899561422 | CC26: 0.0669097185 | CD26: 0.07470311369 | CE26: 0.08237823171 | CF26: 0.08993744717 | CG26: 0.09738307894 | CH26: 0.1047173916 | CI26: 0.1119425967 | CJ26: 0.1190608544 | CK26: 0.1260742746 | CL26: 0.1329849182 | CM26: 0.1397947984 | CN26: 0.1465058822 | CO26: 0.153120091 | CP26: 0.1596393025 | CQ26: 0.1660653509 | CR26: 0.1724000291 | CS26: 0.1786450887 | CT26: 0.1848022419 | CU26: 0.1908731617 | CV26: 0.1968594837 | CW26: 0.2027628063 | CX26: 0.2085846924 | CY26: 0.2143266694 | CZ26: 0.2199902309 | DA26: 0.2255768371 | DB26: 0.2310879157 | DC26: 0.2365248627 | DD26: 0.2418890434 | DE26: 0.2471817929 | DF26: 0.2524044168 | DG26: 0.2575581923 | DH26: 0.2626443685 | DI26: 0.2676641674 | DJ26: 0.2726187843 | DK26: 0.2775093886 | DL26: 0.2823371244 | DM26: 0.2871031111 | DN26: 0.2918084442 | DO26: 0.2964541954 | DP26: 0.3010414137 | DQ26: 0.3055711256 | DR26: 0.310044336 | DS26: 0.3144620281
A27: =CMS!I27 -> 0.112 | B27: =CMS!M27 -> 0.009700260678 | C27: 0 | D27: 0 | E27: 0 | F27: 0 | G27: 0 | H27: 0 | I27: 0 | J27: 0 | K27: 0 | L27: 0 | M27: 0 | N27: 0 | O27: 0 | P27: 0 | Q27: 0 | R27: 0 | S27: 0 | T27: 0 | U27: 0 | V27: 0 | W27: 0 | X27: 0 | Y27: 0 | Z27: 0 | AA27: 0 | AB27: 0 | AC27: 0 | AD27: 0 | AE27: 0 | AF27: 0 | AG27: 0 | AH27: 0 | AI27: 0 | AJ27: 0 | AK27: 0 | AL27: 0 | AM27: 0 | AN27: 0 | AO27: 0 | AP27: 0 | AQ27: 0 | AR27: 0 | AS27: 0 | AT27: 0 | AU27: 0 | AV27: 0 | AW27: 0 | AX27: 0 | AY27: 0 | AZ27: 0 | BA27: 0 | BB27: 0 | BC27: 0 | BD27: 0 | BE27: 0 | BF27: 0 | BG27: 0 | BH27: 0 | BI27: 0 | BJ27: 0 | BK27: 0 | BL27: 0 | BM27: 0 | BN27: 0 | BO27: 0 | BP27: 0 | BQ27: 0 | BR27: 0 | BS27: 0 | BT27: 0 | BU27: 0 | BV27: 0 | BW27: 0 | BX27: 0 | BY27: 0 | BZ27: 2.375613894e-16 | CA27: 0.0084930517 | CB27: 0.01685588978 | CC27: 0.02509114444 | CD27: 0.03320138386 | CE27: 0.04118911585 | CF27: 0.04905678936 | CG27: 0.05680679605 | CH27: 0.06444147174 | CI27: 0.07196309789 | CJ27: 0.07937390295 | CK27: 0.08667606379 | CL27: 0.09387170695 | CM27: 0.10096291 | CN27: 0.1079517027 | CO27: 0.1148400683 | CP27: 0.1216299447 | CQ27: 0.1283232257 | CR27: 0.1349217619 | CS27: 0.1414273619 | CT27: 0.1478417935 | CU27: 0.1541667844 | CV27: 0.1604040237 | CW27: 0.1665551624 | CX27: 0.1726218144 | CY27: 0.1786055579 | CZ27: 0.1845079356 | DA27: 0.1903304563 | DB27: 0.1960745951 | DC27: 0.2017417947 | DD27: 0.2073334658 | DE27: 0.2128509883 | DF27: 0.2182957118 | DG27: 0.2236689565 | DH27: 0.2289720136 | DI27: 0.2342061465 | DJ27: 0.2393725911 | DK27: 0.2444725566 | DL27: 0.2495072262 | DM27: 0.2544777576 | DN27: 0.2593852837 | DO27: 0.2642309133 | DP27: 0.2690157314 | DQ27: 0.2737408 | DR27: 0.2784071588 | DS27: 0.2830158253
A28: =CMS!I28 -> 0.117 | B28: =CMS!M28 -> 0.009771258738 | C28: 0 | D28: 0 | E28: 0 | F28: 0 | G28: 0 | H28: 0 | I28: 0 | J28: 0 | K28: 0 | L28: 0 | M28: 0 | N28: 0 | O28: 0 | P28: 0 | Q28: 0 | R28: 0 | S28: 0 | T28: 0 | U28: 0 | V28: 0 | W28: 0 | X28: 0 | Y28: 0 | Z28: 0 | AA28: 0 | AB28: 0 | AC28: 0 | AD28: 0 | AE28: 0 | AF28: 0 | AG28: 0 | AH28: 0 | AI28: 0 | AJ28: 0 | AK28: 0 | AL28: 0 | AM28: 0 | AN28: 0 | AO28: 0 | AP28: 0 | AQ28: 0 | AR28: 0 | AS28: 0 | AT28: 0 | AU28: 0 | AV28: 0 | AW28: 0 | AX28: 0 | AY28: 0 | AZ28: 0 | BA28: 0 | BB28: 0 | BC28: 0 | BD28: 0 | BE28: 0 | BF28: 0 | BG28: 0 | BH28: 0 | BI28: 0 | BJ28: 0 | BK28: 0 | BL28: 0 | BM28: 0 | BN28: 0 | BO28: 0 | BP28: 0 | BQ28: 0 | BR28: 0 | BS28: 0 | BT28: 0 | BU28: 0 | BV28: 0 | BW28: 0 | BX28: 0 | BY28: 0 | BZ28: 0 | CA28: 0 | CB28: 0 | CC28: 0 | CD28: 0 | CE28: 2.286455239e-16 | CF28: 0.008176131561 | CG28: 0.01623051316 | CH28: 0.0241655519 | CI28: 0.03198359906 | CJ28: 0.03968695148 | CK28: 0.04727785298 | CL28: 0.05475849572 | CM28: 0.06213102152 | CN28: 0.06939752314 | CO28: 0.07656004552 | CP28: 0.083620587 | CQ28: 0.09058110051 | CR28: 0.09744349471 | CS28: 0.1042096351 | CT28: 0.1108813451 | CU28: 0.1174604072 | CV28: 0.1239485638 | CW28: 0.1303475184 | CX28: 0.1366589364 | CY28: 0.1428844463 | CZ28: 0.1490256403 | DA28: 0.1550840755 | DB28: 0.1610612746 | DC28: 0.1669587266 | DD28: 0.1727778882 | DE28: 0.1785201837 | DF28: 0.1841870068 | DG28: 0.1897797206 | DH28: 0.1952996586 | DI28: 0.2007481256 | DJ28: 0.2061263979 | DK28: 0.2114357246 | DL28: 0.216677328 | DM28: 0.221852404 | DN28: 0.2269621232 | DO28: 0.2320076312 | DP28: 0.2369900491 | DQ28: 0.2419104744 | DR28: 0.2467699817 | DS28: 0.2515696225
A29: =CMS!I29 -> 0.122 | B29: =CMS!M29 -> 0.009832687045 | C29: 0 | D29: 0 | E29: 0 | F29: 0 | G29: 0 | H29: 0 | I29: 0 | J29: 0 | K29: 0 | L29: 0 | M29: 0 | N29: 0 | O29: 0 | P29: 0 | Q29: 0 | R29: 0 | S29: 0 | T29: 0 | U29: 0 | V29: 0 | W29: 0 | X29: 0 | Y29: 0 | Z29: 0 | AA29: 0 | AB29: 0 | AC29: 0 | AD29: 0 | AE29: 0 | AF29: 0 | AG29: 0 | AH29: 0 | AI29: 0 | AJ29: 0 | AK29: 0 | AL29: 0 | AM29: 0 | AN29: 0 | AO29: 0 | AP29: 0 | AQ29: 0 | AR29: 0 | AS29: 0 | AT29: 0 | AU29: 0 | AV29: 0 | AW29: 0 | AX29: 0 | AY29: 0 | AZ29: 0 | BA29: 0 | BB29: 0 | BC29: 0 | BD29: 0 | BE29: 0 | BF29: 0 | BG29: 0 | BH29: 0 | BI29: 0 | BJ29: 0 | BK29: 0 | BL29: 0 | BM29: 0 | BN29: 0 | BO29: 0 | BP29: 0 | BQ29: 0 | BR29: 0 | BS29: 0 | BT29: 0 | BU29: 0 | BV29: 0 | BW29: 0 | BX29: 0 | BY29: 0 | BZ29: 0 | CA29: 0 | CB29: 0 | CC29: 0 | CD29: 0 | CE29: 0 | CF29: 0 | CG29: 0 | CH29: 0 | CI29: 0 | CJ29: 2.203068365e-16 | CK29: 0.007879642163 | CL29: 0.01564528449 | CM29: 0.02329913307 | CN29: 0.03084334362 | CO29: 0.03828002276 | CP29: 0.04561122927 | CQ29: 0.0528389753 | CR29: 0.05996522751 | CS29: 0.06699190828 | CT29: 0.07392089675 | CU29: 0.08075402995 | CV29: 0.08749310385 | CW29: 0.09413987438 | CX29: 0.1006960584 | CY29: 0.1071633347 | CZ29: 0.113543345 | DA29: 0.1198376947 | DB29: 0.126047954 | DC29: 0.1321756586 | DD29: 0.1382223105 | DE29: 0.1441893792 | DF29: 0.1500783019 | DG29: 0.1558904848 | DH29: 0.1616273037 | DI29: 0.1672901046 | DJ29: 0.1728802047 | DK29: 0.1783988927 | DL29: 0.1838474298 | DM29: 0.1892270505 | DN29: 0.1945389628 | DO29: 0.1997843491 | DP29: 0.2049643668 | DQ29: 0.2100801489 | DR29: 0.2151328045 | DS29: 0.2201234197
A30: =CMS!I30 -> 0.127 | B30: =CMS!M30 -> 0.009885462309 | C30: 0 | D30: 0 | E30: 0 | F30: 0 | G30: 0 | H30: 0 | I30: 0 | J30: 0 | K30: 0 | L30: 0 | M30: 0 | N30: 0 | O30: 0 | P30: 0 | Q30: 0 | R30: 0 | S30: 0 | T30: 0 | U30: 0 | V30: 0 | W30: 0 | X30: 0 | Y30: 0 | Z30: 0 | AA30: 0 | AB30: 0 | AC30: 0 | AD30: 0 | AE30: 0 | AF30: 0 | AG30: 0 | AH30: 0 | AI30: 0 | AJ30: 0 | AK30: 0 | AL30: 0 | AM30: 0 | AN30: 0 | AO30: 0 | AP30: 0 | AQ30: 0 | AR30: 0 | AS30: 0 | AT30: 0 | AU30: 0 | AV30: 0 | AW30: 0 | AX30: 0 | AY30: 0 | AZ30: 0 | BA30: 0 | BB30: 0 | BC30: 0 | BD30: 0 | BE30: 0 | BF30: 0 | BG30: 0 | BH30: 0 | BI30: 0 | BJ30: 0 | BK30: 0 | BL30: 0 | BM30: 0 | BN30: 0 | BO30: 0 | BP30: 0 | BQ30: 0 | BR30: 0 | BS30: 0 | BT30: 0 | BU30: 0 | BV30: 0 | BW30: 0 | BX30: 0 | BY30: 0 | BZ30: 0 | CA30: 0 | CB30: 0 | CC30: 0 | CD30: 0 | CE30: 0 | CF30: 0 | CG30: 0 | CH30: 0 | CI30: 0 | CJ30: 0 | CK30: 0 | CL30: 0 | CM30: 0 | CN30: 0 | CO30: 2.124968133e-16 | CP30: 0.007601871546 | CQ30: 0.01509685009 | CR30: 0.02248696032 | CS30: 0.02977418146 | CT30: 0.03696044837 | CU30: 0.0440476527 | CV30: 0.05103764391 | CW30: 0.05793223038 | CX30: 0.0647331804 | CY30: 0.07144222314 | CZ30: 0.07806104969 | DA30: 0.08459131392 | DB30: 0.09103463346 | DC30: 0.09739259054 | DD30: 0.1036667329 | DE30: 0.1098585746 | DF30: 0.1159695969 | DG30: 0.122001249 | DH30: 0.1279549488 | DI30: 0.1338320837 | DJ30: 0.1396340115 | DK30: 0.1453620607 | DL30: 0.1510175316 | DM30: 0.156601697 | DN30: 0.1621158023 | DO30: 0.1675610669 | DP30: 0.1729386844 | DQ30: 0.1782498233 | DR30: 0.1834956274 | DS30: 0.1886772168
A31: =CMS!I31 -> 0.132 | B31: =CMS!M31 -> 0.009930457662 | C31: 0 | D31: 0 | E31: 0 | F31: 0 | G31: 0 | H31: 0 | I31: 0 | J31: 0 | K31: 0 | L31: 0 | M31: 0 | N31: 0 | O31: 0 | P31: 0 | Q31: 0 | R31: 0 | S31: 0 | T31: 0 | U31: 0 | V31: 0 | W31: 0 | X31: 0 | Y31: 0 | Z31: 0 | AA31: 0 | AB31: 0 | AC31: 0 | AD31: 0 | AE31: 0 | AF31: 0 | AG31: 0 | AH31: 0 | AI31: 0 | AJ31: 0 | AK31: 0 | AL31: 0 | AM31: 0 | AN31: 0 | AO31: 0 | AP31: 0 | AQ31: 0 | AR31: 0 | AS31: 0 | AT31: 0 | AU31: 0 | AV31: 0 | AW31: 0 | AX31: 0 | AY31: 0 | AZ31: 0 | BA31: 0 | BB31: 0 | BC31: 0 | BD31: 0 | BE31: 0 | BF31: 0 | BG31: 0 | BH31: 0 | BI31: 0 | BJ31: 0 | BK31: 0 | BL31: 0 | BM31: 0 | BN31: 0 | BO31: 0 | BP31: 0 | BQ31: 0 | BR31: 0 | BS31: 0 | BT31: 0 | BU31: 0 | BV31: 0 | BW31: 0 | BX31: 0 | BY31: 0 | BZ31: 0 | CA31: 0 | CB31: 0 | CC31: 0 | CD31: 0 | CE31: 0 | CF31: 0 | CG31: 0 | CH31: 0 | CI31: 0 | CJ31: 0 | CK31: 0 | CL31: 0 | CM31: 0 | CN31: 0 | CO31: 0 | CP31: 0 | CQ31: 0 | CR31: 0 | CS31: 0 | CT31: 2.051717039e-16 | CU31: 0.00734127545 | CV31: 0.01458218398 | CW31: 0.02172458639 | CX31: 0.0287703024 | CY31: 0.03572111157 | CZ31: 0.04257875438 | DA31: 0.04934493312 | DB31: 0.0560213129 | DC31: 0.06260952249 | DD31: 0.06911115526 | DE31: 0.07552777004 | DF31: 0.08186089193 | DG31: 0.08811201315 | DH31: 0.09428259383 | DI31: 0.1003740628 | DJ31: 0.1063878183 | DK31: 0.1123252287 | DL31: 0.1181876335 | DM31: 0.1239763434 | DN31: 0.1296926419 | DO31: 0.1353377848 | DP31: 0.1409130021 | DQ31: 0.1464194977 | DR31: 0.1518584503 | DS31: 0.157231014
A32: =CMS!I32 -> 0.137 | B32: =CMS!M32 -> 0.009968496822 | C32: 0 | D32: 0 | E32: 0 | F32: 0 | G32: 0 | H32: 0 | I32: 0 | J32: 0 | K32: 0 | L32: 0 | M32: 0 | N32: 0 | O32: 0 | P32: 0 | Q32: 0 | R32: 0 | S32: 0 | T32: 0 | U32: 0 | V32: 0 | W32: 0 | X32: 0 | Y32: 0 | Z32: 0 | AA32: 0 | AB32: 0 | AC32: 0 | AD32: 0 | AE32: 0 | AF32: 0 | AG32: 0 | AH32: 0 | AI32: 0 | AJ32: 0 | AK32: 0 | AL32: 0 | AM32: 0 | AN32: 0 | AO32: 0 | AP32: 0 | AQ32: 0 | AR32: 0 | AS32: 0 | AT32: 0 | AU32: 0 | AV32: 0 | AW32: 0 | AX32: 0 | AY32: 0 | AZ32: 0 | BA32: 0 | BB32: 0 | BC32: 0 | BD32: 0 | BE32: 0 | BF32: 0 | BG32: 0 | BH32: 0 | BI32: 0 | BJ32: 0 | BK32: 0 | BL32: 0 | BM32: 0 | BN32: 0 | BO32: 0 | BP32: 0 | BQ32: 0 | BR32: 0 | BS32: 0 | BT32: 0 | BU32: 0 | BV32: 0 | BW32: 0 | BX32: 0 | BY32: 0 | BZ32: 0 | CA32: 0 | CB32: 0 | CC32: 0 | CD32: 0 | CE32: 0 | CF32: 0 | CG32: 0 | CH32: 0 | CI32: 0 | CJ32: 0 | CK32: 0 | CL32: 0 | CM32: 0 | CN32: 0 | CO32: 0 | CP32: 0 | CQ32: 0 | CR32: 0 | CS32: 0 | CT32: 0 | CU32: 0 | CV32: 0 | CW32: 0 | CX32: 0 | CY32: 1.982920027e-16 | CZ32: 0.007096459063 | DA32: 0.01409855232 | DB32: 0.02100799234 | DC32: 0.02782645444 | DD32: 0.03455557763 | DE32: 0.04119696548 | DF32: 0.04775218696 | DG32: 0.05422277732 | DH32: 0.06061023889 | DI32: 0.06691604185 | DJ32: 0.07314162506 | DK32: 0.07928839674 | DL32: 0.08535773528 | DM32: 0.0913509899 | DN32: 0.09726948139 | DO32: 0.1031145027 | DP32: 0.1088873198 | DQ32: 0.1145891721 | DR32: 0.1202212731 | DS32: 0.1257848112
A33: =CMS!I33 -> 0.142 | B33: =CMS!M33 -> 0.01000035021 | C33: 0 | D33: 0 | E33: 0 | F33: 0 | G33: 0 | H33: 0 | I33: 0 | J33: 0 | K33: 0 | L33: 0 | M33: 0 | N33: 0 | O33: 0 | P33: 0 | Q33: 0 | R33: 0 | S33: 0 | T33: 0 | U33: 0 | V33: 0 | W33: 0 | X33: 0 | Y33: 0 | Z33: 0 | AA33: 0 | AB33: 0 | AC33: 0 | AD33: 0 | AE33: 0 | AF33: 0 | AG33: 0 | AH33: 0 | AI33: 0 | AJ33: 0 | AK33: 0 | AL33: 0 | AM33: 0 | AN33: 0 | AO33: 0 | AP33: 0 | AQ33: 0 | AR33: 0 | AS33: 0 | AT33: 0 | AU33: 0 | AV33: 0 | AW33: 0 | AX33: 0 | AY33: 0 | AZ33: 0 | BA33: 0 | BB33: 0 | BC33: 0 | BD33: 0 | BE33: 0 | BF33: 0 | BG33: 0 | BH33: 0 | BI33: 0 | BJ33: 0 | BK33: 0 | BL33: 0 | BM33: 0 | BN33: 0 | BO33: 0 | BP33: 0 | BQ33: 0 | BR33: 0 | BS33: 0 | BT33: 0 | BU33: 0 | BV33: 0 | BW33: 0 | BX33: 0 | BY33: 0 | BZ33: 0 | CA33: 0 | CB33: 0 | CC33: 0 | CD33: 0 | CE33: 0 | CF33: 0 | CG33: 0 | CH33: 0 | CI33: 0 | CJ33: 0 | CK33: 0 | CL33: 0 | CM33: 0 | CN33: 0 | CO33: 0 | CP33: 0 | CQ33: 0 | CR33: 0 | CS33: 0 | CT33: 0 | CU33: 0 | CV33: 0 | CW33: 0 | CX33: 0 | CY33: 0 | CZ33: 0 | DA33: 0 | DB33: 0 | DC33: 0 | DD33: 1.918219896e-16 | DE33: 0.006866160913 | DF33: 0.01364348199 | DG33: 0.0203335415 | DH33: 0.02693788395 | DI33: 0.03345802093 | DJ33: 0.03989543185 | DK33: 0.04625156476 | DL33: 0.05252783709 | DM33: 0.05872563637 | DN33: 0.06484632093 | DO33: 0.07089122063 | DP33: 0.07686163753 | DQ33: 0.08275884652 | DR33: 0.08858409599 | DS33: 0.09433860842
A34: =CMS!I34 -> 0.147 | B34: =CMS!M34 -> 0.01002673275 | C34: 0 | D34: 0 | E34: 0 | F34: 0 | G34: 0 | H34: 0 | I34: 0 | J34: 0 | K34: 0 | L34: 0 | M34: 0 | N34: 0 | O34: 0 | P34: 0 | Q34: 0 | R34: 0 | S34: 0 | T34: 0 | U34: 0 | V34: 0 | W34: 0 | X34: 0 | Y34: 0 | Z34: 0 | AA34: 0 | AB34: 0 | AC34: 0 | AD34: 0 | AE34: 0 | AF34: 0 | AG34: 0 | AH34: 0 | AI34: 0 | AJ34: 0 | AK34: 0 | AL34: 0 | AM34: 0 | AN34: 0 | AO34: 0 | AP34: 0 | AQ34: 0 | AR34: 0 | AS34: 0 | AT34: 0 | AU34: 0 | AV34: 0 | AW34: 0 | AX34: 0 | AY34: 0 | AZ34: 0 | BA34: 0 | BB34: 0 | BC34: 0 | BD34: 0 | BE34: 0 | BF34: 0 | BG34: 0 | BH34: 0 | BI34: 0 | BJ34: 0 | BK34: 0 | BL34: 0 | BM34: 0 | BN34: 0 | BO34: 0 | BP34: 0 | BQ34: 0 | BR34: 0 | BS34: 0 | BT34: 0 | BU34: 0 | BV34: 0 | BW34: 0 | BX34: 0 | BY34: 0 | BZ34: 0 | CA34: 0 | CB34: 0 | CC34: 0 | CD34: 0 | CE34: 0 | CF34: 0 | CG34: 0 | CH34: 0 | CI34: 0 | CJ34: 0 | CK34: 0 | CL34: 0 | CM34: 0 | CN34: 0 | CO34: 0 | CP34: 0 | CQ34: 0 | CR34: 0 | CS34: 0 | CT34: 0 | CU34: 0 | CV34: 0 | CW34: 0 | CX34: 0 | CY34: 0 | CZ34: 0 | DA34: 0 | DB34: 0 | DC34: 0 | DD34: 0 | DE34: 0 | DF34: 0 | DG34: 0 | DH34: 0 | DI34: 1.85729326e-16 | DJ34: 0.006649238642 | DK34: 0.01321473279 | DL34: 0.01969793891 | DM34: 0.02610028283 | DN34: 0.03242316046 | DO34: 0.03866793853 | DP34: 0.04483595523 | DQ34: 0.05092852094 | DR34: 0.05694691885 | DS34: 0.06289240562
A35: =CMS!I35 -> 0.152 | B35: =CMS!M35 -> 0.01004830309 | C35: 0 | D35: 0 | E35: 0 | F35: 0 | G35: 0 | H35: 0 | I35: 0 | J35: 0 | K35: 0 | L35: 0 | M35: 0 | N35: 0 | O35: 0 | P35: 0 | Q35: 0 | R35: 0 | S35: 0 | T35: 0 | U35: 0 | V35: 0 | W35: 0 | X35: 0 | Y35: 0 | Z35: 0 | AA35: 0 | AB35: 0 | AC35: 0 | AD35: 0 | AE35: 0 | AF35: 0 | AG35: 0 | AH35: 0 | AI35: 0 | AJ35: 0 | AK35: 0 | AL35: 0 | AM35: 0 | AN35: 0 | AO35: 0 | AP35: 0 | AQ35: 0 | AR35: 0 | AS35: 0 | AT35: 0 | AU35: 0 | AV35: 0 | AW35: 0 | AX35: 0 | AY35: 0 | AZ35: 0 | BA35: 0 | BB35: 0 | BC35: 0 | BD35: 0 | BE35: 0 | BF35: 0 | BG35: 0 | BH35: 0 | BI35: 0 | BJ35: 0 | BK35: 0 | BL35: 0 | BM35: 0 | BN35: 0 | BO35: 0 | BP35: 0 | BQ35: 0 | BR35: 0 | BS35: 0 | BT35: 0 | BU35: 0 | BV35: 0 | BW35: 0 | BX35: 0 | BY35: 0 | BZ35: 0 | CA35: 0 | CB35: 0 | CC35: 0 | CD35: 0 | CE35: 0 | CF35: 0 | CG35: 0 | CH35: 0 | CI35: 0 | CJ35: 0 | CK35: 0 | CL35: 0 | CM35: 0 | CN35: 0 | CO35: 0 | CP35: 0 | CQ35: 0 | CR35: 0 | CS35: 0 | CT35: 0 | CU35: 0 | CV35: 0 | CW35: 0 | CX35: 0 | CY35: 0 | CZ35: 0 | DA35: 0 | DB35: 0 | DC35: 0 | DD35: 0 | DE35: 0 | DF35: 0 | DG35: 0 | DH35: 0 | DI35: 0 | DJ35: 0 | DK35: 0 | DL35: 0 | DM35: 0 | DN35: 1.799846964e-16 | DO35: 0.006444656421 | DP35: 0.01281027292 | DQ35: 0.01909819535 | DR35: 0.02530974171 | DS35: 0.03144620281
A36: =CMS!I36 -> 0.157 | B36: =CMS!M36 -> 0.01006566394 | C36: 0 | D36: 0 | E36: 0 | F36: 0 | G36: 0 | H36: 0 | I36: 0 | J36: 0 | K36: 0 | L36: 0 | M36: 0 | N36: 0 | O36: 0 | P36: 0 | Q36: 0 | R36: 0 | S36: 0 | T36: 0 | U36: 0 | V36: 0 | W36: 0 | X36: 0 | Y36: 0 | Z36: 0 | AA36: 0 | AB36: 0 | AC36: 0 | AD36: 0 | AE36: 0 | AF36: 0 | AG36: 0 | AH36: 0 | AI36: 0 | AJ36: 0 | AK36: 0 | AL36: 0 | AM36: 0 | AN36: 0 | AO36: 0 | AP36: 0 | AQ36: 0 | AR36: 0 | AS36: 0 | AT36: 0 | AU36: 0 | AV36: 0 | AW36: 0 | AX36: 0 | AY36: 0 | AZ36: 0 | BA36: 0 | BB36: 0 | BC36: 0 | BD36: 0 | BE36: 0 | BF36: 0 | BG36: 0 | BH36: 0 | BI36: 0 | BJ36: 0 | BK36: 0 | BL36: 0 | BM36: 0 | BN36: 0 | BO36: 0 | BP36: 0 | BQ36: 0 | BR36: 0 | BS36: 0 | BT36: 0 | BU36: 0 | BV36: 0 | BW36: 0 | BX36: 0 | BY36: 0 | BZ36: 0 | CA36: 0 | CB36: 0 | CC36: 0 | CD36: 0 | CE36: 0 | CF36: 0 | CG36: 0 | CH36: 0 | CI36: 0 | CJ36: 0 | CK36: 0 | CL36: 0 | CM36: 0 | CN36: 0 | CO36: 0 | CP36: 0 | CQ36: 0 | CR36: 0 | CS36: 0 | CT36: 0 | CU36: 0 | CV36: 0 | CW36: 0 | CX36: 0 | CY36: 0 | CZ36: 0 | DA36: 0 | DB36: 0 | DC36: 0 | DD36: 0 | DE36: 0 | DF36: 0 | DG36: 0 | DH36: 0 | DI36: 0 | DJ36: 0 | DK36: 0 | DL36: 0 | DM36: 0 | DN36: 0 | DO36: 0 | DP36: 0 | DQ36: 0 | DR36: 0 | DS36: 1.74561492e-16
A37: =CMS!I37 -> 0.162 | B37: =CMS!M37 -> 0.01007936341 | C37: 0 | D37: 0 | E37: 0 | F37: 0 | G37: 0 | H37: 0 | I37: 0 | J37: 0 | K37: 0 | L37: 0 | M37: 0 | N37: 0 | O37: 0 | P37: 0 | Q37: 0 | R37: 0 | S37: 0 | T37: 0 | U37: 0 | V37: 0 | W37: 0 | X37: 0 | Y37: 0 | Z37: 0 | AA37: 0 | AB37: 0 | AC37: 0 | AD37: 0 | AE37: 0 | AF37: 0 | AG37: 0 | AH37: 0 | AI37: 0 | AJ37: 0 | AK37: 0 | AL37: 0 | AM37: 0 | AN37: 0 | AO37: 0 | AP37: 0 | AQ37: 0 | AR37: 0 | AS37: 0 | AT37: 0 | AU37: 0 | AV37: 0 | AW37: 0 | AX37: 0 | AY37: 0 | AZ37: 0 | BA37: 0 | BB37: 0 | BC37: 0 | BD37: 0 | BE37: 0 | BF37: 0 | BG37: 0 | BH37: 0 | BI37: 0 | BJ37: 0 | BK37: 0 | BL37: 0 | BM37: 0 | BN37: 0 | BO37: 0 | BP37: 0 | BQ37: 0 | BR37: 0 | BS37: 0 | BT37: 0 | BU37: 0 | BV37: 0 | BW37: 0 | BX37: 0 | BY37: 0 | BZ37: 0 | CA37: 0 | CB37: 0 | CC37: 0 | CD37: 0 | CE37: 0 | CF37: 0 | CG37: 0 | CH37: 0 | CI37: 0 | CJ37: 0 | CK37: 0 | CL37: 0 | CM37: 0 | CN37: 0 | CO37: 0 | CP37: 0 | CQ37: 0 | CR37: 0 | CS37: 0 | CT37: 0 | CU37: 0 | CV37: 0 | CW37: 0 | CX37: 0 | CY37: 0 | CZ37: 0 | DA37: 0 | DB37: 0 | DC37: 0 | DD37: 0 | DE37: 0 | DF37: 0 | DG37: 0 | DH37: 0 | DI37: 0 | DJ37: 0 | DK37: 0 | DL37: 0 | DM37: 0 | DN37: 0 | DO37: 0 | DP37: 0 | DQ37: 0 | DR37: 0 | DS37: 0
A38: =CMS!I38 -> 0.167 | B38: =CMS!M38 -> 0.01008989699 | C38: 0 | D38: 0 | E38: 0 | F38: 0 | G38: 0 | H38: 0 | I38: 0 | J38: 0 | K38: 0 | L38: 0 | M38: 0 | N38: 0 | O38: 0 | P38: 0 | Q38: 0 | R38: 0 | S38: 0 | T38: 0 | U38: 0 | V38: 0 | W38: 0 | X38: 0 | Y38: 0 | Z38: 0 | AA38: 0 | AB38: 0 | AC38: 0 | AD38: 0 | AE38: 0 | AF38: 0 | AG38: 0 | AH38: 0 | AI38: 0 | AJ38: 0 | AK38: 0 | AL38: 0 | AM38: 0 | AN38: 0 | AO38: 0 | AP38: 0 | AQ38: 0 | AR38: 0 | AS38: 0 | AT38: 0 | AU38: 0 | AV38: 0 | AW38: 0 | AX38: 0 | AY38: 0 | AZ38: 0 | BA38: 0 | BB38: 0 | BC38: 0 | BD38: 0 | BE38: 0 | BF38: 0 | BG38: 0 | BH38: 0 | BI38: 0 | BJ38: 0 | BK38: 0 | BL38: 0 | BM38: 0 | BN38: 0 | BO38: 0 | BP38: 0 | BQ38: 0 | BR38: 0 | BS38: 0 | BT38: 0 | BU38: 0 | BV38: 0 | BW38: 0 | BX38: 0 | BY38: 0 | BZ38: 0 | CA38: 0 | CB38: 0 | CC38: 0 | CD38: 0 | CE38: 0 | CF38: 0 | CG38: 0 | CH38: 0 | CI38: 0 | CJ38: 0 | CK38: 0 | CL38: 0 | CM38: 0 | CN38: 0 | CO38: 0 | CP38: 0 | CQ38: 0 | CR38: 0 | CS38: 0 | CT38: 0 | CU38: 0 | CV38: 0 | CW38: 0 | CX38: 0 | CY38: 0 | CZ38: 0 | DA38: 0 | DB38: 0 | DC38: 0 | DD38: 0 | DE38: 0 | DF38: 0 | DG38: 0 | DH38: 0 | DI38: 0 | DJ38: 0 | DK38: 0 | DL38: 0 | DM38: 0 | DN38: 0 | DO38: 0 | DP38: 0 | DQ38: 0 | DR38: 0 | DS38: 0
A39: =CMS!I39 -> 0.172 | B39: =CMS!M39 -> 0.01009771009 | C39: 0 | D39: 0 | E39: 0 | F39: 0 | G39: 0 | H39: 0 | I39: 0 | J39: 0 | K39: 0 | L39: 0 | M39: 0 | N39: 0 | O39: 0 | P39: 0 | Q39: 0 | R39: 0 | S39: 0 | T39: 0 | U39: 0 | V39: 0 | W39: 0 | X39: 0 | Y39: 0 | Z39: 0 | AA39: 0 | AB39: 0 | AC39: 0 | AD39: 0 | AE39: 0 | AF39: 0 | AG39: 0 | AH39: 0 | AI39: 0 | AJ39: 0 | AK39: 0 | AL39: 0 | AM39: 0 | AN39: 0 | AO39: 0 | AP39: 0 | AQ39: 0 | AR39: 0 | AS39: 0 | AT39: 0 | AU39: 0 | AV39: 0 | AW39: 0 | AX39: 0 | AY39: 0 | AZ39: 0 | BA39: 0 | BB39: 0 | BC39: 0 | BD39: 0 | BE39: 0 | BF39: 0 | BG39: 0 | BH39: 0 | BI39: 0 | BJ39: 0 | BK39: 0 | BL39: 0 | BM39: 0 | BN39: 0 | BO39: 0 | BP39: 0 | BQ39: 0 | BR39: 0 | BS39: 0 | BT39: 0 | BU39: 0 | BV39: 0 | BW39: 0 | BX39: 0 | BY39: 0 | BZ39: 0 | CA39: 0 | CB39: 0 | CC39: 0 | CD39: 0 | CE39: 0 | CF39: 0 | CG39: 0 | CH39: 0 | CI39: 0 | CJ39: 0 | CK39: 0 | CL39: 0 | CM39: 0 | CN39: 0 | CO39: 0 | CP39: 0 | CQ39: 0 | CR39: 0 | CS39: 0 | CT39: 0 | CU39: 0 | CV39: 0 | CW39: 0 | CX39: 0 | CY39: 0 | CZ39: 0 | DA39: 0 | DB39: 0 | DC39: 0 | DD39: 0 | DE39: 0 | DF39: 0 | DG39: 0 | DH39: 0 | DI39: 0 | DJ39: 0 | DK39: 0 | DL39: 0 | DM39: 0 | DN39: 0 | DO39: 0 | DP39: 0 | DQ39: 0 | DR39: 0 | DS39: 0
A40: =CMS!I40 -> 0.177 | B40: =CMS!M40 -> 0.01010320096 | C40: 0 | D40: 0 | E40: 0 | F40: 0 | G40: 0 | H40: 0 | I40: 0 | J40: 0 | K40: 0 | L40: 0 | M40: 0 | N40: 0 | O40: 0 | P40: 0 | Q40: 0 | R40: 0 | S40: 0 | T40: 0 | U40: 0 | V40: 0 | W40: 0 | X40: 0 | Y40: 0 | Z40: 0 | AA40: 0 | AB40: 0 | AC40: 0 | AD40: 0 | AE40: 0 | AF40: 0 | AG40: 0 | AH40: 0 | AI40: 0 | AJ40: 0 | AK40: 0 | AL40: 0 | AM40: 0 | AN40: 0 | AO40: 0 | AP40: 0 | AQ40: 0 | AR40: 0 | AS40: 0 | AT40: 0 | AU40: 0 | AV40: 0 | AW40: 0 | AX40: 0 | AY40: 0 | AZ40: 0 | BA40: 0 | BB40: 0 | BC40: 0 | BD40: 0 | BE40: 0 | BF40: 0 | BG40: 0 | BH40: 0 | BI40: 0 | BJ40: 0 | BK40: 0 | BL40: 0 | BM40: 0 | BN40: 0 | BO40: 0 | BP40: 0 | BQ40: 0 | BR40: 0 | BS40: 0 | BT40: 0 | BU40: 0 | BV40: 0 | BW40: 0 | BX40: 0 | BY40: 0 | BZ40: 0 | CA40: 0 | CB40: 0 | CC40: 0 | CD40: 0 | CE40: 0 | CF40: 0 | CG40: 0 | CH40: 0 | CI40: 0 | CJ40: 0 | CK40: 0 | CL40: 0 | CM40: 0 | CN40: 0 | CO40: 0 | CP40: 0 | CQ40: 0 | CR40: 0 | CS40: 0 | CT40: 0 | CU40: 0 | CV40: 0 | CW40: 0 | CX40: 0 | CY40: 0 | CZ40: 0 | DA40: 0 | DB40: 0 | DC40: 0 | DD40: 0 | DE40: 0 | DF40: 0 | DG40: 0 | DH40: 0 | DI40: 0 | DJ40: 0 | DK40: 0 | DL40: 0 | DM40: 0 | DN40: 0 | DO40: 0 | DP40: 0 | DQ40: 0 | DR40: 0 | DS40: 0
A41: =CMS!I41 -> 0.182 | B41: =CMS!M41 -> 0.01010672385 | C41: 0 | D41: 0 | E41: 0 | F41: 0 | G41: 0 | H41: 0 | I41: 0 | J41: 0 | K41: 0 | L41: 0 | M41: 0 | N41: 0 | O41: 0 | P41: 0 | Q41: 0 | R41: 0 | S41: 0 | T41: 0 | U41: 0 | V41: 0 | W41: 0 | X41: 0 | Y41: 0 | Z41: 0 | AA41: 0 | AB41: 0 | AC41: 0 | AD41: 0 | AE41: 0 | AF41: 0 | AG41: 0 | AH41: 0 | AI41: 0 | AJ41: 0 | AK41: 0 | AL41: 0 | AM41: 0 | AN41: 0 | AO41: 0 | AP41: 0 | AQ41: 0 | AR41: 0 | AS41: 0 | AT41: 0 | AU41: 0 | AV41: 0 | AW41: 0 | AX41: 0 | AY41: 0 | AZ41: 0 | BA41: 0 | BB41: 0 | BC41: 0 | BD41: 0 | BE41: 0 | BF41: 0 | BG41: 0 | BH41: 0 | BI41: 0 | BJ41: 0 | BK41: 0 | BL41: 0 | BM41: 0 | BN41: 0 | BO41: 0 | BP41: 0 | BQ41: 0 | BR41: 0 | BS41: 0 | BT41: 0 | BU41: 0 | BV41: 0 | BW41: 0 | BX41: 0 | BY41: 0 | BZ41: 0 | CA41: 0 | CB41: 0 | CC41: 0 | CD41: 0 | CE41: 0 | CF41: 0 | CG41: 0 | CH41: 0 | CI41: 0 | CJ41: 0 | CK41: 0 | CL41: 0 | CM41: 0 | CN41: 0 | CO41: 0 | CP41: 0 | CQ41: 0 | CR41: 0 | CS41: 0 | CT41: 0 | CU41: 0 | CV41: 0 | CW41: 0 | CX41: 0 | CY41: 0 | CZ41: 0 | DA41: 0 | DB41: 0 | DC41: 0 | DD41: 0 | DE41: 0 | DF41: 0 | DG41: 0 | DH41: 0 | DI41: 0 | DJ41: 0 | DK41: 0 | DL41: 0 | DM41: 0 | DN41: 0 | DO41: 0 | DP41: 0 | DQ41: 0 | DR41: 0 | DS41: 0
A42: =CMS!I42 -> 0.187 | B42: =CMS!M42 -> 0.01010859223 | C42: 0 | D42: 0 | E42: 0 | F42: 0 | G42: 0 | H42: 0 | I42: 0 | J42: 0 | K42: 0 | L42: 0 | M42: 0 | N42: 0 | O42: 0 | P42: 0 | Q42: 0 | R42: 0 | S42: 0 | T42: 0 | U42: 0 | V42: 0 | W42: 0 | X42: 0 | Y42: 0 | Z42: 0 | AA42: 0 | AB42: 0 | AC42: 0 | AD42: 0 | AE42: 0 | AF42: 0 | AG42: 0 | AH42: 0 | AI42: 0 | AJ42: 0 | AK42: 0 | AL42: 0 | AM42: 0 | AN42: 0 | AO42: 0 | AP42: 0 | AQ42: 0 | AR42: 0 | AS42: 0 | AT42: 0 | AU42: 0 | AV42: 0 | AW42: 0 | AX42: 0 | AY42: 0 | AZ42: 0 | BA42: 0 | BB42: 0 | BC42: 0 | BD42: 0 | BE42: 0 | BF42: 0 | BG42: 0 | BH42: 0 | BI42: 0 | BJ42: 0 | BK42: 0 | BL42: 0 | BM42: 0 | BN42: 0 | BO42: 0 | BP42: 0 | BQ42: 0 | BR42: 0 | BS42: 0 | BT42: 0 | BU42: 0 | BV42: 0 | BW42: 0 | BX42: 0 | BY42: 0 | BZ42: 0 | CA42: 0 | CB42: 0 | CC42: 0 | CD42: 0 | CE42: 0 | CF42: 0 | CG42: 0 | CH42: 0 | CI42: 0 | CJ42: 0 | CK42: 0 | CL42: 0 | CM42: 0 | CN42: 0 | CO42: 0 | CP42: 0 | CQ42: 0 | CR42: 0 | CS42: 0 | CT42: 0 | CU42: 0 | CV42: 0 | CW42: 0 | CX42: 0 | CY42: 0 | CZ42: 0 | DA42: 0 | DB42: 0 | DC42: 0 | DD42: 0 | DE42: 0 | DF42: 0 | DG42: 0 | DH42: 0 | DI42: 0 | DJ42: 0 | DK42: 0 | DL42: 0 | DM42: 0 | DN42: 0 | DO42: 0 | DP42: 0 | DQ42: 0 | DR42: 0 | DS42: 0
A43: =CMS!I43 -> 0.192 | B43: =CMS!M43 -> 0.01010908217 | C43: 0 | D43: 0 | E43: 0 | F43: 0 | G43: 0 | H43: 0 | I43: 0 | J43: 0 | K43: 0 | L43: 0 | M43: 0 | N43: 0 | O43: 0 | P43: 0 | Q43: 0 | R43: 0 | S43: 0 | T43: 0 | U43: 0 | V43: 0 | W43: 0 | X43: 0 | Y43: 0 | Z43: 0 | AA43: 0 | AB43: 0 | AC43: 0 | AD43: 0 | AE43: 0 | AF43: 0 | AG43: 0 | AH43: 0 | AI43: 0 | AJ43: 0 | AK43: 0 | AL43: 0 | AM43: 0 | AN43: 0 | AO43: 0 | AP43: 0 | AQ43: 0 | AR43: 0 | AS43: 0 | AT43: 0 | AU43: 0 | AV43: 0 | AW43: 0 | AX43: 0 | AY43: 0 | AZ43: 0 | BA43: 0 | BB43: 0 | BC43: 0 | BD43: 0 | BE43: 0 | BF43: 0 | BG43: 0 | BH43: 0 | BI43: 0 | BJ43: 0 | BK43: 0 | BL43: 0 | BM43: 0 | BN43: 0 | BO43: 0 | BP43: 0 | BQ43: 0 | BR43: 0 | BS43: 0 | BT43: 0 | BU43: 0 | BV43: 0 | BW43: 0 | BX43: 0 | BY43: 0 | BZ43: 0 | CA43: 0 | CB43: 0 | CC43: 0 | CD43: 0 | CE43: 0 | CF43: 0 | CG43: 0 | CH43: 0 | CI43: 0 | CJ43: 0 | CK43: 0 | CL43: 0 | CM43: 0 | CN43: 0 | CO43: 0 | CP43: 0 | CQ43: 0 | CR43: 0 | CS43: 0 | CT43: 0 | CU43: 0 | CV43: 0 | CW43: 0 | CX43: 0 | CY43: 0 | CZ43: 0 | DA43: 0 | DB43: 0 | DC43: 0 | DD43: 0 | DE43: 0 | DF43: 0 | DG43: 0 | DH43: 0 | DI43: 0 | DJ43: 0 | DK43: 0 | DL43: 0 | DM43: 0 | DN43: 0 | DO43: 0 | DP43: 0 | DQ43: 0 | DR43: 0 | DS43: 0
A44: =CMS!I44 -> 0.197 | B44: =CMS!M44 -> 0.01010843553 | C44: 0 | D44: 0 | E44: 0 | F44: 0 | G44: 0 | H44: 0 | I44: 0 | J44: 0 | K44: 0 | L44: 0 | M44: 0 | N44: 0 | O44: 0 | P44: 0 | Q44: 0 | R44: 0 | S44: 0 | T44: 0 | U44: 0 | V44: 0 | W44: 0 | X44: 0 | Y44: 0 | Z44: 0 | AA44: 0 | AB44: 0 | AC44: 0 | AD44: 0 | AE44: 0 | AF44: 0 | AG44: 0 | AH44: 0 | AI44: 0 | AJ44: 0 | AK44: 0 | AL44: 0 | AM44: 0 | AN44: 0 | AO44: 0 | AP44: 0 | AQ44: 0 | AR44: 0 | AS44: 0 | AT44: 0 | AU44: 0 | AV44: 0 | AW44: 0 | AX44: 0 | AY44: 0 | AZ44: 0 | BA44: 0 | BB44: 0 | BC44: 0 | BD44: 0 | BE44: 0 | BF44: 0 | BG44: 0 | BH44: 0 | BI44: 0 | BJ44: 0 | BK44: 0 | BL44: 0 | BM44: 0 | BN44: 0 | BO44: 0 | BP44: 0 | BQ44: 0 | BR44: 0 | BS44: 0 | BT44: 0 | BU44: 0 | BV44: 0 | BW44: 0 | BX44: 0 | BY44: 0 | BZ44: 0 | CA44: 0 | CB44: 0 | CC44: 0 | CD44: 0 | CE44: 0 | CF44: 0 | CG44: 0 | CH44: 0 | CI44: 0 | CJ44: 0 | CK44: 0 | CL44: 0 | CM44: 0 | CN44: 0 | CO44: 0 | CP44: 0 | CQ44: 0 | CR44: 0 | CS44: 0 | CT44: 0 | CU44: 0 | CV44: 0 | CW44: 0 | CX44: 0 | CY44: 0 | CZ44: 0 | DA44: 0 | DB44: 0 | DC44: 0 | DD44: 0 | DE44: 0 | DF44: 0 | DG44: 0 | DH44: 0 | DI44: 0 | DJ44: 0 | DK44: 0 | DL44: 0 | DM44: 0 | DN44: 0 | DO44: 0 | DP44: 0 | DQ44: 0 | DR44: 0 | DS44: 0
A45: =CMS!I45 -> 0.202 | B45: =CMS!M45 -> 0.01010686318 | C45: 0 | D45: 0 | E45: 0 | F45: 0 | G45: 0 | H45: 0 | I45: 0 | J45: 0 | K45: 0 | L45: 0 | M45: 0 | N45: 0 | O45: 0 | P45: 0 | Q45: 0 | R45: 0 | S45: 0 | T45: 0 | U45: 0 | V45: 0 | W45: 0 | X45: 0 | Y45: 0 | Z45: 0 | AA45: 0 | AB45: 0 | AC45: 0 | AD45: 0 | AE45: 0 | AF45: 0 | AG45: 0 | AH45: 0 | AI45: 0 | AJ45: 0 | AK45: 0 | AL45: 0 | AM45: 0 | AN45: 0 | AO45: 0 | AP45: 0 | AQ45: 0 | AR45: 0 | AS45: 0 | AT45: 0 | AU45: 0 | AV45: 0 | AW45: 0 | AX45: 0 | AY45: 0 | AZ45: 0 | BA45: 0 | BB45: 0 | BC45: 0 | BD45: 0 | BE45: 0 | BF45: 0 | BG45: 0 | BH45: 0 | BI45: 0 | BJ45: 0 | BK45: 0 | BL45: 0 | BM45: 0 | BN45: 0 | BO45: 0 | BP45: 0 | BQ45: 0 | BR45: 0 | BS45: 0 | BT45: 0 | BU45: 0 | BV45: 0 | BW45: 0 | BX45: 0 | BY45: 0 | BZ45: 0 | CA45: 0 | CB45: 0 | CC45: 0 | CD45: 0 | CE45: 0 | CF45: 0 | CG45: 0 | CH45: 0 | CI45: 0 | CJ45: 0 | CK45: 0 | CL45: 0 | CM45: 0 | CN45: 0 | CO45: 0 | CP45: 0 | CQ45: 0 | CR45: 0 | CS45: 0 | CT45: 0 | CU45: 0 | CV45: 0 | CW45: 0 | CX45: 0 | CY45: 0 | CZ45: 0 | DA45: 0 | DB45: 0 | DC45: 0 | DD45: 0 | DE45: 0 | DF45: 0 | DG45: 0 | DH45: 0 | DI45: 0 | DJ45: 0 | DK45: 0 | DL45: 0 | DM45: 0 | DN45: 0 | DO45: 0 | DP45: 0 | DQ45: 0 | DR45: 0 | DS45: 0
A46: =CMS!I46 -> 0.207 | B46: =CMS!M46 -> 0.01010454804 | C46: 0 | D46: 0 | E46: 0 | F46: 0 | G46: 0 | H46: 0 | I46: 0 | J46: 0 | K46: 0 | L46: 0 | M46: 0 | N46: 0 | O46: 0 | P46: 0 | Q46: 0 | R46: 0 | S46: 0 | T46: 0 | U46: 0 | V46: 0 | W46: 0 | X46: 0 | Y46: 0 | Z46: 0 | AA46: 0 | AB46: 0 | AC46: 0 | AD46: 0 | AE46: 0 | AF46: 0 | AG46: 0 | AH46: 0 | AI46: 0 | AJ46: 0 | AK46: 0 | AL46: 0 | AM46: 0 | AN46: 0 | AO46: 0 | AP46: 0 | AQ46: 0 | AR46: 0 | AS46: 0 | AT46: 0 | AU46: 0 | AV46: 0 | AW46: 0 | AX46: 0 | AY46: 0 | AZ46: 0 | BA46: 0 | BB46: 0 | BC46: 0 | BD46: 0 | BE46: 0 | BF46: 0 | BG46: 0 | BH46: 0 | BI46: 0 | BJ46: 0 | BK46: 0 | BL46: 0 | BM46: 0 | BN46: 0 | BO46: 0 | BP46: 0 | BQ46: 0 | BR46: 0 | BS46: 0 | BT46: 0 | BU46: 0 | BV46: 0 | BW46: 0 | BX46: 0 | BY46: 0 | BZ46: 0 | CA46: 0 | CB46: 0 | CC46: 0 | CD46: 0 | CE46: 0 | CF46: 0 | CG46: 0 | CH46: 0 | CI46: 0 | CJ46: 0 | CK46: 0 | CL46: 0 | CM46: 0 | CN46: 0 | CO46: 0 | CP46: 0 | CQ46: 0 | CR46: 0 | CS46: 0 | CT46: 0 | CU46: 0 | CV46: 0 | CW46: 0 | CX46: 0 | CY46: 0 | CZ46: 0 | DA46: 0 | DB46: 0 | DC46: 0 | DD46: 0 | DE46: 0 | DF46: 0 | DG46: 0 | DH46: 0 | DI46: 0 | DJ46: 0 | DK46: 0 | DL46: 0 | DM46: 0 | DN46: 0 | DO46: 0 | DP46: 0 | DQ46: 0 | DR46: 0 | DS46: 0
